Workbook

Sheet INDICE
F1: ESPANHA
F2: Trocas comerciais com Portugal (PT) 2017-2021 Produtos do Mar
C3: Fonte
D4: Estatísticas do Comércio Internacional | F4: 1. Espanha - Síntese
D5: dados: 2020 provisórios; 2021 preliminares | F5: 2. Evolução da balança comercial
F6: 3. Principais transações de Produtos do Mar (NC a 2 e 4 dígitos)
C7: Data | D7: 2022-04-20T10:48:19.630 | F7: 3A Principais produtos agrícolas e agroalimentares transacionados NC 2D)
F8: 3C Principais origens/destinos produtos agrícolas e agroalimentares
F9: 4. Evolução da balança comercial por país e produto
F10: 4A Evolução da balança comercial por produto
F11: 5.2. Trocas comerciais por produto (NC 2 dígitos)

Sheet 1
A1: Espanha - Síntese para Produtos do Mar (2017-2021)
A3: • As trocas comerciais de bens transacionáveis (excluindo serviços) entre Portugal e Espanha representam um total de 14,8 mil milhões de € em exportações e 24 mil milhões de € em importações, na média do período 2017-2021, correspondendo a um saldo negativo da balança comercial de cerca de -9,2 mil milhões.
A4: • No que respeita aos produtos dos setores agrícola e agroalimentar, mar e florestas, Portugal exportou para Espanha 3,7 mil milhões de € em média anual, no mesmo período, enquanto as importações ascenderam a 6,3 mil milhões de € . Estes setores representam perto de 25,1% do total de exportações de bens transacionáveis e as importações 26,4% das correspondentes importações. Se nos referirmos apenas ao setor agrícola e agroalimentar, as exportações representam, em média, 2,1 e as importações 4,3 mil milhões de €. Quanto ao setor Produtos do Mar, corresponde a 528,5 milhões de € de exportações e a 835,3 milhões de importações.
A5: • As principais exportações do setor Produtos do Mar (NC 4 dígitos) neste período são Moluscos (24%), Peixes frescos ou refrigerados (23%) e Peixes congelados (22%). As importações mais relevantes do mesmo setor referem-se a Moluscos (21%), Peixes congelados (21%) e Peixes frescos ou refrigerados (20%).
A7: Trocas PT-Espanha (milhões de euros) Produtos do Mar | H7: Trocas PT-Espanha (milhões de euros) produtos agrícolas e agroalimentares, do mar e da floresta
B9: 2019 | C9: 2020 | D9: 2021 | E9: média 2017-2021 | F9: TVMA* 2017-2021 | G9: TVT* 2017-2021 | I9: 2019 | J9: 2020 | K9: 2021 | L9: média 2017-2021 | M9: TVMA* 2017-2021 | N9: TVT* 2017-2021
A10: Exportações | B10: 554.317557 | C10: 424.899383 | D10: 552.140147 | E10: 528.4650406 | F10: 0.003531809234 | G10: 0.01420225537 | H10: Exportações | I10: 3619.436078 | J10: 3571.14121 | K10: 4322.548925 | L10: 3707.78297 | M10: 0.06158405373 | N10: 0.2700404264
A11: Importações | B11: 847.426105 | C11: 779.235446 | D11: 877.96409 | E11: 835.2932264 | F11: 0.01265903056 | G11: 0.05160576875 | H11: Importações | I11: 6368.376895 | J11: 6104.930576 | K11: 6927.666346 | L11: 6331.078123 | M11: 0.03504781483 | N11: 0.1477350679
A12: Saldo | B12: -293.108548 | C12: -354.336063 | D12: -325.823943 | E12: -306.8281858 | H12: Saldo | I12: -2748.940817 | J12: -2533.789366 | K12: -2605.117421 | L12: -2623.295153
B13: *TVMA - Taxa de variação média anual; TVT - Taxa de variação total
E14: Saldo da Balança Comercial PT-Espanha (milhões de euros)
E15: 2017 | F15: 2018 | G15: 2019 | H15: 2020 | I15: 2021 | J15: média 2017-2021
D16: Total de Bens Transacionáveis* | E16: -8645.651367 | F16: -9104.004899 | G16: -9594.808294 | H16: -8453.124125 | I16: -10156.97647 | J16: -9190.91303 | K16: 0
B17: Agrícola e Agroalimentar (AA) | E17: -2162.078023 | F17: -2166.198325 | G17: -2330.407905 | H17: -2050.454525 | I17: -2181.816448 | J17: -2178.191045 | K17: 0
D18: Mar (M) | E18: -290.471171 | F18: -270.401204 | G18: -293.108548 | H18: -354.336063 | I18: -325.823943 | J18: -306.8281858 | K18: 0
D19: Florestas (F) | E19: -179.922838 | F19: -159.5566 | G19: -125.424364 | H19: -128.998778 | I19: -97.47703 | J19: -138.275922 | K19: 0
D20: AA + M + F | E20: -2632.472032 | F20: -2596.156129 | G20: -2748.940817 | H20: -2533.789366 | I20: -2605.117421 | J20: -2623.295153
D21: Produtos do Mar | E21: -290.471171 | F21: -270.401204 | G21: -293.108548 | H21: -354.336063 | I21: -325.823943 | J21: -306.8281858 | K21: 0
D22: *exclui serviços
A24: Evolução das trocas comerciais PT-Espanha (em milhões de euros2017-2021)
F33: Exportações | H33: Importações | J33: Saldo
A34: Principais transações de Produtos do Mar (NC 4 dígitos)
A53: Principais transações de Produtos do Mar (NC 4 dígitos - média 2017-2021)
A75: Fonte: GPP a partir de dados INE/Comércio Internacional (2020 provisórios; 2021 preliminares) | L75: 2022-04-20T10:48:19.630

Sheet 2
A1: Evolução da balança comercial Portugal-Espanha 2017-2021 em milhões de euros
A3: Total de Bens Transacionáveis (BT)(1) | B3: 2017 | C3: 2018 | D3: 2019 | E3: 2020 | F3: 2021 | G3: média quinquénio | H3: var. 17/18 | I3: var. 18/19 | J3: var. 19/20 | K3: var. 20/21 | L3: TVMA* 2017-2021 | M3: TVT* 2017-2021
A4: Exportações | B4: 13854.04293 | C4: 14666.08774 | D4: 14811.17312 | E4: 13636.22215 | F4: 16970.88209 | G4: 14787.6816 | H4: 0.05861428402 | I4: 0.009892575962 | J4: -0.07932869107 | K4: 0.2445442667 | L4: 0.05203931971 | M4: 0.2249768662
A5: Importações | B5: 22499.6943 | C5: 23770.09264 | D5: 24405.98142 | E5: 22089.34627 | F5: 27127.85856 | G5: 23978.59464 | H5: 0.05646291555 | I5: 0.02675163247 | J5: -0.09492079447 | K5: 0.2280969398 | L5: 0.04787559014 | M5: 0.2056989842
A6: Saldo (exp-imp) | B6: -8645.651367 | C6: -9104.004899 | D6: -9594.808294 | E6: -8453.124125 | F6: -10156.97647 | G6: -9190.91303
A7: Cobertura (exp/imp) | B7: 0.6157436073 | C7: 0.6169975002 | D7: 0.6068665246 | E7: 0.6173212181 | F7: 0.6255887119 | G7: 0.616703432
A8: Exp BT Espanha / Exp BT Mundo | B8: 0.2518093356 | C8: 0.2535192716 | D8: 0.2472533949 | E8: 0.2536622685 | F8: 0.2671234499 | G8: 0.2549071447 | L8: Exportações
A9: Imp BT Espanha / Imp BT Mundo | B9: 0.322860636 | C9: 0.3150892115 | D9: 0.3051620122 | E9: 0.3241494191 | F9: 0.3285502931 | G9: 0.3190179737 | L9: Importações
A10: Exp BT Espanha / Exp TE Mundo | B10: 0.165486599 | C10: 0.1645218313 | D10: 0.1587971706 | E10: 0.1840323689 | F10: 0.1912301358 | G10: 0.1723608611
A11: Imp BT Espanha / Imp TE Mundo | B11: 0.2752622122 | C11: 0.2695193636 | D11: 0.2644150964 | E11: 0.282028185 | F11: 0.2853365135 | G11: 0.2752163794
A12: (1) Todos os produtos transacionados entre PT e Espanha (exclui serviços) | D12: TE - Total da Economia (bens e serviços) Fonte: INE/Contas Nacionais | H12: *TVMA - Taxa de variação média anual; TVT - Taxa de variação total
A24: Agro(1) + Mar + Florestas (AMF) | B24: 2017 | C24: 2018 | D24: 2019 | E24: 2020 | F24: 2021 | G24: média quinquénio | H24: var. 17/18 | I24: var. 18/19 | J24: var. 19/20 | K24: var. 20/21 | L24: TVMA* 2017-2021 | M24: TVT* 2017-2021
A25: Exportações | B25: 3403.473492 | C25: 3622.315146 | D25: 3619.436078 | E25: 3571.14121 | F25: 4322.548925 | G25: 3707.78297 | H25: 0.064299503 | I25: -0.0007948143339 | J25: -0.01334320236 | K25: 0.2104110901 | L25: 0.06158405373 | M25: 0.2700404264
A26: Importações | B26: 6035.945524 | C26: 6218.471275 | D26: 6368.376895 | E26: 6104.930576 | F26: 6927.666346 | G26: 6331.078123 | H26: 0.03023979429 | I26: 0.02410650679 | J26: -0.04136789065 | K26: 0.1347657864 | L26: 0.03504781483 | M26: 0.1477350679
A27: Saldo (exp-imp) | B27: -2632.472032 | C27: -2596.156129 | D27: -2748.940817 | E27: -2533.789366 | F27: -2605.117421 | G27: -2623.295153
A28: Cobertura (exp/imp) | B28: 0.5638674966 | C28: 0.5825089457 | D28: 0.5683451431 | E28: 0.5849601671 | F28: 0.6239545482 | G28: 0.5856479573
A29: Exp AMF / Exp BT | B29: 0.2456664462 | C29: 0.2469857818 | D29: 0.2443720054 | E29: 0.2618864061 | F29: 0.2547038452 | G29: 0.2507345688 | L29: Exportações
A30: Imp AMF / Imp BT | B30: 0.2682678904 | C30: 0.2616090467 | D30: 0.2609350874 | E30: 0.2763744341 | F30: 0.2553709255 | G30: 0.2640304079 | L30: Importações
A31: Exp AMF Espanha / Exp AMF Mundo | B31: 0.3053285759 | C31: 0.3109094015 | D31: 0.3060114314 | E31: 0.3095809641 | F31: 0.3235733779 | G31: 0.311475773
A32: Imp AMF Espanha / Imp AMF Mundo | B32: 0.4631156995 | C32: 0.4562141607 | D32: 0.4603650126 | E32: 0.4679774513 | F32: 0.4695901498 | G32: 0.4635083316
A33: (1) Produtos agrícolas e agroalimentares | B33: BT - Total de Bens Transacionáveis (exclui serviços) | H33: *TVMA - Taxa de variação média anual; TVT - Taxa de variação total
A50: Agroalimentar (AA)(1) | B50: 2017 | C50: 2018 | D50: 2019 | E50: 2020 | F50: 2021 | G50: média quinquénio | H50: var. 17/18 | I50: var. 18/19 | J50: var. 19/20 | K50: var. 20/21 | L50: TVMA* 2017-2021 | M50: TVT* 2017-2021
A51: Exportações | B51: 1904.201556 | C51: 2021.273145 | D51: 2005.829268 | E51: 2174.802431 | F51: 2534.060591 | G51: 2128.033398 | H51: 0.0614806708 | I51: -0.007640667981 | J51: 0.08424104967 | K51: 0.1651911709 | L51: 0.07405376 | M51: 0.3307733013
A52: Importações | B52: 4066.279579 | C52: 4187.47147 | D52: 4336.237173 | E52: 4225.256956 | F52: 4715.877039 | G52: 4306.224443 | H52: 0.02980412159 | I52: 0.03552638008 | J52: -0.02559366856 | K52: 0.1161160346 | L52: 0.03774657655 | M52: 0.1597522864
A53: Saldo (exp-imp) | B53: -2162.078023 | C53: -2166.198325 | D53: -2330.407905 | E53: -2050.454525 | F53: -2181.816448 | G53: -2178.191045
A54: Cobertura (exp/imp) | B54: 0.4682908588 | C54: 0.482695383 | D54: 0.4625736988 | E54: 0.5147148336 | F54: 0.5373466208 | G54: 0.4941761458
A55: Exp AA / Exp AMF | B55: 0.5594877 | C55: 0.5580058784 | D55: 0.5541828132 | E55: 0.608993681 | F55: 0.5862421999 | G55: 0.5739368823 | L55: Exportações
A56: Imp AA / Imp AMF | B56: 0.6736773158 | C56: 0.6733924279 | D56: 0.6809014674 | E56: 0.6921056519 | F56: 0.6807309711 | G56: 0.680172375 | L56: Importações
A57: Exp AA / Exp BT | B57: 0.137447355 | C57: 0.1378195182 | D57: 0.1354267654 | E57: 0.1594871664 | F57: 0.1493181425 | G57: 0.1439058167
A58: Imp AA / Imp BT | B58: 0.1807259923 | C58: 0.1761655512 | D58: 0.1776710839 | E58: 0.1912803079 | F58: 0.1738388981 | G58: 0.1795861896
A59: Exp AA Espanha / Exp AA Mundo | B59: 0.3233496652 | C59: 0.3309831207 | D59: 0.3188076673 | E59: 0.3286648936 | F59: 0.3416619733 | G59: 0.3291981334
A60: Imp AA Espanha / Imp AA Mundo | B60: 0.4653892091 | C60: 0.4603703048 | D60: 0.4654076559 | E60: 0.4651086644 | F60: 0.4619703467 | G60: 0.4636036116
A61: (1) Produtos agrícolas e agroalimentares | B61: AMF - Agroalimentar, Mar e Florestas; BT - Total de Bens Transacionáveis (exclui serviços) | H61: *TVMA - Taxa de variação média anual; TVT - Taxa de variação total
A72: Mar (M) | B72: 2017 | C72: 2018 | D72: 2019 | E72: 2020 | F72: 2021 | G72: média quinquénio | H72: var. 17/18 | I72: var. 18/19 | J72: var. 19/20 | K72: var. 20/21 | L72: TVMA* 2017-2021 | M72: TVT* 2017-2021
A73: Exportações | B73: 544.408321 | C73: 566.559795 | D73: 554.317557 | E73: 424.899383 | F73: 552.140147 | G73: 528.4650406 | H73: 0.0406890805 | I73: -0.02160802462 | J73: -0.2334729838 | K73: 0.2994609291 | L73: 0.003531809234 | M73: 0.01420225537
A74: Importações | B74: 834.879492 | C74: 836.960999 | D74: 847.426105 | E74: 779.235446 | F74: 877.96409 | G74: 835.2932264 | H74: 0.002493182573 | I74: 0.01250369613 | J74: -0.08046797071 | K74: 0.126699375 | L74: 0.01265903056 | M74: 0.05160576875
A75: Saldo (exp-imp) | B75: -290.471171 | C75: -270.401204 | D75: -293.108548 | E75: -354.336063 | F75: -325.823943 | G75: -306.8281858
A76: Cobertura (exp/imp) | B76: 0.652080122 | C76: 0.6769249651 | D76: 0.6541190479 | E76: 0.5452772781 | F76: 0.6288869366 | G76: 0.6326700899
A77: Exp M / Exp AMF | B77: 0.1599566802 | C77: 0.1564082009 | D77: 0.1531502546 | E77: 0.1189814006 | F77: 0.127734852 | G77: 0.1425285797 | L77: Exportações
A78: Imp M / Imp AMF | B78: 0.1383179303 | C78: 0.1345927258 | D78: 0.1330678317 | E78: 0.1276403452 | F78: 0.1267330218 | G78: 0.1319353845 | L78: Importações
A79: Exp M / Exp BT | B79: 0.03929598918 | C79: 0.03863060178 | D79: 0.03742563485 | E79: 0.0311596114 | F79: 0.03253455796 | G79: 0.03573684197
A80: Imp M / Imp BT | B80: 0.03710625936 | C80: 0.03521067468 | D80: 0.03472206631 | E80: 0.03527652817 | F80: 0.03236392906 | G80: 0.03483495339
A81: Exp M Espanha / Exp M Mundo | B81: 0.5135720204 | C81: 0.519395044 | D81: 0.5188577015 | E81: 0.4723026354 | F81: 0.5051758659 | G81: 0.5069897676
A82: Imp M Espanha / Imp M Mundo | B82: 0.3906887254 | C82: 0.3797059078 | D82: 0.3888528843 | E82: 0.4048331597 | F82: 0.4241411428 | G82: 0.3971804131
A83: AMF - Agroalimentar, Mar e Florestas; BT - Total de Bens Transacionáveis (exclui serviços) | H83: *TVMA - Taxa de variação média anual; TVT - Taxa de variação total
A95: Florestas (F) | B95: 2017 | C95: 2018 | D95: 2019 | E95: 2020 | F95: 2021 | G95: média quinquénio | H95: var. 17/18 | I95: var. 18/19 | J95: var. 19/20 | K95: var. 20/21 | L95: TVMA* 2017-2021 | M95: TVT* 2017-2021
A96: Exportações | B96: 954.863615 | C96: 1034.482206 | D96: 1059.289253 | E96: 971.439396 | F96: 1236.348187 | G96: 1051.284531 | H96: 0.08338216029 | I96: 0.02398015824 | J96: -0.08293283138 | K96: 0.2726971874 | L96: 0.06671858786 | M96: 0.2947903424
A97: Importações | B97: 1134.786453 | C97: 1194.038806 | D97: 1184.713617 | E97: 1100.438174 | F97: 1333.825217 | G97: 1189.560453 | H97: 0.05221454032 | I97: -0.007809787214 | J97: -0.07113570891 | K97: 0.2120855569 | L97: 0.04122885583 | M97: 0.1753975503
A98: Saldo (exp-imp) | B98: -179.922838 | C98: -159.5566 | D98: -125.424364 | E98: -128.998778 | F98: -97.47703 | G98: -138.275922
A99: Cobertura (exp/imp) | B99: 0.8414478446 | C99: 0.8663723497 | D99: 0.8941310691 | E99: 0.882775079 | F99: 0.9269191879 | G99: 0.8837588106
A100: Exp F / Exp AMF | B100: 0.2805556198 | C100: 0.2855859207 | D100: 0.2926669321 | E100: 0.2720249183 | F100: 0.2860229481 | G100: 0.283534538 | L100: Exportações
A101: Imp F / Imp AMF | B101: 0.1880047539 | C101: 0.1920148463 | D101: 0.1860307008 | E101: 0.1802540029 | F101: 0.1925360071 | G101: 0.1878922405 | L101: Importações
A102: Exp F / Exp BT | B102: 0.06892310208 | C102: 0.0705356619 | D102: 0.07151960511 | E102: 0.07123962822 | F102: 0.07285114471 | G102: 0.07109191011
A103: Imp F / Imp BT | B103: 0.05043563873 | C103: 0.0502328209 | D103: 0.04854193719 | E103: 0.04981759806 | F103: 0.04916809833 | G103: 0.04960926491
A104: Exp F Espanha / Exp F Mundo | B104: 0.2274626214 | C104: 0.2323099567 | D104: 0.2370952652 | E104: 0.2417305009 | F104: 0.2549718484 | G104: 0.2390766992
A105: Imp F Espanha / Imp F Mundo | B105: 0.5256012039 | C105: 0.5123562789 | D105: 0.5069486007 | E105: 0.5404717509 | F105: 0.5390460425 | G105: 0.524638715
A106: AMF - Agroalimentar, Mar e Florestas; BT - Total de Bens Transacionáveis (exclui serviços) | H106: *TVMA - Taxa de variação média anual; TVT - Taxa de variação total
A116: Fonte: GPP a partir de dados INE/Comércio Internacional (2020 provisórios; 2021 preliminares) | H116: 2022-04-20T10:48:19.630

Sheet 3
A1: Principais transações de Produtos do Mar entre Portugal e Espanha em 2017-2021 (NC a 2 e 4 dígitos) em milhões de euros
AC4: P | AE4: Cód.NC | AF4: Descritivo | AG4: Média export quinquénio | AH4: % do total | AI4: % acumulada | AN4: P | AO4: NC | AP4: Exportações | AQ4: 2017 | AR4: 2018 | AS4: 2019 | AT4: 2020 | AU4: 2021 | AV4: média quinquénio
AC5: 1 | AD5: º | AE5: 03 | AF5: Peixes e crustáceos | AG5: 478.8841066 | AH5: 0.9061793493 | AN5: 1º | AO5: 03 | AP5: Peixes e crustáceos | AQ5: 491.356202 | AR5: 514.332416 | AS5: 512.73204 | AT5: 377.385652 | AU5: 498.614223 | AV5: 478.8841066
AC6: 2 | AD6: º | AE6: 16p | AF6: Preparações e conservas de peixes ou crustáceos (NC 1604-05) (p) | AG6: 44.7811242 | AH6: 0.08473810141 | AN6: 2º | AO6: 16p | AP6: Preparações e conservas de peixes ou crustáceos (NC 1604-05) (p) | AQ6: 50.266743 | AR6: 49.237925 | AS6: 36.359821 | AT6: 41.225248 | AU6: 46.815884 | AV6: 44.7811242
AC7: 3 | AD7: º | AE7: 23p | AF7: Farinhas de pescado (NC 230120) (p) | AG7: 2.3434698 | AH7: 0.004434484062 | AI7: 0.9953519347 | AN7: 3º | AO7: 23p | AP7: Farinhas de pescado (NC 230120) (p) | AQ7: 1.545154 | AR7: 1.449088 | AS7: 3.246579 | AT7: 2.839278 | AU7: 2.63725 | AV7: 2.3434698
AC8: 4 | AD8: º | AE8: 05p | AF8: Outros produtos de pescado (NC 0508, 051191) (p) | AG8: 1.3981806 | AH8: 0.00264573906 | AO8: - | AP8: Outros | AQ8: 1.240222 | AR8: 1.540366 | AS8: 1.979117 | AT8: 3.449205 | AU8: 4.07279 | AV8: 2.45634
AC9: 5 | AD9: º | AE9: 25 | AF9: Sal e cloreto de sódio puro; água do mar (NC 2501) | AG9: 0.7443298 | AH9: 0.001408475004 | AP9: Total | AQ9: 544.408321 | AR9: 566.559795 | AS9: 554.317557 | AT9: 424.899383 | AU9: 552.140147 | AV9: 528.4650406
AC10: 6 | AD10: º | AE10: 19p | AF10: Massas recheadas com pescado (NC 19022010) (p) | AG10: 0.3138296 | AH10: 0.0005938512028
AC11: 7 | AD11: º | AG11: 0 | AH11: 0
AC12: 8 | AD12: º | AG12: 0 | AH12: 0
AC13: 9 | AD13: º | AG13: 0 | AH13: 0
AC14: 10 | AD14: º | AG14: 0 | AH14: 0 | AI14: 1
AG15: 0 | AH15: 0
AE16: Total | AG16: 528.4650406 | AH16: 1
AC38: P | AE38: Cód.NC | AF38: Descritivo | AG38: Média import quinquénio | AH38: % do total | AI38: % acumulada | AN38: P | AO38: NC | AP38: Importações | AQ38: 2017 | AR38: 2018 | AS38: 2019 | AT38: 2020 | AU38: 2021 | AV38: média quinquénio
AC39: 1 | AD39: º | AE39: 03 | AF39: Peixes e crustáceos | AG39: 705.2444526 | AH39: 0.8443076399 | AN39: 1º | AO39: 03 | AP39: Peixes e crustáceos | AQ39: 716.309772 | AR39: 715.795873 | AS39: 713.496617 | AT39: 637.213952 | AU39: 743.406049 | AV39: 705.2444526
AC40: 2 | AD40: º | AE40: 16p | AF40: Preparações e conservas de peixes ou crustáceos (NC 1604-05) (p) | AG40: 111.5783654 | AH40: 0.1335798758 | AN40: 2º | AO40: 16p | AP40: Preparações e conservas de peixes ou crustáceos (NC 1604-05) (p) | AQ40: 106.70731 | AR40: 106.10498 | AS40: 109.837287 | AT40: 119.7763 | AU40: 115.46595 | AV40: 111.5783654
AC41: 3 | AD41: º | AE41: 25 | AF41: Sal e cloreto de sódio puro; água do mar (NC 2501) | AG41: 7.3421794 | AH41: 0.008789942463 | AI41: 0.9866774581 | AN41: 3º | AO41: 25 | AP41: Sal e cloreto de sódio puro; água do mar (NC 2501) | AQ41: 6.8665 | AR41: 6.951483 | AS41: 7.728352 | AT41: 6.970593 | AU41: 8.193969 | AV41: 7.3421794
AC42: 4 | AD42: º | AE42: 23p | AF42: Farinhas de pescado (NC 230120) (p) | AG42: 4.8667674 | AH42: 0.005826417893 | AO42: - | AP42: Outros | AQ42: 4.99591 | AR42: 8.108663 | AS42: 16.363849 | AT42: 15.274601 | AU42: 10.898122 | AV42: 11.128229
AC43: 5 | AD43: º | AE43: 19p | AF43: Massas recheadas com pescado (NC 19022010) (p) | AG43: 4.0455302 | AH43: 0.004843245548 | AP43: Total | AQ43: 834.879492 | AR43: 836.960999 | AS43: 847.426105 | AT43: 779.235446 | AU43: 877.96409 | AV43: 835.2932264
AC44: 6 | AD44: º | AE44: 05p | AF44: Outros produtos de pescado (NC 0508, 051191) (p) | AG44: 2.2159314 | AH44: 0.00265287845
AC45: 7 | AD45: º | AG45: 0 | AH45: 0
AC46: 8 | AD46: º | AG46: 0 | AH46: 0
AC47: 9 | AD47: º | AG47: 0 | AH47: 0
AC48: 10 | AD48: º | AG48: 0 | AH48: 0 | AI48: 1
AG49: 0 | AH49: 0
AE50: Total | AG50: 835.2932264 | AH50: 1
AC62: DESAGREGAÇÃO A 4 DÍGITOS | AN62: DESAGREGAÇÃO A 4 DÍGITOS
AC64: P | AE64: Cód.NC | AF64: Descritivo | AG64: Média export quinquénio | AH64: % do total | AI64: % acumulada | AN64: P | AO64: NC | AP64: Exportações | AQ64: 2017 | AR64: 2018 | AS64: 2019 | AT64: 2020 | AU64: 2021 | AV64: média quinquénio
AC65: 1 | AD65: º | AE65: 0307 | AF65: Moluscos | AG65: 124.45269 | AH65: 0.235498435 | AN65: 1º | AO65: 0307 | AP65: Moluscos | AQ65: 145.839302 | AR65: 159.722912 | AS65: 119.608456 | AT65: 81.573541 | AU65: 115.519239 | AV65: 124.45269
AC66: 2 | AD66: º | AE66: 0302 | AF66: Peixes frescos ou refrigerados | AG66: 122.6486154 | AH66: 0.2320846338 | AN66: 2º | AO66: 0302 | AP66: Peixes frescos ou refrigerados | AQ66: 123.682719 | AR66: 107.728316 | AS66: 130.522295 | AT66: 111.220939 | AU66: 140.088808 | AV66: 122.6486154
AC67: 3 | AD67: º | AE67: 0303 | AF67: Peixes congelados | AG67: 117.7586828 | AH67: 0.2228315475 | AI67: 0.6904146162 | AN67: 3º | AO67: 0303 | AP67: Peixes congelados | AQ67: 104.365439 | AR67: 119.326007 | AS67: 148.578243 | AT67: 97.246611 | AU67: 119.277114 | AV67: 117.7586828
AC68: 4 | AD68: º | AE68: 0306 | AF68: Crustáceos | AG68: 65.263975 | AH68: 0.123497242 | AN68: - | AO68: - | AP68: Outros | AQ68: 170.520861 | AR68: 179.78256 | AS68: 155.608563 | AT68: 134.858292 | AU68: 177.254986 | AV68: 163.6050524
AC69: 5 | AD69: º | AE69: 1604 | AF69: Preparações e conservas de peixes, etc. | AG69: 39.4802264 | AH69: 0.07470735691 | AP69: Total | AQ69: 544.408321 | AR69: 566.559795 | AS69: 554.317557 | AT69: 424.899383 | AU69: 552.140147 | AV69: 528.4650406
AC70: 6 | AD70: º | AE70: 0304 | AF70: Filetes de peixes | AG70: 33.5528326 | AH70: 0.06349111109
AC71: 7 | AD71: º | AE71: 0305 | AF71: Peixes secos, salgados ou fumados | AG71: 8.5586764 | AH71: 0.0161953502
AC72: 8 | AD72: º | AE72: 1605 | AF72: Crustáceos, moluscos, etc., preparados ou em conservas | AG72: 5.3008978 | AH72: 0.0100307445
AC73: 9 | AD73: º | AE73: 0301 | AF73: Peixes vivos | AG73: 3.6526502 | AH73: 0.006911810469
AC74: 10 | AD74: º | AE74: 0308 | AF74: Invertebrados aquáticos, exceto crustáceos e moluscos, etc. | AG74: 2.9959842 | AH74: 0.005669219286 | AI74: 0.9909174507
AE75: - | AF75: Outros | AG75: 4.7998098 | AH75: 0.009082549329
AE76: Total | AG76: 528.4650406 | AH76: 1
AC89: DESAGREGAÇÃO A 4 DÍGITOS | AN89: DESAGREGAÇÃO A 4 DÍGITOS
G91: média 2017-2021 em milhões de euros | I91: Cód. NC | J91: Descritivo | K91: Export | L91: Import | M91: Saldo | AC91: P | AE91: Cód.NC | AF91: Descritivo | AG91: Média import quinquénio | AH91: % do total | AI91: % acumulada | AN91: P | AO91: NC | AP91: Importações | AQ91: 2017 | AR91: 2018 | AS91: 2019 | AT91: 2020 | AU91: 2021 | AV91: média quinquénio
I92: 0308 | J92: Invertebrados aquáticos, exceto crustáceos e moluscos, etc. | K92: 2.9959842 | L92: 0.2838472 | M92: 2.712137 | AC92: 1 | AD92: º | AE92: 0307 | AF92: Moluscos | AG92: 177.0330106 | AH92: 0.2119411543 | AN92: 1º | AO92: 0307 | AP92: Moluscos | AQ92: 179.719123 | AR92: 191.228206 | AS92: 178.152414 | AT92: 144.562031 | AU92: 191.503279 | AV92: 177.0330106
I93: 0101 | J93: Equídeos vivos | K93: 0 | L93: 0 | M93: 0 | AC93: 2 | AD93: º | AE93: 0303 | AF93: Peixes congelados | AG93: 175.1330576 | AH93: 0.2096665603 | AN93: 2º | AO93: 0303 | AP93: Peixes congelados | AQ93: 197.744736 | AR93: 170.280503 | AS93: 179.833848 | AT93: 169.630106 | AU93: 158.176095 | AV93: 175.1330576
I94: 0102 | J94: Bovinos vivos | K94: 0 | L94: 0 | M94: 0 | AC94: 3 | AD94: º | AE94: 0302 | AF94: Peixes frescos ou refrigerados | AG94: 163.4757334 | AH94: 0.1957105939 | AI94: 0.6173183085 | AN94: 3º | AO94: 0302 | AP94: Peixes frescos ou refrigerados | AQ94: 162.582203 | AR94: 165.735914 | AS94: 158.476975 | AT94: 152.363287 | AU94: 178.220288 | AV94: 163.4757334
I95: 0103 | J95: Suínos vivos | K95: 0 | L95: 0 | M95: 0 | AC95: 4 | AD95: º | AE95: 0306 | AF95: Crustáceos | AG95: 113.6149976 | AH95: 0.1360181 | AN95: - | AO95: - | AP95: Outros | AQ95: 294.83343 | AR95: 309.716376 | AS95: 330.962868 | AT95: 312.680022 | AU95: 350.064428 | AV95: 319.6514248
M96: 0 | AC96: 5 | AD96: º | AE96: 1604 | AF96: Preparações e conservas de peixes, etc. | AG96: 93.1144176 | AH96: 0.1114751259 | AP96: Total | AQ96: 834.879492 | AR96: 836.960999 | AS96: 847.426105 | AT96: 779.235446 | AU96: 877.96409 | AV96: 835.2932264
M97: 0 | AC97: 6 | AD97: º | AE97: 0304 | AF97: Filetes de peixes | AG97: 41.3848676 | AH97: 0.04954531689
M98: 0 | AC98: 7 | AD98: º | AE98: 0305 | AF98: Peixes secos, salgados ou fumados | AG98: 28.3834158 | AH98: 0.03398018193
M99: 0 | AC99: 8 | AD99: º | AE99: 1605 | AF99: Crustáceos, moluscos, etc., preparados ou em conservas | AG99: 18.4639478 | AH99: 0.02210474982
M100: 0 | AC100: 9 | AD100: º | AE100: 2501 | AF100: Sal e cloreto de sódio puro; água do mar | AG100: 7.3421794 | AH100: 0.008789942463
M101: 0 | AC101: 10 | AD101: º | AE101: 0301 | AF101: Peixes vivos | AG101: 5.9355228 | AH101: 0.007105915159 | AI101: 0.9863376407
I102: - | J102: Outros | K102: 7.3943006 | L102: 13.0182216 | M102: -5.623921 | AE102: - | AF102: Outros | AG102: 11.4120762 | AH102: 0.01366235932
I103: 1902 | J103: Massas alimentícias com >20% de peixes, crustáceos, etc. (NC 1902 20 10) (p) | K103: 0.3138296 | L103: 4.0455302 | M103: -3.7317006 | AE103: Total | AG103: 835.2932264 | AH103: 1
I104: 2501 | J104: Sal e cloreto de sódio puro; água do mar | K104: 0.7443298 | L104: 7.3421794 | M104: -6.5978496
I105: 0304 | J105: Filetes de peixes | K105: 33.5528326 | L105: 41.3848676 | M105: -7.832035
I106: 1605 | J106: Crustáceos, moluscos, etc., preparados ou em conservas | K106: 5.3008978 | L106: 18.4639478 | M106: -13.16305
I107: 0305 | J107: Peixes secos, salgados ou fumados | K107: 8.5586764 | L107: 28.3834158 | M107: -19.8247394
I108: 0302 | J108: Peixes frescos ou refrigerados | K108: 122.6486154 | L108: 163.4757334 | M108: -40.827118
I109: 0306 | J109: Crustáceos | K109: 65.263975 | L109: 113.6149976 | M109: -48.3510226
I110: 0307 | J110: Moluscos | K110: 124.45269 | L110: 177.0330106 | M110: -52.5803206
I111: 1604 | J111: Preparações e conservas de peixes, etc. | K111: 39.4802264 | L111: 93.1144176 | M111: -53.6341912
I112: 0303 | J112: Peixes congelados | K112: 117.7586828 | L112: 175.1330576 | M112: -57.3743748
I113: Total | K113: 528.4650406 | L113: 835.2932264 | M113: -306.8281858
A116: Fonte: GPP a partir de dados INE/Comércio Internacional (2020 provisórios; 2021 preliminares) | Y116: 2022-04-20T10:48:19.630

Sheet 3A
A1: Principais produtos agrícolas e agroalimentares transacionados entre Portugal e Espanha em 2017-2021 (NC 2 dígitos) em milhões de euros
AC4: P | AE4: Cód.NC | AF4: Descritivo | AG4: Média export quinquénio | AH4: % do total | AI4: % acumulada | AN4: P | AO4: NC | AP4: Exportações | AQ4: 2017 | AR4: 2018 | AS4: 2019 | AT4: 2020 | AU4: 2021 | AV4: média quinquénio
AC5: 1 | AD5: º | AE5: 15 | AF5: Gorduras e óleos animais ou vegetais | AG5: 297.6737708 | AH5: 0.1398820954 | AN5: 1º | AO5: 15 | AP5: Gorduras e óleos animais ou vegetais | AQ5: 227.349062 | AR5: 277.288393 | AS5: 240.090797 | AT5: 284.799966 | AU5: 458.840636 | AV5: 297.6737708
AC6: 2 | AD6: º | AE6: 08 | AF6: Frutas | AG6: 284.444673 | AH6: 0.1336655117 | AN6: 2º | AO6: 08 | AP6: Frutas | AQ6: 225.990296 | AR6: 240.030466 | AS6: 267.848484 | AT6: 337.095346 | AU6: 351.258773 | AV6: 284.444673
AC7: 3 | AD7: º | AE7: 24 | AF7: Tabaco | AG7: 283.212687 | AH7: 0.13308658 | AI7: 0.406634187 | AN7: 3º | AO7: 24 | AP7: Tabaco | AQ7: 286.341506 | AR7: 301.660106 | AS7: 280.476981 | AT7: 275.90606 | AU7: 271.678782 | AV7: 283.212687
AC8: 4 | AD8: º | AE8: 22 | AF8: Bebidas, líquidos alcoólicos e vinagres | AG8: 143.8880192 | AH8: 0.06761548917 | AO8: - | AP8: Outros | AQ8: 1164.520692 | AR8: 1202.29418 | AS8: 1217.413006 | AT8: 1277.001059 | AU8: 1452.2824 | AV8: 1262.702267
AC9: 5 | AD9: º | AE9: 04 | AF9: Leite e laticínios; ovos; mel, etc. | AG9: 139.1652718 | AH9: 0.06539618782 | AP9: Total | AQ9: 1904.201556 | AR9: 2021.273145 | AS9: 2005.829268 | AT9: 2174.802431 | AU9: 2534.060591 | AV9: 2128.033398
AC10: 6 | AD10: º | AE10: 19a | AF10: Preparações à base de cereais (exc. NC 19022010) (a) | AG10: 126.0240466 | AH10: 0.05922089696
AC11: 7 | AD11: º | AE11: 07 | AF11: Produtos hortícolas | AG11: 116.7070312 | AH11: 0.05484266896
AC12: 8 | AD12: º | AE12: 23a | AF12: Resíduos indústrias alimentares; alimentos p/ animais (exc. NC 230120) (a) | AG12: 94.3653754 | AH12: 0.04434393533
AC13: 9 | AD13: º | AE13: 01 | AF13: Animais vivos | AG13: 92.0762964 | AH13: 0.0432682572
AC14: 10 | AD14: º | AE14: 20 | AF14: Preparações de produtos vegetais | AG14: 87.985086 | AH14: 0.04134572609 | AI14: 0.7826673486
AE15: - | AF15: Outros | AG15: 462.4911408 | AH15: 0.2173326514
AE16: Total | AG16: 2128.033398 | AH16: 1
AC38: P | AE38: Cód.NC | AF38: Descritivo | AG38: Média import quinquénio | AH38: % do total | AI38: % acumulada | AN38: P | AO38: NC | AP38: Importações | AQ38: 2017 | AR38: 2018 | AS38: 2019 | AT38: 2020 | AU38: 2021 | AV38: média quinquénio
AC39: 1 | AD39: º | AE39: 02 | AF39: Carnes e miudezas | AG39: 737.6864822 | AH39: 0.1713070212 | AN39: 1º | AO39: 02 | AP39: Carnes e miudezas | AQ39: 696.120624 | AR39: 766.786067 | AS39: 796.742517 | AT39: 689.780047 | AU39: 739.003156 | AV39: 737.6864822
AC40: 2 | AD40: º | AE40: 15 | AF40: Gorduras e óleos animais ou vegetais | AG40: 541.6294442 | AH40: 0.1257782662 | AN40: 2º | AO40: 15 | AP40: Gorduras e óleos animais ou vegetais | AQ40: 557.614543 | AR40: 507.611597 | AS40: 524.424095 | AT40: 476.950971 | AU40: 641.546015 | AV40: 541.6294442
AC41: 3 | AD41: º | AE41: 08 | AF41: Frutas | AG41: 416.0388462 | AH41: 0.09661336785 | AI41: 0.3936986553 | AN41: 3º | AO41: 08 | AP41: Frutas | AQ41: 382.682731 | AR41: 417.925241 | AS41: 397.487768 | AT41: 435.114764 | AU41: 446.983727 | AV41: 416.0388462
AC42: 4 | AD42: º | AE42: 19a | AF42: Preparações à base de cereais (exc. NC 19022010) (a) | AG42: 328.6280284 | AH42: 0.07631465399 | AO42: - | AP42: Outros | AQ42: 2429.861681 | AR42: 2495.148565 | AS42: 2617.582793 | AT42: 2623.411174 | AU42: 2888.344141 | AV42: 2610.869671
AC43: 5 | AD43: º | AE43: 04 | AF43: Leite e laticínios; ovos; mel, etc. | AG43: 302.3277642 | AH43: 0.07020715436 | AP43: Total | AQ43: 4066.279579 | AR43: 4187.47147 | AS43: 4336.237173 | AT43: 4225.256956 | AU43: 4715.877039 | AV43: 4306.224443
AC44: 6 | AD44: º | AE44: 22 | AF44: Bebidas, líquidos alcoólicos e vinagres | AG44: 295.6696578 | AH44: 0.06866099566
AC45: 7 | AD45: º | AE45: 07 | AF45: Produtos hortícolas | AG45: 254.6188794 | AH45: 0.0591281023
AC46: 8 | AD46: º | AE46: 23a | AF46: Resíduos indústrias alimentares; alimentos p/ animais (exc. NC 230120) (a) | AG46: 209.770725 | AH46: 0.04871337473
AC47: 9 | AD47: º | AE47: 20 | AF47: Preparações de produtos vegetais | AG47: 195.4195452 | AH47: 0.04538071523
AC48: 10 | AD48: º | AE48: 21 | AF48: Preparações alimentícias diversas | AG48: 180.9362784 | AH48: 0.04201738223 | AI48: 0.8041210338
AE49: - | AF49: Outros | AG49: 843.4987924 | AH49: 0.1958789662
AE50: Total | AG50: 4306.224443 | AH50: 1
A56: Fonte: GPP a partir de dados INE/Comércio Internacional (2020 provisórios; 2021 preliminares) | Y56: 2022-04-20T10:48:14.840

Sheet 4A
A1: Evolução da balança comercial Portugal-Espanha 2017-2021 por produto em euros (NC 2 dígitos)
A3: =+aux!A31 -> Evolução da balança comercial Portugal-Espanha para Peixes e crustáceos
A5: Selecione o produto:
Q7: Para obter uma maior desagregação deste produto, clique no botão respetivo:
A20: =+aux!A43 -> Evolução da balança comercial Portugal-Espanha para Preparações e conservas de peixes ou crustáceos (NC 1604-05) (p)
A22: Selecione o produto:
A38: Fonte: GPP a partir de dados INE/Comércio Internacional (2020 provisórios; 2021 preliminares) | N38: 2022-04-20T10:48:09.290

Sheet 5.2
A1: Trocas comerciais Portugal-Espanha 2017-2021 em milhares de euros (NC 2 dígitos) | C1: Produtos do Mar
A2: Cód. NC | B2: Descritivo | C2: Importações | K2: Exportações | S2: Saldo quinquénio (exp-imp) | T2: Evolução das importações | U2: =+"Variação das Importações " & INDEX(K3:N3,1,aux!AL1) & "-"& '5.2'!O3 &"" -> Variação das Importações 2017-2021 | Z2: Evolução das exportações | AA2: ="Variação das Exportações " & INDEX(K3:N3,1,aux!AL1) & "-"& '5.2'!O3 &"" -> Variação das Exportações 2017-2021
C3: 2017 | D3: 2018 | E3: 2019 | F3: 2020 | G3: 2021 | H3: média quinquénio | I3: % Subtot | J3: % Total | K3: 2017 | L3: 2018 | M3: 2019 | N3: 2020 | O3: 2021 | P3: média quinquénio | Q3: % Subtot | R3: % Total | U3: variação total em valor | V3: % no subtotal de variação | W3: % no total de variação | X3: taxa de variação média anual | Y3: taxa de variação total | AA3: variação total em valor | AB3: % no subtotal de variação | AC3: % no total de variação | AD3: taxa de variação média anual | AE3: taxa de variação total | BS3: filtro
A4: 01 | B4: Animais vivos | C4: 0 | D4: 0 | E4: 0 | F4: 0 | G4: 0 | H4: 0 | J4: 0 | K4: 0 | L4: 0 | M4: 0 | N4: 0 | O4: 0 | P4: 0 | R4: 0 | S4: 0 | U4: =G4-INDEX($C4:$G4,1,aux!$AL$1) -> 0 | V4: =IF($U$37<>0,U4/$U$37, "n.d.") -> n.d. | W4: =IF($U$53<>0,U4/$U$53, "n.d.") -> 0 | X4: =+IF(INDEX($C4:$G4,1,aux!$AL$1)>0,(G4/INDEX($C4:$G4,1,aux!$AL$1))^(1/($G$3-INDEX($C$3:$G$3,1,aux!$AL$1)))-1,"n.d.") -> n.d. | Y4: =IF(INDEX($C4:$G4,1,aux!$AL$1)>0,(G4-INDEX($C4:$G4,1,aux!$AL$1))/INDEX($C4:$G4,1,aux!$AL$1),"n.d.") -> n.d. | AA4: =O4-INDEX($K4:$O4,1,aux!$AL$1) -> 0 | AB4: =IF($AA$37<>0,AA4/$AA$37, "n.d.") -> n.d. | AC4: =IF($AA$53<>0,AA4/$AA$53, "n.d.") -> 0 | AD4: =+IF(INDEX($K4:$O4,1,aux!$AL$1)>0,(O4/INDEX($K4:$O4,1,aux!$AL$1))^(1/($O$3-INDEX($K$3:$O$3,1,aux!$AL$1)))-1,"n.d.") -> n.d. | AE4: =IF(INDEX($K4:$O4,1,aux!$AL$1)>0,(O4-INDEX($K4:$O4,1,aux!$AL$1))/INDEX($K4:$O4,1,aux!$AL$1),"n.d.") -> n.d. | AF4: =SUM(C4:S4) -> 0 | BS4: =SUM(C4:G4,K4:O4) -> 0
A5: 02 | B5: Carnes e miudezas | C5: 0 | D5: 0 | E5: 0 | F5: 0 | G5: 0 | H5: 0 | J5: 0 | K5: 0 | L5: 0 | M5: 0 | N5: 0 | O5: 0 | P5: 0 | R5: 0 | S5: 0 | U5: =G5-INDEX($C5:$G5,1,aux!$AL$1) -> 0 | V5: n.d. | W5: 0 | X5: =+IF(INDEX($C5:$G5,1,aux!$AL$1)>0,(G5/INDEX($C5:$G5,1,aux!$AL$1))^(1/($G$3-INDEX($C$3:$G$3,1,aux!$AL$1)))-1,"n.d.") -> n.d. | Y5: =IF(INDEX($C5:$G5,1,aux!$AL$1)>0,(G5-INDEX($C5:$G5,1,aux!$AL$1))/INDEX($C5:$G5,1,aux!$AL$1),"n.d.") -> n.d. | AA5: =O5-INDEX($K5:$O5,1,aux!$AL$1) -> 0 | AB5: n.d. | AC5: 0 | AD5: =+IF(INDEX($K5:$O5,1,aux!$AL$1)>0,(O5/INDEX($K5:$O5,1,aux!$AL$1))^(1/($O$3-INDEX($K$3:$O$3,1,aux!$AL$1)))-1,"n.d.") -> n.d. | AE5: =IF(INDEX($K5:$O5,1,aux!$AL$1)>0,(O5-INDEX($K5:$O5,1,aux!$AL$1))/INDEX($K5:$O5,1,aux!$AL$1),"n.d.") -> n.d. | AF5: 0 | BS5: =SUM(C5:G5,K5:O5) -> 0
A6: 04 | B6: Leite e laticínios; ovos; mel, etc. | C6: 0 | D6: 0 | E6: 0 | F6: 0 | G6: 0 | H6: 0 | J6: 0 | K6: 0 | L6: 0 | M6: 0 | N6: 0 | O6: 0 | P6: 0 | R6: 0 | S6: 0 | U6: =G6-INDEX($C6:$G6,1,aux!$AL$1) -> 0 | V6: n.d. | W6: 0 | X6: =+IF(INDEX($C6:$G6,1,aux!$AL$1)>0,(G6/INDEX($C6:$G6,1,aux!$AL$1))^(1/($G$3-INDEX($C$3:$G$3,1,aux!$AL$1)))-1,"n.d.") -> n.d. | Y6: =IF(INDEX($C6:$G6,1,aux!$AL$1)>0,(G6-INDEX($C6:$G6,1,aux!$AL$1))/INDEX($C6:$G6,1,aux!$AL$1),"n.d.") -> n.d. | AA6: =O6-INDEX($K6:$O6,1,aux!$AL$1) -> 0 | AB6: n.d. | AC6: 0 | AD6: =+IF(INDEX($K6:$O6,1,aux!$AL$1)>0,(O6/INDEX($K6:$O6,1,aux!$AL$1))^(1/($O$3-INDEX($K$3:$O$3,1,aux!$AL$1)))-1,"n.d.") -> n.d. | AE6: =IF(INDEX($K6:$O6,1,aux!$AL$1)>0,(O6-INDEX($K6:$O6,1,aux!$AL$1))/INDEX($K6:$O6,1,aux!$AL$1),"n.d.") -> n.d. | AF6: 0 | BS6: 0
A7: 05a | B7: Outros produtos de origem animal (exc. NC 0508, 051191) (a) | C7: 0 | D7: 0 | E7: 0 | F7: 0 | G7: 0 | H7: 0 | J7: 0 | K7: 0 | L7: 0 | M7: 0 | N7: 0 | O7: 0 | P7: 0 | R7: 0 | S7: 0 | U7: =G7-INDEX($C7:$G7,1,aux!$AL$1) -> 0 | V7: n.d. | W7: 0 | X7: =+IF(INDEX($C7:$G7,1,aux!$AL$1)>0,(G7/INDEX($C7:$G7,1,aux!$AL$1))^(1/($G$3-INDEX($C$3:$G$3,1,aux!$AL$1)))-1,"n.d.") -> n.d. | Y7: =IF(INDEX($C7:$G7,1,aux!$AL$1)>0,(G7-INDEX($C7:$G7,1,aux!$AL$1))/INDEX($C7:$G7,1,aux!$AL$1),"n.d.") -> n.d. | AA7: =O7-INDEX($K7:$O7,1,aux!$AL$1) -> 0 | AB7: n.d. | AC7: 0 | AD7: =+IF(INDEX($K7:$O7,1,aux!$AL$1)>0,(O7/INDEX($K7:$O7,1,aux!$AL$1))^(1/($O$3-INDEX($K$3:$O$3,1,aux!$AL$1)))-1,"n.d.") -> n.d. | AE7: =IF(INDEX($K7:$O7,1,aux!$AL$1)>0,(O7-INDEX($K7:$O7,1,aux!$AL$1))/INDEX($K7:$O7,1,aux!$AL$1),"n.d.") -> n.d. | AF7: 0 | BS7: 0
A8: 06 | B8: Plantas vivas e produtos de floricultura | C8: 0 | D8: 0 | E8: 0 | F8: 0 | G8: 0 | H8: 0 | J8: 0 | K8: 0 | L8: 0 | M8: 0 | N8: 0 | O8: 0 | P8: 0 | R8: 0 | S8: 0 | U8: =G8-INDEX($C8:$G8,1,aux!$AL$1) -> 0 | V8: n.d. | W8: 0 | X8: =+IF(INDEX($C8:$G8,1,aux!$AL$1)>0,(G8/INDEX($C8:$G8,1,aux!$AL$1))^(1/($G$3-INDEX($C$3:$G$3,1,aux!$AL$1)))-1,"n.d.") -> n.d. | Y8: =IF(INDEX($C8:$G8,1,aux!$AL$1)>0,(G8-INDEX($C8:$G8,1,aux!$AL$1))/INDEX($C8:$G8,1,aux!$AL$1),"n.d.") -> n.d. | AA8: =O8-INDEX($K8:$O8,1,aux!$AL$1) -> 0 | AB8: n.d. | AC8: 0 | AD8: =+IF(INDEX($K8:$O8,1,aux!$AL$1)>0,(O8/INDEX($K8:$O8,1,aux!$AL$1))^(1/($O$3-INDEX($K$3:$O$3,1,aux!$AL$1)))-1,"n.d.") -> n.d. | AE8: =IF(INDEX($K8:$O8,1,aux!$AL$1)>0,(O8-INDEX($K8:$O8,1,aux!$AL$1))/INDEX($K8:$O8,1,aux!$AL$1),"n.d.") -> n.d. | AF8: 0 | BS8: 0
A9: 07 | B9: Produtos hortícolas | C9: 0 | D9: 0 | E9: 0 | F9: 0 | G9: 0 | H9: 0 | J9: 0 | K9: 0 | L9: 0 | M9: 0 | N9: 0 | O9: 0 | P9: 0 | R9: 0 | S9: 0 | U9: =G9-INDEX($C9:$G9,1,aux!$AL$1) -> 0 | V9: n.d. | W9: 0 | X9: =+IF(INDEX($C9:$G9,1,aux!$AL$1)>0,(G9/INDEX($C9:$G9,1,aux!$AL$1))^(1/($G$3-INDEX($C$3:$G$3,1,aux!$AL$1)))-1,"n.d.") -> n.d. | Y9: =IF(INDEX($C9:$G9,1,aux!$AL$1)>0,(G9-INDEX($C9:$G9,1,aux!$AL$1))/INDEX($C9:$G9,1,aux!$AL$1),"n.d.") -> n.d. | AA9: =O9-INDEX($K9:$O9,1,aux!$AL$1) -> 0 | AB9: n.d. | AC9: 0 | AD9: =+IF(INDEX($K9:$O9,1,aux!$AL$1)>0,(O9/INDEX($K9:$O9,1,aux!$AL$1))^(1/($O$3-INDEX($K$3:$O$3,1,aux!$AL$1)))-1,"n.d.") -> n.d. | AE9: =IF(INDEX($K9:$O9,1,aux!$AL$1)>0,(O9-INDEX($K9:$O9,1,aux!$AL$1))/INDEX($K9:$O9,1,aux!$AL$1),"n.d.") -> n.d. | AF9: 0 | BS9: 0
A10: 08 | B10: Frutas | C10: 0 | D10: 0 | E10: 0 | F10: 0 | G10: 0 | H10: 0 | J10: 0 | K10: 0 | L10: 0 | M10: 0 | N10: 0 | O10: 0 | P10: 0 | R10: 0 | S10: 0 | U10: =G10-INDEX($C10:$G10,1,aux!$AL$1) -> 0 | V10: n.d. | W10: 0 | X10: =+IF(INDEX($C10:$G10,1,aux!$AL$1)>0,(G10/INDEX($C10:$G10,1,aux!$AL$1))^(1/($G$3-INDEX($C$3:$G$3,1,aux!$AL$1)))-1,"n.d.") -> n.d. | Y10: =IF(INDEX($C10:$G10,1,aux!$AL$1)>0,(G10-INDEX($C10:$G10,1,aux!$AL$1))/INDEX($C10:$G10,1,aux!$AL$1),"n.d.") -> n.d. | AA10: =O10-INDEX($K10:$O10,1,aux!$AL$1) -> 0 | AB10: n.d. | AC10: 0 | AD10: =+IF(INDEX($K10:$O10,1,aux!$AL$1)>0,(O10/INDEX($K10:$O10,1,aux!$AL$1))^(1/($O$3-INDEX($K$3:$O$3,1,aux!$AL$1)))-1,"n.d.") -> n.d. | AE10: =IF(INDEX($K10:$O10,1,aux!$AL$1)>0,(O10-INDEX($K10:$O10,1,aux!$AL$1))/INDEX($K10:$O10,1,aux!$AL$1),"n.d.") -> n.d. | AF10: 0 | BS10: 0
A11: 09 | B11: Café, chá, mate e especiarias | C11: 0 | D11: 0 | E11: 0 | F11: 0 | G11: 0 | H11: 0 | J11: 0 | K11: 0 | L11: 0 | M11: 0 | N11: 0 | O11: 0 | P11: 0 | R11: 0 | S11: 0 | U11: =G11-INDEX($C11:$G11,1,aux!$AL$1) -> 0 | V11: n.d. | W11: 0 | X11: =+IF(INDEX($C11:$G11,1,aux!$AL$1)>0,(G11/INDEX($C11:$G11,1,aux!$AL$1))^(1/($G$3-INDEX($C$3:$G$3,1,aux!$AL$1)))-1,"n.d.") -> n.d. | Y11: =IF(INDEX($C11:$G11,1,aux!$AL$1)>0,(G11-INDEX($C11:$G11,1,aux!$AL$1))/INDEX($C11:$G11,1,aux!$AL$1),"n.d.") -> n.d. | AA11: =O11-INDEX($K11:$O11,1,aux!$AL$1) -> 0 | AB11: n.d. | AC11: 0 | AD11: =+IF(INDEX($K11:$O11,1,aux!$AL$1)>0,(O11/INDEX($K11:$O11,1,aux!$AL$1))^(1/($O$3-INDEX($K$3:$O$3,1,aux!$AL$1)))-1,"n.d.") -> n.d. | AE11: =IF(INDEX($K11:$O11,1,aux!$AL$1)>0,(O11-INDEX($K11:$O11,1,aux!$AL$1))/INDEX($K11:$O11,1,aux!$AL$1),"n.d.") -> n.d. | AF11: 0 | BS11: 0
A12: 10 | B12: Cereais | C12: 0 | D12: 0 | E12: 0 | F12: 0 | G12: 0 | H12: 0 | J12: 0 | K12: 0 | L12: 0 | M12: 0 | N12: 0 | O12: 0 | P12: 0 | R12: 0 | S12: 0 | U12: =G12-INDEX($C12:$G12,1,aux!$AL$1) -> 0 | V12: n.d. | W12: 0 | X12: =+IF(INDEX($C12:$G12,1,aux!$AL$1)>0,(G12/INDEX($C12:$G12,1,aux!$AL$1))^(1/($G$3-INDEX($C$3:$G$3,1,aux!$AL$1)))-1,"n.d.") -> n.d. | Y12: =IF(INDEX($C12:$G12,1,aux!$AL$1)>0,(G12-INDEX($C12:$G12,1,aux!$AL$1))/INDEX($C12:$G12,1,aux!$AL$1),"n.d.") -> n.d. | AA12: =O12-INDEX($K12:$O12,1,aux!$AL$1) -> 0 | AB12: n.d. | AC12: 0 | AD12: =+IF(INDEX($K12:$O12,1,aux!$AL$1)>0,(O12/INDEX($K12:$O12,1,aux!$AL$1))^(1/($O$3-INDEX($K$3:$O$3,1,aux!$AL$1)))-1,"n.d.") -> n.d. | AE12: =IF(INDEX($K12:$O12,1,aux!$AL$1)>0,(O12-INDEX($K12:$O12,1,aux!$AL$1))/INDEX($K12:$O12,1,aux!$AL$1),"n.d.") -> n.d. | AF12: 0 | BS12: 0
A13: 11 | B13: Produtos da indústria de moagem e outros | C13: 0 | D13: 0 | E13: 0 | F13: 0 | G13: 0 | H13: 0 | J13: 0 | K13: 0 | L13: 0 | M13: 0 | N13: 0 | O13: 0 | P13: 0 | R13: 0 | S13: 0 | U13: =G13-INDEX($C13:$G13,1,aux!$AL$1) -> 0 | V13: n.d. | W13: 0 | X13: =+IF(INDEX($C13:$G13,1,aux!$AL$1)>0,(G13/INDEX($C13:$G13,1,aux!$AL$1))^(1/($G$3-INDEX($C$3:$G$3,1,aux!$AL$1)))-1,"n.d.") -> n.d. | Y13: =IF(INDEX($C13:$G13,1,aux!$AL$1)>0,(G13-INDEX($C13:$G13,1,aux!$AL$1))/INDEX($C13:$G13,1,aux!$AL$1),"n.d.") -> n.d. | AA13: =O13-INDEX($K13:$O13,1,aux!$AL$1) -> 0 | AB13: n.d. | AC13: 0 | AD13: =+IF(INDEX($K13:$O13,1,aux!$AL$1)>0,(O13/INDEX($K13:$O13,1,aux!$AL$1))^(1/($O$3-INDEX($K$3:$O$3,1,aux!$AL$1)))-1,"n.d.") -> n.d. | AE13: =IF(INDEX($K13:$O13,1,aux!$AL$1)>0,(O13-INDEX($K13:$O13,1,aux!$AL$1))/INDEX($K13:$O13,1,aux!$AL$1),"n.d.") -> n.d. | AF13: 0 | BS13: 0
A14: 12 | B14: Sementes e frutos oleaginosos | C14: 0 | D14: 0 | E14: 0 | F14: 0 | G14: 0 | H14: 0 | J14: 0 | K14: 0 | L14: 0 | M14: 0 | N14: 0 | O14: 0 | P14: 0 | R14: 0 | S14: 0 | U14: =G14-INDEX($C14:$G14,1,aux!$AL$1) -> 0 | V14: n.d. | W14: 0 | X14: =+IF(INDEX($C14:$G14,1,aux!$AL$1)>0,(G14/INDEX($C14:$G14,1,aux!$AL$1))^(1/($G$3-INDEX($C$3:$G$3,1,aux!$AL$1)))-1,"n.d.") -> n.d. | Y14: =IF(INDEX($C14:$G14,1,aux!$AL$1)>0,(G14-INDEX($C14:$G14,1,aux!$AL$1))/INDEX($C14:$G14,1,aux!$AL$1),"n.d.") -> n.d. | AA14: =O14-INDEX($K14:$O14,1,aux!$AL$1) -> 0 | AB14: n.d. | AC14: 0 | AD14: =+IF(INDEX($K14:$O14,1,aux!$AL$1)>0,(O14/INDEX($K14:$O14,1,aux!$AL$1))^(1/($O$3-INDEX($K$3:$O$3,1,aux!$AL$1)))-1,"n.d.") -> n.d. | AE14: =IF(INDEX($K14:$O14,1,aux!$AL$1)>0,(O14-INDEX($K14:$O14,1,aux!$AL$1))/INDEX($K14:$O14,1,aux!$AL$1),"n.d.") -> n.d. | AF14: 0 | BS14: 0
A15: 13a | B15: Sucos e extratos vegetais (exc. NC 1301) (a) | C15: 0 | D15: 0 | E15: 0 | F15: 0 | G15: 0 | H15: 0 | J15: 0 | K15: 0 | L15: 0 | M15: 0 | N15: 0 | O15: 0 | P15: 0 | R15: 0 | S15: 0 | U15: =G15-INDEX($C15:$G15,1,aux!$AL$1) -> 0 | V15: n.d. | W15: 0 | X15: =+IF(INDEX($C15:$G15,1,aux!$AL$1)>0,(G15/INDEX($C15:$G15,1,aux!$AL$1))^(1/($G$3-INDEX($C$3:$G$3,1,aux!$AL$1)))-1,"n.d.") -> n.d. | Y15: =IF(INDEX($C15:$G15,1,aux!$AL$1)>0,(G15-INDEX($C15:$G15,1,aux!$AL$1))/INDEX($C15:$G15,1,aux!$AL$1),"n.d.") -> n.d. | AA15: =O15-INDEX($K15:$O15,1,aux!$AL$1) -> 0 | AB15: n.d. | AC15: 0 | AD15: =+IF(INDEX($K15:$O15,1,aux!$AL$1)>0,(O15/INDEX($K15:$O15,1,aux!$AL$1))^(1/($O$3-INDEX($K$3:$O$3,1,aux!$AL$1)))-1,"n.d.") -> n.d. | AE15: =IF(INDEX($K15:$O15,1,aux!$AL$1)>0,(O15-INDEX($K15:$O15,1,aux!$AL$1))/INDEX($K15:$O15,1,aux!$AL$1),"n.d.") -> n.d. | AF15: 0 | BS15: 0
A16: 14 | B16: Matérias para entrançar e outros | C16: 0 | D16: 0 | E16: 0 | F16: 0 | G16: 0 | H16: 0 | J16: 0 | K16: 0 | L16: 0 | M16: 0 | N16: 0 | O16: 0 | P16: 0 | R16: 0 | S16: 0 | U16: =G16-INDEX($C16:$G16,1,aux!$AL$1) -> 0 | V16: n.d. | W16: 0 | X16: =+IF(INDEX($C16:$G16,1,aux!$AL$1)>0,(G16/INDEX($C16:$G16,1,aux!$AL$1))^(1/($G$3-INDEX($C$3:$G$3,1,aux!$AL$1)))-1,"n.d.") -> n.d. | Y16: =IF(INDEX($C16:$G16,1,aux!$AL$1)>0,(G16-INDEX($C16:$G16,1,aux!$AL$1))/INDEX($C16:$G16,1,aux!$AL$1),"n.d.") -> n.d. | AA16: =O16-INDEX($K16:$O16,1,aux!$AL$1) -> 0 | AB16: n.d. | AC16: 0 | AD16: =+IF(INDEX($K16:$O16,1,aux!$AL$1)>0,(O16/INDEX($K16:$O16,1,aux!$AL$1))^(1/($O$3-INDEX($K$3:$O$3,1,aux!$AL$1)))-1,"n.d.") -> n.d. | AE16: =IF(INDEX($K16:$O16,1,aux!$AL$1)>0,(O16-INDEX($K16:$O16,1,aux!$AL$1))/INDEX($K16:$O16,1,aux!$AL$1),"n.d.") -> n.d. | AF16: 0 | BS16: 0
A17: 15 | B17: Gorduras e óleos animais ou vegetais | C17: 0 | D17: 0 | E17: 0 | F17: 0 | G17: 0 | H17: 0 | J17: 0 | K17: 0 | L17: 0 | M17: 0 | N17: 0 | O17: 0 | P17: 0 | R17: 0 | S17: 0 | U17: =G17-INDEX($C17:$G17,1,aux!$AL$1) -> 0 | V17: n.d. | W17: 0 | X17: =+IF(INDEX($C17:$G17,1,aux!$AL$1)>0,(G17/INDEX($C17:$G17,1,aux!$AL$1))^(1/($G$3-INDEX($C$3:$G$3,1,aux!$AL$1)))-1,"n.d.") -> n.d. | Y17: =IF(INDEX($C17:$G17,1,aux!$AL$1)>0,(G17-INDEX($C17:$G17,1,aux!$AL$1))/INDEX($C17:$G17,1,aux!$AL$1),"n.d.") -> n.d. | AA17: =O17-INDEX($K17:$O17,1,aux!$AL$1) -> 0 | AB17: n.d. | AC17: 0 | AD17: =+IF(INDEX($K17:$O17,1,aux!$AL$1)>0,(O17/INDEX($K17:$O17,1,aux!$AL$1))^(1/($O$3-INDEX($K$3:$O$3,1,aux!$AL$1)))-1,"n.d.") -> n.d. | AE17: =IF(INDEX($K17:$O17,1,aux!$AL$1)>0,(O17-INDEX($K17:$O17,1,aux!$AL$1))/INDEX($K17:$O17,1,aux!$AL$1),"n.d.") -> n.d. | AF17: 0 | BS17: 0
A18: 16a | B18: Preparações de carnes (exc. NC 1604-05) (a) | C18: 0 | D18: 0 | E18: 0 | F18: 0 | G18: 0 | H18: 0 | J18: 0 | K18: 0 | L18: 0 | M18: 0 | N18: 0 | O18: 0 | P18: 0 | R18: 0 | S18: 0 | U18: =G18-INDEX($C18:$G18,1,aux!$AL$1) -> 0 | V18: n.d. | W18: 0 | X18: =+IF(INDEX($C18:$G18,1,aux!$AL$1)>0,(G18/INDEX($C18:$G18,1,aux!$AL$1))^(1/($G$3-INDEX($C$3:$G$3,1,aux!$AL$1)))-1,"n.d.") -> n.d. | Y18: =IF(INDEX($C18:$G18,1,aux!$AL$1)>0,(G18-INDEX($C18:$G18,1,aux!$AL$1))/INDEX($C18:$G18,1,aux!$AL$1),"n.d.") -> n.d. | AA18: =O18-INDEX($K18:$O18,1,aux!$AL$1) -> 0 | AB18: n.d. | AC18: 0 | AD18: =+IF(INDEX($K18:$O18,1,aux!$AL$1)>0,(O18/INDEX($K18:$O18,1,aux!$AL$1))^(1/($O$3-INDEX($K$3:$O$3,1,aux!$AL$1)))-1,"n.d.") -> n.d. | AE18: =IF(INDEX($K18:$O18,1,aux!$AL$1)>0,(O18-INDEX($K18:$O18,1,aux!$AL$1))/INDEX($K18:$O18,1,aux!$AL$1),"n.d.") -> n.d. | AF18: 0 | BS18: 0
A19: 17 | B19: Açúcares e produtos de confeitaria | C19: 0 | D19: 0 | E19: 0 | F19: 0 | G19: 0 | H19: 0 | J19: 0 | K19: 0 | L19: 0 | M19: 0 | N19: 0 | O19: 0 | P19: 0 | R19: 0 | S19: 0 | U19: =G19-INDEX($C19:$G19,1,aux!$AL$1) -> 0 | V19: n.d. | W19: 0 | X19: =+IF(INDEX($C19:$G19,1,aux!$AL$1)>0,(G19/INDEX($C19:$G19,1,aux!$AL$1))^(1/($G$3-INDEX($C$3:$G$3,1,aux!$AL$1)))-1,"n.d.") -> n.d. | Y19: =IF(INDEX($C19:$G19,1,aux!$AL$1)>0,(G19-INDEX($C19:$G19,1,aux!$AL$1))/INDEX($C19:$G19,1,aux!$AL$1),"n.d.") -> n.d. | AA19: =O19-INDEX($K19:$O19,1,aux!$AL$1) -> 0 | AB19: n.d. | AC19: 0 | AD19: =+IF(INDEX($K19:$O19,1,aux!$AL$1)>0,(O19/INDEX($K19:$O19,1,aux!$AL$1))^(1/($O$3-INDEX($K$3:$O$3,1,aux!$AL$1)))-1,"n.d.") -> n.d. | AE19: =IF(INDEX($K19:$O19,1,aux!$AL$1)>0,(O19-INDEX($K19:$O19,1,aux!$AL$1))/INDEX($K19:$O19,1,aux!$AL$1),"n.d.") -> n.d. | AF19: 0 | BS19: 0
A20: 18 | B20: Cacau e suas preparações | C20: 0 | D20: 0 | E20: 0 | F20: 0 | G20: 0 | H20: 0 | J20: 0 | K20: 0 | L20: 0 | M20: 0 | N20: 0 | O20: 0 | P20: 0 | R20: 0 | S20: 0 | U20: =G20-INDEX($C20:$G20,1,aux!$AL$1) -> 0 | V20: n.d. | W20: 0 | X20: =+IF(INDEX($C20:$G20,1,aux!$AL$1)>0,(G20/INDEX($C20:$G20,1,aux!$AL$1))^(1/($G$3-INDEX($C$3:$G$3,1,aux!$AL$1)))-1,"n.d.") -> n.d. | Y20: =IF(INDEX($C20:$G20,1,aux!$AL$1)>0,(G20-INDEX($C20:$G20,1,aux!$AL$1))/INDEX($C20:$G20,1,aux!$AL$1),"n.d.") -> n.d. | AA20: =O20-INDEX($K20:$O20,1,aux!$AL$1) -> 0 | AB20: n.d. | AC20: 0 | AD20: =+IF(INDEX($K20:$O20,1,aux!$AL$1)>0,(O20/INDEX($K20:$O20,1,aux!$AL$1))^(1/($O$3-INDEX($K$3:$O$3,1,aux!$AL$1)))-1,"n.d.") -> n.d. | AE20: =IF(INDEX($K20:$O20,1,aux!$AL$1)>0,(O20-INDEX($K20:$O20,1,aux!$AL$1))/INDEX($K20:$O20,1,aux!$AL$1),"n.d.") -> n.d. | AF20: 0 | BS20: 0
A21: 19a | B21: Preparações à base de cereais (exc. NC 19022010) (a) | C21: 0 | D21: 0 | E21: 0 | F21: 0 | G21: 0 | H21: 0 | J21: 0 | K21: 0 | L21: 0 | M21: 0 | N21: 0 | O21: 0 | P21: 0 | R21: 0 | S21: 0 | U21: =G21-INDEX($C21:$G21,1,aux!$AL$1) -> 0 | V21: n.d. | W21: 0 | X21: =+IF(INDEX($C21:$G21,1,aux!$AL$1)>0,(G21/INDEX($C21:$G21,1,aux!$AL$1))^(1/($G$3-INDEX($C$3:$G$3,1,aux!$AL$1)))-1,"n.d.") -> n.d. | Y21: =IF(INDEX($C21:$G21,1,aux!$AL$1)>0,(G21-INDEX($C21:$G21,1,aux!$AL$1))/INDEX($C21:$G21,1,aux!$AL$1),"n.d.") -> n.d. | AA21: =O21-INDEX($K21:$O21,1,aux!$AL$1) -> 0 | AB21: n.d. | AC21: 0 | AD21: =+IF(INDEX($K21:$O21,1,aux!$AL$1)>0,(O21/INDEX($K21:$O21,1,aux!$AL$1))^(1/($O$3-INDEX($K$3:$O$3,1,aux!$AL$1)))-1,"n.d.") -> n.d. | AE21: =IF(INDEX($K21:$O21,1,aux!$AL$1)>0,(O21-INDEX($K21:$O21,1,aux!$AL$1))/INDEX($K21:$O21,1,aux!$AL$1),"n.d.") -> n.d. | AF21: 0 | BS21: 0
A22: 20 | B22: Preparações de produtos vegetais | C22: 0 | D22: 0 | E22: 0 | F22: 0 | G22: 0 | H22: 0 | J22: 0 | K22: 0 | L22: 0 | M22: 0 | N22: 0 | O22: 0 | P22: 0 | R22: 0 | S22: 0 | U22: =G22-INDEX($C22:$G22,1,aux!$AL$1) -> 0 | V22: n.d. | W22: 0 | X22: =+IF(INDEX($C22:$G22,1,aux!$AL$1)>0,(G22/INDEX($C22:$G22,1,aux!$AL$1))^(1/($G$3-INDEX($C$3:$G$3,1,aux!$AL$1)))-1,"n.d.") -> n.d. | Y22: =IF(INDEX($C22:$G22,1,aux!$AL$1)>0,(G22-INDEX($C22:$G22,1,aux!$AL$1))/INDEX($C22:$G22,1,aux!$AL$1),"n.d.") -> n.d. | AA22: =O22-INDEX($K22:$O22,1,aux!$AL$1) -> 0 | AB22: n.d. | AC22: 0 | AD22: =+IF(INDEX($K22:$O22,1,aux!$AL$1)>0,(O22/INDEX($K22:$O22,1,aux!$AL$1))^(1/($O$3-INDEX($K$3:$O$3,1,aux!$AL$1)))-1,"n.d.") -> n.d. | AE22: =IF(INDEX($K22:$O22,1,aux!$AL$1)>0,(O22-INDEX($K22:$O22,1,aux!$AL$1))/INDEX($K22:$O22,1,aux!$AL$1),"n.d.") -> n.d. | AF22: 0 | BS22: 0
A23: 21 | B23: Preparações alimentícias diversas | C23: 0 | D23: 0 | E23: 0 | F23: 0 | G23: 0 | H23: 0 | J23: 0 | K23: 0 | L23: 0 | M23: 0 | N23: 0 | O23: 0 | P23: 0 | R23: 0 | S23: 0 | U23: =G23-INDEX($C23:$G23,1,aux!$AL$1) -> 0 | V23: n.d. | W23: 0 | X23: =+IF(INDEX($C23:$G23,1,aux!$AL$1)>0,(G23/INDEX($C23:$G23,1,aux!$AL$1))^(1/($G$3-INDEX($C$3:$G$3,1,aux!$AL$1)))-1,"n.d.") -> n.d. | Y23: =IF(INDEX($C23:$G23,1,aux!$AL$1)>0,(G23-INDEX($C23:$G23,1,aux!$AL$1))/INDEX($C23:$G23,1,aux!$AL$1),"n.d.") -> n.d. | AA23: =O23-INDEX($K23:$O23,1,aux!$AL$1) -> 0 | AB23: n.d. | AC23: 0 | AD23: =+IF(INDEX($K23:$O23,1,aux!$AL$1)>0,(O23/INDEX($K23:$O23,1,aux!$AL$1))^(1/($O$3-INDEX($K$3:$O$3,1,aux!$AL$1)))-1,"n.d.") -> n.d. | AE23: =IF(INDEX($K23:$O23,1,aux!$AL$1)>0,(O23-INDEX($K23:$O23,1,aux!$AL$1))/INDEX($K23:$O23,1,aux!$AL$1),"n.d.") -> n.d. | AF23: 0 | BS23: 0
A24: 22 | B24: Bebidas, líquidos alcoólicos e vinagres | C24: 0 | D24: 0 | E24: 0 | F24: 0 | G24: 0 | H24: 0 | J24: 0 | K24: 0 | L24: 0 | M24: 0 | N24: 0 | O24: 0 | P24: 0 | R24: 0 | S24: 0 | U24: =G24-INDEX($C24:$G24,1,aux!$AL$1) -> 0 | V24: n.d. | W24: 0 | X24: =+IF(INDEX($C24:$G24,1,aux!$AL$1)>0,(G24/INDEX($C24:$G24,1,aux!$AL$1))^(1/($G$3-INDEX($C$3:$G$3,1,aux!$AL$1)))-1,"n.d.") -> n.d. | Y24: =IF(INDEX($C24:$G24,1,aux!$AL$1)>0,(G24-INDEX($C24:$G24,1,aux!$AL$1))/INDEX($C24:$G24,1,aux!$AL$1),"n.d.") -> n.d. | AA24: =O24-INDEX($K24:$O24,1,aux!$AL$1) -> 0 | AB24: n.d. | AC24: 0 | AD24: =+IF(INDEX($K24:$O24,1,aux!$AL$1)>0,(O24/INDEX($K24:$O24,1,aux!$AL$1))^(1/($O$3-INDEX($K$3:$O$3,1,aux!$AL$1)))-1,"n.d.") -> n.d. | AE24: =IF(INDEX($K24:$O24,1,aux!$AL$1)>0,(O24-INDEX($K24:$O24,1,aux!$AL$1))/INDEX($K24:$O24,1,aux!$AL$1),"n.d.") -> n.d. | AF24: 0 | BS24: 0
A25: 23a | B25: Resíduos indústrias alimentares; alimentos p/ animais (exc. NC 230120) (a) | C25: 0 | D25: 0 | E25: 0 | F25: 0 | G25: 0 | H25: 0 | J25: 0 | K25: 0 | L25: 0 | M25: 0 | N25: 0 | O25: 0 | P25: 0 | R25: 0 | S25: 0 | U25: =G25-INDEX($C25:$G25,1,aux!$AL$1) -> 0 | V25: n.d. | W25: 0 | X25: =+IF(INDEX($C25:$G25,1,aux!$AL$1)>0,(G25/INDEX($C25:$G25,1,aux!$AL$1))^(1/($G$3-INDEX($C$3:$G$3,1,aux!$AL$1)))-1,"n.d.") -> n.d. | Y25: =IF(INDEX($C25:$G25,1,aux!$AL$1)>0,(G25-INDEX($C25:$G25,1,aux!$AL$1))/INDEX($C25:$G25,1,aux!$AL$1),"n.d.") -> n.d. | AA25: =O25-INDEX($K25:$O25,1,aux!$AL$1) -> 0 | AB25: n.d. | AC25: 0 | AD25: =+IF(INDEX($K25:$O25,1,aux!$AL$1)>0,(O25/INDEX($K25:$O25,1,aux!$AL$1))^(1/($O$3-INDEX($K$3:$O$3,1,aux!$AL$1)))-1,"n.d.") -> n.d. | AE25: =IF(INDEX($K25:$O25,1,aux!$AL$1)>0,(O25-INDEX($K25:$O25,1,aux!$AL$1))/INDEX($K25:$O25,1,aux!$AL$1),"n.d.") -> n.d. | AF25: 0 | BS25: 0
A26: 24 | B26: Tabaco | C26: 0 | D26: 0 | E26: 0 | F26: 0 | G26: 0 | H26: 0 | J26: 0 | K26: 0 | L26: 0 | M26: 0 | N26: 0 | O26: 0 | P26: 0 | R26: 0 | S26: 0 | U26: =G26-INDEX($C26:$G26,1,aux!$AL$1) -> 0 | V26: n.d. | W26: 0 | X26: =+IF(INDEX($C26:$G26,1,aux!$AL$1)>0,(G26/INDEX($C26:$G26,1,aux!$AL$1))^(1/($G$3-INDEX($C$3:$G$3,1,aux!$AL$1)))-1,"n.d.") -> n.d. | Y26: =IF(INDEX($C26:$G26,1,aux!$AL$1)>0,(G26-INDEX($C26:$G26,1,aux!$AL$1))/INDEX($C26:$G26,1,aux!$AL$1),"n.d.") -> n.d. | AA26: =O26-INDEX($K26:$O26,1,aux!$AL$1) -> 0 | AB26: n.d. | AC26: 0 | AD26: =+IF(INDEX($K26:$O26,1,aux!$AL$1)>0,(O26/INDEX($K26:$O26,1,aux!$AL$1))^(1/($O$3-INDEX($K$3:$O$3,1,aux!$AL$1)))-1,"n.d.") -> n.d. | AE26: =IF(INDEX($K26:$O26,1,aux!$AL$1)>0,(O26-INDEX($K26:$O26,1,aux!$AL$1))/INDEX($K26:$O26,1,aux!$AL$1),"n.d.") -> n.d. | AF26: 0 | BS26: 0
A27: 29 | B27: Manitol e sorbitol (NC 290543; 290544) | C27: 0 | D27: 0 | E27: 0 | F27: 0 | G27: 0 | H27: 0 | J27: 0 | K27: 0 | L27: 0 | M27: 0 | N27: 0 | O27: 0 | P27: 0 | R27: 0 | S27: 0 | U27: =G27-INDEX($C27:$G27,1,aux!$AL$1) -> 0 | V27: n.d. | W27: 0 | X27: =+IF(INDEX($C27:$G27,1,aux!$AL$1)>0,(G27/INDEX($C27:$G27,1,aux!$AL$1))^(1/($G$3-INDEX($C$3:$G$3,1,aux!$AL$1)))-1,"n.d.") -> n.d. | Y27: =IF(INDEX($C27:$G27,1,aux!$AL$1)>0,(G27-INDEX($C27:$G27,1,aux!$AL$1))/INDEX($C27:$G27,1,aux!$AL$1),"n.d.") -> n.d. | AA27: =O27-INDEX($K27:$O27,1,aux!$AL$1) -> 0 | AB27: n.d. | AC27: 0 | AD27: =+IF(INDEX($K27:$O27,1,aux!$AL$1)>0,(O27/INDEX($K27:$O27,1,aux!$AL$1))^(1/($O$3-INDEX($K$3:$O$3,1,aux!$AL$1)))-1,"n.d.") -> n.d. | AE27: =IF(INDEX($K27:$O27,1,aux!$AL$1)>0,(O27-INDEX($K27:$O27,1,aux!$AL$1))/INDEX($K27:$O27,1,aux!$AL$1),"n.d.") -> n.d. | AF27: 0 | BS27: 0
A28: 33 | B28: Óleos essenciais e resinóides (NC 3301) | C28: 0 | D28: 0 | E28: 0 | F28: 0 | G28: 0 | H28: 0 | J28: 0 | K28: 0 | L28: 0 | M28: 0 | N28: 0 | O28: 0 | P28: 0 | R28: 0 | S28: 0 | U28: =G28-INDEX($C28:$G28,1,aux!$AL$1) -> 0 | V28: n.d. | W28: 0 | X28: =+IF(INDEX($C28:$G28,1,aux!$AL$1)>0,(G28/INDEX($C28:$G28,1,aux!$AL$1))^(1/($G$3-INDEX($C$3:$G$3,1,aux!$AL$1)))-1,"n.d.") -> n.d. | Y28: =IF(INDEX($C28:$G28,1,aux!$AL$1)>0,(G28-INDEX($C28:$G28,1,aux!$AL$1))/INDEX($C28:$G28,1,aux!$AL$1),"n.d.") -> n.d. | AA28: =O28-INDEX($K28:$O28,1,aux!$AL$1) -> 0 | AB28: n.d. | AC28: 0 | AD28: =+IF(INDEX($K28:$O28,1,aux!$AL$1)>0,(O28/INDEX($K28:$O28,1,aux!$AL$1))^(1/($O$3-INDEX($K$3:$O$3,1,aux!$AL$1)))-1,"n.d.") -> n.d. | AE28: =IF(INDEX($K28:$O28,1,aux!$AL$1)>0,(O28-INDEX($K28:$O28,1,aux!$AL$1))/INDEX($K28:$O28,1,aux!$AL$1),"n.d.") -> n.d. | AF28: 0 | BS28: 0
A29: 35 | B29: Caseínas, albuminas, gelatinas, peptonas, dextrinas (NC 3501 a 3505) | C29: 0 | D29: 0 | E29: 0 | F29: 0 | G29: 0 | H29: 0 | J29: 0 | K29: 0 | L29: 0 | M29: 0 | N29: 0 | O29: 0 | P29: 0 | R29: 0 | S29: 0 | U29: =G29-INDEX($C29:$G29,1,aux!$AL$1) -> 0 | V29: n.d. | W29: 0 | X29: =+IF(INDEX($C29:$G29,1,aux!$AL$1)>0,(G29/INDEX($C29:$G29,1,aux!$AL$1))^(1/($G$3-INDEX($C$3:$G$3,1,aux!$AL$1)))-1,"n.d.") -> n.d. | Y29: =IF(INDEX($C29:$G29,1,aux!$AL$1)>0,(G29-INDEX($C29:$G29,1,aux!$AL$1))/INDEX($C29:$G29,1,aux!$AL$1),"n.d.") -> n.d. | AA29: =O29-INDEX($K29:$O29,1,aux!$AL$1) -> 0 | AB29: n.d. | AC29: 0 | AD29: =+IF(INDEX($K29:$O29,1,aux!$AL$1)>0,(O29/INDEX($K29:$O29,1,aux!$AL$1))^(1/($O$3-INDEX($K$3:$O$3,1,aux!$AL$1)))-1,"n.d.") -> n.d. | AE29: =IF(INDEX($K29:$O29,1,aux!$AL$1)>0,(O29-INDEX($K29:$O29,1,aux!$AL$1))/INDEX($K29:$O29,1,aux!$AL$1),"n.d.") -> n.d. | AF29: 0 | BS29: 0
A30: 38a | B30: Agentes de acabamento, ácidos gordos, sorbitol (NC 380910, 382311-12-13-19-70, 382460) (a) | C30: 0 | D30: 0 | E30: 0 | F30: 0 | G30: 0 | H30: 0 | J30: 0 | K30: 0 | L30: 0 | M30: 0 | N30: 0 | O30: 0 | P30: 0 | R30: 0 | S30: 0 | U30: =G30-INDEX($C30:$G30,1,aux!$AL$1) -> 0 | V30: n.d. | W30: 0 | X30: =+IF(INDEX($C30:$G30,1,aux!$AL$1)>0,(G30/INDEX($C30:$G30,1,aux!$AL$1))^(1/($G$3-INDEX($C$3:$G$3,1,aux!$AL$1)))-1,"n.d.") -> n.d. | Y30: =IF(INDEX($C30:$G30,1,aux!$AL$1)>0,(G30-INDEX($C30:$G30,1,aux!$AL$1))/INDEX($C30:$G30,1,aux!$AL$1),"n.d.") -> n.d. | AA30: =O30-INDEX($K30:$O30,1,aux!$AL$1) -> 0 | AB30: n.d. | AC30: 0 | AD30: =+IF(INDEX($K30:$O30,1,aux!$AL$1)>0,(O30/INDEX($K30:$O30,1,aux!$AL$1))^(1/($O$3-INDEX($K$3:$O$3,1,aux!$AL$1)))-1,"n.d.") -> n.d. | AE30: =IF(INDEX($K30:$O30,1,aux!$AL$1)>0,(O30-INDEX($K30:$O30,1,aux!$AL$1))/INDEX($K30:$O30,1,aux!$AL$1),"n.d.") -> n.d. | AF30: 0 | BS30: 0
A31: 41 | B31: Couro e peles em bruto (NC 4101 a 4103) | C31: 0 | D31: 0 | E31: 0 | F31: 0 | G31: 0 | H31: 0 | J31: 0 | K31: 0 | L31: 0 | M31: 0 | N31: 0 | O31: 0 | P31: 0 | R31: 0 | S31: 0 | U31: =G31-INDEX($C31:$G31,1,aux!$AL$1) -> 0 | V31: n.d. | W31: 0 | X31: =+IF(INDEX($C31:$G31,1,aux!$AL$1)>0,(G31/INDEX($C31:$G31,1,aux!$AL$1))^(1/($G$3-INDEX($C$3:$G$3,1,aux!$AL$1)))-1,"n.d.") -> n.d. | Y31: =IF(INDEX($C31:$G31,1,aux!$AL$1)>0,(G31-INDEX($C31:$G31,1,aux!$AL$1))/INDEX($C31:$G31,1,aux!$AL$1),"n.d.") -> n.d. | AA31: =O31-INDEX($K31:$O31,1,aux!$AL$1) -> 0 | AB31: n.d. | AC31: 0 | AD31: =+IF(INDEX($K31:$O31,1,aux!$AL$1)>0,(O31/INDEX($K31:$O31,1,aux!$AL$1))^(1/($O$3-INDEX($K$3:$O$3,1,aux!$AL$1)))-1,"n.d.") -> n.d. | AE31: =IF(INDEX($K31:$O31,1,aux!$AL$1)>0,(O31-INDEX($K31:$O31,1,aux!$AL$1))/INDEX($K31:$O31,1,aux!$AL$1),"n.d.") -> n.d. | AF31: 0 | BS31: 0
A32: 43 | B32: Peles com pelo em bruto (NC 4301) | C32: 0 | D32: 0 | E32: 0 | F32: 0 | G32: 0 | H32: 0 | J32: 0 | K32: 0 | L32: 0 | M32: 0 | N32: 0 | O32: 0 | P32: 0 | R32: 0 | S32: 0 | U32: =G32-INDEX($C32:$G32,1,aux!$AL$1) -> 0 | V32: n.d. | W32: 0 | X32: =+IF(INDEX($C32:$G32,1,aux!$AL$1)>0,(G32/INDEX($C32:$G32,1,aux!$AL$1))^(1/($G$3-INDEX($C$3:$G$3,1,aux!$AL$1)))-1,"n.d.") -> n.d. | Y32: =IF(INDEX($C32:$G32,1,aux!$AL$1)>0,(G32-INDEX($C32:$G32,1,aux!$AL$1))/INDEX($C32:$G32,1,aux!$AL$1),"n.d.") -> n.d. | AA32: =O32-INDEX($K32:$O32,1,aux!$AL$1) -> 0 | AB32: n.d. | AC32: 0 | AD32: =+IF(INDEX($K32:$O32,1,aux!$AL$1)>0,(O32/INDEX($K32:$O32,1,aux!$AL$1))^(1/($O$3-INDEX($K$3:$O$3,1,aux!$AL$1)))-1,"n.d.") -> n.d. | AE32: =IF(INDEX($K32:$O32,1,aux!$AL$1)>0,(O32-INDEX($K32:$O32,1,aux!$AL$1))/INDEX($K32:$O32,1,aux!$AL$1),"n.d.") -> n.d. | AF32: 0 | BS32: 0
A33: 50 | B33: Seda crua (NC 5001-5003) | C33: 0 | D33: 0 | E33: 0 | F33: 0 | G33: 0 | H33: 0 | J33: 0 | K33: 0 | L33: 0 | M33: 0 | N33: 0 | O33: 0 | P33: 0 | R33: 0 | S33: 0 | U33: =G33-INDEX($C33:$G33,1,aux!$AL$1) -> 0 | V33: n.d. | W33: 0 | X33: =+IF(INDEX($C33:$G33,1,aux!$AL$1)>0,(G33/INDEX($C33:$G33,1,aux!$AL$1))^(1/($G$3-INDEX($C$3:$G$3,1,aux!$AL$1)))-1,"n.d.") -> n.d. | Y33: =IF(INDEX($C33:$G33,1,aux!$AL$1)>0,(G33-INDEX($C33:$G33,1,aux!$AL$1))/INDEX($C33:$G33,1,aux!$AL$1),"n.d.") -> n.d. | AA33: =O33-INDEX($K33:$O33,1,aux!$AL$1) -> 0 | AB33: n.d. | AC33: 0 | AD33: =+IF(INDEX($K33:$O33,1,aux!$AL$1)>0,(O33/INDEX($K33:$O33,1,aux!$AL$1))^(1/($O$3-INDEX($K$3:$O$3,1,aux!$AL$1)))-1,"n.d.") -> n.d. | AE33: =IF(INDEX($K33:$O33,1,aux!$AL$1)>0,(O33-INDEX($K33:$O33,1,aux!$AL$1))/INDEX($K33:$O33,1,aux!$AL$1),"n.d.") -> n.d. | AF33: 0 | BS33: 0
A34: 51 | B34: Lã não cardada (NC 5101-5103) | C34: 0 | D34: 0 | E34: 0 | F34: 0 | G34: 0 | H34: 0 | J34: 0 | K34: 0 | L34: 0 | M34: 0 | N34: 0 | O34: 0 | P34: 0 | R34: 0 | S34: 0 | U34: =G34-INDEX($C34:$G34,1,aux!$AL$1) -> 0 | V34: n.d. | W34: 0 | X34: =+IF(INDEX($C34:$G34,1,aux!$AL$1)>0,(G34/INDEX($C34:$G34,1,aux!$AL$1))^(1/($G$3-INDEX($C$3:$G$3,1,aux!$AL$1)))-1,"n.d.") -> n.d. | Y34: =IF(INDEX($C34:$G34,1,aux!$AL$1)>0,(G34-INDEX($C34:$G34,1,aux!$AL$1))/INDEX($C34:$G34,1,aux!$AL$1),"n.d.") -> n.d. | AA34: =O34-INDEX($K34:$O34,1,aux!$AL$1) -> 0 | AB34: n.d. | AC34: 0 | AD34: =+IF(INDEX($K34:$O34,1,aux!$AL$1)>0,(O34/INDEX($K34:$O34,1,aux!$AL$1))^(1/($O$3-INDEX($K$3:$O$3,1,aux!$AL$1)))-1,"n.d.") -> n.d. | AE34: =IF(INDEX($K34:$O34,1,aux!$AL$1)>0,(O34-INDEX($K34:$O34,1,aux!$AL$1))/INDEX($K34:$O34,1,aux!$AL$1),"n.d.") -> n.d. | AF34: 0 | BS34: 0
A35: 52 | B35: Algodão (NC 5201-5203) | C35: 0 | D35: 0 | E35: 0 | F35: 0 | G35: 0 | H35: 0 | J35: 0 | K35: 0 | L35: 0 | M35: 0 | N35: 0 | O35: 0 | P35: 0 | R35: 0 | S35: 0 | U35: =G35-INDEX($C35:$G35,1,aux!$AL$1) -> 0 | V35: n.d. | W35: 0 | X35: =+IF(INDEX($C35:$G35,1,aux!$AL$1)>0,(G35/INDEX($C35:$G35,1,aux!$AL$1))^(1/($G$3-INDEX($C$3:$G$3,1,aux!$AL$1)))-1,"n.d.") -> n.d. | Y35: =IF(INDEX($C35:$G35,1,aux!$AL$1)>0,(G35-INDEX($C35:$G35,1,aux!$AL$1))/INDEX($C35:$G35,1,aux!$AL$1),"n.d.") -> n.d. | AA35: =O35-INDEX($K35:$O35,1,aux!$AL$1) -> 0 | AB35: n.d. | AC35: 0 | AD35: =+IF(INDEX($K35:$O35,1,aux!$AL$1)>0,(O35/INDEX($K35:$O35,1,aux!$AL$1))^(1/($O$3-INDEX($K$3:$O$3,1,aux!$AL$1)))-1,"n.d.") -> n.d. | AE35: =IF(INDEX($K35:$O35,1,aux!$AL$1)>0,(O35-INDEX($K35:$O35,1,aux!$AL$1))/INDEX($K35:$O35,1,aux!$AL$1),"n.d.") -> n.d. | AF35: 0 | BS35: 0
A36: 53 | B36: Linho e cânhamo em bruto (NC 5301-5302) | C36: 0 | D36: 0 | E36: 0 | F36: 0 | G36: 0 | H36: 0 | J36: 0 | K36: 0 | L36: 0 | M36: 0 | N36: 0 | O36: 0 | P36: 0 | R36: 0 | S36: 0 | U36: =G36-INDEX($C36:$G36,1,aux!$AL$1) -> 0 | V36: n.d. | W36: =IF($U$53<>0,U36/$U$53, "n.d.") -> 0 | X36: =+IF(INDEX($C36:$G36,1,aux!$AL$1)>0,(G36/INDEX($C36:$G36,1,aux!$AL$1))^(1/($G$3-INDEX($C$3:$G$3,1,aux!$AL$1)))-1,"n.d.") -> n.d. | Y36: =IF(INDEX($C36:$G36,1,aux!$AL$1)>0,(G36-INDEX($C36:$G36,1,aux!$AL$1))/INDEX($C36:$G36,1,aux!$AL$1),"n.d.") -> n.d. | AA36: =O36-INDEX($K36:$O36,1,aux!$AL$1) -> 0 | AB36: n.d. | AC36: =IF($AA$53<>0,AA36/$AA$53, "n.d.") -> 0 | AD36: =+IF(INDEX($K36:$O36,1,aux!$AL$1)>0,(O36/INDEX($K36:$O36,1,aux!$AL$1))^(1/($O$3-INDEX($K$3:$O$3,1,aux!$AL$1)))-1,"n.d.") -> n.d. | AE36: =IF(INDEX($K36:$O36,1,aux!$AL$1)>0,(O36-INDEX($K36:$O36,1,aux!$AL$1))/INDEX($K36:$O36,1,aux!$AL$1),"n.d.") -> n.d. | AF36: =SUM(C36:S36) -> 0 | BS36: 0
A37: Total Produtos do Mar | C37: 0 | D37: 0 | E37: 0 | F37: 0 | G37: 0 | H37: 0 | I37: 0 | J37: 0 | K37: 0 | L37: 0 | M37: 0 | N37: 0 | O37: 0 | P37: 0 | Q37: 0 | R37: 0 | S37: 0 | U37: =G37-INDEX($C37:$G37,1,aux!$AL$1) -> 0 | V37: n.d. | W37: 0 | X37: =+IF(INDEX($C37:$G37,1,aux!$AL$1)>0,(G37/INDEX($C37:$G37,1,aux!$AL$1))^(1/($G$3-INDEX($C$3:$G$3,1,aux!$AL$1)))-1,"n.d.") -> n.d. | Y37: =IF(INDEX($C37:$G37,1,aux!$AL$1)>0,(G37-INDEX($C37:$G37,1,aux!$AL$1))/INDEX($C37:$G37,1,aux!$AL$1),"n.d.") -> n.d. | AA37: =O37-INDEX($K37:$O37,1,aux!$AL$1) -> 0 | AB37: n.d. | AC37: 0 | AD37: =+IF(INDEX($K37:$O37,1,aux!$AL$1)>0,(O37/INDEX($K37:$O37,1,aux!$AL$1))^(1/($O$3-INDEX($K$3:$O$3,1,aux!$AL$1)))-1,"n.d.") -> n.d. | AE37: =IF(INDEX($K37:$O37,1,aux!$AL$1)>0,(O37-INDEX($K37:$O37,1,aux!$AL$1))/INDEX($K37:$O37,1,aux!$AL$1),"n.d.") -> n.d. | AF37: 0 | BS37: 0
A38: 03 | B38: Peixes e crustáceos | C38: 716309.772 | D38: 715795.873 | E38: 713496.617 | F38: 637213.952 | G38: 743406.049 | H38: 705244.4526 | I38: 0.8443076399 | J38: 0.8443076399 | K38: 491356.202 | L38: 514332.416 | M38: 512732.04 | N38: 377385.652 | O38: 498614.223 | P38: 478884.1066 | Q38: 0.9061793493 | R38: 0.9061793493 | S38: -226360.346 | U38: =G38-INDEX($C38:$G38,1,aux!$AL$1) -> 27096.277 | V38: =IF($U$44<>0,U38/$U$44, "n.d.") -> 0.6289086648 | W38: 0.6289086648 | X38: =+IF(INDEX($C38:$G38,1,aux!$AL$1)>0,(G38/INDEX($C38:$G38,1,aux!$AL$1))^(1/($G$3-INDEX($C$3:$G$3,1,aux!$AL$1)))-1,"n.d.") -> 0.009325634997 | Y38: =IF(INDEX($C38:$G38,1,aux!$AL$1)>0,(G38-INDEX($C38:$G38,1,aux!$AL$1))/INDEX($C38:$G38,1,aux!$AL$1),"n.d.") -> 0.03782759647 | AA38: =O38-INDEX($K38:$O38,1,aux!$AL$1) -> 7258.021 | AB38: =IF($AA$44<>0,AA38/$AA$44, "n.d.") -> 0.9387201678 | AC38: 0.9387201678 | AD38: =+IF(INDEX($K38:$O38,1,aux!$AL$1)>0,(O38/INDEX($K38:$O38,1,aux!$AL$1))^(1/($O$3-INDEX($K$3:$O$3,1,aux!$AL$1)))-1,"n.d.") -> 0.003672569783 | AE38: =IF(INDEX($K38:$O38,1,aux!$AL$1)>0,(O38-INDEX($K38:$O38,1,aux!$AL$1))/INDEX($K38:$O38,1,aux!$AL$1),"n.d.") -> 0.01477140407 | BS38: 5920642.796
A39: 05p | B39: Outros produtos de pescado (NC 0508, 051191) (p) | C39: 1607.65 | D39: 1934.113 | E39: 1714.026 | F39: 3108.91 | G39: 2714.958 | H39: 2215.9314 | I39: 0.00265287845 | J39: 0.00265287845 | K39: 547.512 | L39: 801.472 | M39: 1071.021 | N39: 2139.343 | O39: 2431.555 | P39: 1398.1806 | Q39: 0.00264573906 | R39: 0.00264573906 | S39: -817.7508 | U39: =G39-INDEX($C39:$G39,1,aux!$AL$1) -> 1107.308 | V39: 0.02570078523 | W39: 0.02570078523 | X39: =+IF(INDEX($C39:$G39,1,aux!$AL$1)>0,(G39/INDEX($C39:$G39,1,aux!$AL$1))^(1/($G$3-INDEX($C$3:$G$3,1,aux!$AL$1)))-1,"n.d.") -> 0.1399686358 | Y39: =IF(INDEX($C39:$G39,1,aux!$AL$1)>0,(G39-INDEX($C39:$G39,1,aux!$AL$1))/INDEX($C39:$G39,1,aux!$AL$1),"n.d.") -> 0.6887742979 | AA39: =O39-INDEX($K39:$O39,1,aux!$AL$1) -> 1884.043 | AB39: 0.2436737454 | AC39: 0.2436737454 | AD39: =+IF(INDEX($K39:$O39,1,aux!$AL$1)>0,(O39/INDEX($K39:$O39,1,aux!$AL$1))^(1/($O$3-INDEX($K$3:$O$3,1,aux!$AL$1)))-1,"n.d.") -> 0.4516857502 | AE39: =IF(INDEX($K39:$O39,1,aux!$AL$1)>0,(O39-INDEX($K39:$O39,1,aux!$AL$1))/INDEX($K39:$O39,1,aux!$AL$1),"n.d.") -> 3.441099008 | BS39: 18070.56
A40: 16p | B40: Preparações e conservas de peixes ou crustáceos (NC 1604-05) (p) | C40: 106707.31 | D40: 106104.98 | E40: 109837.287 | F40: 119776.3 | G40: 115465.95 | H40: 111578.3654 | I40: 0.1335798758 | J40: 0.1335798758 | K40: 50266.743 | L40: 49237.925 | M40: 36359.821 | N40: 41225.248 | O40: 46815.884 | P40: 44781.1242 | Q40: 0.08473810141 | R40: 0.08473810141 | S40: -66797.2412 | U40: =G40-INDEX($C40:$G40,1,aux!$AL$1) -> 8758.64 | V40: 0.2032893518 | W40: 0.2032893518 | X40: =+IF(INDEX($C40:$G40,1,aux!$AL$1)>0,(G40/INDEX($C40:$G40,1,aux!$AL$1))^(1/($G$3-INDEX($C$3:$G$3,1,aux!$AL$1)))-1,"n.d.") -> 0.01991725747 | Y40: =IF(INDEX($C40:$G40,1,aux!$AL$1)>0,(G40-INDEX($C40:$G40,1,aux!$AL$1))/INDEX($C40:$G40,1,aux!$AL$1),"n.d.") -> 0.08208097458 | AA40: =O40-INDEX($K40:$O40,1,aux!$AL$1) -> -3450.859 | AB40: -0.4463187609 | AC40: -0.4463187609 | AD40: =+IF(INDEX($K40:$O40,1,aux!$AL$1)>0,(O40/INDEX($K40:$O40,1,aux!$AL$1))^(1/($O$3-INDEX($K$3:$O$3,1,aux!$AL$1)))-1,"n.d.") -> -0.01762314803 | AE40: =IF(INDEX($K40:$O40,1,aux!$AL$1)>0,(O40-INDEX($K40:$O40,1,aux!$AL$1))/INDEX($K40:$O40,1,aux!$AL$1),"n.d.") -> -0.06865093686 | BS40: 781797.448
A41: 19p | B41: Massas recheadas com pescado (NC 19022010) (p) | C41: 279.401 | D41: 360.8 | E41: 6600.502 | F41: 7865.79 | G41: 5121.158 | H41: 4045.5302 | I41: 0.004843245548 | J41: 0.004843245548 | K41: 102.451 | L41: 203.546 | M41: 505.931 | N41: 341.635 | O41: 415.585 | P41: 313.8296 | Q41: 0.0005938512028 | R41: 0.0005938512028 | S41: -3731.7006 | U41: =G41-INDEX($C41:$G41,1,aux!$AL$1) -> 4841.757 | V41: 0.1123779082 | W41: 0.1123779082 | X41: =+IF(INDEX($C41:$G41,1,aux!$AL$1)>0,(G41/INDEX($C41:$G41,1,aux!$AL$1))^(1/($G$3-INDEX($C$3:$G$3,1,aux!$AL$1)))-1,"n.d.") -> 1.069117028 | Y41: =IF(INDEX($C41:$G41,1,aux!$AL$1)>0,(G41-INDEX($C41:$G41,1,aux!$AL$1))/INDEX($C41:$G41,1,aux!$AL$1),"n.d.") -> 17.3290611 | AA41: =O41-INDEX($K41:$O41,1,aux!$AL$1) -> 313.134 | AB41: 0.0404993594 | AC41: 0.0404993594 | AD41: =+IF(INDEX($K41:$O41,1,aux!$AL$1)>0,(O41/INDEX($K41:$O41,1,aux!$AL$1))^(1/($O$3-INDEX($K$3:$O$3,1,aux!$AL$1)))-1,"n.d.") -> 0.4191748805 | AE41: =IF(INDEX($K41:$O41,1,aux!$AL$1)>0,(O41-INDEX($K41:$O41,1,aux!$AL$1))/INDEX($K41:$O41,1,aux!$AL$1),"n.d.") -> 3.056426975 | BS41: 21796.799
A42: 23p | B42: Farinhas de pescado (NC 230120) (p) | C42: 3108.859 | D42: 5813.75 | E42: 8049.321 | F42: 4299.901 | G42: 3062.006 | H42: 4866.7674 | I42: 0.005826417893 | J42: 0.005826417893 | K42: 1545.154 | L42: 1449.088 | M42: 3246.579 | N42: 2839.278 | O42: 2637.25 | P42: 2343.4698 | Q42: 0.004434484062 | R42: 0.004434484062 | S42: -2523.2976 | U42: =G42-INDEX($C42:$G42,1,aux!$AL$1) -> -46.853 | V42: -0.001087465177 | W42: -0.001087465177 | X42: =+IF(INDEX($C42:$G42,1,aux!$AL$1)>0,(G42/INDEX($C42:$G42,1,aux!$AL$1))^(1/($G$3-INDEX($C$3:$G$3,1,aux!$AL$1)))-1,"n.d.") -> -0.003789183136 | Y42: =IF(INDEX($C42:$G42,1,aux!$AL$1)>0,(G42-INDEX($C42:$G42,1,aux!$AL$1))/INDEX($C42:$G42,1,aux!$AL$1),"n.d.") -> -0.0150708025 | AA42: =O42-INDEX($K42:$O42,1,aux!$AL$1) -> 1092.096 | AB42: 0.1412468413 | AC42: 0.1412468413 | AD42: =+IF(INDEX($K42:$O42,1,aux!$AL$1)>0,(O42/INDEX($K42:$O42,1,aux!$AL$1))^(1/($O$3-INDEX($K$3:$O$3,1,aux!$AL$1)))-1,"n.d.") -> 0.1429964529 | AE42: =IF(INDEX($K42:$O42,1,aux!$AL$1)>0,(O42-INDEX($K42:$O42,1,aux!$AL$1))/INDEX($K42:$O42,1,aux!$AL$1),"n.d.") -> 0.7067878024 | BS42: 36051.186
A43: 25 | B43: Sal e cloreto de sódio puro; água do mar (NC 2501) | C43: 6866.5 | D43: 6951.483 | E43: 7728.352 | F43: 6970.593 | G43: 8193.969 | H43: 7342.1794 | I43: 0.008789942463 | J43: 0.008789942463 | K43: 590.259 | L43: 535.348 | M43: 402.165 | N43: 968.227 | O43: 1225.65 | P43: 744.3298 | Q43: 0.001408475004 | R43: 0.001408475004 | S43: -6597.8496 | U43: =G43-INDEX($C43:$G43,1,aux!$AL$1) -> 1327.469 | V43: 0.03081075516 | W43: 0.03081075516 | X43: =+IF(INDEX($C43:$G43,1,aux!$AL$1)>0,(G43/INDEX($C43:$G43,1,aux!$AL$1))^(1/($G$3-INDEX($C$3:$G$3,1,aux!$AL$1)))-1,"n.d.") -> 0.04517670856 | Y43: =IF(INDEX($C43:$G43,1,aux!$AL$1)>0,(G43-INDEX($C43:$G43,1,aux!$AL$1))/INDEX($C43:$G43,1,aux!$AL$1),"n.d.") -> 0.1933254205 | AA43: =O43-INDEX($K43:$O43,1,aux!$AL$1) -> 635.391 | AB43: 0.08217864706 | AC43: 0.08217864706 | AD43: =+IF(INDEX($K43:$O43,1,aux!$AL$1)>0,(O43/INDEX($K43:$O43,1,aux!$AL$1))^(1/($O$3-INDEX($K$3:$O$3,1,aux!$AL$1)))-1,"n.d.") -> 0.2004137544 | AE43: =IF(INDEX($K43:$O43,1,aux!$AL$1)>0,(O43-INDEX($K43:$O43,1,aux!$AL$1))/INDEX($K43:$O43,1,aux!$AL$1),"n.d.") -> 1.07646135 | BS43: 40432.546
A44: Total Produtos do Mar | C44: 834879.492 | D44: 836960.999 | E44: 847426.105 | F44: 779235.446 | G44: 877964.09 | H44: 835293.2264 | I44: 1 | J44: 1 | K44: 544408.321 | L44: 566559.795 | M44: 554317.557 | N44: 424899.383 | O44: 552140.147 | P44: 528465.0406 | Q44: 1 | R44: 1 | S44: -306828.1858 | U44: =G44-INDEX($C44:$G44,1,aux!$AL$1) -> 43084.598 | V44: 1 | W44: 1 | X44: =+IF(INDEX($C44:$G44,1,aux!$AL$1)>0,(G44/INDEX($C44:$G44,1,aux!$AL$1))^(1/($G$3-INDEX($C$3:$G$3,1,aux!$AL$1)))-1,"n.d.") -> 0.01265903056 | Y44: =IF(INDEX($C44:$G44,1,aux!$AL$1)>0,(G44-INDEX($C44:$G44,1,aux!$AL$1))/INDEX($C44:$G44,1,aux!$AL$1),"n.d.") -> 0.05160576875 | AA44: =O44-INDEX($K44:$O44,1,aux!$AL$1) -> 7731.826 | AB44: 1 | AC44: 1 | AD44: =+IF(INDEX($K44:$O44,1,aux!$AL$1)>0,(O44/INDEX($K44:$O44,1,aux!$AL$1))^(1/($O$3-INDEX($K$3:$O$3,1,aux!$AL$1)))-1,"n.d.") -> 0.003531809234 | AE44: =IF(INDEX($K44:$O44,1,aux!$AL$1)>0,(O44-INDEX($K44:$O44,1,aux!$AL$1))/INDEX($K44:$O44,1,aux!$AL$1),"n.d.") -> 0.01420225537 | BS44: 6818791.335
A45: 13f | B45: Gomas e resinas (NC 1301) (f) | C45: 0 | D45: 0 | E45: 0 | F45: 0 | G45: 0 | H45: 0 | J45: 0 | K45: 0 | L45: 0 | M45: 0 | N45: 0 | O45: 0 | P45: 0 | R45: 0 | S45: 0 | U45: =G45-INDEX($C45:$G45,1,aux!$AL$1) -> 0 | V45: =IF($U$52<>0,U45/$U$52, "n.d.") -> n.d. | W45: 0 | X45: =+IF(INDEX($C45:$G45,1,aux!$AL$1)>0,(G45/INDEX($C45:$G45,1,aux!$AL$1))^(1/($G$3-INDEX($C$3:$G$3,1,aux!$AL$1)))-1,"n.d.") -> n.d. | Y45: =IF(INDEX($C45:$G45,1,aux!$AL$1)>0,(G45-INDEX($C45:$G45,1,aux!$AL$1))/INDEX($C45:$G45,1,aux!$AL$1),"n.d.") -> n.d. | AA45: =O45-INDEX($K45:$O45,1,aux!$AL$1) -> 0 | AB45: =IF($AA$52<>0,AA45/$AA$52, "n.d.") -> n.d. | AC45: 0 | AD45: =+IF(INDEX($K45:$O45,1,aux!$AL$1)>0,(O45/INDEX($K45:$O45,1,aux!$AL$1))^(1/($O$3-INDEX($K$3:$O$3,1,aux!$AL$1)))-1,"n.d.") -> n.d. | AE45: =IF(INDEX($K45:$O45,1,aux!$AL$1)>0,(O45-INDEX($K45:$O45,1,aux!$AL$1))/INDEX($K45:$O45,1,aux!$AL$1),"n.d.") -> n.d. | AF45: 0 | BS45: 0
A46: 38f | B46: Tall oil, essências e colofónias (NC 3803,3805,3806) (f) | C46: 0 | D46: 0 | E46: 0 | F46: 0 | G46: 0 | H46: 0 | J46: 0 | K46: 0 | L46: 0 | M46: 0 | N46: 0 | O46: 0 | P46: 0 | R46: 0 | S46: 0 | U46: =G46-INDEX($C46:$G46,1,aux!$AL$1) -> 0 | V46: n.d. | W46: 0 | X46: =+IF(INDEX($C46:$G46,1,aux!$AL$1)>0,(G46/INDEX($C46:$G46,1,aux!$AL$1))^(1/($G$3-INDEX($C$3:$G$3,1,aux!$AL$1)))-1,"n.d.") -> n.d. | Y46: =IF(INDEX($C46:$G46,1,aux!$AL$1)>0,(G46-INDEX($C46:$G46,1,aux!$AL$1))/INDEX($C46:$G46,1,aux!$AL$1),"n.d.") -> n.d. | AA46: =O46-INDEX($K46:$O46,1,aux!$AL$1) -> 0 | AB46: n.d. | AC46: 0 | AD46: =+IF(INDEX($K46:$O46,1,aux!$AL$1)>0,(O46/INDEX($K46:$O46,1,aux!$AL$1))^(1/($O$3-INDEX($K$3:$O$3,1,aux!$AL$1)))-1,"n.d.") -> n.d. | AE46: =IF(INDEX($K46:$O46,1,aux!$AL$1)>0,(O46-INDEX($K46:$O46,1,aux!$AL$1))/INDEX($K46:$O46,1,aux!$AL$1),"n.d.") -> n.d. | AF46: 0 | BS46: 0
A47: 44 | B47: Madeira e suas obras | C47: 0 | D47: 0 | E47: 0 | F47: 0 | G47: 0 | H47: 0 | J47: 0 | K47: 0 | L47: 0 | M47: 0 | N47: 0 | O47: 0 | P47: 0 | R47: 0 | S47: 0 | U47: =G47-INDEX($C47:$G47,1,aux!$AL$1) -> 0 | V47: n.d. | W47: 0 | X47: =+IF(INDEX($C47:$G47,1,aux!$AL$1)>0,(G47/INDEX($C47:$G47,1,aux!$AL$1))^(1/($G$3-INDEX($C$3:$G$3,1,aux!$AL$1)))-1,"n.d.") -> n.d. | Y47: =IF(INDEX($C47:$G47,1,aux!$AL$1)>0,(G47-INDEX($C47:$G47,1,aux!$AL$1))/INDEX($C47:$G47,1,aux!$AL$1),"n.d.") -> n.d. | AA47: =O47-INDEX($K47:$O47,1,aux!$AL$1) -> 0 | AB47: n.d. | AC47: 0 | AD47: =+IF(INDEX($K47:$O47,1,aux!$AL$1)>0,(O47/INDEX($K47:$O47,1,aux!$AL$1))^(1/($O$3-INDEX($K$3:$O$3,1,aux!$AL$1)))-1,"n.d.") -> n.d. | AE47: =IF(INDEX($K47:$O47,1,aux!$AL$1)>0,(O47-INDEX($K47:$O47,1,aux!$AL$1))/INDEX($K47:$O47,1,aux!$AL$1),"n.d.") -> n.d. | AF47: 0 | BS47: 0
A48: 45 | B48: Cortiça e suas obras | C48: 0 | D48: 0 | E48: 0 | F48: 0 | G48: 0 | H48: 0 | J48: 0 | K48: 0 | L48: 0 | M48: 0 | N48: 0 | O48: 0 | P48: 0 | R48: 0 | S48: 0 | U48: =G48-INDEX($C48:$G48,1,aux!$AL$1) -> 0 | V48: n.d. | W48: 0 | X48: =+IF(INDEX($C48:$G48,1,aux!$AL$1)>0,(G48/INDEX($C48:$G48,1,aux!$AL$1))^(1/($G$3-INDEX($C$3:$G$3,1,aux!$AL$1)))-1,"n.d.") -> n.d. | Y48: =IF(INDEX($C48:$G48,1,aux!$AL$1)>0,(G48-INDEX($C48:$G48,1,aux!$AL$1))/INDEX($C48:$G48,1,aux!$AL$1),"n.d.") -> n.d. | AA48: =O48-INDEX($K48:$O48,1,aux!$AL$1) -> 0 | AB48: n.d. | AC48: 0 | AD48: =+IF(INDEX($K48:$O48,1,aux!$AL$1)>0,(O48/INDEX($K48:$O48,1,aux!$AL$1))^(1/($O$3-INDEX($K$3:$O$3,1,aux!$AL$1)))-1,"n.d.") -> n.d. | AE48: =IF(INDEX($K48:$O48,1,aux!$AL$1)>0,(O48-INDEX($K48:$O48,1,aux!$AL$1))/INDEX($K48:$O48,1,aux!$AL$1),"n.d.") -> n.d. | AF48: 0 | BS48: 0
A49: 46 | B49: Obras de espartaria ou de cestaria | C49: 0 | D49: 0 | E49: 0 | F49: 0 | G49: 0 | H49: 0 | J49: 0 | K49: 0 | L49: 0 | M49: 0 | N49: 0 | O49: 0 | P49: 0 | R49: 0 | S49: 0 | U49: =G49-INDEX($C49:$G49,1,aux!$AL$1) -> 0 | V49: n.d. | W49: 0 | X49: =+IF(INDEX($C49:$G49,1,aux!$AL$1)>0,(G49/INDEX($C49:$G49,1,aux!$AL$1))^(1/($G$3-INDEX($C$3:$G$3,1,aux!$AL$1)))-1,"n.d.") -> n.d. | Y49: =IF(INDEX($C49:$G49,1,aux!$AL$1)>0,(G49-INDEX($C49:$G49,1,aux!$AL$1))/INDEX($C49:$G49,1,aux!$AL$1),"n.d.") -> n.d. | AA49: =O49-INDEX($K49:$O49,1,aux!$AL$1) -> 0 | AB49: n.d. | AC49: 0 | AD49: =+IF(INDEX($K49:$O49,1,aux!$AL$1)>0,(O49/INDEX($K49:$O49,1,aux!$AL$1))^(1/($O$3-INDEX($K$3:$O$3,1,aux!$AL$1)))-1,"n.d.") -> n.d. | AE49: =IF(INDEX($K49:$O49,1,aux!$AL$1)>0,(O49-INDEX($K49:$O49,1,aux!$AL$1))/INDEX($K49:$O49,1,aux!$AL$1),"n.d.") -> n.d. | AF49: 0 | BS49: 0
A50: 47 | B50: Pastas de madeira | C50: 0 | D50: 0 | E50: 0 | F50: 0 | G50: 0 | H50: 0 | J50: 0 | K50: 0 | L50: 0 | M50: 0 | N50: 0 | O50: 0 | P50: 0 | R50: 0 | S50: 0 | U50: =G50-INDEX($C50:$G50,1,aux!$AL$1) -> 0 | V50: n.d. | W50: 0 | X50: =+IF(INDEX($C50:$G50,1,aux!$AL$1)>0,(G50/INDEX($C50:$G50,1,aux!$AL$1))^(1/($G$3-INDEX($C$3:$G$3,1,aux!$AL$1)))-1,"n.d.") -> n.d. | Y50: =IF(INDEX($C50:$G50,1,aux!$AL$1)>0,(G50-INDEX($C50:$G50,1,aux!$AL$1))/INDEX($C50:$G50,1,aux!$AL$1),"n.d.") -> n.d. | AA50: =O50-INDEX($K50:$O50,1,aux!$AL$1) -> 0 | AB50: n.d. | AC50: 0 | AD50: =+IF(INDEX($K50:$O50,1,aux!$AL$1)>0,(O50/INDEX($K50:$O50,1,aux!$AL$1))^(1/($O$3-INDEX($K$3:$O$3,1,aux!$AL$1)))-1,"n.d.") -> n.d. | AE50: =IF(INDEX($K50:$O50,1,aux!$AL$1)>0,(O50-INDEX($K50:$O50,1,aux!$AL$1))/INDEX($K50:$O50,1,aux!$AL$1),"n.d.") -> n.d. | AF50: 0 | BS50: 0
A51: 48 | B51: Papel e cartão | C51: 0 | D51: 0 | E51: 0 | F51: 0 | G51: 0 | H51: 0 | J51: 0 | K51: 0 | L51: 0 | M51: 0 | N51: 0 | O51: 0 | P51: 0 | R51: 0 | S51: 0 | U51: =G51-INDEX($C51:$G51,1,aux!$AL$1) -> 0 | V51: n.d. | W51: 0 | X51: =+IF(INDEX($C51:$G51,1,aux!$AL$1)>0,(G51/INDEX($C51:$G51,1,aux!$AL$1))^(1/($G$3-INDEX($C$3:$G$3,1,aux!$AL$1)))-1,"n.d.") -> n.d. | Y51: =IF(INDEX($C51:$G51,1,aux!$AL$1)>0,(G51-INDEX($C51:$G51,1,aux!$AL$1))/INDEX($C51:$G51,1,aux!$AL$1),"n.d.") -> n.d. | AA51: =O51-INDEX($K51:$O51,1,aux!$AL$1) -> 0 | AB51: n.d. | AC51: 0 | AD51: =+IF(INDEX($K51:$O51,1,aux!$AL$1)>0,(O51/INDEX($K51:$O51,1,aux!$AL$1))^(1/($O$3-INDEX($K$3:$O$3,1,aux!$AL$1)))-1,"n.d.") -> n.d. | AE51: =IF(INDEX($K51:$O51,1,aux!$AL$1)>0,(O51-INDEX($K51:$O51,1,aux!$AL$1))/INDEX($K51:$O51,1,aux!$AL$1),"n.d.") -> n.d. | AF51: 0 | BS51: 0
A52: Total Produtos do Mar | C52: 0 | D52: 0 | E52: 0 | F52: 0 | G52: 0 | H52: 0 | I52: 0 | J52: 0 | K52: 0 | L52: 0 | M52: 0 | N52: 0 | O52: 0 | P52: 0 | Q52: 0 | R52: 0 | S52: 0 | U52: =G52-INDEX($C52:$G52,1,aux!$AL$1) -> 0 | V52: n.d. | W52: 0 | X52: =+IF(INDEX($C52:$G52,1,aux!$AL$1)>0,(G52/INDEX($C52:$G52,1,aux!$AL$1))^(1/($G$3-INDEX($C$3:$G$3,1,aux!$AL$1)))-1,"n.d.") -> n.d. | Y52: =IF(INDEX($C52:$G52,1,aux!$AL$1)>0,(G52-INDEX($C52:$G52,1,aux!$AL$1))/INDEX($C52:$G52,1,aux!$AL$1),"n.d.") -> n.d. | AA52: =O52-INDEX($K52:$O52,1,aux!$AL$1) -> 0 | AB52: n.d. | AC52: 0 | AD52: =+IF(INDEX($K52:$O52,1,aux!$AL$1)>0,(O52/INDEX($K52:$O52,1,aux!$AL$1))^(1/($O$3-INDEX($K$3:$O$3,1,aux!$AL$1)))-1,"n.d.") -> n.d. | AE52: =IF(INDEX($K52:$O52,1,aux!$AL$1)>0,(O52-INDEX($K52:$O52,1,aux!$AL$1))/INDEX($K52:$O52,1,aux!$AL$1),"n.d.") -> n.d. | BS52: 0
B53: TOTAL | C53: 834879.492 | D53: 836960.999 | E53: 847426.105 | F53: 779235.446 | G53: 877964.09 | H53: 835293.2264 | J53: 1 | K53: 544408.321 | L53: 566559.795 | M53: 554317.557 | N53: 424899.383 | O53: 552140.147 | P53: 528465.0406 | R53: 1 | S53: -306828.1858 | U53: =G53-INDEX($C53:$G53,1,aux!$AL$1) -> 43084.598 | W53: 1 | X53: =+IF(INDEX($C53:$G53,1,aux!$AL$1)>0,(G53/INDEX($C53:$G53,1,aux!$AL$1))^(1/($G$3-INDEX($C$3:$G$3,1,aux!$AL$1)))-1,"n.d.") -> 0.01265903056 | Y53: =IF(INDEX($C53:$G53,1,aux!$AL$1)>0,(G53-INDEX($C53:$G53,1,aux!$AL$1))/INDEX($C53:$G53,1,aux!$AL$1),"n.d.") -> 0.05160576875 | AA53: =O53-INDEX($K53:$O53,1,aux!$AL$1) -> 7731.826 | AC53: 1 | AD53: =+IF(INDEX($K53:$O53,1,aux!$AL$1)>0,(O53/INDEX($K53:$O53,1,aux!$AL$1))^(1/($O$3-INDEX($K$3:$O$3,1,aux!$AL$1)))-1,"n.d.") -> 0.003531809234 | AE53: =IF(INDEX($K53:$O53,1,aux!$AL$1)>0,(O53-INDEX($K53:$O53,1,aux!$AL$1))/INDEX($K53:$O53,1,aux!$AL$1),"n.d.") -> 0.01420225537
B54: a - agrícola e agroalimentar; p - pescas; f - florestas
A55: Fonte: GPP a partir de dados INE/Comércio Internacional (2020 provisórios; 2021 preliminares) | S55: 2022-04-20T10:47:48.900

Sheet 5.2_var
A1: ="Principais contributos por produto para a variação das trocas comerciais PT-"& aux!B54 &" no período " & INDEX('5.2'!K3:N3,1,aux!AL1) & "-"& '5.2'!O3 &" (NC 2 dígitos - milhares de euros) "& aux!B52 &"" -> Principais contributos por produto para a variação das trocas comerciais PT-Espanha no período 2017-2021 (NC 2 dígitos - milhares de euros) Produtos do Mar
E5: aumento das importações | J5: aumento das exportações
E17: redução das importações | J17: redução das exportações
A28: Fonte: GPP a partir de dados INE/Comércio Internacional (2020 provisórios; 2021 preliminares) | F28: a - agrícola e agroalimentar; p - mar; f - florestas | H28: ='3'!Y116 -> 2022-04-20T10:48:19.630
A29: Cód. NC | B29: Descritivo | C29: ="Variação das Importações " & INDEX('5.2'!K3:N3,1,aux!AL1) & "-"& '5.2'!O3 &"" -> Variação das Importações 2017-2021 | F29: Cód. NC | G29: Descritivo | H29: ="Variação das Exportações " & INDEX('5.2'!K3:N3,1,aux!AL1) & "-"& '5.2'!O3 &"" -> Variação das Exportações 2017-2021
C30: variação total em valor | D30: % do aumento/ redução total | H30: variação total em valor | I30: % do aumento/ redução total
A31: =IF(C31>0,aux!AU6,"") -> 03 | B31: =IF(C31>0,aux!AV6,"") -> Peixes e crustáceos | C31: =IF(aux!AW6>0,aux!AW6,0) -> 27096.277 | D31: =IF(SUM($C$31:$C$41)<>0,C31/SUM($C$31:$C$41),0) -> 0.6282254914 | F31: =IF(H31>0,aux!AZ6,"") -> 03 | G31: =IF(H31>0,aux!BA6,"") -> Peixes e crustáceos | H31: =IF(aux!BB6>0,aux!BB6,0) -> 7258.021 | I31: =IF(SUM($H$31:$H$41)<>0,H31/SUM($H$31:$H$41),0) -> 0.6490409951
A32: =IF(C32>0,aux!AU7,"") -> 16p | B32: =IF(C32>0,aux!AV7,"") -> Preparações e conservas de peixes ou crustáceos (NC 1604-05) (p) | C32: =IF(aux!AW7>0,aux!AW7,0) -> 8758.64 | D32: =IF(SUM($C$31:$C$41)<>0,C32/SUM($C$31:$C$41),0) -> 0.2030685219 | F32: =IF(H32>0,aux!AZ7,"") -> 05p | G32: =IF(H32>0,aux!BA7,"") -> Outros produtos de pescado (NC 0508, 051191) (p) | H32: =IF(aux!BB7>0,aux!BB7,0) -> 1884.043 | I32: =IF(SUM($H$31:$H$41)<>0,H32/SUM($H$31:$H$41),0) -> 0.1684785899
A33: =IF(C33>0,aux!AU8,"") -> 19p | B33: =IF(C33>0,aux!AV8,"") -> Massas recheadas com pescado (NC 19022010) (p) | C33: =IF(aux!AW8>0,aux!AW8,0) -> 4841.757 | D33: 0.1122558339 | F33: =IF(H33>0,aux!AZ8,"") -> 23p | G33: =IF(H33>0,aux!BA8,"") -> Farinhas de pescado (NC 230120) (p) | H33: =IF(aux!BB8>0,aux!BB8,0) -> 1092.096 | I33: 0.09765955135
A34: =IF(C34>0,aux!AU9,"") -> 25 | B34: =IF(C34>0,aux!AV9,"") -> Sal e cloreto de sódio puro; água do mar (NC 2501) | C34: =IF(aux!AW9>0,aux!AW9,0) -> 1327.469 | D34: 0.03077728593 | F34: =IF(H34>0,aux!AZ9,"") -> 25 | G34: =IF(H34>0,aux!BA9,"") -> Sal e cloreto de sódio puro; água do mar (NC 2501) | H34: =IF(aux!BB9>0,aux!BB9,0) -> 635.391 | I34: 0.05681918072
A35: =IF(C35>0,aux!AU10,"") -> 05p | B35: =IF(C35>0,aux!AV10,"") -> Outros produtos de pescado (NC 0508, 051191) (p) | C35: =IF(aux!AW10>0,aux!AW10,0) -> 1107.308 | D35: 0.02567286688 | F35: =IF(H35>0,aux!AZ10,"") -> 19p | G35: =IF(H35>0,aux!BA10,"") -> Massas recheadas com pescado (NC 19022010) (p) | H35: =IF(aux!BB10>0,aux!BB10,0) -> 313.134 | I35: 0.02800168296
A36: =IF(C36>0,aux!AU11,"") ->  | B36: =IF(C36>0,aux!AV11,"") ->  | C36: =IF(aux!AW11>0,aux!AW11,0) -> 0 | D36: 0 | F36: =IF(H36>0,aux!AZ11,"") ->  | G36: =IF(H36>0,aux!BA11,"") ->  | H36: =IF(aux!BB11>0,aux!BB11,0) -> 0 | I36: 0
A37: =IF(C37>0,aux!AU12,"") ->  | B37: =IF(C37>0,aux!AV12,"") ->  | C37: =IF(aux!AW12>0,aux!AW12,0) -> 0 | D37: 0 | F37: =IF(H37>0,aux!AZ12,"") ->  | G37: =IF(H37>0,aux!BA12,"") ->  | H37: =IF(aux!BB12>0,aux!BB12,0) -> 0 | I37: 0
A38: =IF(C38>0,aux!AU13,"") ->  | B38: =IF(C38>0,aux!AV13,"") ->  | C38: =IF(aux!AW13>0,aux!AW13,0) -> 0 | D38: 0 | F38: =IF(H38>0,aux!AZ13,"") ->  | G38: =IF(H38>0,aux!BA13,"") ->  | H38: =IF(aux!BB13>0,aux!BB13,0) -> 0 | I38: 0
A39: =IF(C39>0,aux!AU14,"") ->  | B39: =IF(C39>0,aux!AV14,"") ->  | C39: =IF(aux!AW14>0,aux!AW14,0) -> 0 | D39: 0 | F39: =IF(H39>0,aux!AZ14,"") ->  | G39: =IF(H39>0,aux!BA14,"") ->  | H39: =IF(aux!BB14>0,aux!BB14,0) -> 0 | I39: 0
A40: =IF(C40>0,aux!AU15,"") ->  | B40: =IF(C40>0,aux!AV15,"") ->  | C40: =IF(aux!AW15>0,aux!AW15,0) -> 0 | D40: 0 | F40: =IF(H40>0,aux!AZ15,"") ->  | G40: =IF(H40>0,aux!BA15,"") ->  | H40: =IF(aux!BB15>0,aux!BB15,0) -> 0 | I40: 0
B41: Outros contributos para o aumento das importações | C41: =SUMIF(aux!AW16:AW51,">0") -> 0 | D41: 0 | G41: Outros contributos para o aumento das exportações | H41: =SUMIF(aux!BB16:BB51,">0") -> 0 | I41: 0
B42: Outros contributos para a redução das importações | C42: =SUMIF(aux!AW6:AW41,"<0") -> 0 | D42: =IF(SUM($C$42:$C$52)<>0,C42/SUM($C$42:$C$52),0) -> 0 | G42: Outros contributos para a redução das exportações | H42: =SUMIF(aux!BB6:BB41,"<0") -> 0 | I42: =IF(SUM($H$42:$H$52)<>0,H42/SUM($H$42:$H$52),0) -> 0
A43: =IF(C43<>0,aux!AU42,"") ->  | B43: =IF(C43<0,aux!AV42,"") ->  | C43: =IF(aux!AW42<0,aux!AW42,0) -> 0 | D43: =IF(SUM($C$42:$C$52)<>0,C43/SUM($C$42:$C$52),0) -> 0 | F43: =IF(H43<>0,aux!AZ42,"") ->  | G43: =IF(H43<>0,aux!BA42,"") ->  | H43: =IF(aux!BB42<0,aux!BB42,0) -> 0 | I43: =IF(SUM($H$42:$H$52)<>0,H43/SUM($H$42:$H$52),0) -> 0
A44: =IF(C44<>0,aux!AU43,"") ->  | B44: =IF(C44<0,aux!AV43,"") ->  | C44: =IF(aux!AW43<0,aux!AW43,0) -> 0 | D44: 0 | F44: =IF(H44<>0,aux!AZ43,"") ->  | G44: =IF(H44<>0,aux!BA43,"") ->  | H44: =IF(aux!BB43<0,aux!BB43,0) -> 0 | I44: 0
A45: =IF(C45<>0,aux!AU44,"") ->  | B45: =IF(C45<0,aux!AV44,"") ->  | C45: =IF(aux!AW44<0,aux!AW44,0) -> 0 | D45: 0 | F45: =IF(H45<>0,aux!AZ44,"") ->  | G45: =IF(H45<>0,aux!BA44,"") ->  | H45: =IF(aux!BB44<0,aux!BB44,0) -> 0 | I45: 0
A46: =IF(C46<>0,aux!AU45,"") ->  | B46: =IF(C46<0,aux!AV45,"") ->  | C46: =IF(aux!AW45<0,aux!AW45,0) -> 0 | D46: 0 | F46: =IF(H46<>0,aux!AZ45,"") ->  | G46: =IF(H46<>0,aux!BA45,"") ->  | H46: =IF(aux!BB45<0,aux!BB45,0) -> 0 | I46: 0
A47: =IF(C47<>0,aux!AU46,"") ->  | B47: =IF(C47<0,aux!AV46,"") ->  | C47: =IF(aux!AW46<0,aux!AW46,0) -> 0 | D47: 0 | F47: =IF(H47<>0,aux!AZ46,"") ->  | G47: =IF(H47<>0,aux!BA46,"") ->  | H47: =IF(aux!BB46<0,aux!BB46,0) -> 0 | I47: 0
A48: =IF(C48<>0,aux!AU47,"") ->  | B48: =IF(C48<0,aux!AV47,"") ->  | C48: =IF(aux!AW47<0,aux!AW47,0) -> 0 | D48: 0 | F48: =IF(H48<>0,aux!AZ47,"") ->  | G48: =IF(H48<>0,aux!BA47,"") ->  | H48: =IF(aux!BB47<0,aux!BB47,0) -> 0 | I48: 0
A49: =IF(C49<>0,aux!AU48,"") ->  | B49: =IF(C49<0,aux!AV48,"") ->  | C49: =IF(aux!AW48<0,aux!AW48,0) -> 0 | D49: 0 | F49: =IF(H49<>0,aux!AZ48,"") ->  | G49: =IF(H49<>0,aux!BA48,"") ->  | H49: =IF(aux!BB48<0,aux!BB48,0) -> 0 | I49: 0
A50: =IF(C50<>0,aux!AU49,"") ->  | B50: =IF(C50<0,aux!AV49,"") ->  | C50: =IF(aux!AW49<0,aux!AW49,0) -> 0 | D50: 0 | F50: =IF(H50<>0,aux!AZ49,"") ->  | G50: =IF(H50<>0,aux!BA49,"") ->  | H50: =IF(aux!BB49<0,aux!BB49,0) -> 0 | I50: 0
A51: =IF(C51<>0,aux!AU50,"") ->  | B51: =IF(C51<0,aux!AV50,"") ->  | C51: =IF(aux!AW50<0,aux!AW50,0) -> 0 | D51: 0 | F51: =IF(H51<>0,aux!AZ50,"") ->  | G51: =IF(H51<>0,aux!BA50,"") ->  | H51: =IF(aux!BB50<0,aux!BB50,0) -> 0 | I51: 0
A52: =IF(C52<>0,aux!AU51,"") -> 23p | B52: =IF(C52<0,aux!AV51,"") -> Farinhas de pescado (NC 230120) (p) | C52: =IF(aux!AW51<0,aux!AW51,0) -> -46.853 | D52: 1 | F52: =IF(H52<>0,aux!AZ51,"") -> 16p | G52: =IF(H52<>0,aux!BA51,"") -> Preparações e conservas de peixes ou crustáceos (NC 1604-05) (p) | H52: =IF(aux!BB51<0,aux!BB51,0) -> -3450.859 | I52: 1
A53: TOTAL | C53: =SUM(C31:C52) -> 43084.598 | F53: TOTAL | H53: =SUM(H31:H52) -> 7731.826

Sheet 5.2A
A1: Trocas comerciais Portugal-Espanha 2017-2021 em milhares de euros (NC 4 dígitos) | G1: Produtos do Mar
A2: Cód. NC | B2: Descritivo | C2: Importações | K2: Exportações | S2: Saldo quinquénio (exp-imp) | T2: Evolução das importações | U2: =+"Variação das Importações " & INDEX(K3:N3,1,aux!AL1) & "-"& '5.2'!O3 &"" -> Variação das Importações 2017-2021 | Z2: Evolução das exportações | AA2: ="Variação das Exportações " & INDEX(K3:N3,1,aux!AL1) & "-"& '5.2'!O3 &"" -> Variação das Exportações 2017-2021
C3: 2017 | D3: 2018 | E3: 2019 | F3: 2020 | G3: 2021 | H3: média quinquénio | I3: % Subtot | J3: % Total | K3: 2017 | L3: 2018 | M3: 2019 | N3: 2020 | O3: 2021 | P3: média quinquénio | Q3: % Subtot | R3: % Total | U3: variação total em valor | V3: % no subtotal de variação | W3: % no total de variação | X3: taxa de variação média anual | Y3: taxa de variação total | AA3: variação total em valor | AB3: % no subtotal de variação | AC3: % no total de variação | AD3: taxa de variação média anual | AE3: taxa de variação total | AX3: teste | BS3: filtro
A4: 0101 | B4: Equídeos vivos | C4: 0 | D4: 0 | E4: 0 | F4: 0 | G4: 0 | H4: 0 | J4: 0 | K4: 0 | L4: 0 | M4: 0 | N4: 0 | O4: 0 | P4: 0 | R4: 0 | S4: 0 | U4: =G4-INDEX($C4:$G4,1,aux!$AL$1) -> 0 | V4: =IF($U$236<>0,U4/$U$236, "n.d.") -> n.d. | W4: =IF($U$320<>0,U4/$U$320, "n.d.") -> 0 | X4: =+IF(INDEX($C4:$G4,1,aux!$AL$1)>0,(G4/INDEX($C4:$G4,1,aux!$AL$1))^(1/($G$3-INDEX($C$3:$G$3,1,aux!$AL$1)))-1,"n.d.") -> n.d. | Y4: =IF(INDEX($C4:$G4,1,aux!$AL$1)>0,(G4-INDEX($C4:$G4,1,aux!$AL$1))/INDEX($C4:$G4,1,aux!$AL$1),"n.d.") -> n.d. | AA4: =O4-INDEX($K4:$O4,1,aux!$AL$1) -> 0 | AB4: =IF($AA$236<>0,AA4/$AA$236, "n.d.") -> n.d. | AC4: =IF($AA$320<>0,AA4/$AA$320, "n.d.") -> 0 | AD4: =+IF(INDEX($K4:$O4,1,aux!$AL$1)>0,(O4/INDEX($K4:$O4,1,aux!$AL$1))^(1/($O$3-INDEX($K$3:$O$3,1,aux!$AL$1)))-1,"n.d.") -> n.d. | AE4: =IF(INDEX($K4:$O4,1,aux!$AL$1)>0,(O4-INDEX($K4:$O4,1,aux!$AL$1))/INDEX($K4:$O4,1,aux!$AL$1),"n.d.") -> n.d. | AF4: =SUM(C4:S4) -> 0 | AX4: =+LEFT(A4,2) -> 01 | BS4: =SUM(C4:G4,K4:O4) -> 0
A5: 0102 | B5: Bovinos vivos | C5: 0 | D5: 0 | E5: 0 | F5: 0 | G5: 0 | H5: 0 | J5: 0 | K5: 0 | L5: 0 | M5: 0 | N5: 0 | O5: 0 | P5: 0 | R5: 0 | S5: 0 | U5: =G5-INDEX($C5:$G5,1,aux!$AL$1) -> 0 | V5: n.d. | W5: 0 | X5: =+IF(INDEX($C5:$G5,1,aux!$AL$1)>0,(G5/INDEX($C5:$G5,1,aux!$AL$1))^(1/($G$3-INDEX($C$3:$G$3,1,aux!$AL$1)))-1,"n.d.") -> n.d. | Y5: =IF(INDEX($C5:$G5,1,aux!$AL$1)>0,(G5-INDEX($C5:$G5,1,aux!$AL$1))/INDEX($C5:$G5,1,aux!$AL$1),"n.d.") -> n.d. | AA5: =O5-INDEX($K5:$O5,1,aux!$AL$1) -> 0 | AB5: n.d. | AC5: 0 | AD5: =+IF(INDEX($K5:$O5,1,aux!$AL$1)>0,(O5/INDEX($K5:$O5,1,aux!$AL$1))^(1/($O$3-INDEX($K$3:$O$3,1,aux!$AL$1)))-1,"n.d.") -> n.d. | AE5: =IF(INDEX($K5:$O5,1,aux!$AL$1)>0,(O5-INDEX($K5:$O5,1,aux!$AL$1))/INDEX($K5:$O5,1,aux!$AL$1),"n.d.") -> n.d. | AF5: 0 | AX5: 01 | BS5: =SUM(C5:G5,K5:O5) -> 0
A6: 0103 | B6: Suínos vivos | C6: 0 | D6: 0 | E6: 0 | F6: 0 | G6: 0 | H6: 0 | J6: 0 | K6: 0 | L6: 0 | M6: 0 | N6: 0 | O6: 0 | P6: 0 | R6: 0 | S6: 0 | U6: =G6-INDEX($C6:$G6,1,aux!$AL$1) -> 0 | V6: n.d. | W6: 0 | X6: =+IF(INDEX($C6:$G6,1,aux!$AL$1)>0,(G6/INDEX($C6:$G6,1,aux!$AL$1))^(1/($G$3-INDEX($C$3:$G$3,1,aux!$AL$1)))-1,"n.d.") -> n.d. | Y6: =IF(INDEX($C6:$G6,1,aux!$AL$1)>0,(G6-INDEX($C6:$G6,1,aux!$AL$1))/INDEX($C6:$G6,1,aux!$AL$1),"n.d.") -> n.d. | AA6: =O6-INDEX($K6:$O6,1,aux!$AL$1) -> 0 | AB6: n.d. | AC6: 0 | AD6: =+IF(INDEX($K6:$O6,1,aux!$AL$1)>0,(O6/INDEX($K6:$O6,1,aux!$AL$1))^(1/($O$3-INDEX($K$3:$O$3,1,aux!$AL$1)))-1,"n.d.") -> n.d. | AE6: =IF(INDEX($K6:$O6,1,aux!$AL$1)>0,(O6-INDEX($K6:$O6,1,aux!$AL$1))/INDEX($K6:$O6,1,aux!$AL$1),"n.d.") -> n.d. | AF6: 0 | AX6: 01 | BS6: 0
A7: 0104 | B7: Ovinos ou caprinos vivos | C7: 0 | D7: 0 | E7: 0 | F7: 0 | G7: 0 | H7: 0 | J7: 0 | K7: 0 | L7: 0 | M7: 0 | N7: 0 | O7: 0 | P7: 0 | R7: 0 | S7: 0 | U7: =G7-INDEX($C7:$G7,1,aux!$AL$1) -> 0 | V7: n.d. | W7: 0 | X7: =+IF(INDEX($C7:$G7,1,aux!$AL$1)>0,(G7/INDEX($C7:$G7,1,aux!$AL$1))^(1/($G$3-INDEX($C$3:$G$3,1,aux!$AL$1)))-1,"n.d.") -> n.d. | Y7: =IF(INDEX($C7:$G7,1,aux!$AL$1)>0,(G7-INDEX($C7:$G7,1,aux!$AL$1))/INDEX($C7:$G7,1,aux!$AL$1),"n.d.") -> n.d. | AA7: =O7-INDEX($K7:$O7,1,aux!$AL$1) -> 0 | AB7: n.d. | AC7: 0 | AD7: =+IF(INDEX($K7:$O7,1,aux!$AL$1)>0,(O7/INDEX($K7:$O7,1,aux!$AL$1))^(1/($O$3-INDEX($K$3:$O$3,1,aux!$AL$1)))-1,"n.d.") -> n.d. | AE7: =IF(INDEX($K7:$O7,1,aux!$AL$1)>0,(O7-INDEX($K7:$O7,1,aux!$AL$1))/INDEX($K7:$O7,1,aux!$AL$1),"n.d.") -> n.d. | AF7: 0 | AX7: 01 | BS7: 0
A8: 0105 | B8: Aves de capoeira vivas | C8: 0 | D8: 0 | E8: 0 | F8: 0 | G8: 0 | H8: 0 | J8: 0 | K8: 0 | L8: 0 | M8: 0 | N8: 0 | O8: 0 | P8: 0 | R8: 0 | S8: 0 | U8: =G8-INDEX($C8:$G8,1,aux!$AL$1) -> 0 | V8: n.d. | W8: 0 | X8: =+IF(INDEX($C8:$G8,1,aux!$AL$1)>0,(G8/INDEX($C8:$G8,1,aux!$AL$1))^(1/($G$3-INDEX($C$3:$G$3,1,aux!$AL$1)))-1,"n.d.") -> n.d. | Y8: =IF(INDEX($C8:$G8,1,aux!$AL$1)>0,(G8-INDEX($C8:$G8,1,aux!$AL$1))/INDEX($C8:$G8,1,aux!$AL$1),"n.d.") -> n.d. | AA8: =O8-INDEX($K8:$O8,1,aux!$AL$1) -> 0 | AB8: n.d. | AC8: 0 | AD8: =+IF(INDEX($K8:$O8,1,aux!$AL$1)>0,(O8/INDEX($K8:$O8,1,aux!$AL$1))^(1/($O$3-INDEX($K$3:$O$3,1,aux!$AL$1)))-1,"n.d.") -> n.d. | AE8: =IF(INDEX($K8:$O8,1,aux!$AL$1)>0,(O8-INDEX($K8:$O8,1,aux!$AL$1))/INDEX($K8:$O8,1,aux!$AL$1),"n.d.") -> n.d. | AF8: 0 | AX8: 01 | BS8: 0
A9: 0106 | B9: Outros animais vivos | C9: 0 | D9: 0 | E9: 0 | F9: 0 | G9: 0 | H9: 0 | J9: 0 | K9: 0 | L9: 0 | M9: 0 | N9: 0 | O9: 0 | P9: 0 | R9: 0 | S9: 0 | U9: =G9-INDEX($C9:$G9,1,aux!$AL$1) -> 0 | V9: n.d. | W9: 0 | X9: =+IF(INDEX($C9:$G9,1,aux!$AL$1)>0,(G9/INDEX($C9:$G9,1,aux!$AL$1))^(1/($G$3-INDEX($C$3:$G$3,1,aux!$AL$1)))-1,"n.d.") -> n.d. | Y9: =IF(INDEX($C9:$G9,1,aux!$AL$1)>0,(G9-INDEX($C9:$G9,1,aux!$AL$1))/INDEX($C9:$G9,1,aux!$AL$1),"n.d.") -> n.d. | AA9: =O9-INDEX($K9:$O9,1,aux!$AL$1) -> 0 | AB9: n.d. | AC9: 0 | AD9: =+IF(INDEX($K9:$O9,1,aux!$AL$1)>0,(O9/INDEX($K9:$O9,1,aux!$AL$1))^(1/($O$3-INDEX($K$3:$O$3,1,aux!$AL$1)))-1,"n.d.") -> n.d. | AE9: =IF(INDEX($K9:$O9,1,aux!$AL$1)>0,(O9-INDEX($K9:$O9,1,aux!$AL$1))/INDEX($K9:$O9,1,aux!$AL$1),"n.d.") -> n.d. | AF9: 0 | AX9: 01 | BS9: 0
A10: 01SS | B10: Animais vivos | C10: 0 | D10: 0 | E10: 0 | F10: 0 | G10: 0 | H10: 0 | J10: 0 | K10: 0 | L10: 0 | M10: 0 | N10: 0 | O10: 0 | P10: 0 | R10: 0 | S10: 0 | U10: =G10-INDEX($C10:$G10,1,aux!$AL$1) -> 0 | V10: n.d. | W10: 0 | X10: =+IF(INDEX($C10:$G10,1,aux!$AL$1)>0,(G10/INDEX($C10:$G10,1,aux!$AL$1))^(1/($G$3-INDEX($C$3:$G$3,1,aux!$AL$1)))-1,"n.d.") -> n.d. | Y10: =IF(INDEX($C10:$G10,1,aux!$AL$1)>0,(G10-INDEX($C10:$G10,1,aux!$AL$1))/INDEX($C10:$G10,1,aux!$AL$1),"n.d.") -> n.d. | AA10: =O10-INDEX($K10:$O10,1,aux!$AL$1) -> 0 | AB10: n.d. | AC10: 0 | AD10: =+IF(INDEX($K10:$O10,1,aux!$AL$1)>0,(O10/INDEX($K10:$O10,1,aux!$AL$1))^(1/($O$3-INDEX($K$3:$O$3,1,aux!$AL$1)))-1,"n.d.") -> n.d. | AE10: =IF(INDEX($K10:$O10,1,aux!$AL$1)>0,(O10-INDEX($K10:$O10,1,aux!$AL$1))/INDEX($K10:$O10,1,aux!$AL$1),"n.d.") -> n.d. | AF10: 0 | BS10: 0
A11: 0201 | B11: Carnes de bovino, frescas ou refrigeradas | C11: 0 | D11: 0 | E11: 0 | F11: 0 | G11: 0 | H11: 0 | J11: 0 | K11: 0 | L11: 0 | M11: 0 | N11: 0 | O11: 0 | P11: 0 | R11: 0 | S11: 0 | U11: =G11-INDEX($C11:$G11,1,aux!$AL$1) -> 0 | V11: n.d. | W11: 0 | X11: =+IF(INDEX($C11:$G11,1,aux!$AL$1)>0,(G11/INDEX($C11:$G11,1,aux!$AL$1))^(1/($G$3-INDEX($C$3:$G$3,1,aux!$AL$1)))-1,"n.d.") -> n.d. | Y11: =IF(INDEX($C11:$G11,1,aux!$AL$1)>0,(G11-INDEX($C11:$G11,1,aux!$AL$1))/INDEX($C11:$G11,1,aux!$AL$1),"n.d.") -> n.d. | AA11: =O11-INDEX($K11:$O11,1,aux!$AL$1) -> 0 | AB11: n.d. | AC11: 0 | AD11: =+IF(INDEX($K11:$O11,1,aux!$AL$1)>0,(O11/INDEX($K11:$O11,1,aux!$AL$1))^(1/($O$3-INDEX($K$3:$O$3,1,aux!$AL$1)))-1,"n.d.") -> n.d. | AE11: =IF(INDEX($K11:$O11,1,aux!$AL$1)>0,(O11-INDEX($K11:$O11,1,aux!$AL$1))/INDEX($K11:$O11,1,aux!$AL$1),"n.d.") -> n.d. | AF11: 0 | AX11: 02 | BS11: 0
A12: 0202 | B12: Carnes de bovino, congeladas | C12: 0 | D12: 0 | E12: 0 | F12: 0 | G12: 0 | H12: 0 | J12: 0 | K12: 0 | L12: 0 | M12: 0 | N12: 0 | O12: 0 | P12: 0 | R12: 0 | S12: 0 | U12: =G12-INDEX($C12:$G12,1,aux!$AL$1) -> 0 | V12: n.d. | W12: 0 | X12: =+IF(INDEX($C12:$G12,1,aux!$AL$1)>0,(G12/INDEX($C12:$G12,1,aux!$AL$1))^(1/($G$3-INDEX($C$3:$G$3,1,aux!$AL$1)))-1,"n.d.") -> n.d. | Y12: =IF(INDEX($C12:$G12,1,aux!$AL$1)>0,(G12-INDEX($C12:$G12,1,aux!$AL$1))/INDEX($C12:$G12,1,aux!$AL$1),"n.d.") -> n.d. | AA12: =O12-INDEX($K12:$O12,1,aux!$AL$1) -> 0 | AB12: n.d. | AC12: 0 | AD12: =+IF(INDEX($K12:$O12,1,aux!$AL$1)>0,(O12/INDEX($K12:$O12,1,aux!$AL$1))^(1/($O$3-INDEX($K$3:$O$3,1,aux!$AL$1)))-1,"n.d.") -> n.d. | AE12: =IF(INDEX($K12:$O12,1,aux!$AL$1)>0,(O12-INDEX($K12:$O12,1,aux!$AL$1))/INDEX($K12:$O12,1,aux!$AL$1),"n.d.") -> n.d. | AF12: 0 | AX12: 02 | BS12: 0
A13: 0203 | B13: Carnes de suíno | C13: 0 | D13: 0 | E13: 0 | F13: 0 | G13: 0 | H13: 0 | J13: 0 | K13: 0 | L13: 0 | M13: 0 | N13: 0 | O13: 0 | P13: 0 | R13: 0 | S13: 0 | U13: =G13-INDEX($C13:$G13,1,aux!$AL$1) -> 0 | V13: n.d. | W13: 0 | X13: =+IF(INDEX($C13:$G13,1,aux!$AL$1)>0,(G13/INDEX($C13:$G13,1,aux!$AL$1))^(1/($G$3-INDEX($C$3:$G$3,1,aux!$AL$1)))-1,"n.d.") -> n.d. | Y13: =IF(INDEX($C13:$G13,1,aux!$AL$1)>0,(G13-INDEX($C13:$G13,1,aux!$AL$1))/INDEX($C13:$G13,1,aux!$AL$1),"n.d.") -> n.d. | AA13: =O13-INDEX($K13:$O13,1,aux!$AL$1) -> 0 | AB13: n.d. | AC13: 0 | AD13: =+IF(INDEX($K13:$O13,1,aux!$AL$1)>0,(O13/INDEX($K13:$O13,1,aux!$AL$1))^(1/($O$3-INDEX($K$3:$O$3,1,aux!$AL$1)))-1,"n.d.") -> n.d. | AE13: =IF(INDEX($K13:$O13,1,aux!$AL$1)>0,(O13-INDEX($K13:$O13,1,aux!$AL$1))/INDEX($K13:$O13,1,aux!$AL$1),"n.d.") -> n.d. | AF13: 0 | AX13: 02 | BS13: 0
A14: 0204 | B14: Carnes de ovino ou caprino | C14: 0 | D14: 0 | E14: 0 | F14: 0 | G14: 0 | H14: 0 | J14: 0 | K14: 0 | L14: 0 | M14: 0 | N14: 0 | O14: 0 | P14: 0 | R14: 0 | S14: 0 | U14: =G14-INDEX($C14:$G14,1,aux!$AL$1) -> 0 | V14: n.d. | W14: 0 | X14: =+IF(INDEX($C14:$G14,1,aux!$AL$1)>0,(G14/INDEX($C14:$G14,1,aux!$AL$1))^(1/($G$3-INDEX($C$3:$G$3,1,aux!$AL$1)))-1,"n.d.") -> n.d. | Y14: =IF(INDEX($C14:$G14,1,aux!$AL$1)>0,(G14-INDEX($C14:$G14,1,aux!$AL$1))/INDEX($C14:$G14,1,aux!$AL$1),"n.d.") -> n.d. | AA14: =O14-INDEX($K14:$O14,1,aux!$AL$1) -> 0 | AB14: n.d. | AC14: 0 | AD14: =+IF(INDEX($K14:$O14,1,aux!$AL$1)>0,(O14/INDEX($K14:$O14,1,aux!$AL$1))^(1/($O$3-INDEX($K$3:$O$3,1,aux!$AL$1)))-1,"n.d.") -> n.d. | AE14: =IF(INDEX($K14:$O14,1,aux!$AL$1)>0,(O14-INDEX($K14:$O14,1,aux!$AL$1))/INDEX($K14:$O14,1,aux!$AL$1),"n.d.") -> n.d. | AF14: 0 | AX14: 02 | BS14: 0
A15: 0205 | B15: Carnes de equídeo | C15: 0 | D15: 0 | E15: 0 | F15: 0 | G15: 0 | H15: 0 | J15: 0 | K15: 0 | L15: 0 | M15: 0 | N15: 0 | O15: 0 | P15: 0 | R15: 0 | S15: 0 | U15: =G15-INDEX($C15:$G15,1,aux!$AL$1) -> 0 | V15: n.d. | W15: 0 | X15: =+IF(INDEX($C15:$G15,1,aux!$AL$1)>0,(G15/INDEX($C15:$G15,1,aux!$AL$1))^(1/($G$3-INDEX($C$3:$G$3,1,aux!$AL$1)))-1,"n.d.") -> n.d. | Y15: =IF(INDEX($C15:$G15,1,aux!$AL$1)>0,(G15-INDEX($C15:$G15,1,aux!$AL$1))/INDEX($C15:$G15,1,aux!$AL$1),"n.d.") -> n.d. | AA15: =O15-INDEX($K15:$O15,1,aux!$AL$1) -> 0 | AB15: n.d. | AC15: 0 | AD15: =+IF(INDEX($K15:$O15,1,aux!$AL$1)>0,(O15/INDEX($K15:$O15,1,aux!$AL$1))^(1/($O$3-INDEX($K$3:$O$3,1,aux!$AL$1)))-1,"n.d.") -> n.d. | AE15: =IF(INDEX($K15:$O15,1,aux!$AL$1)>0,(O15-INDEX($K15:$O15,1,aux!$AL$1))/INDEX($K15:$O15,1,aux!$AL$1),"n.d.") -> n.d. | AF15: 0 | AX15: 02 | BS15: 0
A16: 0206 | B16: Miudezas de bovino, suíno, ovino, caprino,equídeo | C16: 0 | D16: 0 | E16: 0 | F16: 0 | G16: 0 | H16: 0 | J16: 0 | K16: 0 | L16: 0 | M16: 0 | N16: 0 | O16: 0 | P16: 0 | R16: 0 | S16: 0 | U16: =G16-INDEX($C16:$G16,1,aux!$AL$1) -> 0 | V16: n.d. | W16: 0 | X16: =+IF(INDEX($C16:$G16,1,aux!$AL$1)>0,(G16/INDEX($C16:$G16,1,aux!$AL$1))^(1/($G$3-INDEX($C$3:$G$3,1,aux!$AL$1)))-1,"n.d.") -> n.d. | Y16: =IF(INDEX($C16:$G16,1,aux!$AL$1)>0,(G16-INDEX($C16:$G16,1,aux!$AL$1))/INDEX($C16:$G16,1,aux!$AL$1),"n.d.") -> n.d. | AA16: =O16-INDEX($K16:$O16,1,aux!$AL$1) -> 0 | AB16: n.d. | AC16: 0 | AD16: =+IF(INDEX($K16:$O16,1,aux!$AL$1)>0,(O16/INDEX($K16:$O16,1,aux!$AL$1))^(1/($O$3-INDEX($K$3:$O$3,1,aux!$AL$1)))-1,"n.d.") -> n.d. | AE16: =IF(INDEX($K16:$O16,1,aux!$AL$1)>0,(O16-INDEX($K16:$O16,1,aux!$AL$1))/INDEX($K16:$O16,1,aux!$AL$1),"n.d.") -> n.d. | AF16: 0 | AX16: 02 | BS16: 0
A17: 0207 | B17: Carnes e miudezas de aves de capoeira | C17: 0 | D17: 0 | E17: 0 | F17: 0 | G17: 0 | H17: 0 | J17: 0 | K17: 0 | L17: 0 | M17: 0 | N17: 0 | O17: 0 | P17: 0 | R17: 0 | S17: 0 | U17: =G17-INDEX($C17:$G17,1,aux!$AL$1) -> 0 | V17: n.d. | W17: 0 | X17: =+IF(INDEX($C17:$G17,1,aux!$AL$1)>0,(G17/INDEX($C17:$G17,1,aux!$AL$1))^(1/($G$3-INDEX($C$3:$G$3,1,aux!$AL$1)))-1,"n.d.") -> n.d. | Y17: =IF(INDEX($C17:$G17,1,aux!$AL$1)>0,(G17-INDEX($C17:$G17,1,aux!$AL$1))/INDEX($C17:$G17,1,aux!$AL$1),"n.d.") -> n.d. | AA17: =O17-INDEX($K17:$O17,1,aux!$AL$1) -> 0 | AB17: n.d. | AC17: 0 | AD17: =+IF(INDEX($K17:$O17,1,aux!$AL$1)>0,(O17/INDEX($K17:$O17,1,aux!$AL$1))^(1/($O$3-INDEX($K$3:$O$3,1,aux!$AL$1)))-1,"n.d.") -> n.d. | AE17: =IF(INDEX($K17:$O17,1,aux!$AL$1)>0,(O17-INDEX($K17:$O17,1,aux!$AL$1))/INDEX($K17:$O17,1,aux!$AL$1),"n.d.") -> n.d. | AF17: 0 | AX17: 02 | BS17: 0
A18: 0208 | B18: Outras carnes e miudezas | C18: 0 | D18: 0 | E18: 0 | F18: 0 | G18: 0 | H18: 0 | J18: 0 | K18: 0 | L18: 0 | M18: 0 | N18: 0 | O18: 0 | P18: 0 | R18: 0 | S18: 0 | U18: =G18-INDEX($C18:$G18,1,aux!$AL$1) -> 0 | V18: n.d. | W18: 0 | X18: =+IF(INDEX($C18:$G18,1,aux!$AL$1)>0,(G18/INDEX($C18:$G18,1,aux!$AL$1))^(1/($G$3-INDEX($C$3:$G$3,1,aux!$AL$1)))-1,"n.d.") -> n.d. | Y18: =IF(INDEX($C18:$G18,1,aux!$AL$1)>0,(G18-INDEX($C18:$G18,1,aux!$AL$1))/INDEX($C18:$G18,1,aux!$AL$1),"n.d.") -> n.d. | AA18: =O18-INDEX($K18:$O18,1,aux!$AL$1) -> 0 | AB18: n.d. | AC18: 0 | AD18: =+IF(INDEX($K18:$O18,1,aux!$AL$1)>0,(O18/INDEX($K18:$O18,1,aux!$AL$1))^(1/($O$3-INDEX($K$3:$O$3,1,aux!$AL$1)))-1,"n.d.") -> n.d. | AE18: =IF(INDEX($K18:$O18,1,aux!$AL$1)>0,(O18-INDEX($K18:$O18,1,aux!$AL$1))/INDEX($K18:$O18,1,aux!$AL$1),"n.d.") -> n.d. | AF18: 0 | AX18: 02 | BS18: 0
A19: 0209 | B19: Toucinho, gorduras de porco e de aves | C19: 0 | D19: 0 | E19: 0 | F19: 0 | G19: 0 | H19: 0 | J19: 0 | K19: 0 | L19: 0 | M19: 0 | N19: 0 | O19: 0 | P19: 0 | R19: 0 | S19: 0 | U19: =G19-INDEX($C19:$G19,1,aux!$AL$1) -> 0 | V19: n.d. | W19: 0 | X19: =+IF(INDEX($C19:$G19,1,aux!$AL$1)>0,(G19/INDEX($C19:$G19,1,aux!$AL$1))^(1/($G$3-INDEX($C$3:$G$3,1,aux!$AL$1)))-1,"n.d.") -> n.d. | Y19: =IF(INDEX($C19:$G19,1,aux!$AL$1)>0,(G19-INDEX($C19:$G19,1,aux!$AL$1))/INDEX($C19:$G19,1,aux!$AL$1),"n.d.") -> n.d. | AA19: =O19-INDEX($K19:$O19,1,aux!$AL$1) -> 0 | AB19: n.d. | AC19: 0 | AD19: =+IF(INDEX($K19:$O19,1,aux!$AL$1)>0,(O19/INDEX($K19:$O19,1,aux!$AL$1))^(1/($O$3-INDEX($K$3:$O$3,1,aux!$AL$1)))-1,"n.d.") -> n.d. | AE19: =IF(INDEX($K19:$O19,1,aux!$AL$1)>0,(O19-INDEX($K19:$O19,1,aux!$AL$1))/INDEX($K19:$O19,1,aux!$AL$1),"n.d.") -> n.d. | AF19: 0 | AX19: 02 | BS19: 0
A20: 0210 | B20: Carnes e miudezas processadas; farinhas de carnes | C20: 0 | D20: 0 | E20: 0 | F20: 0 | G20: 0 | H20: 0 | J20: 0 | K20: 0 | L20: 0 | M20: 0 | N20: 0 | O20: 0 | P20: 0 | R20: 0 | S20: 0 | U20: =G20-INDEX($C20:$G20,1,aux!$AL$1) -> 0 | V20: n.d. | W20: 0 | X20: =+IF(INDEX($C20:$G20,1,aux!$AL$1)>0,(G20/INDEX($C20:$G20,1,aux!$AL$1))^(1/($G$3-INDEX($C$3:$G$3,1,aux!$AL$1)))-1,"n.d.") -> n.d. | Y20: =IF(INDEX($C20:$G20,1,aux!$AL$1)>0,(G20-INDEX($C20:$G20,1,aux!$AL$1))/INDEX($C20:$G20,1,aux!$AL$1),"n.d.") -> n.d. | AA20: =O20-INDEX($K20:$O20,1,aux!$AL$1) -> 0 | AB20: n.d. | AC20: 0 | AD20: =+IF(INDEX($K20:$O20,1,aux!$AL$1)>0,(O20/INDEX($K20:$O20,1,aux!$AL$1))^(1/($O$3-INDEX($K$3:$O$3,1,aux!$AL$1)))-1,"n.d.") -> n.d. | AE20: =IF(INDEX($K20:$O20,1,aux!$AL$1)>0,(O20-INDEX($K20:$O20,1,aux!$AL$1))/INDEX($K20:$O20,1,aux!$AL$1),"n.d.") -> n.d. | AF20: 0 | AX20: 02 | BS20: 0
A21: 02SS | B21: Carnes e miudezas, comestíveis | C21: 0 | D21: 0 | E21: 0 | F21: 0 | G21: 0 | H21: 0 | J21: 0 | K21: 0 | L21: 0 | M21: 0 | N21: 0 | O21: 0 | P21: 0 | R21: 0 | S21: 0 | U21: =G21-INDEX($C21:$G21,1,aux!$AL$1) -> 0 | V21: n.d. | W21: 0 | X21: =+IF(INDEX($C21:$G21,1,aux!$AL$1)>0,(G21/INDEX($C21:$G21,1,aux!$AL$1))^(1/($G$3-INDEX($C$3:$G$3,1,aux!$AL$1)))-1,"n.d.") -> n.d. | Y21: =IF(INDEX($C21:$G21,1,aux!$AL$1)>0,(G21-INDEX($C21:$G21,1,aux!$AL$1))/INDEX($C21:$G21,1,aux!$AL$1),"n.d.") -> n.d. | AA21: =O21-INDEX($K21:$O21,1,aux!$AL$1) -> 0 | AB21: n.d. | AC21: 0 | AD21: =+IF(INDEX($K21:$O21,1,aux!$AL$1)>0,(O21/INDEX($K21:$O21,1,aux!$AL$1))^(1/($O$3-INDEX($K$3:$O$3,1,aux!$AL$1)))-1,"n.d.") -> n.d. | AE21: =IF(INDEX($K21:$O21,1,aux!$AL$1)>0,(O21-INDEX($K21:$O21,1,aux!$AL$1))/INDEX($K21:$O21,1,aux!$AL$1),"n.d.") -> n.d. | AF21: 0 | BS21: 0
A22: 0401 | B22: Leite e nata, não concentrados | C22: 0 | D22: 0 | E22: 0 | F22: 0 | G22: 0 | H22: 0 | J22: 0 | K22: 0 | L22: 0 | M22: 0 | N22: 0 | O22: 0 | P22: 0 | R22: 0 | S22: 0 | U22: =G22-INDEX($C22:$G22,1,aux!$AL$1) -> 0 | V22: n.d. | W22: 0 | X22: =+IF(INDEX($C22:$G22,1,aux!$AL$1)>0,(G22/INDEX($C22:$G22,1,aux!$AL$1))^(1/($G$3-INDEX($C$3:$G$3,1,aux!$AL$1)))-1,"n.d.") -> n.d. | Y22: =IF(INDEX($C22:$G22,1,aux!$AL$1)>0,(G22-INDEX($C22:$G22,1,aux!$AL$1))/INDEX($C22:$G22,1,aux!$AL$1),"n.d.") -> n.d. | AA22: =O22-INDEX($K22:$O22,1,aux!$AL$1) -> 0 | AB22: n.d. | AC22: 0 | AD22: =+IF(INDEX($K22:$O22,1,aux!$AL$1)>0,(O22/INDEX($K22:$O22,1,aux!$AL$1))^(1/($O$3-INDEX($K$3:$O$3,1,aux!$AL$1)))-1,"n.d.") -> n.d. | AE22: =IF(INDEX($K22:$O22,1,aux!$AL$1)>0,(O22-INDEX($K22:$O22,1,aux!$AL$1))/INDEX($K22:$O22,1,aux!$AL$1),"n.d.") -> n.d. | AF22: 0 | AX22: 04 | BS22: 0
A23: 0402 | B23: Leite e nata, concentrados | C23: 0 | D23: 0 | E23: 0 | F23: 0 | G23: 0 | H23: 0 | J23: 0 | K23: 0 | L23: 0 | M23: 0 | N23: 0 | O23: 0 | P23: 0 | R23: 0 | S23: 0 | U23: =G23-INDEX($C23:$G23,1,aux!$AL$1) -> 0 | V23: n.d. | W23: 0 | X23: =+IF(INDEX($C23:$G23,1,aux!$AL$1)>0,(G23/INDEX($C23:$G23,1,aux!$AL$1))^(1/($G$3-INDEX($C$3:$G$3,1,aux!$AL$1)))-1,"n.d.") -> n.d. | Y23: =IF(INDEX($C23:$G23,1,aux!$AL$1)>0,(G23-INDEX($C23:$G23,1,aux!$AL$1))/INDEX($C23:$G23,1,aux!$AL$1),"n.d.") -> n.d. | AA23: =O23-INDEX($K23:$O23,1,aux!$AL$1) -> 0 | AB23: n.d. | AC23: 0 | AD23: =+IF(INDEX($K23:$O23,1,aux!$AL$1)>0,(O23/INDEX($K23:$O23,1,aux!$AL$1))^(1/($O$3-INDEX($K$3:$O$3,1,aux!$AL$1)))-1,"n.d.") -> n.d. | AE23: =IF(INDEX($K23:$O23,1,aux!$AL$1)>0,(O23-INDEX($K23:$O23,1,aux!$AL$1))/INDEX($K23:$O23,1,aux!$AL$1),"n.d.") -> n.d. | AF23: 0 | AX23: 04 | BS23: 0
A24: 0403 | B24: Leitelho, leite coalhado, iogurte, etc. | C24: 0 | D24: 0 | E24: 0 | F24: 0 | G24: 0 | H24: 0 | J24: 0 | K24: 0 | L24: 0 | M24: 0 | N24: 0 | O24: 0 | P24: 0 | R24: 0 | S24: 0 | U24: =G24-INDEX($C24:$G24,1,aux!$AL$1) -> 0 | V24: n.d. | W24: 0 | X24: =+IF(INDEX($C24:$G24,1,aux!$AL$1)>0,(G24/INDEX($C24:$G24,1,aux!$AL$1))^(1/($G$3-INDEX($C$3:$G$3,1,aux!$AL$1)))-1,"n.d.") -> n.d. | Y24: =IF(INDEX($C24:$G24,1,aux!$AL$1)>0,(G24-INDEX($C24:$G24,1,aux!$AL$1))/INDEX($C24:$G24,1,aux!$AL$1),"n.d.") -> n.d. | AA24: =O24-INDEX($K24:$O24,1,aux!$AL$1) -> 0 | AB24: n.d. | AC24: 0 | AD24: =+IF(INDEX($K24:$O24,1,aux!$AL$1)>0,(O24/INDEX($K24:$O24,1,aux!$AL$1))^(1/($O$3-INDEX($K$3:$O$3,1,aux!$AL$1)))-1,"n.d.") -> n.d. | AE24: =IF(INDEX($K24:$O24,1,aux!$AL$1)>0,(O24-INDEX($K24:$O24,1,aux!$AL$1))/INDEX($K24:$O24,1,aux!$AL$1),"n.d.") -> n.d. | AF24: 0 | AX24: 04 | BS24: 0
A25: 0404 | B25: Soro de leite e outros produtos do leite | C25: 0 | D25: 0 | E25: 0 | F25: 0 | G25: 0 | H25: 0 | J25: 0 | K25: 0 | L25: 0 | M25: 0 | N25: 0 | O25: 0 | P25: 0 | R25: 0 | S25: 0 | U25: =G25-INDEX($C25:$G25,1,aux!$AL$1) -> 0 | V25: n.d. | W25: 0 | X25: =+IF(INDEX($C25:$G25,1,aux!$AL$1)>0,(G25/INDEX($C25:$G25,1,aux!$AL$1))^(1/($G$3-INDEX($C$3:$G$3,1,aux!$AL$1)))-1,"n.d.") -> n.d. | Y25: =IF(INDEX($C25:$G25,1,aux!$AL$1)>0,(G25-INDEX($C25:$G25,1,aux!$AL$1))/INDEX($C25:$G25,1,aux!$AL$1),"n.d.") -> n.d. | AA25: =O25-INDEX($K25:$O25,1,aux!$AL$1) -> 0 | AB25: n.d. | AC25: 0 | AD25: =+IF(INDEX($K25:$O25,1,aux!$AL$1)>0,(O25/INDEX($K25:$O25,1,aux!$AL$1))^(1/($O$3-INDEX($K$3:$O$3,1,aux!$AL$1)))-1,"n.d.") -> n.d. | AE25: =IF(INDEX($K25:$O25,1,aux!$AL$1)>0,(O25-INDEX($K25:$O25,1,aux!$AL$1))/INDEX($K25:$O25,1,aux!$AL$1),"n.d.") -> n.d. | AF25: 0 | AX25: 04 | BS25: 0
A26: 0405 | B26: Manteiga | C26: 0 | D26: 0 | E26: 0 | F26: 0 | G26: 0 | H26: 0 | J26: 0 | K26: 0 | L26: 0 | M26: 0 | N26: 0 | O26: 0 | P26: 0 | R26: 0 | S26: 0 | U26: =G26-INDEX($C26:$G26,1,aux!$AL$1) -> 0 | V26: n.d. | W26: 0 | X26: =+IF(INDEX($C26:$G26,1,aux!$AL$1)>0,(G26/INDEX($C26:$G26,1,aux!$AL$1))^(1/($G$3-INDEX($C$3:$G$3,1,aux!$AL$1)))-1,"n.d.") -> n.d. | Y26: =IF(INDEX($C26:$G26,1,aux!$AL$1)>0,(G26-INDEX($C26:$G26,1,aux!$AL$1))/INDEX($C26:$G26,1,aux!$AL$1),"n.d.") -> n.d. | AA26: =O26-INDEX($K26:$O26,1,aux!$AL$1) -> 0 | AB26: n.d. | AC26: 0 | AD26: =+IF(INDEX($K26:$O26,1,aux!$AL$1)>0,(O26/INDEX($K26:$O26,1,aux!$AL$1))^(1/($O$3-INDEX($K$3:$O$3,1,aux!$AL$1)))-1,"n.d.") -> n.d. | AE26: =IF(INDEX($K26:$O26,1,aux!$AL$1)>0,(O26-INDEX($K26:$O26,1,aux!$AL$1))/INDEX($K26:$O26,1,aux!$AL$1),"n.d.") -> n.d. | AF26: 0 | AX26: 04 | BS26: 0
A27: 0406 | B27: Queijos e requeijão | C27: 0 | D27: 0 | E27: 0 | F27: 0 | G27: 0 | H27: 0 | J27: 0 | K27: 0 | L27: 0 | M27: 0 | N27: 0 | O27: 0 | P27: 0 | R27: 0 | S27: 0 | U27: =G27-INDEX($C27:$G27,1,aux!$AL$1) -> 0 | V27: n.d. | W27: 0 | X27: =+IF(INDEX($C27:$G27,1,aux!$AL$1)>0,(G27/INDEX($C27:$G27,1,aux!$AL$1))^(1/($G$3-INDEX($C$3:$G$3,1,aux!$AL$1)))-1,"n.d.") -> n.d. | Y27: =IF(INDEX($C27:$G27,1,aux!$AL$1)>0,(G27-INDEX($C27:$G27,1,aux!$AL$1))/INDEX($C27:$G27,1,aux!$AL$1),"n.d.") -> n.d. | AA27: =O27-INDEX($K27:$O27,1,aux!$AL$1) -> 0 | AB27: n.d. | AC27: 0 | AD27: =+IF(INDEX($K27:$O27,1,aux!$AL$1)>0,(O27/INDEX($K27:$O27,1,aux!$AL$1))^(1/($O$3-INDEX($K$3:$O$3,1,aux!$AL$1)))-1,"n.d.") -> n.d. | AE27: =IF(INDEX($K27:$O27,1,aux!$AL$1)>0,(O27-INDEX($K27:$O27,1,aux!$AL$1))/INDEX($K27:$O27,1,aux!$AL$1),"n.d.") -> n.d. | AF27: 0 | AX27: 04 | BS27: 0
A28: 0407 | B28: Ovos de aves, com cascas | C28: 0 | D28: 0 | E28: 0 | F28: 0 | G28: 0 | H28: 0 | J28: 0 | K28: 0 | L28: 0 | M28: 0 | N28: 0 | O28: 0 | P28: 0 | R28: 0 | S28: 0 | U28: =G28-INDEX($C28:$G28,1,aux!$AL$1) -> 0 | V28: n.d. | W28: 0 | X28: =+IF(INDEX($C28:$G28,1,aux!$AL$1)>0,(G28/INDEX($C28:$G28,1,aux!$AL$1))^(1/($G$3-INDEX($C$3:$G$3,1,aux!$AL$1)))-1,"n.d.") -> n.d. | Y28: =IF(INDEX($C28:$G28,1,aux!$AL$1)>0,(G28-INDEX($C28:$G28,1,aux!$AL$1))/INDEX($C28:$G28,1,aux!$AL$1),"n.d.") -> n.d. | AA28: =O28-INDEX($K28:$O28,1,aux!$AL$1) -> 0 | AB28: n.d. | AC28: 0 | AD28: =+IF(INDEX($K28:$O28,1,aux!$AL$1)>0,(O28/INDEX($K28:$O28,1,aux!$AL$1))^(1/($O$3-INDEX($K$3:$O$3,1,aux!$AL$1)))-1,"n.d.") -> n.d. | AE28: =IF(INDEX($K28:$O28,1,aux!$AL$1)>0,(O28-INDEX($K28:$O28,1,aux!$AL$1))/INDEX($K28:$O28,1,aux!$AL$1),"n.d.") -> n.d. | AF28: 0 | AX28: 04 | BS28: 0
A29: 0408 | B29: Ovos de aves, sem casca | C29: 0 | D29: 0 | E29: 0 | F29: 0 | G29: 0 | H29: 0 | J29: 0 | K29: 0 | L29: 0 | M29: 0 | N29: 0 | O29: 0 | P29: 0 | R29: 0 | S29: 0 | U29: =G29-INDEX($C29:$G29,1,aux!$AL$1) -> 0 | V29: n.d. | W29: 0 | X29: =+IF(INDEX($C29:$G29,1,aux!$AL$1)>0,(G29/INDEX($C29:$G29,1,aux!$AL$1))^(1/($G$3-INDEX($C$3:$G$3,1,aux!$AL$1)))-1,"n.d.") -> n.d. | Y29: =IF(INDEX($C29:$G29,1,aux!$AL$1)>0,(G29-INDEX($C29:$G29,1,aux!$AL$1))/INDEX($C29:$G29,1,aux!$AL$1),"n.d.") -> n.d. | AA29: =O29-INDEX($K29:$O29,1,aux!$AL$1) -> 0 | AB29: n.d. | AC29: 0 | AD29: =+IF(INDEX($K29:$O29,1,aux!$AL$1)>0,(O29/INDEX($K29:$O29,1,aux!$AL$1))^(1/($O$3-INDEX($K$3:$O$3,1,aux!$AL$1)))-1,"n.d.") -> n.d. | AE29: =IF(INDEX($K29:$O29,1,aux!$AL$1)>0,(O29-INDEX($K29:$O29,1,aux!$AL$1))/INDEX($K29:$O29,1,aux!$AL$1),"n.d.") -> n.d. | AF29: 0 | AX29: 04 | BS29: 0
A30: 0409 | B30: Mel natural | C30: 0 | D30: 0 | E30: 0 | F30: 0 | G30: 0 | H30: 0 | J30: 0 | K30: 0 | L30: 0 | M30: 0 | N30: 0 | O30: 0 | P30: 0 | R30: 0 | S30: 0 | U30: =G30-INDEX($C30:$G30,1,aux!$AL$1) -> 0 | V30: n.d. | W30: 0 | X30: =+IF(INDEX($C30:$G30,1,aux!$AL$1)>0,(G30/INDEX($C30:$G30,1,aux!$AL$1))^(1/($G$3-INDEX($C$3:$G$3,1,aux!$AL$1)))-1,"n.d.") -> n.d. | Y30: =IF(INDEX($C30:$G30,1,aux!$AL$1)>0,(G30-INDEX($C30:$G30,1,aux!$AL$1))/INDEX($C30:$G30,1,aux!$AL$1),"n.d.") -> n.d. | AA30: =O30-INDEX($K30:$O30,1,aux!$AL$1) -> 0 | AB30: n.d. | AC30: 0 | AD30: =+IF(INDEX($K30:$O30,1,aux!$AL$1)>0,(O30/INDEX($K30:$O30,1,aux!$AL$1))^(1/($O$3-INDEX($K$3:$O$3,1,aux!$AL$1)))-1,"n.d.") -> n.d. | AE30: =IF(INDEX($K30:$O30,1,aux!$AL$1)>0,(O30-INDEX($K30:$O30,1,aux!$AL$1))/INDEX($K30:$O30,1,aux!$AL$1),"n.d.") -> n.d. | AF30: 0 | AX30: 04 | BS30: 0
A31: 0410 | B31: Outros produtos comestíveis de origem animal | C31: 0 | D31: 0 | E31: 0 | F31: 0 | G31: 0 | H31: 0 | J31: 0 | K31: 0 | L31: 0 | M31: 0 | N31: 0 | O31: 0 | P31: 0 | R31: 0 | S31: 0 | U31: =G31-INDEX($C31:$G31,1,aux!$AL$1) -> 0 | V31: n.d. | W31: 0 | X31: =+IF(INDEX($C31:$G31,1,aux!$AL$1)>0,(G31/INDEX($C31:$G31,1,aux!$AL$1))^(1/($G$3-INDEX($C$3:$G$3,1,aux!$AL$1)))-1,"n.d.") -> n.d. | Y31: =IF(INDEX($C31:$G31,1,aux!$AL$1)>0,(G31-INDEX($C31:$G31,1,aux!$AL$1))/INDEX($C31:$G31,1,aux!$AL$1),"n.d.") -> n.d. | AA31: =O31-INDEX($K31:$O31,1,aux!$AL$1) -> 0 | AB31: n.d. | AC31: 0 | AD31: =+IF(INDEX($K31:$O31,1,aux!$AL$1)>0,(O31/INDEX($K31:$O31,1,aux!$AL$1))^(1/($O$3-INDEX($K$3:$O$3,1,aux!$AL$1)))-1,"n.d.") -> n.d. | AE31: =IF(INDEX($K31:$O31,1,aux!$AL$1)>0,(O31-INDEX($K31:$O31,1,aux!$AL$1))/INDEX($K31:$O31,1,aux!$AL$1),"n.d.") -> n.d. | AF31: 0 | AX31: 04 | BS31: 0
A32: 04SS | B32: Leite e lacticínios; ovos de aves; mel natural; etc. | C32: 0 | D32: 0 | E32: 0 | F32: 0 | G32: 0 | H32: 0 | J32: 0 | K32: 0 | L32: 0 | M32: 0 | N32: 0 | O32: 0 | P32: 0 | R32: 0 | S32: 0 | U32: =G32-INDEX($C32:$G32,1,aux!$AL$1) -> 0 | V32: n.d. | W32: 0 | X32: =+IF(INDEX($C32:$G32,1,aux!$AL$1)>0,(G32/INDEX($C32:$G32,1,aux!$AL$1))^(1/($G$3-INDEX($C$3:$G$3,1,aux!$AL$1)))-1,"n.d.") -> n.d. | Y32: =IF(INDEX($C32:$G32,1,aux!$AL$1)>0,(G32-INDEX($C32:$G32,1,aux!$AL$1))/INDEX($C32:$G32,1,aux!$AL$1),"n.d.") -> n.d. | AA32: =O32-INDEX($K32:$O32,1,aux!$AL$1) -> 0 | AB32: n.d. | AC32: 0 | AD32: =+IF(INDEX($K32:$O32,1,aux!$AL$1)>0,(O32/INDEX($K32:$O32,1,aux!$AL$1))^(1/($O$3-INDEX($K$3:$O$3,1,aux!$AL$1)))-1,"n.d.") -> n.d. | AE32: =IF(INDEX($K32:$O32,1,aux!$AL$1)>0,(O32-INDEX($K32:$O32,1,aux!$AL$1))/INDEX($K32:$O32,1,aux!$AL$1),"n.d.") -> n.d. | AF32: 0 | BS32: 0
A33: 0501 | B33: Cabelos em bruto | C33: 0 | D33: 0 | E33: 0 | F33: 0 | G33: 0 | H33: 0 | J33: 0 | K33: 0 | L33: 0 | M33: 0 | N33: 0 | O33: 0 | P33: 0 | R33: 0 | S33: 0 | U33: =G33-INDEX($C33:$G33,1,aux!$AL$1) -> 0 | V33: n.d. | W33: 0 | X33: =+IF(INDEX($C33:$G33,1,aux!$AL$1)>0,(G33/INDEX($C33:$G33,1,aux!$AL$1))^(1/($G$3-INDEX($C$3:$G$3,1,aux!$AL$1)))-1,"n.d.") -> n.d. | Y33: =IF(INDEX($C33:$G33,1,aux!$AL$1)>0,(G33-INDEX($C33:$G33,1,aux!$AL$1))/INDEX($C33:$G33,1,aux!$AL$1),"n.d.") -> n.d. | AA33: =O33-INDEX($K33:$O33,1,aux!$AL$1) -> 0 | AB33: n.d. | AC33: 0 | AD33: =+IF(INDEX($K33:$O33,1,aux!$AL$1)>0,(O33/INDEX($K33:$O33,1,aux!$AL$1))^(1/($O$3-INDEX($K$3:$O$3,1,aux!$AL$1)))-1,"n.d.") -> n.d. | AE33: =IF(INDEX($K33:$O33,1,aux!$AL$1)>0,(O33-INDEX($K33:$O33,1,aux!$AL$1))/INDEX($K33:$O33,1,aux!$AL$1),"n.d.") -> n.d. | AF33: 0 | AX33: 05 | BS33: 0
A34: 0502 | B34: Cerdas de porco ou de javali, etc. | C34: 0 | D34: 0 | E34: 0 | F34: 0 | G34: 0 | H34: 0 | J34: 0 | K34: 0 | L34: 0 | M34: 0 | N34: 0 | O34: 0 | P34: 0 | R34: 0 | S34: 0 | U34: =G34-INDEX($C34:$G34,1,aux!$AL$1) -> 0 | V34: n.d. | W34: 0 | X34: =+IF(INDEX($C34:$G34,1,aux!$AL$1)>0,(G34/INDEX($C34:$G34,1,aux!$AL$1))^(1/($G$3-INDEX($C$3:$G$3,1,aux!$AL$1)))-1,"n.d.") -> n.d. | Y34: =IF(INDEX($C34:$G34,1,aux!$AL$1)>0,(G34-INDEX($C34:$G34,1,aux!$AL$1))/INDEX($C34:$G34,1,aux!$AL$1),"n.d.") -> n.d. | AA34: =O34-INDEX($K34:$O34,1,aux!$AL$1) -> 0 | AB34: n.d. | AC34: 0 | AD34: =+IF(INDEX($K34:$O34,1,aux!$AL$1)>0,(O34/INDEX($K34:$O34,1,aux!$AL$1))^(1/($O$3-INDEX($K$3:$O$3,1,aux!$AL$1)))-1,"n.d.") -> n.d. | AE34: =IF(INDEX($K34:$O34,1,aux!$AL$1)>0,(O34-INDEX($K34:$O34,1,aux!$AL$1))/INDEX($K34:$O34,1,aux!$AL$1),"n.d.") -> n.d. | AF34: 0 | AX34: 05 | BS34: 0
A35: 0504 | B35: Tripas de animais (excepto peixes) | C35: 0 | D35: 0 | E35: 0 | F35: 0 | G35: 0 | H35: 0 | J35: 0 | K35: 0 | L35: 0 | M35: 0 | N35: 0 | O35: 0 | P35: 0 | R35: 0 | S35: 0 | U35: =G35-INDEX($C35:$G35,1,aux!$AL$1) -> 0 | V35: n.d. | W35: 0 | X35: =+IF(INDEX($C35:$G35,1,aux!$AL$1)>0,(G35/INDEX($C35:$G35,1,aux!$AL$1))^(1/($G$3-INDEX($C$3:$G$3,1,aux!$AL$1)))-1,"n.d.") -> n.d. | Y35: =IF(INDEX($C35:$G35,1,aux!$AL$1)>0,(G35-INDEX($C35:$G35,1,aux!$AL$1))/INDEX($C35:$G35,1,aux!$AL$1),"n.d.") -> n.d. | AA35: =O35-INDEX($K35:$O35,1,aux!$AL$1) -> 0 | AB35: n.d. | AC35: 0 | AD35: =+IF(INDEX($K35:$O35,1,aux!$AL$1)>0,(O35/INDEX($K35:$O35,1,aux!$AL$1))^(1/($O$3-INDEX($K$3:$O$3,1,aux!$AL$1)))-1,"n.d.") -> n.d. | AE35: =IF(INDEX($K35:$O35,1,aux!$AL$1)>0,(O35-INDEX($K35:$O35,1,aux!$AL$1))/INDEX($K35:$O35,1,aux!$AL$1),"n.d.") -> n.d. | AF35: 0 | AX35: 05 | BS35: 0
A36: 0505 | B36: Peles e outras partes de aves | C36: 0 | D36: 0 | E36: 0 | F36: 0 | G36: 0 | H36: 0 | J36: 0 | K36: 0 | L36: 0 | M36: 0 | N36: 0 | O36: 0 | P36: 0 | R36: 0 | S36: 0 | U36: =G36-INDEX($C36:$G36,1,aux!$AL$1) -> 0 | V36: n.d. | W36: 0 | X36: =+IF(INDEX($C36:$G36,1,aux!$AL$1)>0,(G36/INDEX($C36:$G36,1,aux!$AL$1))^(1/($G$3-INDEX($C$3:$G$3,1,aux!$AL$1)))-1,"n.d.") -> n.d. | Y36: =IF(INDEX($C36:$G36,1,aux!$AL$1)>0,(G36-INDEX($C36:$G36,1,aux!$AL$1))/INDEX($C36:$G36,1,aux!$AL$1),"n.d.") -> n.d. | AA36: =O36-INDEX($K36:$O36,1,aux!$AL$1) -> 0 | AB36: n.d. | AC36: 0 | AD36: =+IF(INDEX($K36:$O36,1,aux!$AL$1)>0,(O36/INDEX($K36:$O36,1,aux!$AL$1))^(1/($O$3-INDEX($K$3:$O$3,1,aux!$AL$1)))-1,"n.d.") -> n.d. | AE36: =IF(INDEX($K36:$O36,1,aux!$AL$1)>0,(O36-INDEX($K36:$O36,1,aux!$AL$1))/INDEX($K36:$O36,1,aux!$AL$1),"n.d.") -> n.d. | AF36: 0 | AX36: 05 | BS36: 0
A37: 0506 | B37: Ossos e núcleos córneos, em bruto | C37: 0 | D37: 0 | E37: 0 | F37: 0 | G37: 0 | H37: 0 | J37: 0 | K37: 0 | L37: 0 | M37: 0 | N37: 0 | O37: 0 | P37: 0 | R37: 0 | S37: 0 | U37: =G37-INDEX($C37:$G37,1,aux!$AL$1) -> 0 | V37: n.d. | W37: 0 | X37: =+IF(INDEX($C37:$G37,1,aux!$AL$1)>0,(G37/INDEX($C37:$G37,1,aux!$AL$1))^(1/($G$3-INDEX($C$3:$G$3,1,aux!$AL$1)))-1,"n.d.") -> n.d. | Y37: =IF(INDEX($C37:$G37,1,aux!$AL$1)>0,(G37-INDEX($C37:$G37,1,aux!$AL$1))/INDEX($C37:$G37,1,aux!$AL$1),"n.d.") -> n.d. | AA37: =O37-INDEX($K37:$O37,1,aux!$AL$1) -> 0 | AB37: n.d. | AC37: 0 | AD37: =+IF(INDEX($K37:$O37,1,aux!$AL$1)>0,(O37/INDEX($K37:$O37,1,aux!$AL$1))^(1/($O$3-INDEX($K$3:$O$3,1,aux!$AL$1)))-1,"n.d.") -> n.d. | AE37: =IF(INDEX($K37:$O37,1,aux!$AL$1)>0,(O37-INDEX($K37:$O37,1,aux!$AL$1))/INDEX($K37:$O37,1,aux!$AL$1),"n.d.") -> n.d. | AF37: 0 | AX37: 05 | BS37: 0
A38: 0507 | B38: Marfim, carapaças de tartaruga, etc. | C38: 0 | D38: 0 | E38: 0 | F38: 0 | G38: 0 | H38: 0 | J38: 0 | K38: 0 | L38: 0 | M38: 0 | N38: 0 | O38: 0 | P38: 0 | R38: 0 | S38: 0 | U38: =G38-INDEX($C38:$G38,1,aux!$AL$1) -> 0 | V38: n.d. | W38: 0 | X38: =+IF(INDEX($C38:$G38,1,aux!$AL$1)>0,(G38/INDEX($C38:$G38,1,aux!$AL$1))^(1/($G$3-INDEX($C$3:$G$3,1,aux!$AL$1)))-1,"n.d.") -> n.d. | Y38: =IF(INDEX($C38:$G38,1,aux!$AL$1)>0,(G38-INDEX($C38:$G38,1,aux!$AL$1))/INDEX($C38:$G38,1,aux!$AL$1),"n.d.") -> n.d. | AA38: =O38-INDEX($K38:$O38,1,aux!$AL$1) -> 0 | AB38: n.d. | AC38: 0 | AD38: =+IF(INDEX($K38:$O38,1,aux!$AL$1)>0,(O38/INDEX($K38:$O38,1,aux!$AL$1))^(1/($O$3-INDEX($K$3:$O$3,1,aux!$AL$1)))-1,"n.d.") -> n.d. | AE38: =IF(INDEX($K38:$O38,1,aux!$AL$1)>0,(O38-INDEX($K38:$O38,1,aux!$AL$1))/INDEX($K38:$O38,1,aux!$AL$1),"n.d.") -> n.d. | AF38: 0 | AX38: 05 | BS38: 0
A39: 0510 | B39: Âmbar-cinzento, castóreo, algália e almíscar, etc. | C39: 0 | D39: 0 | E39: 0 | F39: 0 | G39: 0 | H39: 0 | J39: 0 | K39: 0 | L39: 0 | M39: 0 | N39: 0 | O39: 0 | P39: 0 | R39: 0 | S39: 0 | U39: =G39-INDEX($C39:$G39,1,aux!$AL$1) -> 0 | V39: n.d. | W39: 0 | X39: =+IF(INDEX($C39:$G39,1,aux!$AL$1)>0,(G39/INDEX($C39:$G39,1,aux!$AL$1))^(1/($G$3-INDEX($C$3:$G$3,1,aux!$AL$1)))-1,"n.d.") -> n.d. | Y39: =IF(INDEX($C39:$G39,1,aux!$AL$1)>0,(G39-INDEX($C39:$G39,1,aux!$AL$1))/INDEX($C39:$G39,1,aux!$AL$1),"n.d.") -> n.d. | AA39: =O39-INDEX($K39:$O39,1,aux!$AL$1) -> 0 | AB39: n.d. | AC39: 0 | AD39: =+IF(INDEX($K39:$O39,1,aux!$AL$1)>0,(O39/INDEX($K39:$O39,1,aux!$AL$1))^(1/($O$3-INDEX($K$3:$O$3,1,aux!$AL$1)))-1,"n.d.") -> n.d. | AE39: =IF(INDEX($K39:$O39,1,aux!$AL$1)>0,(O39-INDEX($K39:$O39,1,aux!$AL$1))/INDEX($K39:$O39,1,aux!$AL$1),"n.d.") -> n.d. | AF39: 0 | AX39: 05 | BS39: 0
A40: 0511 | B40: Outros produtos de origem animal (exc. NC 0511 91) (a) | C40: 0 | D40: 0 | E40: 0 | F40: 0 | G40: 0 | H40: 0 | J40: 0 | K40: 0 | L40: 0 | M40: 0 | N40: 0 | O40: 0 | P40: 0 | R40: 0 | S40: 0 | U40: =G40-INDEX($C40:$G40,1,aux!$AL$1) -> 0 | V40: n.d. | W40: 0 | X40: =+IF(INDEX($C40:$G40,1,aux!$AL$1)>0,(G40/INDEX($C40:$G40,1,aux!$AL$1))^(1/($G$3-INDEX($C$3:$G$3,1,aux!$AL$1)))-1,"n.d.") -> n.d. | Y40: =IF(INDEX($C40:$G40,1,aux!$AL$1)>0,(G40-INDEX($C40:$G40,1,aux!$AL$1))/INDEX($C40:$G40,1,aux!$AL$1),"n.d.") -> n.d. | AA40: =O40-INDEX($K40:$O40,1,aux!$AL$1) -> 0 | AB40: n.d. | AC40: 0 | AD40: =+IF(INDEX($K40:$O40,1,aux!$AL$1)>0,(O40/INDEX($K40:$O40,1,aux!$AL$1))^(1/($O$3-INDEX($K$3:$O$3,1,aux!$AL$1)))-1,"n.d.") -> n.d. | AE40: =IF(INDEX($K40:$O40,1,aux!$AL$1)>0,(O40-INDEX($K40:$O40,1,aux!$AL$1))/INDEX($K40:$O40,1,aux!$AL$1),"n.d.") -> n.d. | AF40: 0 | AX40: 05 | BS40: 0
A41: 05SS | B41: Outros produtos de origem animal | C41: 0 | D41: 0 | E41: 0 | F41: 0 | G41: 0 | H41: 0 | J41: 0 | K41: 0 | L41: 0 | M41: 0 | N41: 0 | O41: 0 | P41: 0 | R41: 0 | S41: 0 | U41: =G41-INDEX($C41:$G41,1,aux!$AL$1) -> 0 | V41: n.d. | W41: 0 | X41: =+IF(INDEX($C41:$G41,1,aux!$AL$1)>0,(G41/INDEX($C41:$G41,1,aux!$AL$1))^(1/($G$3-INDEX($C$3:$G$3,1,aux!$AL$1)))-1,"n.d.") -> n.d. | Y41: =IF(INDEX($C41:$G41,1,aux!$AL$1)>0,(G41-INDEX($C41:$G41,1,aux!$AL$1))/INDEX($C41:$G41,1,aux!$AL$1),"n.d.") -> n.d. | AA41: =O41-INDEX($K41:$O41,1,aux!$AL$1) -> 0 | AB41: n.d. | AC41: 0 | AD41: =+IF(INDEX($K41:$O41,1,aux!$AL$1)>0,(O41/INDEX($K41:$O41,1,aux!$AL$1))^(1/($O$3-INDEX($K$3:$O$3,1,aux!$AL$1)))-1,"n.d.") -> n.d. | AE41: =IF(INDEX($K41:$O41,1,aux!$AL$1)>0,(O41-INDEX($K41:$O41,1,aux!$AL$1))/INDEX($K41:$O41,1,aux!$AL$1),"n.d.") -> n.d. | AF41: 0 | AX41: 05 | BS41: 0
A42: 0601 | B42: Bolbos, tubérculos, raízes, etc. | C42: 0 | D42: 0 | E42: 0 | F42: 0 | G42: 0 | H42: 0 | J42: 0 | K42: 0 | L42: 0 | M42: 0 | N42: 0 | O42: 0 | P42: 0 | R42: 0 | S42: 0 | U42: =G42-INDEX($C42:$G42,1,aux!$AL$1) -> 0 | V42: n.d. | W42: 0 | X42: =+IF(INDEX($C42:$G42,1,aux!$AL$1)>0,(G42/INDEX($C42:$G42,1,aux!$AL$1))^(1/($G$3-INDEX($C$3:$G$3,1,aux!$AL$1)))-1,"n.d.") -> n.d. | Y42: =IF(INDEX($C42:$G42,1,aux!$AL$1)>0,(G42-INDEX($C42:$G42,1,aux!$AL$1))/INDEX($C42:$G42,1,aux!$AL$1),"n.d.") -> n.d. | AA42: =O42-INDEX($K42:$O42,1,aux!$AL$1) -> 0 | AB42: n.d. | AC42: 0 | AD42: =+IF(INDEX($K42:$O42,1,aux!$AL$1)>0,(O42/INDEX($K42:$O42,1,aux!$AL$1))^(1/($O$3-INDEX($K$3:$O$3,1,aux!$AL$1)))-1,"n.d.") -> n.d. | AE42: =IF(INDEX($K42:$O42,1,aux!$AL$1)>0,(O42-INDEX($K42:$O42,1,aux!$AL$1))/INDEX($K42:$O42,1,aux!$AL$1),"n.d.") -> n.d. | AF42: 0 | BS42: 0
A43: 0602 | B43: Plantas vivas | C43: 0 | D43: 0 | E43: 0 | F43: 0 | G43: 0 | H43: 0 | J43: 0 | K43: 0 | L43: 0 | M43: 0 | N43: 0 | O43: 0 | P43: 0 | R43: 0 | S43: 0 | U43: =G43-INDEX($C43:$G43,1,aux!$AL$1) -> 0 | V43: n.d. | W43: 0 | X43: =+IF(INDEX($C43:$G43,1,aux!$AL$1)>0,(G43/INDEX($C43:$G43,1,aux!$AL$1))^(1/($G$3-INDEX($C$3:$G$3,1,aux!$AL$1)))-1,"n.d.") -> n.d. | Y43: =IF(INDEX($C43:$G43,1,aux!$AL$1)>0,(G43-INDEX($C43:$G43,1,aux!$AL$1))/INDEX($C43:$G43,1,aux!$AL$1),"n.d.") -> n.d. | AA43: =O43-INDEX($K43:$O43,1,aux!$AL$1) -> 0 | AB43: n.d. | AC43: 0 | AD43: =+IF(INDEX($K43:$O43,1,aux!$AL$1)>0,(O43/INDEX($K43:$O43,1,aux!$AL$1))^(1/($O$3-INDEX($K$3:$O$3,1,aux!$AL$1)))-1,"n.d.") -> n.d. | AE43: =IF(INDEX($K43:$O43,1,aux!$AL$1)>0,(O43-INDEX($K43:$O43,1,aux!$AL$1))/INDEX($K43:$O43,1,aux!$AL$1),"n.d.") -> n.d. | AF43: 0 | AX43: 06 | BS43: 0
A44: 0603 | B44: Flores e seus botões | C44: 0 | D44: 0 | E44: 0 | F44: 0 | G44: 0 | H44: 0 | J44: 0 | K44: 0 | L44: 0 | M44: 0 | N44: 0 | O44: 0 | P44: 0 | R44: 0 | S44: 0 | U44: =G44-INDEX($C44:$G44,1,aux!$AL$1) -> 0 | V44: n.d. | W44: 0 | X44: =+IF(INDEX($C44:$G44,1,aux!$AL$1)>0,(G44/INDEX($C44:$G44,1,aux!$AL$1))^(1/($G$3-INDEX($C$3:$G$3,1,aux!$AL$1)))-1,"n.d.") -> n.d. | Y44: =IF(INDEX($C44:$G44,1,aux!$AL$1)>0,(G44-INDEX($C44:$G44,1,aux!$AL$1))/INDEX($C44:$G44,1,aux!$AL$1),"n.d.") -> n.d. | AA44: =O44-INDEX($K44:$O44,1,aux!$AL$1) -> 0 | AB44: n.d. | AC44: 0 | AD44: =+IF(INDEX($K44:$O44,1,aux!$AL$1)>0,(O44/INDEX($K44:$O44,1,aux!$AL$1))^(1/($O$3-INDEX($K$3:$O$3,1,aux!$AL$1)))-1,"n.d.") -> n.d. | AE44: =IF(INDEX($K44:$O44,1,aux!$AL$1)>0,(O44-INDEX($K44:$O44,1,aux!$AL$1))/INDEX($K44:$O44,1,aux!$AL$1),"n.d.") -> n.d. | AF44: 0 | AX44: 06 | BS44: 0
A45: 0604 | B45: Folhagem, folhas, ramos e outras partes de plantas | C45: 0 | D45: 0 | E45: 0 | F45: 0 | G45: 0 | H45: 0 | J45: 0 | K45: 0 | L45: 0 | M45: 0 | N45: 0 | O45: 0 | P45: 0 | R45: 0 | S45: 0 | U45: =G45-INDEX($C45:$G45,1,aux!$AL$1) -> 0 | V45: n.d. | W45: 0 | X45: =+IF(INDEX($C45:$G45,1,aux!$AL$1)>0,(G45/INDEX($C45:$G45,1,aux!$AL$1))^(1/($G$3-INDEX($C$3:$G$3,1,aux!$AL$1)))-1,"n.d.") -> n.d. | Y45: =IF(INDEX($C45:$G45,1,aux!$AL$1)>0,(G45-INDEX($C45:$G45,1,aux!$AL$1))/INDEX($C45:$G45,1,aux!$AL$1),"n.d.") -> n.d. | AA45: =O45-INDEX($K45:$O45,1,aux!$AL$1) -> 0 | AB45: n.d. | AC45: 0 | AD45: =+IF(INDEX($K45:$O45,1,aux!$AL$1)>0,(O45/INDEX($K45:$O45,1,aux!$AL$1))^(1/($O$3-INDEX($K$3:$O$3,1,aux!$AL$1)))-1,"n.d.") -> n.d. | AE45: =IF(INDEX($K45:$O45,1,aux!$AL$1)>0,(O45-INDEX($K45:$O45,1,aux!$AL$1))/INDEX($K45:$O45,1,aux!$AL$1),"n.d.") -> n.d. | AF45: 0 | AX45: 06 | BS45: 0
A46: 06SS | B46: Plantas vivas e produtos de floricultura | C46: 0 | D46: 0 | E46: 0 | F46: 0 | G46: 0 | H46: 0 | J46: 0 | K46: 0 | L46: 0 | M46: 0 | N46: 0 | O46: 0 | P46: 0 | R46: 0 | S46: 0 | U46: =G46-INDEX($C46:$G46,1,aux!$AL$1) -> 0 | V46: n.d. | W46: 0 | X46: =+IF(INDEX($C46:$G46,1,aux!$AL$1)>0,(G46/INDEX($C46:$G46,1,aux!$AL$1))^(1/($G$3-INDEX($C$3:$G$3,1,aux!$AL$1)))-1,"n.d.") -> n.d. | Y46: =IF(INDEX($C46:$G46,1,aux!$AL$1)>0,(G46-INDEX($C46:$G46,1,aux!$AL$1))/INDEX($C46:$G46,1,aux!$AL$1),"n.d.") -> n.d. | AA46: =O46-INDEX($K46:$O46,1,aux!$AL$1) -> 0 | AB46: n.d. | AC46: 0 | AD46: =+IF(INDEX($K46:$O46,1,aux!$AL$1)>0,(O46/INDEX($K46:$O46,1,aux!$AL$1))^(1/($O$3-INDEX($K$3:$O$3,1,aux!$AL$1)))-1,"n.d.") -> n.d. | AE46: =IF(INDEX($K46:$O46,1,aux!$AL$1)>0,(O46-INDEX($K46:$O46,1,aux!$AL$1))/INDEX($K46:$O46,1,aux!$AL$1),"n.d.") -> n.d. | AF46: 0 | AX46: 06 | BS46: 0
A47: 0701 | B47: Batatas, frescas ou refrigeradas | C47: 0 | D47: 0 | E47: 0 | F47: 0 | G47: 0 | H47: 0 | J47: 0 | K47: 0 | L47: 0 | M47: 0 | N47: 0 | O47: 0 | P47: 0 | R47: 0 | S47: 0 | U47: =G47-INDEX($C47:$G47,1,aux!$AL$1) -> 0 | V47: n.d. | W47: 0 | X47: =+IF(INDEX($C47:$G47,1,aux!$AL$1)>0,(G47/INDEX($C47:$G47,1,aux!$AL$1))^(1/($G$3-INDEX($C$3:$G$3,1,aux!$AL$1)))-1,"n.d.") -> n.d. | Y47: =IF(INDEX($C47:$G47,1,aux!$AL$1)>0,(G47-INDEX($C47:$G47,1,aux!$AL$1))/INDEX($C47:$G47,1,aux!$AL$1),"n.d.") -> n.d. | AA47: =O47-INDEX($K47:$O47,1,aux!$AL$1) -> 0 | AB47: n.d. | AC47: 0 | AD47: =+IF(INDEX($K47:$O47,1,aux!$AL$1)>0,(O47/INDEX($K47:$O47,1,aux!$AL$1))^(1/($O$3-INDEX($K$3:$O$3,1,aux!$AL$1)))-1,"n.d.") -> n.d. | AE47: =IF(INDEX($K47:$O47,1,aux!$AL$1)>0,(O47-INDEX($K47:$O47,1,aux!$AL$1))/INDEX($K47:$O47,1,aux!$AL$1),"n.d.") -> n.d. | AF47: 0 | BS47: 0
A48: 0702 | B48: Tomates, frescos ou refrigerados | C48: 0 | D48: 0 | E48: 0 | F48: 0 | G48: 0 | H48: 0 | J48: 0 | K48: 0 | L48: 0 | M48: 0 | N48: 0 | O48: 0 | P48: 0 | R48: 0 | S48: 0 | U48: =G48-INDEX($C48:$G48,1,aux!$AL$1) -> 0 | V48: n.d. | W48: 0 | X48: =+IF(INDEX($C48:$G48,1,aux!$AL$1)>0,(G48/INDEX($C48:$G48,1,aux!$AL$1))^(1/($G$3-INDEX($C$3:$G$3,1,aux!$AL$1)))-1,"n.d.") -> n.d. | Y48: =IF(INDEX($C48:$G48,1,aux!$AL$1)>0,(G48-INDEX($C48:$G48,1,aux!$AL$1))/INDEX($C48:$G48,1,aux!$AL$1),"n.d.") -> n.d. | AA48: =O48-INDEX($K48:$O48,1,aux!$AL$1) -> 0 | AB48: n.d. | AC48: 0 | AD48: =+IF(INDEX($K48:$O48,1,aux!$AL$1)>0,(O48/INDEX($K48:$O48,1,aux!$AL$1))^(1/($O$3-INDEX($K$3:$O$3,1,aux!$AL$1)))-1,"n.d.") -> n.d. | AE48: =IF(INDEX($K48:$O48,1,aux!$AL$1)>0,(O48-INDEX($K48:$O48,1,aux!$AL$1))/INDEX($K48:$O48,1,aux!$AL$1),"n.d.") -> n.d. | AF48: 0 | AX48: 07 | BS48: 0
A49: 0703 | B49: Cebolas, alhos, etc., frescos ou refrigerados | C49: 0 | D49: 0 | E49: 0 | F49: 0 | G49: 0 | H49: 0 | J49: 0 | K49: 0 | L49: 0 | M49: 0 | N49: 0 | O49: 0 | P49: 0 | R49: 0 | S49: 0 | U49: =G49-INDEX($C49:$G49,1,aux!$AL$1) -> 0 | V49: n.d. | W49: 0 | X49: =+IF(INDEX($C49:$G49,1,aux!$AL$1)>0,(G49/INDEX($C49:$G49,1,aux!$AL$1))^(1/($G$3-INDEX($C$3:$G$3,1,aux!$AL$1)))-1,"n.d.") -> n.d. | Y49: =IF(INDEX($C49:$G49,1,aux!$AL$1)>0,(G49-INDEX($C49:$G49,1,aux!$AL$1))/INDEX($C49:$G49,1,aux!$AL$1),"n.d.") -> n.d. | AA49: =O49-INDEX($K49:$O49,1,aux!$AL$1) -> 0 | AB49: n.d. | AC49: 0 | AD49: =+IF(INDEX($K49:$O49,1,aux!$AL$1)>0,(O49/INDEX($K49:$O49,1,aux!$AL$1))^(1/($O$3-INDEX($K$3:$O$3,1,aux!$AL$1)))-1,"n.d.") -> n.d. | AE49: =IF(INDEX($K49:$O49,1,aux!$AL$1)>0,(O49-INDEX($K49:$O49,1,aux!$AL$1))/INDEX($K49:$O49,1,aux!$AL$1),"n.d.") -> n.d. | AF49: 0 | AX49: 07 | BS49: 0
A50: 0704 | B50: Couves, frescas ou refrigeradas | C50: 0 | D50: 0 | E50: 0 | F50: 0 | G50: 0 | H50: 0 | J50: 0 | K50: 0 | L50: 0 | M50: 0 | N50: 0 | O50: 0 | P50: 0 | R50: 0 | S50: 0 | U50: =G50-INDEX($C50:$G50,1,aux!$AL$1) -> 0 | V50: n.d. | W50: 0 | X50: =+IF(INDEX($C50:$G50,1,aux!$AL$1)>0,(G50/INDEX($C50:$G50,1,aux!$AL$1))^(1/($G$3-INDEX($C$3:$G$3,1,aux!$AL$1)))-1,"n.d.") -> n.d. | Y50: =IF(INDEX($C50:$G50,1,aux!$AL$1)>0,(G50-INDEX($C50:$G50,1,aux!$AL$1))/INDEX($C50:$G50,1,aux!$AL$1),"n.d.") -> n.d. | AA50: =O50-INDEX($K50:$O50,1,aux!$AL$1) -> 0 | AB50: n.d. | AC50: 0 | AD50: =+IF(INDEX($K50:$O50,1,aux!$AL$1)>0,(O50/INDEX($K50:$O50,1,aux!$AL$1))^(1/($O$3-INDEX($K$3:$O$3,1,aux!$AL$1)))-1,"n.d.") -> n.d. | AE50: =IF(INDEX($K50:$O50,1,aux!$AL$1)>0,(O50-INDEX($K50:$O50,1,aux!$AL$1))/INDEX($K50:$O50,1,aux!$AL$1),"n.d.") -> n.d. | AF50: 0 | AX50: 07 | BS50: 0
A51: 0705 | B51: Alfaces, frescas ou refrigeradas | C51: 0 | D51: 0 | E51: 0 | F51: 0 | G51: 0 | H51: 0 | J51: 0 | K51: 0 | L51: 0 | M51: 0 | N51: 0 | O51: 0 | P51: 0 | R51: 0 | S51: 0 | U51: =G51-INDEX($C51:$G51,1,aux!$AL$1) -> 0 | V51: n.d. | W51: 0 | X51: =+IF(INDEX($C51:$G51,1,aux!$AL$1)>0,(G51/INDEX($C51:$G51,1,aux!$AL$1))^(1/($G$3-INDEX($C$3:$G$3,1,aux!$AL$1)))-1,"n.d.") -> n.d. | Y51: =IF(INDEX($C51:$G51,1,aux!$AL$1)>0,(G51-INDEX($C51:$G51,1,aux!$AL$1))/INDEX($C51:$G51,1,aux!$AL$1),"n.d.") -> n.d. | AA51: =O51-INDEX($K51:$O51,1,aux!$AL$1) -> 0 | AB51: n.d. | AC51: 0 | AD51: =+IF(INDEX($K51:$O51,1,aux!$AL$1)>0,(O51/INDEX($K51:$O51,1,aux!$AL$1))^(1/($O$3-INDEX($K$3:$O$3,1,aux!$AL$1)))-1,"n.d.") -> n.d. | AE51: =IF(INDEX($K51:$O51,1,aux!$AL$1)>0,(O51-INDEX($K51:$O51,1,aux!$AL$1))/INDEX($K51:$O51,1,aux!$AL$1),"n.d.") -> n.d. | AF51: 0 | AX51: 07 | BS51: 0
A52: 0706 | B52: Cenouras, nabos, beterrabas, etc., frescos ou refrigerados | C52: 0 | D52: 0 | E52: 0 | F52: 0 | G52: 0 | H52: 0 | J52: 0 | K52: 0 | L52: 0 | M52: 0 | N52: 0 | O52: 0 | P52: 0 | R52: 0 | S52: 0 | U52: =G52-INDEX($C52:$G52,1,aux!$AL$1) -> 0 | V52: n.d. | W52: 0 | X52: =+IF(INDEX($C52:$G52,1,aux!$AL$1)>0,(G52/INDEX($C52:$G52,1,aux!$AL$1))^(1/($G$3-INDEX($C$3:$G$3,1,aux!$AL$1)))-1,"n.d.") -> n.d. | Y52: =IF(INDEX($C52:$G52,1,aux!$AL$1)>0,(G52-INDEX($C52:$G52,1,aux!$AL$1))/INDEX($C52:$G52,1,aux!$AL$1),"n.d.") -> n.d. | AA52: =O52-INDEX($K52:$O52,1,aux!$AL$1) -> 0 | AB52: n.d. | AC52: 0 | AD52: =+IF(INDEX($K52:$O52,1,aux!$AL$1)>0,(O52/INDEX($K52:$O52,1,aux!$AL$1))^(1/($O$3-INDEX($K$3:$O$3,1,aux!$AL$1)))-1,"n.d.") -> n.d. | AE52: =IF(INDEX($K52:$O52,1,aux!$AL$1)>0,(O52-INDEX($K52:$O52,1,aux!$AL$1))/INDEX($K52:$O52,1,aux!$AL$1),"n.d.") -> n.d. | AF52: 0 | AX52: 07 | BS52: 0
A53: 0707 | B53: Pepinos e pepininhos, frescos ou refrigerados | C53: 0 | D53: 0 | E53: 0 | F53: 0 | G53: 0 | H53: 0 | J53: 0 | K53: 0 | L53: 0 | M53: 0 | N53: 0 | O53: 0 | P53: 0 | R53: 0 | S53: 0 | U53: =G53-INDEX($C53:$G53,1,aux!$AL$1) -> 0 | V53: n.d. | W53: 0 | X53: =+IF(INDEX($C53:$G53,1,aux!$AL$1)>0,(G53/INDEX($C53:$G53,1,aux!$AL$1))^(1/($G$3-INDEX($C$3:$G$3,1,aux!$AL$1)))-1,"n.d.") -> n.d. | Y53: =IF(INDEX($C53:$G53,1,aux!$AL$1)>0,(G53-INDEX($C53:$G53,1,aux!$AL$1))/INDEX($C53:$G53,1,aux!$AL$1),"n.d.") -> n.d. | AA53: =O53-INDEX($K53:$O53,1,aux!$AL$1) -> 0 | AB53: n.d. | AC53: 0 | AD53: =+IF(INDEX($K53:$O53,1,aux!$AL$1)>0,(O53/INDEX($K53:$O53,1,aux!$AL$1))^(1/($O$3-INDEX($K$3:$O$3,1,aux!$AL$1)))-1,"n.d.") -> n.d. | AE53: =IF(INDEX($K53:$O53,1,aux!$AL$1)>0,(O53-INDEX($K53:$O53,1,aux!$AL$1))/INDEX($K53:$O53,1,aux!$AL$1),"n.d.") -> n.d. | AF53: 0 | AX53: 07 | BS53: 0
A54: 0708 | B54: Tomates preparados ou conservados | C54: 0 | D54: 0 | E54: 0 | F54: 0 | G54: 0 | H54: 0 | J54: 0 | K54: 0 | L54: 0 | M54: 0 | N54: 0 | O54: 0 | P54: 0 | R54: 0 | S54: 0 | U54: =G54-INDEX($C54:$G54,1,aux!$AL$1) -> 0 | V54: n.d. | W54: 0 | X54: =+IF(INDEX($C54:$G54,1,aux!$AL$1)>0,(G54/INDEX($C54:$G54,1,aux!$AL$1))^(1/($G$3-INDEX($C$3:$G$3,1,aux!$AL$1)))-1,"n.d.") -> n.d. | Y54: =IF(INDEX($C54:$G54,1,aux!$AL$1)>0,(G54-INDEX($C54:$G54,1,aux!$AL$1))/INDEX($C54:$G54,1,aux!$AL$1),"n.d.") -> n.d. | AA54: =O54-INDEX($K54:$O54,1,aux!$AL$1) -> 0 | AB54: n.d. | AC54: 0 | AD54: =+IF(INDEX($K54:$O54,1,aux!$AL$1)>0,(O54/INDEX($K54:$O54,1,aux!$AL$1))^(1/($O$3-INDEX($K$3:$O$3,1,aux!$AL$1)))-1,"n.d.") -> n.d. | AE54: =IF(INDEX($K54:$O54,1,aux!$AL$1)>0,(O54-INDEX($K54:$O54,1,aux!$AL$1))/INDEX($K54:$O54,1,aux!$AL$1),"n.d.") -> n.d. | AF54: 0 | AX54: 07 | BS54: 0
A55: 0709 | B55: Outros produtos hortícolas, frescos ou refrigerados | C55: 0 | D55: 0 | E55: 0 | F55: 0 | G55: 0 | H55: 0 | J55: 0 | K55: 0 | L55: 0 | M55: 0 | N55: 0 | O55: 0 | P55: 0 | R55: 0 | S55: 0 | U55: =G55-INDEX($C55:$G55,1,aux!$AL$1) -> 0 | V55: n.d. | W55: 0 | X55: =+IF(INDEX($C55:$G55,1,aux!$AL$1)>0,(G55/INDEX($C55:$G55,1,aux!$AL$1))^(1/($G$3-INDEX($C$3:$G$3,1,aux!$AL$1)))-1,"n.d.") -> n.d. | Y55: =IF(INDEX($C55:$G55,1,aux!$AL$1)>0,(G55-INDEX($C55:$G55,1,aux!$AL$1))/INDEX($C55:$G55,1,aux!$AL$1),"n.d.") -> n.d. | AA55: =O55-INDEX($K55:$O55,1,aux!$AL$1) -> 0 | AB55: n.d. | AC55: 0 | AD55: =+IF(INDEX($K55:$O55,1,aux!$AL$1)>0,(O55/INDEX($K55:$O55,1,aux!$AL$1))^(1/($O$3-INDEX($K$3:$O$3,1,aux!$AL$1)))-1,"n.d.") -> n.d. | AE55: =IF(INDEX($K55:$O55,1,aux!$AL$1)>0,(O55-INDEX($K55:$O55,1,aux!$AL$1))/INDEX($K55:$O55,1,aux!$AL$1),"n.d.") -> n.d. | AF55: 0 | AX55: 07 | BS55: 0
A56: 0710 | B56: Produtos hortícolas congelados | C56: 0 | D56: 0 | E56: 0 | F56: 0 | G56: 0 | H56: 0 | J56: 0 | K56: 0 | L56: 0 | M56: 0 | N56: 0 | O56: 0 | P56: 0 | R56: 0 | S56: 0 | U56: =G56-INDEX($C56:$G56,1,aux!$AL$1) -> 0 | V56: n.d. | W56: 0 | X56: =+IF(INDEX($C56:$G56,1,aux!$AL$1)>0,(G56/INDEX($C56:$G56,1,aux!$AL$1))^(1/($G$3-INDEX($C$3:$G$3,1,aux!$AL$1)))-1,"n.d.") -> n.d. | Y56: =IF(INDEX($C56:$G56,1,aux!$AL$1)>0,(G56-INDEX($C56:$G56,1,aux!$AL$1))/INDEX($C56:$G56,1,aux!$AL$1),"n.d.") -> n.d. | AA56: =O56-INDEX($K56:$O56,1,aux!$AL$1) -> 0 | AB56: n.d. | AC56: 0 | AD56: =+IF(INDEX($K56:$O56,1,aux!$AL$1)>0,(O56/INDEX($K56:$O56,1,aux!$AL$1))^(1/($O$3-INDEX($K$3:$O$3,1,aux!$AL$1)))-1,"n.d.") -> n.d. | AE56: =IF(INDEX($K56:$O56,1,aux!$AL$1)>0,(O56-INDEX($K56:$O56,1,aux!$AL$1))/INDEX($K56:$O56,1,aux!$AL$1),"n.d.") -> n.d. | AF56: 0 | AX56: 07 | BS56: 0
A57: 0711 | B57: Produtos hortícolas conservados transitoriamente | C57: 0 | D57: 0 | E57: 0 | F57: 0 | G57: 0 | H57: 0 | J57: 0 | K57: 0 | L57: 0 | M57: 0 | N57: 0 | O57: 0 | P57: 0 | R57: 0 | S57: 0 | U57: =G57-INDEX($C57:$G57,1,aux!$AL$1) -> 0 | V57: n.d. | W57: 0 | X57: =+IF(INDEX($C57:$G57,1,aux!$AL$1)>0,(G57/INDEX($C57:$G57,1,aux!$AL$1))^(1/($G$3-INDEX($C$3:$G$3,1,aux!$AL$1)))-1,"n.d.") -> n.d. | Y57: =IF(INDEX($C57:$G57,1,aux!$AL$1)>0,(G57-INDEX($C57:$G57,1,aux!$AL$1))/INDEX($C57:$G57,1,aux!$AL$1),"n.d.") -> n.d. | AA57: =O57-INDEX($K57:$O57,1,aux!$AL$1) -> 0 | AB57: n.d. | AC57: 0 | AD57: =+IF(INDEX($K57:$O57,1,aux!$AL$1)>0,(O57/INDEX($K57:$O57,1,aux!$AL$1))^(1/($O$3-INDEX($K$3:$O$3,1,aux!$AL$1)))-1,"n.d.") -> n.d. | AE57: =IF(INDEX($K57:$O57,1,aux!$AL$1)>0,(O57-INDEX($K57:$O57,1,aux!$AL$1))/INDEX($K57:$O57,1,aux!$AL$1),"n.d.") -> n.d. | AF57: 0 | AX57: 07 | BS57: 0
A58: 0712 | B58: Produtos hortícolas secos | C58: 0 | D58: 0 | E58: 0 | F58: 0 | G58: 0 | H58: 0 | J58: 0 | K58: 0 | L58: 0 | M58: 0 | N58: 0 | O58: 0 | P58: 0 | R58: 0 | S58: 0 | U58: =G58-INDEX($C58:$G58,1,aux!$AL$1) -> 0 | V58: n.d. | W58: 0 | X58: =+IF(INDEX($C58:$G58,1,aux!$AL$1)>0,(G58/INDEX($C58:$G58,1,aux!$AL$1))^(1/($G$3-INDEX($C$3:$G$3,1,aux!$AL$1)))-1,"n.d.") -> n.d. | Y58: =IF(INDEX($C58:$G58,1,aux!$AL$1)>0,(G58-INDEX($C58:$G58,1,aux!$AL$1))/INDEX($C58:$G58,1,aux!$AL$1),"n.d.") -> n.d. | AA58: =O58-INDEX($K58:$O58,1,aux!$AL$1) -> 0 | AB58: n.d. | AC58: 0 | AD58: =+IF(INDEX($K58:$O58,1,aux!$AL$1)>0,(O58/INDEX($K58:$O58,1,aux!$AL$1))^(1/($O$3-INDEX($K$3:$O$3,1,aux!$AL$1)))-1,"n.d.") -> n.d. | AE58: =IF(INDEX($K58:$O58,1,aux!$AL$1)>0,(O58-INDEX($K58:$O58,1,aux!$AL$1))/INDEX($K58:$O58,1,aux!$AL$1),"n.d.") -> n.d. | AF58: 0 | AX58: 07 | BS58: 0
A59: 0713 | B59: Legumes de vagem, secos, em grão | C59: 0 | D59: 0 | E59: 0 | F59: 0 | G59: 0 | H59: 0 | J59: 0 | K59: 0 | L59: 0 | M59: 0 | N59: 0 | O59: 0 | P59: 0 | R59: 0 | S59: 0 | U59: =G59-INDEX($C59:$G59,1,aux!$AL$1) -> 0 | V59: n.d. | W59: 0 | X59: =+IF(INDEX($C59:$G59,1,aux!$AL$1)>0,(G59/INDEX($C59:$G59,1,aux!$AL$1))^(1/($G$3-INDEX($C$3:$G$3,1,aux!$AL$1)))-1,"n.d.") -> n.d. | Y59: =IF(INDEX($C59:$G59,1,aux!$AL$1)>0,(G59-INDEX($C59:$G59,1,aux!$AL$1))/INDEX($C59:$G59,1,aux!$AL$1),"n.d.") -> n.d. | AA59: =O59-INDEX($K59:$O59,1,aux!$AL$1) -> 0 | AB59: n.d. | AC59: 0 | AD59: =+IF(INDEX($K59:$O59,1,aux!$AL$1)>0,(O59/INDEX($K59:$O59,1,aux!$AL$1))^(1/($O$3-INDEX($K$3:$O$3,1,aux!$AL$1)))-1,"n.d.") -> n.d. | AE59: =IF(INDEX($K59:$O59,1,aux!$AL$1)>0,(O59-INDEX($K59:$O59,1,aux!$AL$1))/INDEX($K59:$O59,1,aux!$AL$1),"n.d.") -> n.d. | AF59: 0 | AX59: 07 | BS59: 0
A60: 0714 | B60: Raízes de mandioca, de araruta, batata-doce, etc. | C60: 0 | D60: 0 | E60: 0 | F60: 0 | G60: 0 | H60: 0 | J60: 0 | K60: 0 | L60: 0 | M60: 0 | N60: 0 | O60: 0 | P60: 0 | R60: 0 | S60: 0 | U60: =G60-INDEX($C60:$G60,1,aux!$AL$1) -> 0 | V60: n.d. | W60: 0 | X60: =+IF(INDEX($C60:$G60,1,aux!$AL$1)>0,(G60/INDEX($C60:$G60,1,aux!$AL$1))^(1/($G$3-INDEX($C$3:$G$3,1,aux!$AL$1)))-1,"n.d.") -> n.d. | Y60: =IF(INDEX($C60:$G60,1,aux!$AL$1)>0,(G60-INDEX($C60:$G60,1,aux!$AL$1))/INDEX($C60:$G60,1,aux!$AL$1),"n.d.") -> n.d. | AA60: =O60-INDEX($K60:$O60,1,aux!$AL$1) -> 0 | AB60: n.d. | AC60: 0 | AD60: =+IF(INDEX($K60:$O60,1,aux!$AL$1)>0,(O60/INDEX($K60:$O60,1,aux!$AL$1))^(1/($O$3-INDEX($K$3:$O$3,1,aux!$AL$1)))-1,"n.d.") -> n.d. | AE60: =IF(INDEX($K60:$O60,1,aux!$AL$1)>0,(O60-INDEX($K60:$O60,1,aux!$AL$1))/INDEX($K60:$O60,1,aux!$AL$1),"n.d.") -> n.d. | AF60: 0 | AX60: 07 | BS60: 0
A61: 07SS | B61: Produtos hortícolas, plantas, raízes e tubérculos, comestíveis | C61: 0 | D61: 0 | E61: 0 | F61: 0 | G61: 0 | H61: 0 | J61: 0 | K61: 0 | L61: 0 | M61: 0 | N61: 0 | O61: 0 | P61: 0 | R61: 0 | S61: 0 | U61: =G61-INDEX($C61:$G61,1,aux!$AL$1) -> 0 | V61: n.d. | W61: 0 | X61: =+IF(INDEX($C61:$G61,1,aux!$AL$1)>0,(G61/INDEX($C61:$G61,1,aux!$AL$1))^(1/($G$3-INDEX($C$3:$G$3,1,aux!$AL$1)))-1,"n.d.") -> n.d. | Y61: =IF(INDEX($C61:$G61,1,aux!$AL$1)>0,(G61-INDEX($C61:$G61,1,aux!$AL$1))/INDEX($C61:$G61,1,aux!$AL$1),"n.d.") -> n.d. | AA61: =O61-INDEX($K61:$O61,1,aux!$AL$1) -> 0 | AB61: n.d. | AC61: 0 | AD61: =+IF(INDEX($K61:$O61,1,aux!$AL$1)>0,(O61/INDEX($K61:$O61,1,aux!$AL$1))^(1/($O$3-INDEX($K$3:$O$3,1,aux!$AL$1)))-1,"n.d.") -> n.d. | AE61: =IF(INDEX($K61:$O61,1,aux!$AL$1)>0,(O61-INDEX($K61:$O61,1,aux!$AL$1))/INDEX($K61:$O61,1,aux!$AL$1),"n.d.") -> n.d. | AF61: 0 | AX61: 07 | BS61: 0
A62: 0801 | B62: Cocos, castanhas do brasil e castanha de cajú | C62: 0 | D62: 0 | E62: 0 | F62: 0 | G62: 0 | H62: 0 | J62: 0 | K62: 0 | L62: 0 | M62: 0 | N62: 0 | O62: 0 | P62: 0 | R62: 0 | S62: 0 | U62: =G62-INDEX($C62:$G62,1,aux!$AL$1) -> 0 | V62: n.d. | W62: 0 | X62: =+IF(INDEX($C62:$G62,1,aux!$AL$1)>0,(G62/INDEX($C62:$G62,1,aux!$AL$1))^(1/($G$3-INDEX($C$3:$G$3,1,aux!$AL$1)))-1,"n.d.") -> n.d. | Y62: =IF(INDEX($C62:$G62,1,aux!$AL$1)>0,(G62-INDEX($C62:$G62,1,aux!$AL$1))/INDEX($C62:$G62,1,aux!$AL$1),"n.d.") -> n.d. | AA62: =O62-INDEX($K62:$O62,1,aux!$AL$1) -> 0 | AB62: n.d. | AC62: 0 | AD62: =+IF(INDEX($K62:$O62,1,aux!$AL$1)>0,(O62/INDEX($K62:$O62,1,aux!$AL$1))^(1/($O$3-INDEX($K$3:$O$3,1,aux!$AL$1)))-1,"n.d.") -> n.d. | AE62: =IF(INDEX($K62:$O62,1,aux!$AL$1)>0,(O62-INDEX($K62:$O62,1,aux!$AL$1))/INDEX($K62:$O62,1,aux!$AL$1),"n.d.") -> n.d. | AF62: 0 | BS62: 0
A63: 0802 | B63: Frutas de casca rija | C63: 0 | D63: 0 | E63: 0 | F63: 0 | G63: 0 | H63: 0 | J63: 0 | K63: 0 | L63: 0 | M63: 0 | N63: 0 | O63: 0 | P63: 0 | R63: 0 | S63: 0 | U63: =G63-INDEX($C63:$G63,1,aux!$AL$1) -> 0 | V63: n.d. | W63: 0 | X63: =+IF(INDEX($C63:$G63,1,aux!$AL$1)>0,(G63/INDEX($C63:$G63,1,aux!$AL$1))^(1/($G$3-INDEX($C$3:$G$3,1,aux!$AL$1)))-1,"n.d.") -> n.d. | Y63: =IF(INDEX($C63:$G63,1,aux!$AL$1)>0,(G63-INDEX($C63:$G63,1,aux!$AL$1))/INDEX($C63:$G63,1,aux!$AL$1),"n.d.") -> n.d. | AA63: =O63-INDEX($K63:$O63,1,aux!$AL$1) -> 0 | AB63: n.d. | AC63: 0 | AD63: =+IF(INDEX($K63:$O63,1,aux!$AL$1)>0,(O63/INDEX($K63:$O63,1,aux!$AL$1))^(1/($O$3-INDEX($K$3:$O$3,1,aux!$AL$1)))-1,"n.d.") -> n.d. | AE63: =IF(INDEX($K63:$O63,1,aux!$AL$1)>0,(O63-INDEX($K63:$O63,1,aux!$AL$1))/INDEX($K63:$O63,1,aux!$AL$1),"n.d.") -> n.d. | AF63: 0 | AX63: 08 | BS63: 0
A64: 0803 | B64: Bananas, frescas ou secas | C64: 0 | D64: 0 | E64: 0 | F64: 0 | G64: 0 | H64: 0 | J64: 0 | K64: 0 | L64: 0 | M64: 0 | N64: 0 | O64: 0 | P64: 0 | R64: 0 | S64: 0 | U64: =G64-INDEX($C64:$G64,1,aux!$AL$1) -> 0 | V64: n.d. | W64: 0 | X64: =+IF(INDEX($C64:$G64,1,aux!$AL$1)>0,(G64/INDEX($C64:$G64,1,aux!$AL$1))^(1/($G$3-INDEX($C$3:$G$3,1,aux!$AL$1)))-1,"n.d.") -> n.d. | Y64: =IF(INDEX($C64:$G64,1,aux!$AL$1)>0,(G64-INDEX($C64:$G64,1,aux!$AL$1))/INDEX($C64:$G64,1,aux!$AL$1),"n.d.") -> n.d. | AA64: =O64-INDEX($K64:$O64,1,aux!$AL$1) -> 0 | AB64: n.d. | AC64: 0 | AD64: =+IF(INDEX($K64:$O64,1,aux!$AL$1)>0,(O64/INDEX($K64:$O64,1,aux!$AL$1))^(1/($O$3-INDEX($K$3:$O$3,1,aux!$AL$1)))-1,"n.d.") -> n.d. | AE64: =IF(INDEX($K64:$O64,1,aux!$AL$1)>0,(O64-INDEX($K64:$O64,1,aux!$AL$1))/INDEX($K64:$O64,1,aux!$AL$1),"n.d.") -> n.d. | AF64: 0 | AX64: 08 | BS64: 0
A65: 0804 | B65: Tâmaras, figos, ananases, abacates, goiabas, mangas | C65: 0 | D65: 0 | E65: 0 | F65: 0 | G65: 0 | H65: 0 | J65: 0 | K65: 0 | L65: 0 | M65: 0 | N65: 0 | O65: 0 | P65: 0 | R65: 0 | S65: 0 | U65: =G65-INDEX($C65:$G65,1,aux!$AL$1) -> 0 | V65: n.d. | W65: 0 | X65: =+IF(INDEX($C65:$G65,1,aux!$AL$1)>0,(G65/INDEX($C65:$G65,1,aux!$AL$1))^(1/($G$3-INDEX($C$3:$G$3,1,aux!$AL$1)))-1,"n.d.") -> n.d. | Y65: =IF(INDEX($C65:$G65,1,aux!$AL$1)>0,(G65-INDEX($C65:$G65,1,aux!$AL$1))/INDEX($C65:$G65,1,aux!$AL$1),"n.d.") -> n.d. | AA65: =O65-INDEX($K65:$O65,1,aux!$AL$1) -> 0 | AB65: n.d. | AC65: 0 | AD65: =+IF(INDEX($K65:$O65,1,aux!$AL$1)>0,(O65/INDEX($K65:$O65,1,aux!$AL$1))^(1/($O$3-INDEX($K$3:$O$3,1,aux!$AL$1)))-1,"n.d.") -> n.d. | AE65: =IF(INDEX($K65:$O65,1,aux!$AL$1)>0,(O65-INDEX($K65:$O65,1,aux!$AL$1))/INDEX($K65:$O65,1,aux!$AL$1),"n.d.") -> n.d. | AF65: 0 | AX65: 08 | BS65: 0
A66: 0805 | B66: Citrinos, frescos ou secos | C66: 0 | D66: 0 | E66: 0 | F66: 0 | G66: 0 | H66: 0 | J66: 0 | K66: 0 | L66: 0 | M66: 0 | N66: 0 | O66: 0 | P66: 0 | R66: 0 | S66: 0 | U66: =G66-INDEX($C66:$G66,1,aux!$AL$1) -> 0 | V66: n.d. | W66: 0 | X66: =+IF(INDEX($C66:$G66,1,aux!$AL$1)>0,(G66/INDEX($C66:$G66,1,aux!$AL$1))^(1/($G$3-INDEX($C$3:$G$3,1,aux!$AL$1)))-1,"n.d.") -> n.d. | Y66: =IF(INDEX($C66:$G66,1,aux!$AL$1)>0,(G66-INDEX($C66:$G66,1,aux!$AL$1))/INDEX($C66:$G66,1,aux!$AL$1),"n.d.") -> n.d. | AA66: =O66-INDEX($K66:$O66,1,aux!$AL$1) -> 0 | AB66: n.d. | AC66: 0 | AD66: =+IF(INDEX($K66:$O66,1,aux!$AL$1)>0,(O66/INDEX($K66:$O66,1,aux!$AL$1))^(1/($O$3-INDEX($K$3:$O$3,1,aux!$AL$1)))-1,"n.d.") -> n.d. | AE66: =IF(INDEX($K66:$O66,1,aux!$AL$1)>0,(O66-INDEX($K66:$O66,1,aux!$AL$1))/INDEX($K66:$O66,1,aux!$AL$1),"n.d.") -> n.d. | AF66: 0 | AX66: 08 | BS66: 0
A67: 0806 | B67: Uvas, frescas ou secas | C67: 0 | D67: 0 | E67: 0 | F67: 0 | G67: 0 | H67: 0 | J67: 0 | K67: 0 | L67: 0 | M67: 0 | N67: 0 | O67: 0 | P67: 0 | R67: 0 | S67: 0 | U67: =G67-INDEX($C67:$G67,1,aux!$AL$1) -> 0 | V67: n.d. | W67: 0 | X67: =+IF(INDEX($C67:$G67,1,aux!$AL$1)>0,(G67/INDEX($C67:$G67,1,aux!$AL$1))^(1/($G$3-INDEX($C$3:$G$3,1,aux!$AL$1)))-1,"n.d.") -> n.d. | Y67: =IF(INDEX($C67:$G67,1,aux!$AL$1)>0,(G67-INDEX($C67:$G67,1,aux!$AL$1))/INDEX($C67:$G67,1,aux!$AL$1),"n.d.") -> n.d. | AA67: =O67-INDEX($K67:$O67,1,aux!$AL$1) -> 0 | AB67: n.d. | AC67: 0 | AD67: =+IF(INDEX($K67:$O67,1,aux!$AL$1)>0,(O67/INDEX($K67:$O67,1,aux!$AL$1))^(1/($O$3-INDEX($K$3:$O$3,1,aux!$AL$1)))-1,"n.d.") -> n.d. | AE67: =IF(INDEX($K67:$O67,1,aux!$AL$1)>0,(O67-INDEX($K67:$O67,1,aux!$AL$1))/INDEX($K67:$O67,1,aux!$AL$1),"n.d.") -> n.d. | AF67: 0 | AX67: 08 | BS67: 0
A68: 0807 | B68: Melões, melancias e papaia, frescos | C68: 0 | D68: 0 | E68: 0 | F68: 0 | G68: 0 | H68: 0 | J68: 0 | K68: 0 | L68: 0 | M68: 0 | N68: 0 | O68: 0 | P68: 0 | R68: 0 | S68: 0 | U68: =G68-INDEX($C68:$G68,1,aux!$AL$1) -> 0 | V68: =IF($U$236<>0,U68/$U$236, "n.d.") -> n.d. | W68: =IF($U$320<>0,U68/$U$320, "n.d.") -> 0 | X68: =+IF(INDEX($C68:$G68,1,aux!$AL$1)>0,(G68/INDEX($C68:$G68,1,aux!$AL$1))^(1/($G$3-INDEX($C$3:$G$3,1,aux!$AL$1)))-1,"n.d.") -> n.d. | Y68: =IF(INDEX($C68:$G68,1,aux!$AL$1)>0,(G68-INDEX($C68:$G68,1,aux!$AL$1))/INDEX($C68:$G68,1,aux!$AL$1),"n.d.") -> n.d. | AA68: =O68-INDEX($K68:$O68,1,aux!$AL$1) -> 0 | AB68: =IF($AA$236<>0,AA68/$AA$236, "n.d.") -> n.d. | AC68: =IF($AA$320<>0,AA68/$AA$320, "n.d.") -> 0 | AD68: =+IF(INDEX($K68:$O68,1,aux!$AL$1)>0,(O68/INDEX($K68:$O68,1,aux!$AL$1))^(1/($O$3-INDEX($K$3:$O$3,1,aux!$AL$1)))-1,"n.d.") -> n.d. | AE68: =IF(INDEX($K68:$O68,1,aux!$AL$1)>0,(O68-INDEX($K68:$O68,1,aux!$AL$1))/INDEX($K68:$O68,1,aux!$AL$1),"n.d.") -> n.d. | AF68: =SUM(C68:S68) -> 0 | AX68: 08 | BS68: 0
A69: 0808 | B69: Maçãs, peras e marmelos, frescos | C69: 0 | D69: 0 | E69: 0 | F69: 0 | G69: 0 | H69: 0 | J69: 0 | K69: 0 | L69: 0 | M69: 0 | N69: 0 | O69: 0 | P69: 0 | R69: 0 | S69: 0 | U69: =G69-INDEX($C69:$G69,1,aux!$AL$1) -> 0 | V69: n.d. | W69: 0 | X69: =+IF(INDEX($C69:$G69,1,aux!$AL$1)>0,(G69/INDEX($C69:$G69,1,aux!$AL$1))^(1/($G$3-INDEX($C$3:$G$3,1,aux!$AL$1)))-1,"n.d.") -> n.d. | Y69: =IF(INDEX($C69:$G69,1,aux!$AL$1)>0,(G69-INDEX($C69:$G69,1,aux!$AL$1))/INDEX($C69:$G69,1,aux!$AL$1),"n.d.") -> n.d. | AA69: =O69-INDEX($K69:$O69,1,aux!$AL$1) -> 0 | AB69: n.d. | AC69: 0 | AD69: =+IF(INDEX($K69:$O69,1,aux!$AL$1)>0,(O69/INDEX($K69:$O69,1,aux!$AL$1))^(1/($O$3-INDEX($K$3:$O$3,1,aux!$AL$1)))-1,"n.d.") -> n.d. | AE69: =IF(INDEX($K69:$O69,1,aux!$AL$1)>0,(O69-INDEX($K69:$O69,1,aux!$AL$1))/INDEX($K69:$O69,1,aux!$AL$1),"n.d.") -> n.d. | AF69: 0 | AX69: 08 | BS69: =SUM(C69:G69,K69:O69) -> 0
A70: 0809 | B70: Damascos, cerejas, pêssegos, etc., frescos | C70: 0 | D70: 0 | E70: 0 | F70: 0 | G70: 0 | H70: 0 | J70: 0 | K70: 0 | L70: 0 | M70: 0 | N70: 0 | O70: 0 | P70: 0 | R70: 0 | S70: 0 | U70: =G70-INDEX($C70:$G70,1,aux!$AL$1) -> 0 | V70: n.d. | W70: 0 | X70: =+IF(INDEX($C70:$G70,1,aux!$AL$1)>0,(G70/INDEX($C70:$G70,1,aux!$AL$1))^(1/($G$3-INDEX($C$3:$G$3,1,aux!$AL$1)))-1,"n.d.") -> n.d. | Y70: =IF(INDEX($C70:$G70,1,aux!$AL$1)>0,(G70-INDEX($C70:$G70,1,aux!$AL$1))/INDEX($C70:$G70,1,aux!$AL$1),"n.d.") -> n.d. | AA70: =O70-INDEX($K70:$O70,1,aux!$AL$1) -> 0 | AB70: n.d. | AC70: 0 | AD70: =+IF(INDEX($K70:$O70,1,aux!$AL$1)>0,(O70/INDEX($K70:$O70,1,aux!$AL$1))^(1/($O$3-INDEX($K$3:$O$3,1,aux!$AL$1)))-1,"n.d.") -> n.d. | AE70: =IF(INDEX($K70:$O70,1,aux!$AL$1)>0,(O70-INDEX($K70:$O70,1,aux!$AL$1))/INDEX($K70:$O70,1,aux!$AL$1),"n.d.") -> n.d. | AF70: 0 | AX70: 08 | BS70: 0
A71: 0810 | B71: Outras frutas frescas | C71: 0 | D71: 0 | E71: 0 | F71: 0 | G71: 0 | H71: 0 | J71: 0 | K71: 0 | L71: 0 | M71: 0 | N71: 0 | O71: 0 | P71: 0 | R71: 0 | S71: 0 | U71: =G71-INDEX($C71:$G71,1,aux!$AL$1) -> 0 | V71: n.d. | W71: 0 | X71: =+IF(INDEX($C71:$G71,1,aux!$AL$1)>0,(G71/INDEX($C71:$G71,1,aux!$AL$1))^(1/($G$3-INDEX($C$3:$G$3,1,aux!$AL$1)))-1,"n.d.") -> n.d. | Y71: =IF(INDEX($C71:$G71,1,aux!$AL$1)>0,(G71-INDEX($C71:$G71,1,aux!$AL$1))/INDEX($C71:$G71,1,aux!$AL$1),"n.d.") -> n.d. | AA71: =O71-INDEX($K71:$O71,1,aux!$AL$1) -> 0 | AB71: n.d. | AC71: 0 | AD71: =+IF(INDEX($K71:$O71,1,aux!$AL$1)>0,(O71/INDEX($K71:$O71,1,aux!$AL$1))^(1/($O$3-INDEX($K$3:$O$3,1,aux!$AL$1)))-1,"n.d.") -> n.d. | AE71: =IF(INDEX($K71:$O71,1,aux!$AL$1)>0,(O71-INDEX($K71:$O71,1,aux!$AL$1))/INDEX($K71:$O71,1,aux!$AL$1),"n.d.") -> n.d. | AF71: 0 | AX71: 08 | BS71: 0
A72: 0811 | B72: Frutas não cozidas ou cozidas em água ou vapor, congeladas | C72: 0 | D72: 0 | E72: 0 | F72: 0 | G72: 0 | H72: 0 | J72: 0 | K72: 0 | L72: 0 | M72: 0 | N72: 0 | O72: 0 | P72: 0 | R72: 0 | S72: 0 | U72: =G72-INDEX($C72:$G72,1,aux!$AL$1) -> 0 | V72: n.d. | W72: 0 | X72: =+IF(INDEX($C72:$G72,1,aux!$AL$1)>0,(G72/INDEX($C72:$G72,1,aux!$AL$1))^(1/($G$3-INDEX($C$3:$G$3,1,aux!$AL$1)))-1,"n.d.") -> n.d. | Y72: =IF(INDEX($C72:$G72,1,aux!$AL$1)>0,(G72-INDEX($C72:$G72,1,aux!$AL$1))/INDEX($C72:$G72,1,aux!$AL$1),"n.d.") -> n.d. | AA72: =O72-INDEX($K72:$O72,1,aux!$AL$1) -> 0 | AB72: n.d. | AC72: 0 | AD72: =+IF(INDEX($K72:$O72,1,aux!$AL$1)>0,(O72/INDEX($K72:$O72,1,aux!$AL$1))^(1/($O$3-INDEX($K$3:$O$3,1,aux!$AL$1)))-1,"n.d.") -> n.d. | AE72: =IF(INDEX($K72:$O72,1,aux!$AL$1)>0,(O72-INDEX($K72:$O72,1,aux!$AL$1))/INDEX($K72:$O72,1,aux!$AL$1),"n.d.") -> n.d. | AF72: 0 | AX72: 08 | BS72: 0
A73: 0812 | B73: Frutas conservadas transitoriamente | C73: 0 | D73: 0 | E73: 0 | F73: 0 | G73: 0 | H73: 0 | J73: 0 | K73: 0 | L73: 0 | M73: 0 | N73: 0 | O73: 0 | P73: 0 | R73: 0 | S73: 0 | U73: =G73-INDEX($C73:$G73,1,aux!$AL$1) -> 0 | V73: n.d. | W73: 0 | X73: =+IF(INDEX($C73:$G73,1,aux!$AL$1)>0,(G73/INDEX($C73:$G73,1,aux!$AL$1))^(1/($G$3-INDEX($C$3:$G$3,1,aux!$AL$1)))-1,"n.d.") -> n.d. | Y73: =IF(INDEX($C73:$G73,1,aux!$AL$1)>0,(G73-INDEX($C73:$G73,1,aux!$AL$1))/INDEX($C73:$G73,1,aux!$AL$1),"n.d.") -> n.d. | AA73: =O73-INDEX($K73:$O73,1,aux!$AL$1) -> 0 | AB73: n.d. | AC73: 0 | AD73: =+IF(INDEX($K73:$O73,1,aux!$AL$1)>0,(O73/INDEX($K73:$O73,1,aux!$AL$1))^(1/($O$3-INDEX($K$3:$O$3,1,aux!$AL$1)))-1,"n.d.") -> n.d. | AE73: =IF(INDEX($K73:$O73,1,aux!$AL$1)>0,(O73-INDEX($K73:$O73,1,aux!$AL$1))/INDEX($K73:$O73,1,aux!$AL$1),"n.d.") -> n.d. | AF73: 0 | AX73: 08 | BS73: 0
A74: 0813 | B74: Outras frutas secas | C74: 0 | D74: 0 | E74: 0 | F74: 0 | G74: 0 | H74: 0 | J74: 0 | K74: 0 | L74: 0 | M74: 0 | N74: 0 | O74: 0 | P74: 0 | R74: 0 | S74: 0 | U74: =G74-INDEX($C74:$G74,1,aux!$AL$1) -> 0 | V74: n.d. | W74: 0 | X74: =+IF(INDEX($C74:$G74,1,aux!$AL$1)>0,(G74/INDEX($C74:$G74,1,aux!$AL$1))^(1/($G$3-INDEX($C$3:$G$3,1,aux!$AL$1)))-1,"n.d.") -> n.d. | Y74: =IF(INDEX($C74:$G74,1,aux!$AL$1)>0,(G74-INDEX($C74:$G74,1,aux!$AL$1))/INDEX($C74:$G74,1,aux!$AL$1),"n.d.") -> n.d. | AA74: =O74-INDEX($K74:$O74,1,aux!$AL$1) -> 0 | AB74: n.d. | AC74: 0 | AD74: =+IF(INDEX($K74:$O74,1,aux!$AL$1)>0,(O74/INDEX($K74:$O74,1,aux!$AL$1))^(1/($O$3-INDEX($K$3:$O$3,1,aux!$AL$1)))-1,"n.d.") -> n.d. | AE74: =IF(INDEX($K74:$O74,1,aux!$AL$1)>0,(O74-INDEX($K74:$O74,1,aux!$AL$1))/INDEX($K74:$O74,1,aux!$AL$1),"n.d.") -> n.d. | AF74: 0 | AX74: 08 | BS74: 0
A75: 0814 | B75: Cascas de citrinos, melões ou melancias | C75: 0 | D75: 0 | E75: 0 | F75: 0 | G75: 0 | H75: 0 | J75: 0 | K75: 0 | L75: 0 | M75: 0 | N75: 0 | O75: 0 | P75: 0 | R75: 0 | S75: 0 | U75: =G75-INDEX($C75:$G75,1,aux!$AL$1) -> 0 | V75: n.d. | W75: 0 | X75: =+IF(INDEX($C75:$G75,1,aux!$AL$1)>0,(G75/INDEX($C75:$G75,1,aux!$AL$1))^(1/($G$3-INDEX($C$3:$G$3,1,aux!$AL$1)))-1,"n.d.") -> n.d. | Y75: =IF(INDEX($C75:$G75,1,aux!$AL$1)>0,(G75-INDEX($C75:$G75,1,aux!$AL$1))/INDEX($C75:$G75,1,aux!$AL$1),"n.d.") -> n.d. | AA75: =O75-INDEX($K75:$O75,1,aux!$AL$1) -> 0 | AB75: n.d. | AC75: 0 | AD75: =+IF(INDEX($K75:$O75,1,aux!$AL$1)>0,(O75/INDEX($K75:$O75,1,aux!$AL$1))^(1/($O$3-INDEX($K$3:$O$3,1,aux!$AL$1)))-1,"n.d.") -> n.d. | AE75: =IF(INDEX($K75:$O75,1,aux!$AL$1)>0,(O75-INDEX($K75:$O75,1,aux!$AL$1))/INDEX($K75:$O75,1,aux!$AL$1),"n.d.") -> n.d. | AF75: 0 | AX75: =+LEFT(A75,2) -> 08 | BS75: 0
A76: 08SS | B76: Frutas; cascas de citrinos e de melões | C76: 0 | D76: 0 | E76: 0 | F76: 0 | G76: 0 | H76: 0 | J76: 0 | K76: 0 | L76: 0 | M76: 0 | N76: 0 | O76: 0 | P76: 0 | R76: 0 | S76: 0 | U76: =G76-INDEX($C76:$G76,1,aux!$AL$1) -> 0 | V76: n.d. | W76: 0 | X76: =+IF(INDEX($C76:$G76,1,aux!$AL$1)>0,(G76/INDEX($C76:$G76,1,aux!$AL$1))^(1/($G$3-INDEX($C$3:$G$3,1,aux!$AL$1)))-1,"n.d.") -> n.d. | Y76: =IF(INDEX($C76:$G76,1,aux!$AL$1)>0,(G76-INDEX($C76:$G76,1,aux!$AL$1))/INDEX($C76:$G76,1,aux!$AL$1),"n.d.") -> n.d. | AA76: =O76-INDEX($K76:$O76,1,aux!$AL$1) -> 0 | AB76: n.d. | AC76: 0 | AD76: =+IF(INDEX($K76:$O76,1,aux!$AL$1)>0,(O76/INDEX($K76:$O76,1,aux!$AL$1))^(1/($O$3-INDEX($K$3:$O$3,1,aux!$AL$1)))-1,"n.d.") -> n.d. | AE76: =IF(INDEX($K76:$O76,1,aux!$AL$1)>0,(O76-INDEX($K76:$O76,1,aux!$AL$1))/INDEX($K76:$O76,1,aux!$AL$1),"n.d.") -> n.d. | AF76: 0 | AX76: 08 | BS76: 0
A77: 0901 | B77: Café | C77: 0 | D77: 0 | E77: 0 | F77: 0 | G77: 0 | H77: 0 | J77: 0 | K77: 0 | L77: 0 | M77: 0 | N77: 0 | O77: 0 | P77: 0 | R77: 0 | S77: 0 | U77: =G77-INDEX($C77:$G77,1,aux!$AL$1) -> 0 | V77: n.d. | W77: 0 | X77: =+IF(INDEX($C77:$G77,1,aux!$AL$1)>0,(G77/INDEX($C77:$G77,1,aux!$AL$1))^(1/($G$3-INDEX($C$3:$G$3,1,aux!$AL$1)))-1,"n.d.") -> n.d. | Y77: =IF(INDEX($C77:$G77,1,aux!$AL$1)>0,(G77-INDEX($C77:$G77,1,aux!$AL$1))/INDEX($C77:$G77,1,aux!$AL$1),"n.d.") -> n.d. | AA77: =O77-INDEX($K77:$O77,1,aux!$AL$1) -> 0 | AB77: n.d. | AC77: 0 | AD77: =+IF(INDEX($K77:$O77,1,aux!$AL$1)>0,(O77/INDEX($K77:$O77,1,aux!$AL$1))^(1/($O$3-INDEX($K$3:$O$3,1,aux!$AL$1)))-1,"n.d.") -> n.d. | AE77: =IF(INDEX($K77:$O77,1,aux!$AL$1)>0,(O77-INDEX($K77:$O77,1,aux!$AL$1))/INDEX($K77:$O77,1,aux!$AL$1),"n.d.") -> n.d. | AF77: 0 | BS77: 0
A78: 0902 | B78: Chá | C78: 0 | D78: 0 | E78: 0 | F78: 0 | G78: 0 | H78: 0 | J78: 0 | K78: 0 | L78: 0 | M78: 0 | N78: 0 | O78: 0 | P78: 0 | R78: 0 | S78: 0 | U78: =G78-INDEX($C78:$G78,1,aux!$AL$1) -> 0 | V78: n.d. | W78: 0 | X78: =+IF(INDEX($C78:$G78,1,aux!$AL$1)>0,(G78/INDEX($C78:$G78,1,aux!$AL$1))^(1/($G$3-INDEX($C$3:$G$3,1,aux!$AL$1)))-1,"n.d.") -> n.d. | Y78: =IF(INDEX($C78:$G78,1,aux!$AL$1)>0,(G78-INDEX($C78:$G78,1,aux!$AL$1))/INDEX($C78:$G78,1,aux!$AL$1),"n.d.") -> n.d. | AA78: =O78-INDEX($K78:$O78,1,aux!$AL$1) -> 0 | AB78: n.d. | AC78: 0 | AD78: =+IF(INDEX($K78:$O78,1,aux!$AL$1)>0,(O78/INDEX($K78:$O78,1,aux!$AL$1))^(1/($O$3-INDEX($K$3:$O$3,1,aux!$AL$1)))-1,"n.d.") -> n.d. | AE78: =IF(INDEX($K78:$O78,1,aux!$AL$1)>0,(O78-INDEX($K78:$O78,1,aux!$AL$1))/INDEX($K78:$O78,1,aux!$AL$1),"n.d.") -> n.d. | AF78: 0 | AX78: 09 | BS78: 0
A79: 0903 | B79: Mate | C79: 0 | D79: 0 | E79: 0 | F79: 0 | G79: 0 | H79: 0 | J79: 0 | K79: 0 | L79: 0 | M79: 0 | N79: 0 | O79: 0 | P79: 0 | R79: 0 | S79: 0 | U79: =G79-INDEX($C79:$G79,1,aux!$AL$1) -> 0 | V79: n.d. | W79: 0 | X79: =+IF(INDEX($C79:$G79,1,aux!$AL$1)>0,(G79/INDEX($C79:$G79,1,aux!$AL$1))^(1/($G$3-INDEX($C$3:$G$3,1,aux!$AL$1)))-1,"n.d.") -> n.d. | Y79: =IF(INDEX($C79:$G79,1,aux!$AL$1)>0,(G79-INDEX($C79:$G79,1,aux!$AL$1))/INDEX($C79:$G79,1,aux!$AL$1),"n.d.") -> n.d. | AA79: =O79-INDEX($K79:$O79,1,aux!$AL$1) -> 0 | AB79: n.d. | AC79: 0 | AD79: =+IF(INDEX($K79:$O79,1,aux!$AL$1)>0,(O79/INDEX($K79:$O79,1,aux!$AL$1))^(1/($O$3-INDEX($K$3:$O$3,1,aux!$AL$1)))-1,"n.d.") -> n.d. | AE79: =IF(INDEX($K79:$O79,1,aux!$AL$1)>0,(O79-INDEX($K79:$O79,1,aux!$AL$1))/INDEX($K79:$O79,1,aux!$AL$1),"n.d.") -> n.d. | AF79: 0 | AX79: 09 | BS79: 0
A80: 0904 | B80: Pimenta | C80: 0 | D80: 0 | E80: 0 | F80: 0 | G80: 0 | H80: 0 | J80: 0 | K80: 0 | L80: 0 | M80: 0 | N80: 0 | O80: 0 | P80: 0 | R80: 0 | S80: 0 | U80: =G80-INDEX($C80:$G80,1,aux!$AL$1) -> 0 | V80: n.d. | W80: 0 | X80: =+IF(INDEX($C80:$G80,1,aux!$AL$1)>0,(G80/INDEX($C80:$G80,1,aux!$AL$1))^(1/($G$3-INDEX($C$3:$G$3,1,aux!$AL$1)))-1,"n.d.") -> n.d. | Y80: =IF(INDEX($C80:$G80,1,aux!$AL$1)>0,(G80-INDEX($C80:$G80,1,aux!$AL$1))/INDEX($C80:$G80,1,aux!$AL$1),"n.d.") -> n.d. | AA80: =O80-INDEX($K80:$O80,1,aux!$AL$1) -> 0 | AB80: n.d. | AC80: 0 | AD80: =+IF(INDEX($K80:$O80,1,aux!$AL$1)>0,(O80/INDEX($K80:$O80,1,aux!$AL$1))^(1/($O$3-INDEX($K$3:$O$3,1,aux!$AL$1)))-1,"n.d.") -> n.d. | AE80: =IF(INDEX($K80:$O80,1,aux!$AL$1)>0,(O80-INDEX($K80:$O80,1,aux!$AL$1))/INDEX($K80:$O80,1,aux!$AL$1),"n.d.") -> n.d. | AF80: 0 | AX80: 09 | BS80: 0
A81: 0905 | B81: Baunilha | C81: 0 | D81: 0 | E81: 0 | F81: 0 | G81: 0 | H81: 0 | J81: 0 | K81: 0 | L81: 0 | M81: 0 | N81: 0 | O81: 0 | P81: 0 | R81: 0 | S81: 0 | U81: =G81-INDEX($C81:$G81,1,aux!$AL$1) -> 0 | V81: n.d. | W81: 0 | X81: =+IF(INDEX($C81:$G81,1,aux!$AL$1)>0,(G81/INDEX($C81:$G81,1,aux!$AL$1))^(1/($G$3-INDEX($C$3:$G$3,1,aux!$AL$1)))-1,"n.d.") -> n.d. | Y81: =IF(INDEX($C81:$G81,1,aux!$AL$1)>0,(G81-INDEX($C81:$G81,1,aux!$AL$1))/INDEX($C81:$G81,1,aux!$AL$1),"n.d.") -> n.d. | AA81: =O81-INDEX($K81:$O81,1,aux!$AL$1) -> 0 | AB81: n.d. | AC81: 0 | AD81: =+IF(INDEX($K81:$O81,1,aux!$AL$1)>0,(O81/INDEX($K81:$O81,1,aux!$AL$1))^(1/($O$3-INDEX($K$3:$O$3,1,aux!$AL$1)))-1,"n.d.") -> n.d. | AE81: =IF(INDEX($K81:$O81,1,aux!$AL$1)>0,(O81-INDEX($K81:$O81,1,aux!$AL$1))/INDEX($K81:$O81,1,aux!$AL$1),"n.d.") -> n.d. | AF81: 0 | AX81: 09 | BS81: 0
A82: 0906 | B82: Canela | C82: 0 | D82: 0 | E82: 0 | F82: 0 | G82: 0 | H82: 0 | J82: 0 | K82: 0 | L82: 0 | M82: 0 | N82: 0 | O82: 0 | P82: 0 | R82: 0 | S82: 0 | U82: =G82-INDEX($C82:$G82,1,aux!$AL$1) -> 0 | V82: n.d. | W82: 0 | X82: =+IF(INDEX($C82:$G82,1,aux!$AL$1)>0,(G82/INDEX($C82:$G82,1,aux!$AL$1))^(1/($G$3-INDEX($C$3:$G$3,1,aux!$AL$1)))-1,"n.d.") -> n.d. | Y82: =IF(INDEX($C82:$G82,1,aux!$AL$1)>0,(G82-INDEX($C82:$G82,1,aux!$AL$1))/INDEX($C82:$G82,1,aux!$AL$1),"n.d.") -> n.d. | AA82: =O82-INDEX($K82:$O82,1,aux!$AL$1) -> 0 | AB82: n.d. | AC82: 0 | AD82: =+IF(INDEX($K82:$O82,1,aux!$AL$1)>0,(O82/INDEX($K82:$O82,1,aux!$AL$1))^(1/($O$3-INDEX($K$3:$O$3,1,aux!$AL$1)))-1,"n.d.") -> n.d. | AE82: =IF(INDEX($K82:$O82,1,aux!$AL$1)>0,(O82-INDEX($K82:$O82,1,aux!$AL$1))/INDEX($K82:$O82,1,aux!$AL$1),"n.d.") -> n.d. | AF82: 0 | AX82: 09 | BS82: 0
A83: 0907 | B83: Cravo-da-índia | C83: 0 | D83: 0 | E83: 0 | F83: 0 | G83: 0 | H83: 0 | J83: 0 | K83: 0 | L83: 0 | M83: 0 | N83: 0 | O83: 0 | P83: 0 | R83: 0 | S83: 0 | U83: =G83-INDEX($C83:$G83,1,aux!$AL$1) -> 0 | V83: n.d. | W83: 0 | X83: =+IF(INDEX($C83:$G83,1,aux!$AL$1)>0,(G83/INDEX($C83:$G83,1,aux!$AL$1))^(1/($G$3-INDEX($C$3:$G$3,1,aux!$AL$1)))-1,"n.d.") -> n.d. | Y83: =IF(INDEX($C83:$G83,1,aux!$AL$1)>0,(G83-INDEX($C83:$G83,1,aux!$AL$1))/INDEX($C83:$G83,1,aux!$AL$1),"n.d.") -> n.d. | AA83: =O83-INDEX($K83:$O83,1,aux!$AL$1) -> 0 | AB83: n.d. | AC83: 0 | AD83: =+IF(INDEX($K83:$O83,1,aux!$AL$1)>0,(O83/INDEX($K83:$O83,1,aux!$AL$1))^(1/($O$3-INDEX($K$3:$O$3,1,aux!$AL$1)))-1,"n.d.") -> n.d. | AE83: =IF(INDEX($K83:$O83,1,aux!$AL$1)>0,(O83-INDEX($K83:$O83,1,aux!$AL$1))/INDEX($K83:$O83,1,aux!$AL$1),"n.d.") -> n.d. | AF83: 0 | AX83: 09 | BS83: 0
A84: 0908 | B84: Noz-moscada, etc. | C84: 0 | D84: 0 | E84: 0 | F84: 0 | G84: 0 | H84: 0 | J84: 0 | K84: 0 | L84: 0 | M84: 0 | N84: 0 | O84: 0 | P84: 0 | R84: 0 | S84: 0 | U84: =G84-INDEX($C84:$G84,1,aux!$AL$1) -> 0 | V84: n.d. | W84: 0 | X84: =+IF(INDEX($C84:$G84,1,aux!$AL$1)>0,(G84/INDEX($C84:$G84,1,aux!$AL$1))^(1/($G$3-INDEX($C$3:$G$3,1,aux!$AL$1)))-1,"n.d.") -> n.d. | Y84: =IF(INDEX($C84:$G84,1,aux!$AL$1)>0,(G84-INDEX($C84:$G84,1,aux!$AL$1))/INDEX($C84:$G84,1,aux!$AL$1),"n.d.") -> n.d. | AA84: =O84-INDEX($K84:$O84,1,aux!$AL$1) -> 0 | AB84: n.d. | AC84: 0 | AD84: =+IF(INDEX($K84:$O84,1,aux!$AL$1)>0,(O84/INDEX($K84:$O84,1,aux!$AL$1))^(1/($O$3-INDEX($K$3:$O$3,1,aux!$AL$1)))-1,"n.d.") -> n.d. | AE84: =IF(INDEX($K84:$O84,1,aux!$AL$1)>0,(O84-INDEX($K84:$O84,1,aux!$AL$1))/INDEX($K84:$O84,1,aux!$AL$1),"n.d.") -> n.d. | AF84: 0 | AX84: 09 | BS84: 0
A85: 0909 | B85: Sementes de anis, funcho, etc. | C85: 0 | D85: 0 | E85: 0 | F85: 0 | G85: 0 | H85: 0 | J85: 0 | K85: 0 | L85: 0 | M85: 0 | N85: 0 | O85: 0 | P85: 0 | R85: 0 | S85: 0 | U85: =G85-INDEX($C85:$G85,1,aux!$AL$1) -> 0 | V85: n.d. | W85: 0 | X85: =+IF(INDEX($C85:$G85,1,aux!$AL$1)>0,(G85/INDEX($C85:$G85,1,aux!$AL$1))^(1/($G$3-INDEX($C$3:$G$3,1,aux!$AL$1)))-1,"n.d.") -> n.d. | Y85: =IF(INDEX($C85:$G85,1,aux!$AL$1)>0,(G85-INDEX($C85:$G85,1,aux!$AL$1))/INDEX($C85:$G85,1,aux!$AL$1),"n.d.") -> n.d. | AA85: =O85-INDEX($K85:$O85,1,aux!$AL$1) -> 0 | AB85: n.d. | AC85: 0 | AD85: =+IF(INDEX($K85:$O85,1,aux!$AL$1)>0,(O85/INDEX($K85:$O85,1,aux!$AL$1))^(1/($O$3-INDEX($K$3:$O$3,1,aux!$AL$1)))-1,"n.d.") -> n.d. | AE85: =IF(INDEX($K85:$O85,1,aux!$AL$1)>0,(O85-INDEX($K85:$O85,1,aux!$AL$1))/INDEX($K85:$O85,1,aux!$AL$1),"n.d.") -> n.d. | AF85: 0 | AX85: 09 | BS85: 0
A86: 0910 | B86: Gengibre, açafrão, tomilho, louro, etc. | C86: 0 | D86: 0 | E86: 0 | F86: 0 | G86: 0 | H86: 0 | J86: 0 | K86: 0 | L86: 0 | M86: 0 | N86: 0 | O86: 0 | P86: 0 | R86: 0 | S86: 0 | U86: =G86-INDEX($C86:$G86,1,aux!$AL$1) -> 0 | V86: n.d. | W86: 0 | X86: =+IF(INDEX($C86:$G86,1,aux!$AL$1)>0,(G86/INDEX($C86:$G86,1,aux!$AL$1))^(1/($G$3-INDEX($C$3:$G$3,1,aux!$AL$1)))-1,"n.d.") -> n.d. | Y86: =IF(INDEX($C86:$G86,1,aux!$AL$1)>0,(G86-INDEX($C86:$G86,1,aux!$AL$1))/INDEX($C86:$G86,1,aux!$AL$1),"n.d.") -> n.d. | AA86: =O86-INDEX($K86:$O86,1,aux!$AL$1) -> 0 | AB86: n.d. | AC86: 0 | AD86: =+IF(INDEX($K86:$O86,1,aux!$AL$1)>0,(O86/INDEX($K86:$O86,1,aux!$AL$1))^(1/($O$3-INDEX($K$3:$O$3,1,aux!$AL$1)))-1,"n.d.") -> n.d. | AE86: =IF(INDEX($K86:$O86,1,aux!$AL$1)>0,(O86-INDEX($K86:$O86,1,aux!$AL$1))/INDEX($K86:$O86,1,aux!$AL$1),"n.d.") -> n.d. | AF86: 0 | AX86: 09 | BS86: 0
A87: 09SS | B87: Café, chá, mate e especiarias | C87: 0 | D87: 0 | E87: 0 | F87: 0 | G87: 0 | H87: 0 | J87: 0 | K87: 0 | L87: 0 | M87: 0 | N87: 0 | O87: 0 | P87: 0 | R87: 0 | S87: 0 | U87: =G87-INDEX($C87:$G87,1,aux!$AL$1) -> 0 | V87: n.d. | W87: 0 | X87: =+IF(INDEX($C87:$G87,1,aux!$AL$1)>0,(G87/INDEX($C87:$G87,1,aux!$AL$1))^(1/($G$3-INDEX($C$3:$G$3,1,aux!$AL$1)))-1,"n.d.") -> n.d. | Y87: =IF(INDEX($C87:$G87,1,aux!$AL$1)>0,(G87-INDEX($C87:$G87,1,aux!$AL$1))/INDEX($C87:$G87,1,aux!$AL$1),"n.d.") -> n.d. | AA87: =O87-INDEX($K87:$O87,1,aux!$AL$1) -> 0 | AB87: n.d. | AC87: 0 | AD87: =+IF(INDEX($K87:$O87,1,aux!$AL$1)>0,(O87/INDEX($K87:$O87,1,aux!$AL$1))^(1/($O$3-INDEX($K$3:$O$3,1,aux!$AL$1)))-1,"n.d.") -> n.d. | AE87: =IF(INDEX($K87:$O87,1,aux!$AL$1)>0,(O87-INDEX($K87:$O87,1,aux!$AL$1))/INDEX($K87:$O87,1,aux!$AL$1),"n.d.") -> n.d. | AF87: 0 | AX87: 09 | BS87: 0
A88: 1001 | B88: Trigo e mistura trigo/centeio | C88: 0 | D88: 0 | E88: 0 | F88: 0 | G88: 0 | H88: 0 | J88: 0 | K88: 0 | L88: 0 | M88: 0 | N88: 0 | O88: 0 | P88: 0 | R88: 0 | S88: 0 | U88: =G88-INDEX($C88:$G88,1,aux!$AL$1) -> 0 | V88: n.d. | W88: 0 | X88: =+IF(INDEX($C88:$G88,1,aux!$AL$1)>0,(G88/INDEX($C88:$G88,1,aux!$AL$1))^(1/($G$3-INDEX($C$3:$G$3,1,aux!$AL$1)))-1,"n.d.") -> n.d. | Y88: =IF(INDEX($C88:$G88,1,aux!$AL$1)>0,(G88-INDEX($C88:$G88,1,aux!$AL$1))/INDEX($C88:$G88,1,aux!$AL$1),"n.d.") -> n.d. | AA88: =O88-INDEX($K88:$O88,1,aux!$AL$1) -> 0 | AB88: n.d. | AC88: 0 | AD88: =+IF(INDEX($K88:$O88,1,aux!$AL$1)>0,(O88/INDEX($K88:$O88,1,aux!$AL$1))^(1/($O$3-INDEX($K$3:$O$3,1,aux!$AL$1)))-1,"n.d.") -> n.d. | AE88: =IF(INDEX($K88:$O88,1,aux!$AL$1)>0,(O88-INDEX($K88:$O88,1,aux!$AL$1))/INDEX($K88:$O88,1,aux!$AL$1),"n.d.") -> n.d. | AF88: 0 | BS88: 0
A89: 1002 | B89: Centeio | C89: 0 | D89: 0 | E89: 0 | F89: 0 | G89: 0 | H89: 0 | J89: 0 | K89: 0 | L89: 0 | M89: 0 | N89: 0 | O89: 0 | P89: 0 | R89: 0 | S89: 0 | U89: =G89-INDEX($C89:$G89,1,aux!$AL$1) -> 0 | V89: n.d. | W89: 0 | X89: =+IF(INDEX($C89:$G89,1,aux!$AL$1)>0,(G89/INDEX($C89:$G89,1,aux!$AL$1))^(1/($G$3-INDEX($C$3:$G$3,1,aux!$AL$1)))-1,"n.d.") -> n.d. | Y89: =IF(INDEX($C89:$G89,1,aux!$AL$1)>0,(G89-INDEX($C89:$G89,1,aux!$AL$1))/INDEX($C89:$G89,1,aux!$AL$1),"n.d.") -> n.d. | AA89: =O89-INDEX($K89:$O89,1,aux!$AL$1) -> 0 | AB89: n.d. | AC89: 0 | AD89: =+IF(INDEX($K89:$O89,1,aux!$AL$1)>0,(O89/INDEX($K89:$O89,1,aux!$AL$1))^(1/($O$3-INDEX($K$3:$O$3,1,aux!$AL$1)))-1,"n.d.") -> n.d. | AE89: =IF(INDEX($K89:$O89,1,aux!$AL$1)>0,(O89-INDEX($K89:$O89,1,aux!$AL$1))/INDEX($K89:$O89,1,aux!$AL$1),"n.d.") -> n.d. | AF89: 0 | AX89: 10 | BS89: 0
A90: 1003 | B90: Cevada | C90: 0 | D90: 0 | E90: 0 | F90: 0 | G90: 0 | H90: 0 | J90: 0 | K90: 0 | L90: 0 | M90: 0 | N90: 0 | O90: 0 | P90: 0 | R90: 0 | S90: 0 | U90: =G90-INDEX($C90:$G90,1,aux!$AL$1) -> 0 | V90: n.d. | W90: 0 | X90: =+IF(INDEX($C90:$G90,1,aux!$AL$1)>0,(G90/INDEX($C90:$G90,1,aux!$AL$1))^(1/($G$3-INDEX($C$3:$G$3,1,aux!$AL$1)))-1,"n.d.") -> n.d. | Y90: =IF(INDEX($C90:$G90,1,aux!$AL$1)>0,(G90-INDEX($C90:$G90,1,aux!$AL$1))/INDEX($C90:$G90,1,aux!$AL$1),"n.d.") -> n.d. | AA90: =O90-INDEX($K90:$O90,1,aux!$AL$1) -> 0 | AB90: n.d. | AC90: 0 | AD90: =+IF(INDEX($K90:$O90,1,aux!$AL$1)>0,(O90/INDEX($K90:$O90,1,aux!$AL$1))^(1/($O$3-INDEX($K$3:$O$3,1,aux!$AL$1)))-1,"n.d.") -> n.d. | AE90: =IF(INDEX($K90:$O90,1,aux!$AL$1)>0,(O90-INDEX($K90:$O90,1,aux!$AL$1))/INDEX($K90:$O90,1,aux!$AL$1),"n.d.") -> n.d. | AF90: 0 | AX90: 10 | BS90: 0
A91: 1004 | B91: Aveia | C91: 0 | D91: 0 | E91: 0 | F91: 0 | G91: 0 | H91: 0 | J91: 0 | K91: 0 | L91: 0 | M91: 0 | N91: 0 | O91: 0 | P91: 0 | R91: 0 | S91: 0 | U91: =G91-INDEX($C91:$G91,1,aux!$AL$1) -> 0 | V91: n.d. | W91: 0 | X91: =+IF(INDEX($C91:$G91,1,aux!$AL$1)>0,(G91/INDEX($C91:$G91,1,aux!$AL$1))^(1/($G$3-INDEX($C$3:$G$3,1,aux!$AL$1)))-1,"n.d.") -> n.d. | Y91: =IF(INDEX($C91:$G91,1,aux!$AL$1)>0,(G91-INDEX($C91:$G91,1,aux!$AL$1))/INDEX($C91:$G91,1,aux!$AL$1),"n.d.") -> n.d. | AA91: =O91-INDEX($K91:$O91,1,aux!$AL$1) -> 0 | AB91: n.d. | AC91: 0 | AD91: =+IF(INDEX($K91:$O91,1,aux!$AL$1)>0,(O91/INDEX($K91:$O91,1,aux!$AL$1))^(1/($O$3-INDEX($K$3:$O$3,1,aux!$AL$1)))-1,"n.d.") -> n.d. | AE91: =IF(INDEX($K91:$O91,1,aux!$AL$1)>0,(O91-INDEX($K91:$O91,1,aux!$AL$1))/INDEX($K91:$O91,1,aux!$AL$1),"n.d.") -> n.d. | AF91: 0 | AX91: 10 | BS91: 0
A92: 1005 | B92: Milho | C92: 0 | D92: 0 | E92: 0 | F92: 0 | G92: 0 | H92: 0 | J92: 0 | K92: 0 | L92: 0 | M92: 0 | N92: 0 | O92: 0 | P92: 0 | R92: 0 | S92: 0 | U92: =G92-INDEX($C92:$G92,1,aux!$AL$1) -> 0 | V92: n.d. | W92: 0 | X92: =+IF(INDEX($C92:$G92,1,aux!$AL$1)>0,(G92/INDEX($C92:$G92,1,aux!$AL$1))^(1/($G$3-INDEX($C$3:$G$3,1,aux!$AL$1)))-1,"n.d.") -> n.d. | Y92: =IF(INDEX($C92:$G92,1,aux!$AL$1)>0,(G92-INDEX($C92:$G92,1,aux!$AL$1))/INDEX($C92:$G92,1,aux!$AL$1),"n.d.") -> n.d. | AA92: =O92-INDEX($K92:$O92,1,aux!$AL$1) -> 0 | AB92: n.d. | AC92: 0 | AD92: =+IF(INDEX($K92:$O92,1,aux!$AL$1)>0,(O92/INDEX($K92:$O92,1,aux!$AL$1))^(1/($O$3-INDEX($K$3:$O$3,1,aux!$AL$1)))-1,"n.d.") -> n.d. | AE92: =IF(INDEX($K92:$O92,1,aux!$AL$1)>0,(O92-INDEX($K92:$O92,1,aux!$AL$1))/INDEX($K92:$O92,1,aux!$AL$1),"n.d.") -> n.d. | AF92: 0 | AX92: 10 | BS92: 0
A93: 1006 | B93: Arroz | C93: 0 | D93: 0 | E93: 0 | F93: 0 | G93: 0 | H93: 0 | J93: 0 | K93: 0 | L93: 0 | M93: 0 | N93: 0 | O93: 0 | P93: 0 | R93: 0 | S93: 0 | U93: =G93-INDEX($C93:$G93,1,aux!$AL$1) -> 0 | V93: n.d. | W93: 0 | X93: =+IF(INDEX($C93:$G93,1,aux!$AL$1)>0,(G93/INDEX($C93:$G93,1,aux!$AL$1))^(1/($G$3-INDEX($C$3:$G$3,1,aux!$AL$1)))-1,"n.d.") -> n.d. | Y93: =IF(INDEX($C93:$G93,1,aux!$AL$1)>0,(G93-INDEX($C93:$G93,1,aux!$AL$1))/INDEX($C93:$G93,1,aux!$AL$1),"n.d.") -> n.d. | AA93: =O93-INDEX($K93:$O93,1,aux!$AL$1) -> 0 | AB93: n.d. | AC93: 0 | AD93: =+IF(INDEX($K93:$O93,1,aux!$AL$1)>0,(O93/INDEX($K93:$O93,1,aux!$AL$1))^(1/($O$3-INDEX($K$3:$O$3,1,aux!$AL$1)))-1,"n.d.") -> n.d. | AE93: =IF(INDEX($K93:$O93,1,aux!$AL$1)>0,(O93-INDEX($K93:$O93,1,aux!$AL$1))/INDEX($K93:$O93,1,aux!$AL$1),"n.d.") -> n.d. | AF93: 0 | AX93: 10 | BS93: 0
A94: 1007 | B94: Sorgo de grão | C94: 0 | D94: 0 | E94: 0 | F94: 0 | G94: 0 | H94: 0 | J94: 0 | K94: 0 | L94: 0 | M94: 0 | N94: 0 | O94: 0 | P94: 0 | R94: 0 | S94: 0 | U94: =G94-INDEX($C94:$G94,1,aux!$AL$1) -> 0 | V94: n.d. | W94: 0 | X94: =+IF(INDEX($C94:$G94,1,aux!$AL$1)>0,(G94/INDEX($C94:$G94,1,aux!$AL$1))^(1/($G$3-INDEX($C$3:$G$3,1,aux!$AL$1)))-1,"n.d.") -> n.d. | Y94: =IF(INDEX($C94:$G94,1,aux!$AL$1)>0,(G94-INDEX($C94:$G94,1,aux!$AL$1))/INDEX($C94:$G94,1,aux!$AL$1),"n.d.") -> n.d. | AA94: =O94-INDEX($K94:$O94,1,aux!$AL$1) -> 0 | AB94: n.d. | AC94: 0 | AD94: =+IF(INDEX($K94:$O94,1,aux!$AL$1)>0,(O94/INDEX($K94:$O94,1,aux!$AL$1))^(1/($O$3-INDEX($K$3:$O$3,1,aux!$AL$1)))-1,"n.d.") -> n.d. | AE94: =IF(INDEX($K94:$O94,1,aux!$AL$1)>0,(O94-INDEX($K94:$O94,1,aux!$AL$1))/INDEX($K94:$O94,1,aux!$AL$1),"n.d.") -> n.d. | AF94: 0 | AX94: 10 | BS94: 0
A95: 1008 | B95: Trigo mourisco, painço e outros cereais | C95: 0 | D95: 0 | E95: 0 | F95: 0 | G95: 0 | H95: 0 | J95: 0 | K95: 0 | L95: 0 | M95: 0 | N95: 0 | O95: 0 | P95: 0 | R95: 0 | S95: 0 | U95: =G95-INDEX($C95:$G95,1,aux!$AL$1) -> 0 | V95: n.d. | W95: 0 | X95: =+IF(INDEX($C95:$G95,1,aux!$AL$1)>0,(G95/INDEX($C95:$G95,1,aux!$AL$1))^(1/($G$3-INDEX($C$3:$G$3,1,aux!$AL$1)))-1,"n.d.") -> n.d. | Y95: =IF(INDEX($C95:$G95,1,aux!$AL$1)>0,(G95-INDEX($C95:$G95,1,aux!$AL$1))/INDEX($C95:$G95,1,aux!$AL$1),"n.d.") -> n.d. | AA95: =O95-INDEX($K95:$O95,1,aux!$AL$1) -> 0 | AB95: n.d. | AC95: 0 | AD95: =+IF(INDEX($K95:$O95,1,aux!$AL$1)>0,(O95/INDEX($K95:$O95,1,aux!$AL$1))^(1/($O$3-INDEX($K$3:$O$3,1,aux!$AL$1)))-1,"n.d.") -> n.d. | AE95: =IF(INDEX($K95:$O95,1,aux!$AL$1)>0,(O95-INDEX($K95:$O95,1,aux!$AL$1))/INDEX($K95:$O95,1,aux!$AL$1),"n.d.") -> n.d. | AF95: 0 | AX95: 10 | BS95: 0
A96: 10SS | B96: Cereais | C96: 0 | D96: 0 | E96: 0 | F96: 0 | G96: 0 | H96: 0 | J96: 0 | K96: 0 | L96: 0 | M96: 0 | N96: 0 | O96: 0 | P96: 0 | R96: 0 | S96: 0 | U96: =G96-INDEX($C96:$G96,1,aux!$AL$1) -> 0 | V96: n.d. | W96: 0 | X96: =+IF(INDEX($C96:$G96,1,aux!$AL$1)>0,(G96/INDEX($C96:$G96,1,aux!$AL$1))^(1/($G$3-INDEX($C$3:$G$3,1,aux!$AL$1)))-1,"n.d.") -> n.d. | Y96: =IF(INDEX($C96:$G96,1,aux!$AL$1)>0,(G96-INDEX($C96:$G96,1,aux!$AL$1))/INDEX($C96:$G96,1,aux!$AL$1),"n.d.") -> n.d. | AA96: =O96-INDEX($K96:$O96,1,aux!$AL$1) -> 0 | AB96: n.d. | AC96: 0 | AD96: =+IF(INDEX($K96:$O96,1,aux!$AL$1)>0,(O96/INDEX($K96:$O96,1,aux!$AL$1))^(1/($O$3-INDEX($K$3:$O$3,1,aux!$AL$1)))-1,"n.d.") -> n.d. | AE96: =IF(INDEX($K96:$O96,1,aux!$AL$1)>0,(O96-INDEX($K96:$O96,1,aux!$AL$1))/INDEX($K96:$O96,1,aux!$AL$1),"n.d.") -> n.d. | AF96: 0 | AX96: 10 | BS96: 0
A97: 1101 | B97: Farinhas de trigo ou trigo/centeio | C97: 0 | D97: 0 | E97: 0 | F97: 0 | G97: 0 | H97: 0 | J97: 0 | K97: 0 | L97: 0 | M97: 0 | N97: 0 | O97: 0 | P97: 0 | R97: 0 | S97: 0 | U97: =G97-INDEX($C97:$G97,1,aux!$AL$1) -> 0 | V97: n.d. | W97: 0 | X97: =+IF(INDEX($C97:$G97,1,aux!$AL$1)>0,(G97/INDEX($C97:$G97,1,aux!$AL$1))^(1/($G$3-INDEX($C$3:$G$3,1,aux!$AL$1)))-1,"n.d.") -> n.d. | Y97: =IF(INDEX($C97:$G97,1,aux!$AL$1)>0,(G97-INDEX($C97:$G97,1,aux!$AL$1))/INDEX($C97:$G97,1,aux!$AL$1),"n.d.") -> n.d. | AA97: =O97-INDEX($K97:$O97,1,aux!$AL$1) -> 0 | AB97: n.d. | AC97: 0 | AD97: =+IF(INDEX($K97:$O97,1,aux!$AL$1)>0,(O97/INDEX($K97:$O97,1,aux!$AL$1))^(1/($O$3-INDEX($K$3:$O$3,1,aux!$AL$1)))-1,"n.d.") -> n.d. | AE97: =IF(INDEX($K97:$O97,1,aux!$AL$1)>0,(O97-INDEX($K97:$O97,1,aux!$AL$1))/INDEX($K97:$O97,1,aux!$AL$1),"n.d.") -> n.d. | AF97: 0 | BS97: 0
A98: 1102 | B98: Outras farinhas de cereais | C98: 0 | D98: 0 | E98: 0 | F98: 0 | G98: 0 | H98: 0 | J98: 0 | K98: 0 | L98: 0 | M98: 0 | N98: 0 | O98: 0 | P98: 0 | R98: 0 | S98: 0 | U98: =G98-INDEX($C98:$G98,1,aux!$AL$1) -> 0 | V98: n.d. | W98: 0 | X98: =+IF(INDEX($C98:$G98,1,aux!$AL$1)>0,(G98/INDEX($C98:$G98,1,aux!$AL$1))^(1/($G$3-INDEX($C$3:$G$3,1,aux!$AL$1)))-1,"n.d.") -> n.d. | Y98: =IF(INDEX($C98:$G98,1,aux!$AL$1)>0,(G98-INDEX($C98:$G98,1,aux!$AL$1))/INDEX($C98:$G98,1,aux!$AL$1),"n.d.") -> n.d. | AA98: =O98-INDEX($K98:$O98,1,aux!$AL$1) -> 0 | AB98: n.d. | AC98: 0 | AD98: =+IF(INDEX($K98:$O98,1,aux!$AL$1)>0,(O98/INDEX($K98:$O98,1,aux!$AL$1))^(1/($O$3-INDEX($K$3:$O$3,1,aux!$AL$1)))-1,"n.d.") -> n.d. | AE98: =IF(INDEX($K98:$O98,1,aux!$AL$1)>0,(O98-INDEX($K98:$O98,1,aux!$AL$1))/INDEX($K98:$O98,1,aux!$AL$1),"n.d.") -> n.d. | AF98: 0 | AX98: 11 | BS98: 0
A99: 1103 | B99: Grumos, sêmolas, etc. de cereais | C99: 0 | D99: 0 | E99: 0 | F99: 0 | G99: 0 | H99: 0 | J99: 0 | K99: 0 | L99: 0 | M99: 0 | N99: 0 | O99: 0 | P99: 0 | R99: 0 | S99: 0 | U99: =G99-INDEX($C99:$G99,1,aux!$AL$1) -> 0 | V99: n.d. | W99: 0 | X99: =+IF(INDEX($C99:$G99,1,aux!$AL$1)>0,(G99/INDEX($C99:$G99,1,aux!$AL$1))^(1/($G$3-INDEX($C$3:$G$3,1,aux!$AL$1)))-1,"n.d.") -> n.d. | Y99: =IF(INDEX($C99:$G99,1,aux!$AL$1)>0,(G99-INDEX($C99:$G99,1,aux!$AL$1))/INDEX($C99:$G99,1,aux!$AL$1),"n.d.") -> n.d. | AA99: =O99-INDEX($K99:$O99,1,aux!$AL$1) -> 0 | AB99: n.d. | AC99: 0 | AD99: =+IF(INDEX($K99:$O99,1,aux!$AL$1)>0,(O99/INDEX($K99:$O99,1,aux!$AL$1))^(1/($O$3-INDEX($K$3:$O$3,1,aux!$AL$1)))-1,"n.d.") -> n.d. | AE99: =IF(INDEX($K99:$O99,1,aux!$AL$1)>0,(O99-INDEX($K99:$O99,1,aux!$AL$1))/INDEX($K99:$O99,1,aux!$AL$1),"n.d.") -> n.d. | AF99: 0 | AX99: 11 | BS99: 0
A100: 1104 | B100: Grãos de cereais processados | C100: 0 | D100: 0 | E100: 0 | F100: 0 | G100: 0 | H100: 0 | J100: 0 | K100: 0 | L100: 0 | M100: 0 | N100: 0 | O100: 0 | P100: 0 | R100: 0 | S100: 0 | U100: =G100-INDEX($C100:$G100,1,aux!$AL$1) -> 0 | V100: n.d. | W100: 0 | X100: =+IF(INDEX($C100:$G100,1,aux!$AL$1)>0,(G100/INDEX($C100:$G100,1,aux!$AL$1))^(1/($G$3-INDEX($C$3:$G$3,1,aux!$AL$1)))-1,"n.d.") -> n.d. | Y100: =IF(INDEX($C100:$G100,1,aux!$AL$1)>0,(G100-INDEX($C100:$G100,1,aux!$AL$1))/INDEX($C100:$G100,1,aux!$AL$1),"n.d.") -> n.d. | AA100: =O100-INDEX($K100:$O100,1,aux!$AL$1) -> 0 | AB100: n.d. | AC100: 0 | AD100: =+IF(INDEX($K100:$O100,1,aux!$AL$1)>0,(O100/INDEX($K100:$O100,1,aux!$AL$1))^(1/($O$3-INDEX($K$3:$O$3,1,aux!$AL$1)))-1,"n.d.") -> n.d. | AE100: =IF(INDEX($K100:$O100,1,aux!$AL$1)>0,(O100-INDEX($K100:$O100,1,aux!$AL$1))/INDEX($K100:$O100,1,aux!$AL$1),"n.d.") -> n.d. | AF100: 0 | AX100: 11 | BS100: 0
A101: 1105 | B101: Farinha, sêmola, etc. de batata | C101: 0 | D101: 0 | E101: 0 | F101: 0 | G101: 0 | H101: 0 | J101: 0 | K101: 0 | L101: 0 | M101: 0 | N101: 0 | O101: 0 | P101: 0 | R101: 0 | S101: 0 | U101: =G101-INDEX($C101:$G101,1,aux!$AL$1) -> 0 | V101: n.d. | W101: 0 | X101: =+IF(INDEX($C101:$G101,1,aux!$AL$1)>0,(G101/INDEX($C101:$G101,1,aux!$AL$1))^(1/($G$3-INDEX($C$3:$G$3,1,aux!$AL$1)))-1,"n.d.") -> n.d. | Y101: =IF(INDEX($C101:$G101,1,aux!$AL$1)>0,(G101-INDEX($C101:$G101,1,aux!$AL$1))/INDEX($C101:$G101,1,aux!$AL$1),"n.d.") -> n.d. | AA101: =O101-INDEX($K101:$O101,1,aux!$AL$1) -> 0 | AB101: n.d. | AC101: 0 | AD101: =+IF(INDEX($K101:$O101,1,aux!$AL$1)>0,(O101/INDEX($K101:$O101,1,aux!$AL$1))^(1/($O$3-INDEX($K$3:$O$3,1,aux!$AL$1)))-1,"n.d.") -> n.d. | AE101: =IF(INDEX($K101:$O101,1,aux!$AL$1)>0,(O101-INDEX($K101:$O101,1,aux!$AL$1))/INDEX($K101:$O101,1,aux!$AL$1),"n.d.") -> n.d. | AF101: 0 | AX101: 11 | BS101: 0
A102: 1106 | B102: Farinhas, etc. de leguminosas e outros tubérculos | C102: 0 | D102: 0 | E102: 0 | F102: 0 | G102: 0 | H102: 0 | J102: 0 | K102: 0 | L102: 0 | M102: 0 | N102: 0 | O102: 0 | P102: 0 | R102: 0 | S102: 0 | U102: =G102-INDEX($C102:$G102,1,aux!$AL$1) -> 0 | V102: n.d. | W102: 0 | X102: =+IF(INDEX($C102:$G102,1,aux!$AL$1)>0,(G102/INDEX($C102:$G102,1,aux!$AL$1))^(1/($G$3-INDEX($C$3:$G$3,1,aux!$AL$1)))-1,"n.d.") -> n.d. | Y102: =IF(INDEX($C102:$G102,1,aux!$AL$1)>0,(G102-INDEX($C102:$G102,1,aux!$AL$1))/INDEX($C102:$G102,1,aux!$AL$1),"n.d.") -> n.d. | AA102: =O102-INDEX($K102:$O102,1,aux!$AL$1) -> 0 | AB102: n.d. | AC102: 0 | AD102: =+IF(INDEX($K102:$O102,1,aux!$AL$1)>0,(O102/INDEX($K102:$O102,1,aux!$AL$1))^(1/($O$3-INDEX($K$3:$O$3,1,aux!$AL$1)))-1,"n.d.") -> n.d. | AE102: =IF(INDEX($K102:$O102,1,aux!$AL$1)>0,(O102-INDEX($K102:$O102,1,aux!$AL$1))/INDEX($K102:$O102,1,aux!$AL$1),"n.d.") -> n.d. | AF102: 0 | AX102: 11 | BS102: 0
A103: 1107 | B103: Malte, mesmo torrado | C103: 0 | D103: 0 | E103: 0 | F103: 0 | G103: 0 | H103: 0 | J103: 0 | K103: 0 | L103: 0 | M103: 0 | N103: 0 | O103: 0 | P103: 0 | R103: 0 | S103: 0 | U103: =G103-INDEX($C103:$G103,1,aux!$AL$1) -> 0 | V103: n.d. | W103: 0 | X103: =+IF(INDEX($C103:$G103,1,aux!$AL$1)>0,(G103/INDEX($C103:$G103,1,aux!$AL$1))^(1/($G$3-INDEX($C$3:$G$3,1,aux!$AL$1)))-1,"n.d.") -> n.d. | Y103: =IF(INDEX($C103:$G103,1,aux!$AL$1)>0,(G103-INDEX($C103:$G103,1,aux!$AL$1))/INDEX($C103:$G103,1,aux!$AL$1),"n.d.") -> n.d. | AA103: =O103-INDEX($K103:$O103,1,aux!$AL$1) -> 0 | AB103: n.d. | AC103: 0 | AD103: =+IF(INDEX($K103:$O103,1,aux!$AL$1)>0,(O103/INDEX($K103:$O103,1,aux!$AL$1))^(1/($O$3-INDEX($K$3:$O$3,1,aux!$AL$1)))-1,"n.d.") -> n.d. | AE103: =IF(INDEX($K103:$O103,1,aux!$AL$1)>0,(O103-INDEX($K103:$O103,1,aux!$AL$1))/INDEX($K103:$O103,1,aux!$AL$1),"n.d.") -> n.d. | AF103: 0 | AX103: 11 | BS103: 0
A104: 1108 | B104: Amidos e féculas; inulina | C104: 0 | D104: 0 | E104: 0 | F104: 0 | G104: 0 | H104: 0 | J104: 0 | K104: 0 | L104: 0 | M104: 0 | N104: 0 | O104: 0 | P104: 0 | R104: 0 | S104: 0 | U104: =G104-INDEX($C104:$G104,1,aux!$AL$1) -> 0 | V104: n.d. | W104: 0 | X104: =+IF(INDEX($C104:$G104,1,aux!$AL$1)>0,(G104/INDEX($C104:$G104,1,aux!$AL$1))^(1/($G$3-INDEX($C$3:$G$3,1,aux!$AL$1)))-1,"n.d.") -> n.d. | Y104: =IF(INDEX($C104:$G104,1,aux!$AL$1)>0,(G104-INDEX($C104:$G104,1,aux!$AL$1))/INDEX($C104:$G104,1,aux!$AL$1),"n.d.") -> n.d. | AA104: =O104-INDEX($K104:$O104,1,aux!$AL$1) -> 0 | AB104: n.d. | AC104: 0 | AD104: =+IF(INDEX($K104:$O104,1,aux!$AL$1)>0,(O104/INDEX($K104:$O104,1,aux!$AL$1))^(1/($O$3-INDEX($K$3:$O$3,1,aux!$AL$1)))-1,"n.d.") -> n.d. | AE104: =IF(INDEX($K104:$O104,1,aux!$AL$1)>0,(O104-INDEX($K104:$O104,1,aux!$AL$1))/INDEX($K104:$O104,1,aux!$AL$1),"n.d.") -> n.d. | AF104: 0 | AX104: 11 | BS104: 0
A105: 1109 | B105: Glúten de trigo, mesmo seco | C105: 0 | D105: 0 | E105: 0 | F105: 0 | G105: 0 | H105: 0 | J105: 0 | K105: 0 | L105: 0 | M105: 0 | N105: 0 | O105: 0 | P105: 0 | R105: 0 | S105: 0 | U105: =G105-INDEX($C105:$G105,1,aux!$AL$1) -> 0 | V105: n.d. | W105: 0 | X105: =+IF(INDEX($C105:$G105,1,aux!$AL$1)>0,(G105/INDEX($C105:$G105,1,aux!$AL$1))^(1/($G$3-INDEX($C$3:$G$3,1,aux!$AL$1)))-1,"n.d.") -> n.d. | Y105: =IF(INDEX($C105:$G105,1,aux!$AL$1)>0,(G105-INDEX($C105:$G105,1,aux!$AL$1))/INDEX($C105:$G105,1,aux!$AL$1),"n.d.") -> n.d. | AA105: =O105-INDEX($K105:$O105,1,aux!$AL$1) -> 0 | AB105: n.d. | AC105: 0 | AD105: =+IF(INDEX($K105:$O105,1,aux!$AL$1)>0,(O105/INDEX($K105:$O105,1,aux!$AL$1))^(1/($O$3-INDEX($K$3:$O$3,1,aux!$AL$1)))-1,"n.d.") -> n.d. | AE105: =IF(INDEX($K105:$O105,1,aux!$AL$1)>0,(O105-INDEX($K105:$O105,1,aux!$AL$1))/INDEX($K105:$O105,1,aux!$AL$1),"n.d.") -> n.d. | AF105: 0 | AX105: 11 | BS105: 0
A106: 11SS | B106: Produtos da indústria de moagem e outros | C106: 0 | D106: 0 | E106: 0 | F106: 0 | G106: 0 | H106: 0 | J106: 0 | K106: 0 | L106: 0 | M106: 0 | N106: 0 | O106: 0 | P106: 0 | R106: 0 | S106: 0 | U106: =G106-INDEX($C106:$G106,1,aux!$AL$1) -> 0 | V106: n.d. | W106: 0 | X106: =+IF(INDEX($C106:$G106,1,aux!$AL$1)>0,(G106/INDEX($C106:$G106,1,aux!$AL$1))^(1/($G$3-INDEX($C$3:$G$3,1,aux!$AL$1)))-1,"n.d.") -> n.d. | Y106: =IF(INDEX($C106:$G106,1,aux!$AL$1)>0,(G106-INDEX($C106:$G106,1,aux!$AL$1))/INDEX($C106:$G106,1,aux!$AL$1),"n.d.") -> n.d. | AA106: =O106-INDEX($K106:$O106,1,aux!$AL$1) -> 0 | AB106: n.d. | AC106: 0 | AD106: =+IF(INDEX($K106:$O106,1,aux!$AL$1)>0,(O106/INDEX($K106:$O106,1,aux!$AL$1))^(1/($O$3-INDEX($K$3:$O$3,1,aux!$AL$1)))-1,"n.d.") -> n.d. | AE106: =IF(INDEX($K106:$O106,1,aux!$AL$1)>0,(O106-INDEX($K106:$O106,1,aux!$AL$1))/INDEX($K106:$O106,1,aux!$AL$1),"n.d.") -> n.d. | AF106: 0 | AX106: 11 | BS106: 0
A107: 1201 | B107: Soja, mesmo triturada | C107: 0 | D107: 0 | E107: 0 | F107: 0 | G107: 0 | H107: 0 | J107: 0 | K107: 0 | L107: 0 | M107: 0 | N107: 0 | O107: 0 | P107: 0 | R107: 0 | S107: 0 | U107: =G107-INDEX($C107:$G107,1,aux!$AL$1) -> 0 | V107: n.d. | W107: 0 | X107: =+IF(INDEX($C107:$G107,1,aux!$AL$1)>0,(G107/INDEX($C107:$G107,1,aux!$AL$1))^(1/($G$3-INDEX($C$3:$G$3,1,aux!$AL$1)))-1,"n.d.") -> n.d. | Y107: =IF(INDEX($C107:$G107,1,aux!$AL$1)>0,(G107-INDEX($C107:$G107,1,aux!$AL$1))/INDEX($C107:$G107,1,aux!$AL$1),"n.d.") -> n.d. | AA107: =O107-INDEX($K107:$O107,1,aux!$AL$1) -> 0 | AB107: n.d. | AC107: 0 | AD107: =+IF(INDEX($K107:$O107,1,aux!$AL$1)>0,(O107/INDEX($K107:$O107,1,aux!$AL$1))^(1/($O$3-INDEX($K$3:$O$3,1,aux!$AL$1)))-1,"n.d.") -> n.d. | AE107: =IF(INDEX($K107:$O107,1,aux!$AL$1)>0,(O107-INDEX($K107:$O107,1,aux!$AL$1))/INDEX($K107:$O107,1,aux!$AL$1),"n.d.") -> n.d. | AF107: 0 | BS107: 0
A108: 1202 | B108: Amendoins não torrados | C108: 0 | D108: 0 | E108: 0 | F108: 0 | G108: 0 | H108: 0 | J108: 0 | K108: 0 | L108: 0 | M108: 0 | N108: 0 | O108: 0 | P108: 0 | R108: 0 | S108: 0 | U108: =G108-INDEX($C108:$G108,1,aux!$AL$1) -> 0 | V108: n.d. | W108: 0 | X108: =+IF(INDEX($C108:$G108,1,aux!$AL$1)>0,(G108/INDEX($C108:$G108,1,aux!$AL$1))^(1/($G$3-INDEX($C$3:$G$3,1,aux!$AL$1)))-1,"n.d.") -> n.d. | Y108: =IF(INDEX($C108:$G108,1,aux!$AL$1)>0,(G108-INDEX($C108:$G108,1,aux!$AL$1))/INDEX($C108:$G108,1,aux!$AL$1),"n.d.") -> n.d. | AA108: =O108-INDEX($K108:$O108,1,aux!$AL$1) -> 0 | AB108: n.d. | AC108: 0 | AD108: =+IF(INDEX($K108:$O108,1,aux!$AL$1)>0,(O108/INDEX($K108:$O108,1,aux!$AL$1))^(1/($O$3-INDEX($K$3:$O$3,1,aux!$AL$1)))-1,"n.d.") -> n.d. | AE108: =IF(INDEX($K108:$O108,1,aux!$AL$1)>0,(O108-INDEX($K108:$O108,1,aux!$AL$1))/INDEX($K108:$O108,1,aux!$AL$1),"n.d.") -> n.d. | AF108: 0 | AX108: 12 | BS108: 0
A109: 1203 | B109: Copra | C109: 0 | D109: 0 | E109: 0 | F109: 0 | G109: 0 | H109: 0 | J109: 0 | K109: 0 | L109: 0 | M109: 0 | N109: 0 | O109: 0 | P109: 0 | R109: 0 | S109: 0 | U109: =G109-INDEX($C109:$G109,1,aux!$AL$1) -> 0 | V109: n.d. | W109: 0 | X109: =+IF(INDEX($C109:$G109,1,aux!$AL$1)>0,(G109/INDEX($C109:$G109,1,aux!$AL$1))^(1/($G$3-INDEX($C$3:$G$3,1,aux!$AL$1)))-1,"n.d.") -> n.d. | Y109: =IF(INDEX($C109:$G109,1,aux!$AL$1)>0,(G109-INDEX($C109:$G109,1,aux!$AL$1))/INDEX($C109:$G109,1,aux!$AL$1),"n.d.") -> n.d. | AA109: =O109-INDEX($K109:$O109,1,aux!$AL$1) -> 0 | AB109: n.d. | AC109: 0 | AD109: =+IF(INDEX($K109:$O109,1,aux!$AL$1)>0,(O109/INDEX($K109:$O109,1,aux!$AL$1))^(1/($O$3-INDEX($K$3:$O$3,1,aux!$AL$1)))-1,"n.d.") -> n.d. | AE109: =IF(INDEX($K109:$O109,1,aux!$AL$1)>0,(O109-INDEX($K109:$O109,1,aux!$AL$1))/INDEX($K109:$O109,1,aux!$AL$1),"n.d.") -> n.d. | AF109: 0 | AX109: 12 | BS109: 0
A110: 1204 | B110: Sementes de linho (linhaça) | C110: 0 | D110: 0 | E110: 0 | F110: 0 | G110: 0 | H110: 0 | J110: 0 | K110: 0 | L110: 0 | M110: 0 | N110: 0 | O110: 0 | P110: 0 | R110: 0 | S110: 0 | U110: =G110-INDEX($C110:$G110,1,aux!$AL$1) -> 0 | V110: n.d. | W110: 0 | X110: =+IF(INDEX($C110:$G110,1,aux!$AL$1)>0,(G110/INDEX($C110:$G110,1,aux!$AL$1))^(1/($G$3-INDEX($C$3:$G$3,1,aux!$AL$1)))-1,"n.d.") -> n.d. | Y110: =IF(INDEX($C110:$G110,1,aux!$AL$1)>0,(G110-INDEX($C110:$G110,1,aux!$AL$1))/INDEX($C110:$G110,1,aux!$AL$1),"n.d.") -> n.d. | AA110: =O110-INDEX($K110:$O110,1,aux!$AL$1) -> 0 | AB110: n.d. | AC110: 0 | AD110: =+IF(INDEX($K110:$O110,1,aux!$AL$1)>0,(O110/INDEX($K110:$O110,1,aux!$AL$1))^(1/($O$3-INDEX($K$3:$O$3,1,aux!$AL$1)))-1,"n.d.") -> n.d. | AE110: =IF(INDEX($K110:$O110,1,aux!$AL$1)>0,(O110-INDEX($K110:$O110,1,aux!$AL$1))/INDEX($K110:$O110,1,aux!$AL$1),"n.d.") -> n.d. | AF110: 0 | AX110: 12 | BS110: 0
A111: 1205 | B111: Sementes de nabo silvestre ou de colza | C111: 0 | D111: 0 | E111: 0 | F111: 0 | G111: 0 | H111: 0 | J111: 0 | K111: 0 | L111: 0 | M111: 0 | N111: 0 | O111: 0 | P111: 0 | R111: 0 | S111: 0 | U111: =G111-INDEX($C111:$G111,1,aux!$AL$1) -> 0 | V111: n.d. | W111: 0 | X111: =+IF(INDEX($C111:$G111,1,aux!$AL$1)>0,(G111/INDEX($C111:$G111,1,aux!$AL$1))^(1/($G$3-INDEX($C$3:$G$3,1,aux!$AL$1)))-1,"n.d.") -> n.d. | Y111: =IF(INDEX($C111:$G111,1,aux!$AL$1)>0,(G111-INDEX($C111:$G111,1,aux!$AL$1))/INDEX($C111:$G111,1,aux!$AL$1),"n.d.") -> n.d. | AA111: =O111-INDEX($K111:$O111,1,aux!$AL$1) -> 0 | AB111: n.d. | AC111: 0 | AD111: =+IF(INDEX($K111:$O111,1,aux!$AL$1)>0,(O111/INDEX($K111:$O111,1,aux!$AL$1))^(1/($O$3-INDEX($K$3:$O$3,1,aux!$AL$1)))-1,"n.d.") -> n.d. | AE111: =IF(INDEX($K111:$O111,1,aux!$AL$1)>0,(O111-INDEX($K111:$O111,1,aux!$AL$1))/INDEX($K111:$O111,1,aux!$AL$1),"n.d.") -> n.d. | AF111: 0 | AX111: 12 | BS111: 0
A112: 1206 | B112: Sementes de girassol | C112: 0 | D112: 0 | E112: 0 | F112: 0 | G112: 0 | H112: 0 | J112: 0 | K112: 0 | L112: 0 | M112: 0 | N112: 0 | O112: 0 | P112: 0 | R112: 0 | S112: 0 | U112: =G112-INDEX($C112:$G112,1,aux!$AL$1) -> 0 | V112: n.d. | W112: 0 | X112: =+IF(INDEX($C112:$G112,1,aux!$AL$1)>0,(G112/INDEX($C112:$G112,1,aux!$AL$1))^(1/($G$3-INDEX($C$3:$G$3,1,aux!$AL$1)))-1,"n.d.") -> n.d. | Y112: =IF(INDEX($C112:$G112,1,aux!$AL$1)>0,(G112-INDEX($C112:$G112,1,aux!$AL$1))/INDEX($C112:$G112,1,aux!$AL$1),"n.d.") -> n.d. | AA112: =O112-INDEX($K112:$O112,1,aux!$AL$1) -> 0 | AB112: n.d. | AC112: 0 | AD112: =+IF(INDEX($K112:$O112,1,aux!$AL$1)>0,(O112/INDEX($K112:$O112,1,aux!$AL$1))^(1/($O$3-INDEX($K$3:$O$3,1,aux!$AL$1)))-1,"n.d.") -> n.d. | AE112: =IF(INDEX($K112:$O112,1,aux!$AL$1)>0,(O112-INDEX($K112:$O112,1,aux!$AL$1))/INDEX($K112:$O112,1,aux!$AL$1),"n.d.") -> n.d. | AF112: 0 | AX112: 12 | BS112: 0
A113: 1207 | B113: Sementes e frutos oleaginosos | C113: 0 | D113: 0 | E113: 0 | F113: 0 | G113: 0 | H113: 0 | J113: 0 | K113: 0 | L113: 0 | M113: 0 | N113: 0 | O113: 0 | P113: 0 | R113: 0 | S113: 0 | U113: =G113-INDEX($C113:$G113,1,aux!$AL$1) -> 0 | V113: n.d. | W113: 0 | X113: =+IF(INDEX($C113:$G113,1,aux!$AL$1)>0,(G113/INDEX($C113:$G113,1,aux!$AL$1))^(1/($G$3-INDEX($C$3:$G$3,1,aux!$AL$1)))-1,"n.d.") -> n.d. | Y113: =IF(INDEX($C113:$G113,1,aux!$AL$1)>0,(G113-INDEX($C113:$G113,1,aux!$AL$1))/INDEX($C113:$G113,1,aux!$AL$1),"n.d.") -> n.d. | AA113: =O113-INDEX($K113:$O113,1,aux!$AL$1) -> 0 | AB113: n.d. | AC113: 0 | AD113: =+IF(INDEX($K113:$O113,1,aux!$AL$1)>0,(O113/INDEX($K113:$O113,1,aux!$AL$1))^(1/($O$3-INDEX($K$3:$O$3,1,aux!$AL$1)))-1,"n.d.") -> n.d. | AE113: =IF(INDEX($K113:$O113,1,aux!$AL$1)>0,(O113-INDEX($K113:$O113,1,aux!$AL$1))/INDEX($K113:$O113,1,aux!$AL$1),"n.d.") -> n.d. | AF113: 0 | AX113: 12 | BS113: 0
A114: 1208 | B114: Farinhas de sementes oleaginosas | C114: 0 | D114: 0 | E114: 0 | F114: 0 | G114: 0 | H114: 0 | J114: 0 | K114: 0 | L114: 0 | M114: 0 | N114: 0 | O114: 0 | P114: 0 | R114: 0 | S114: 0 | U114: =G114-INDEX($C114:$G114,1,aux!$AL$1) -> 0 | V114: n.d. | W114: 0 | X114: =+IF(INDEX($C114:$G114,1,aux!$AL$1)>0,(G114/INDEX($C114:$G114,1,aux!$AL$1))^(1/($G$3-INDEX($C$3:$G$3,1,aux!$AL$1)))-1,"n.d.") -> n.d. | Y114: =IF(INDEX($C114:$G114,1,aux!$AL$1)>0,(G114-INDEX($C114:$G114,1,aux!$AL$1))/INDEX($C114:$G114,1,aux!$AL$1),"n.d.") -> n.d. | AA114: =O114-INDEX($K114:$O114,1,aux!$AL$1) -> 0 | AB114: n.d. | AC114: 0 | AD114: =+IF(INDEX($K114:$O114,1,aux!$AL$1)>0,(O114/INDEX($K114:$O114,1,aux!$AL$1))^(1/($O$3-INDEX($K$3:$O$3,1,aux!$AL$1)))-1,"n.d.") -> n.d. | AE114: =IF(INDEX($K114:$O114,1,aux!$AL$1)>0,(O114-INDEX($K114:$O114,1,aux!$AL$1))/INDEX($K114:$O114,1,aux!$AL$1),"n.d.") -> n.d. | AF114: 0 | AX114: 12 | BS114: 0
A115: 1209 | B115: Sementes, frutos e esporos para sementeira | C115: 0 | D115: 0 | E115: 0 | F115: 0 | G115: 0 | H115: 0 | J115: 0 | K115: 0 | L115: 0 | M115: 0 | N115: 0 | O115: 0 | P115: 0 | R115: 0 | S115: 0 | U115: =G115-INDEX($C115:$G115,1,aux!$AL$1) -> 0 | V115: n.d. | W115: 0 | X115: =+IF(INDEX($C115:$G115,1,aux!$AL$1)>0,(G115/INDEX($C115:$G115,1,aux!$AL$1))^(1/($G$3-INDEX($C$3:$G$3,1,aux!$AL$1)))-1,"n.d.") -> n.d. | Y115: =IF(INDEX($C115:$G115,1,aux!$AL$1)>0,(G115-INDEX($C115:$G115,1,aux!$AL$1))/INDEX($C115:$G115,1,aux!$AL$1),"n.d.") -> n.d. | AA115: =O115-INDEX($K115:$O115,1,aux!$AL$1) -> 0 | AB115: n.d. | AC115: 0 | AD115: =+IF(INDEX($K115:$O115,1,aux!$AL$1)>0,(O115/INDEX($K115:$O115,1,aux!$AL$1))^(1/($O$3-INDEX($K$3:$O$3,1,aux!$AL$1)))-1,"n.d.") -> n.d. | AE115: =IF(INDEX($K115:$O115,1,aux!$AL$1)>0,(O115-INDEX($K115:$O115,1,aux!$AL$1))/INDEX($K115:$O115,1,aux!$AL$1),"n.d.") -> n.d. | AF115: 0 | AX115: 12 | BS115: 0
A116: 1210 | B116: Cones de lúpulo, frescos ou secos | C116: 0 | D116: 0 | E116: 0 | F116: 0 | G116: 0 | H116: 0 | J116: 0 | K116: 0 | L116: 0 | M116: 0 | N116: 0 | O116: 0 | P116: 0 | R116: 0 | S116: 0 | U116: =G116-INDEX($C116:$G116,1,aux!$AL$1) -> 0 | V116: n.d. | W116: 0 | X116: =+IF(INDEX($C116:$G116,1,aux!$AL$1)>0,(G116/INDEX($C116:$G116,1,aux!$AL$1))^(1/($G$3-INDEX($C$3:$G$3,1,aux!$AL$1)))-1,"n.d.") -> n.d. | Y116: =IF(INDEX($C116:$G116,1,aux!$AL$1)>0,(G116-INDEX($C116:$G116,1,aux!$AL$1))/INDEX($C116:$G116,1,aux!$AL$1),"n.d.") -> n.d. | AA116: =O116-INDEX($K116:$O116,1,aux!$AL$1) -> 0 | AB116: n.d. | AC116: 0 | AD116: =+IF(INDEX($K116:$O116,1,aux!$AL$1)>0,(O116/INDEX($K116:$O116,1,aux!$AL$1))^(1/($O$3-INDEX($K$3:$O$3,1,aux!$AL$1)))-1,"n.d.") -> n.d. | AE116: =IF(INDEX($K116:$O116,1,aux!$AL$1)>0,(O116-INDEX($K116:$O116,1,aux!$AL$1))/INDEX($K116:$O116,1,aux!$AL$1),"n.d.") -> n.d. | AF116: 0 | AX116: 12 | BS116: 0
A117: 1211 | B117: Plantas, partes de plantas para usos não alimentares | C117: 0 | D117: 0 | E117: 0 | F117: 0 | G117: 0 | H117: 0 | J117: 0 | K117: 0 | L117: 0 | M117: 0 | N117: 0 | O117: 0 | P117: 0 | R117: 0 | S117: 0 | U117: =G117-INDEX($C117:$G117,1,aux!$AL$1) -> 0 | V117: n.d. | W117: 0 | X117: =+IF(INDEX($C117:$G117,1,aux!$AL$1)>0,(G117/INDEX($C117:$G117,1,aux!$AL$1))^(1/($G$3-INDEX($C$3:$G$3,1,aux!$AL$1)))-1,"n.d.") -> n.d. | Y117: =IF(INDEX($C117:$G117,1,aux!$AL$1)>0,(G117-INDEX($C117:$G117,1,aux!$AL$1))/INDEX($C117:$G117,1,aux!$AL$1),"n.d.") -> n.d. | AA117: =O117-INDEX($K117:$O117,1,aux!$AL$1) -> 0 | AB117: n.d. | AC117: 0 | AD117: =+IF(INDEX($K117:$O117,1,aux!$AL$1)>0,(O117/INDEX($K117:$O117,1,aux!$AL$1))^(1/($O$3-INDEX($K$3:$O$3,1,aux!$AL$1)))-1,"n.d.") -> n.d. | AE117: =IF(INDEX($K117:$O117,1,aux!$AL$1)>0,(O117-INDEX($K117:$O117,1,aux!$AL$1))/INDEX($K117:$O117,1,aux!$AL$1),"n.d.") -> n.d. | AF117: 0 | AX117: 12 | BS117: 0
A118: 1212 | B118: Alfarroba, algas, beterraba sacarina, etc. | C118: 0 | D118: 0 | E118: 0 | F118: 0 | G118: 0 | H118: 0 | J118: 0 | K118: 0 | L118: 0 | M118: 0 | N118: 0 | O118: 0 | P118: 0 | R118: 0 | S118: 0 | U118: =G118-INDEX($C118:$G118,1,aux!$AL$1) -> 0 | V118: n.d. | W118: 0 | X118: =+IF(INDEX($C118:$G118,1,aux!$AL$1)>0,(G118/INDEX($C118:$G118,1,aux!$AL$1))^(1/($G$3-INDEX($C$3:$G$3,1,aux!$AL$1)))-1,"n.d.") -> n.d. | Y118: =IF(INDEX($C118:$G118,1,aux!$AL$1)>0,(G118-INDEX($C118:$G118,1,aux!$AL$1))/INDEX($C118:$G118,1,aux!$AL$1),"n.d.") -> n.d. | AA118: =O118-INDEX($K118:$O118,1,aux!$AL$1) -> 0 | AB118: n.d. | AC118: 0 | AD118: =+IF(INDEX($K118:$O118,1,aux!$AL$1)>0,(O118/INDEX($K118:$O118,1,aux!$AL$1))^(1/($O$3-INDEX($K$3:$O$3,1,aux!$AL$1)))-1,"n.d.") -> n.d. | AE118: =IF(INDEX($K118:$O118,1,aux!$AL$1)>0,(O118-INDEX($K118:$O118,1,aux!$AL$1))/INDEX($K118:$O118,1,aux!$AL$1),"n.d.") -> n.d. | AF118: 0 | AX118: 12 | BS118: 0
A119: 1213 | B119: Palhas e cascas de cereais | C119: 0 | D119: 0 | E119: 0 | F119: 0 | G119: 0 | H119: 0 | J119: 0 | K119: 0 | L119: 0 | M119: 0 | N119: 0 | O119: 0 | P119: 0 | R119: 0 | S119: 0 | U119: =G119-INDEX($C119:$G119,1,aux!$AL$1) -> 0 | V119: n.d. | W119: 0 | X119: =+IF(INDEX($C119:$G119,1,aux!$AL$1)>0,(G119/INDEX($C119:$G119,1,aux!$AL$1))^(1/($G$3-INDEX($C$3:$G$3,1,aux!$AL$1)))-1,"n.d.") -> n.d. | Y119: =IF(INDEX($C119:$G119,1,aux!$AL$1)>0,(G119-INDEX($C119:$G119,1,aux!$AL$1))/INDEX($C119:$G119,1,aux!$AL$1),"n.d.") -> n.d. | AA119: =O119-INDEX($K119:$O119,1,aux!$AL$1) -> 0 | AB119: n.d. | AC119: 0 | AD119: =+IF(INDEX($K119:$O119,1,aux!$AL$1)>0,(O119/INDEX($K119:$O119,1,aux!$AL$1))^(1/($O$3-INDEX($K$3:$O$3,1,aux!$AL$1)))-1,"n.d.") -> n.d. | AE119: =IF(INDEX($K119:$O119,1,aux!$AL$1)>0,(O119-INDEX($K119:$O119,1,aux!$AL$1))/INDEX($K119:$O119,1,aux!$AL$1),"n.d.") -> n.d. | AF119: 0 | AX119: 12 | BS119: 0
A120: 1214 | B120: Rutabagas e outros produtos forrageiros | C120: 0 | D120: 0 | E120: 0 | F120: 0 | G120: 0 | H120: 0 | J120: 0 | K120: 0 | L120: 0 | M120: 0 | N120: 0 | O120: 0 | P120: 0 | R120: 0 | S120: 0 | U120: =G120-INDEX($C120:$G120,1,aux!$AL$1) -> 0 | V120: n.d. | W120: 0 | X120: =+IF(INDEX($C120:$G120,1,aux!$AL$1)>0,(G120/INDEX($C120:$G120,1,aux!$AL$1))^(1/($G$3-INDEX($C$3:$G$3,1,aux!$AL$1)))-1,"n.d.") -> n.d. | Y120: =IF(INDEX($C120:$G120,1,aux!$AL$1)>0,(G120-INDEX($C120:$G120,1,aux!$AL$1))/INDEX($C120:$G120,1,aux!$AL$1),"n.d.") -> n.d. | AA120: =O120-INDEX($K120:$O120,1,aux!$AL$1) -> 0 | AB120: n.d. | AC120: 0 | AD120: =+IF(INDEX($K120:$O120,1,aux!$AL$1)>0,(O120/INDEX($K120:$O120,1,aux!$AL$1))^(1/($O$3-INDEX($K$3:$O$3,1,aux!$AL$1)))-1,"n.d.") -> n.d. | AE120: =IF(INDEX($K120:$O120,1,aux!$AL$1)>0,(O120-INDEX($K120:$O120,1,aux!$AL$1))/INDEX($K120:$O120,1,aux!$AL$1),"n.d.") -> n.d. | AF120: 0 | AX120: 12 | BS120: 0
A121: 12SS | B121: Sementes e frutos oleaginosos, etc. | C121: 0 | D121: 0 | E121: 0 | F121: 0 | G121: 0 | H121: 0 | J121: 0 | K121: 0 | L121: 0 | M121: 0 | N121: 0 | O121: 0 | P121: 0 | R121: 0 | S121: 0 | U121: =G121-INDEX($C121:$G121,1,aux!$AL$1) -> 0 | V121: n.d. | W121: 0 | X121: =+IF(INDEX($C121:$G121,1,aux!$AL$1)>0,(G121/INDEX($C121:$G121,1,aux!$AL$1))^(1/($G$3-INDEX($C$3:$G$3,1,aux!$AL$1)))-1,"n.d.") -> n.d. | Y121: =IF(INDEX($C121:$G121,1,aux!$AL$1)>0,(G121-INDEX($C121:$G121,1,aux!$AL$1))/INDEX($C121:$G121,1,aux!$AL$1),"n.d.") -> n.d. | AA121: =O121-INDEX($K121:$O121,1,aux!$AL$1) -> 0 | AB121: n.d. | AC121: 0 | AD121: =+IF(INDEX($K121:$O121,1,aux!$AL$1)>0,(O121/INDEX($K121:$O121,1,aux!$AL$1))^(1/($O$3-INDEX($K$3:$O$3,1,aux!$AL$1)))-1,"n.d.") -> n.d. | AE121: =IF(INDEX($K121:$O121,1,aux!$AL$1)>0,(O121-INDEX($K121:$O121,1,aux!$AL$1))/INDEX($K121:$O121,1,aux!$AL$1),"n.d.") -> n.d. | AF121: 0 | AX121: 12 | BS121: 0
A122: 1302 | B122: Sucos e extratos vegetais, etc. | C122: 0 | D122: 0 | E122: 0 | F122: 0 | G122: 0 | H122: 0 | J122: 0 | K122: 0 | L122: 0 | M122: 0 | N122: 0 | O122: 0 | P122: 0 | R122: 0 | S122: 0 | U122: =G122-INDEX($C122:$G122,1,aux!$AL$1) -> 0 | V122: n.d. | W122: 0 | X122: =+IF(INDEX($C122:$G122,1,aux!$AL$1)>0,(G122/INDEX($C122:$G122,1,aux!$AL$1))^(1/($G$3-INDEX($C$3:$G$3,1,aux!$AL$1)))-1,"n.d.") -> n.d. | Y122: =IF(INDEX($C122:$G122,1,aux!$AL$1)>0,(G122-INDEX($C122:$G122,1,aux!$AL$1))/INDEX($C122:$G122,1,aux!$AL$1),"n.d.") -> n.d. | AA122: =O122-INDEX($K122:$O122,1,aux!$AL$1) -> 0 | AB122: n.d. | AC122: 0 | AD122: =+IF(INDEX($K122:$O122,1,aux!$AL$1)>0,(O122/INDEX($K122:$O122,1,aux!$AL$1))^(1/($O$3-INDEX($K$3:$O$3,1,aux!$AL$1)))-1,"n.d.") -> n.d. | AE122: =IF(INDEX($K122:$O122,1,aux!$AL$1)>0,(O122-INDEX($K122:$O122,1,aux!$AL$1))/INDEX($K122:$O122,1,aux!$AL$1),"n.d.") -> n.d. | AF122: 0 | BS122: 0
A123: 13SS | B123: Gomas, resinas e outros sucos e extratos vegetais | C123: 0 | D123: 0 | E123: 0 | F123: 0 | G123: 0 | H123: 0 | J123: 0 | K123: 0 | L123: 0 | M123: 0 | N123: 0 | O123: 0 | P123: 0 | R123: 0 | S123: 0 | U123: =G123-INDEX($C123:$G123,1,aux!$AL$1) -> 0 | V123: n.d. | W123: 0 | X123: =+IF(INDEX($C123:$G123,1,aux!$AL$1)>0,(G123/INDEX($C123:$G123,1,aux!$AL$1))^(1/($G$3-INDEX($C$3:$G$3,1,aux!$AL$1)))-1,"n.d.") -> n.d. | Y123: =IF(INDEX($C123:$G123,1,aux!$AL$1)>0,(G123-INDEX($C123:$G123,1,aux!$AL$1))/INDEX($C123:$G123,1,aux!$AL$1),"n.d.") -> n.d. | AA123: =O123-INDEX($K123:$O123,1,aux!$AL$1) -> 0 | AB123: n.d. | AC123: 0 | AD123: =+IF(INDEX($K123:$O123,1,aux!$AL$1)>0,(O123/INDEX($K123:$O123,1,aux!$AL$1))^(1/($O$3-INDEX($K$3:$O$3,1,aux!$AL$1)))-1,"n.d.") -> n.d. | AE123: =IF(INDEX($K123:$O123,1,aux!$AL$1)>0,(O123-INDEX($K123:$O123,1,aux!$AL$1))/INDEX($K123:$O123,1,aux!$AL$1),"n.d.") -> n.d. | AF123: 0 | AX123: 13 | BS123: 0
A124: 1401 | B124: Matérias vegetais utilizadas em cestaria | C124: 0 | D124: 0 | E124: 0 | F124: 0 | G124: 0 | H124: 0 | J124: 0 | K124: 0 | L124: 0 | M124: 0 | N124: 0 | O124: 0 | P124: 0 | R124: 0 | S124: 0 | U124: =G124-INDEX($C124:$G124,1,aux!$AL$1) -> 0 | V124: n.d. | W124: 0 | X124: =+IF(INDEX($C124:$G124,1,aux!$AL$1)>0,(G124/INDEX($C124:$G124,1,aux!$AL$1))^(1/($G$3-INDEX($C$3:$G$3,1,aux!$AL$1)))-1,"n.d.") -> n.d. | Y124: =IF(INDEX($C124:$G124,1,aux!$AL$1)>0,(G124-INDEX($C124:$G124,1,aux!$AL$1))/INDEX($C124:$G124,1,aux!$AL$1),"n.d.") -> n.d. | AA124: =O124-INDEX($K124:$O124,1,aux!$AL$1) -> 0 | AB124: n.d. | AC124: 0 | AD124: =+IF(INDEX($K124:$O124,1,aux!$AL$1)>0,(O124/INDEX($K124:$O124,1,aux!$AL$1))^(1/($O$3-INDEX($K$3:$O$3,1,aux!$AL$1)))-1,"n.d.") -> n.d. | AE124: =IF(INDEX($K124:$O124,1,aux!$AL$1)>0,(O124-INDEX($K124:$O124,1,aux!$AL$1))/INDEX($K124:$O124,1,aux!$AL$1),"n.d.") -> n.d. | AF124: 0 | BS124: 0
A125: 1404 | B125: Outros produtos vegetais | C125: 0 | D125: 0 | E125: 0 | F125: 0 | G125: 0 | H125: 0 | J125: 0 | K125: 0 | L125: 0 | M125: 0 | N125: 0 | O125: 0 | P125: 0 | R125: 0 | S125: 0 | U125: =G125-INDEX($C125:$G125,1,aux!$AL$1) -> 0 | V125: n.d. | W125: 0 | X125: =+IF(INDEX($C125:$G125,1,aux!$AL$1)>0,(G125/INDEX($C125:$G125,1,aux!$AL$1))^(1/($G$3-INDEX($C$3:$G$3,1,aux!$AL$1)))-1,"n.d.") -> n.d. | Y125: =IF(INDEX($C125:$G125,1,aux!$AL$1)>0,(G125-INDEX($C125:$G125,1,aux!$AL$1))/INDEX($C125:$G125,1,aux!$AL$1),"n.d.") -> n.d. | AA125: =O125-INDEX($K125:$O125,1,aux!$AL$1) -> 0 | AB125: n.d. | AC125: 0 | AD125: =+IF(INDEX($K125:$O125,1,aux!$AL$1)>0,(O125/INDEX($K125:$O125,1,aux!$AL$1))^(1/($O$3-INDEX($K$3:$O$3,1,aux!$AL$1)))-1,"n.d.") -> n.d. | AE125: =IF(INDEX($K125:$O125,1,aux!$AL$1)>0,(O125-INDEX($K125:$O125,1,aux!$AL$1))/INDEX($K125:$O125,1,aux!$AL$1),"n.d.") -> n.d. | AF125: 0 | AX125: 14 | BS125: 0
A126: 14SS | B126: Matérias para entrançar e outros | C126: 0 | D126: 0 | E126: 0 | F126: 0 | G126: 0 | H126: 0 | J126: 0 | K126: 0 | L126: 0 | M126: 0 | N126: 0 | O126: 0 | P126: 0 | R126: 0 | S126: 0 | U126: =G126-INDEX($C126:$G126,1,aux!$AL$1) -> 0 | V126: n.d. | W126: 0 | X126: =+IF(INDEX($C126:$G126,1,aux!$AL$1)>0,(G126/INDEX($C126:$G126,1,aux!$AL$1))^(1/($G$3-INDEX($C$3:$G$3,1,aux!$AL$1)))-1,"n.d.") -> n.d. | Y126: =IF(INDEX($C126:$G126,1,aux!$AL$1)>0,(G126-INDEX($C126:$G126,1,aux!$AL$1))/INDEX($C126:$G126,1,aux!$AL$1),"n.d.") -> n.d. | AA126: =O126-INDEX($K126:$O126,1,aux!$AL$1) -> 0 | AB126: n.d. | AC126: 0 | AD126: =+IF(INDEX($K126:$O126,1,aux!$AL$1)>0,(O126/INDEX($K126:$O126,1,aux!$AL$1))^(1/($O$3-INDEX($K$3:$O$3,1,aux!$AL$1)))-1,"n.d.") -> n.d. | AE126: =IF(INDEX($K126:$O126,1,aux!$AL$1)>0,(O126-INDEX($K126:$O126,1,aux!$AL$1))/INDEX($K126:$O126,1,aux!$AL$1),"n.d.") -> n.d. | AF126: 0 | AX126: 14 | BS126: 0
A127: 1501 | B127: Gorduras de suínos e aves | C127: 0 | D127: 0 | E127: 0 | F127: 0 | G127: 0 | H127: 0 | J127: 0 | K127: 0 | L127: 0 | M127: 0 | N127: 0 | O127: 0 | P127: 0 | R127: 0 | S127: 0 | U127: =G127-INDEX($C127:$G127,1,aux!$AL$1) -> 0 | V127: n.d. | W127: 0 | X127: =+IF(INDEX($C127:$G127,1,aux!$AL$1)>0,(G127/INDEX($C127:$G127,1,aux!$AL$1))^(1/($G$3-INDEX($C$3:$G$3,1,aux!$AL$1)))-1,"n.d.") -> n.d. | Y127: =IF(INDEX($C127:$G127,1,aux!$AL$1)>0,(G127-INDEX($C127:$G127,1,aux!$AL$1))/INDEX($C127:$G127,1,aux!$AL$1),"n.d.") -> n.d. | AA127: =O127-INDEX($K127:$O127,1,aux!$AL$1) -> 0 | AB127: n.d. | AC127: 0 | AD127: =+IF(INDEX($K127:$O127,1,aux!$AL$1)>0,(O127/INDEX($K127:$O127,1,aux!$AL$1))^(1/($O$3-INDEX($K$3:$O$3,1,aux!$AL$1)))-1,"n.d.") -> n.d. | AE127: =IF(INDEX($K127:$O127,1,aux!$AL$1)>0,(O127-INDEX($K127:$O127,1,aux!$AL$1))/INDEX($K127:$O127,1,aux!$AL$1),"n.d.") -> n.d. | AF127: 0 | BS127: 0
A128: 1502 | B128: Gorduras de bovinos, ovinos ou caprinos | C128: 0 | D128: 0 | E128: 0 | F128: 0 | G128: 0 | H128: 0 | J128: 0 | K128: 0 | L128: 0 | M128: 0 | N128: 0 | O128: 0 | P128: 0 | R128: 0 | S128: 0 | U128: =G128-INDEX($C128:$G128,1,aux!$AL$1) -> 0 | V128: n.d. | W128: 0 | X128: =+IF(INDEX($C128:$G128,1,aux!$AL$1)>0,(G128/INDEX($C128:$G128,1,aux!$AL$1))^(1/($G$3-INDEX($C$3:$G$3,1,aux!$AL$1)))-1,"n.d.") -> n.d. | Y128: =IF(INDEX($C128:$G128,1,aux!$AL$1)>0,(G128-INDEX($C128:$G128,1,aux!$AL$1))/INDEX($C128:$G128,1,aux!$AL$1),"n.d.") -> n.d. | AA128: =O128-INDEX($K128:$O128,1,aux!$AL$1) -> 0 | AB128: n.d. | AC128: 0 | AD128: =+IF(INDEX($K128:$O128,1,aux!$AL$1)>0,(O128/INDEX($K128:$O128,1,aux!$AL$1))^(1/($O$3-INDEX($K$3:$O$3,1,aux!$AL$1)))-1,"n.d.") -> n.d. | AE128: =IF(INDEX($K128:$O128,1,aux!$AL$1)>0,(O128-INDEX($K128:$O128,1,aux!$AL$1))/INDEX($K128:$O128,1,aux!$AL$1),"n.d.") -> n.d. | AF128: 0 | AX128: 15 | BS128: 0
A129: 1503 | B129: Estearina solar, óleo de banha de porco, etc. | C129: 0 | D129: 0 | E129: 0 | F129: 0 | G129: 0 | H129: 0 | J129: 0 | K129: 0 | L129: 0 | M129: 0 | N129: 0 | O129: 0 | P129: 0 | R129: 0 | S129: 0 | U129: =G129-INDEX($C129:$G129,1,aux!$AL$1) -> 0 | V129: n.d. | W129: 0 | X129: =+IF(INDEX($C129:$G129,1,aux!$AL$1)>0,(G129/INDEX($C129:$G129,1,aux!$AL$1))^(1/($G$3-INDEX($C$3:$G$3,1,aux!$AL$1)))-1,"n.d.") -> n.d. | Y129: =IF(INDEX($C129:$G129,1,aux!$AL$1)>0,(G129-INDEX($C129:$G129,1,aux!$AL$1))/INDEX($C129:$G129,1,aux!$AL$1),"n.d.") -> n.d. | AA129: =O129-INDEX($K129:$O129,1,aux!$AL$1) -> 0 | AB129: n.d. | AC129: 0 | AD129: =+IF(INDEX($K129:$O129,1,aux!$AL$1)>0,(O129/INDEX($K129:$O129,1,aux!$AL$1))^(1/($O$3-INDEX($K$3:$O$3,1,aux!$AL$1)))-1,"n.d.") -> n.d. | AE129: =IF(INDEX($K129:$O129,1,aux!$AL$1)>0,(O129-INDEX($K129:$O129,1,aux!$AL$1))/INDEX($K129:$O129,1,aux!$AL$1),"n.d.") -> n.d. | AF129: 0 | AX129: 15 | BS129: 0
A130: 1504 | B130: Gorduras e óleos de peixes,etc. | C130: 0 | D130: 0 | E130: 0 | F130: 0 | G130: 0 | H130: 0 | J130: 0 | K130: 0 | L130: 0 | M130: 0 | N130: 0 | O130: 0 | P130: 0 | R130: 0 | S130: 0 | U130: =G130-INDEX($C130:$G130,1,aux!$AL$1) -> 0 | V130: n.d. | W130: 0 | X130: =+IF(INDEX($C130:$G130,1,aux!$AL$1)>0,(G130/INDEX($C130:$G130,1,aux!$AL$1))^(1/($G$3-INDEX($C$3:$G$3,1,aux!$AL$1)))-1,"n.d.") -> n.d. | Y130: =IF(INDEX($C130:$G130,1,aux!$AL$1)>0,(G130-INDEX($C130:$G130,1,aux!$AL$1))/INDEX($C130:$G130,1,aux!$AL$1),"n.d.") -> n.d. | AA130: =O130-INDEX($K130:$O130,1,aux!$AL$1) -> 0 | AB130: n.d. | AC130: 0 | AD130: =+IF(INDEX($K130:$O130,1,aux!$AL$1)>0,(O130/INDEX($K130:$O130,1,aux!$AL$1))^(1/($O$3-INDEX($K$3:$O$3,1,aux!$AL$1)))-1,"n.d.") -> n.d. | AE130: =IF(INDEX($K130:$O130,1,aux!$AL$1)>0,(O130-INDEX($K130:$O130,1,aux!$AL$1))/INDEX($K130:$O130,1,aux!$AL$1),"n.d.") -> n.d. | AF130: 0 | AX130: 15 | BS130: 0
A131: 1505 | B131: Suarda e derivados, incluindo lanolina | C131: 0 | D131: 0 | E131: 0 | F131: 0 | G131: 0 | H131: 0 | J131: 0 | K131: 0 | L131: 0 | M131: 0 | N131: 0 | O131: 0 | P131: 0 | R131: 0 | S131: 0 | U131: =G131-INDEX($C131:$G131,1,aux!$AL$1) -> 0 | V131: n.d. | W131: 0 | X131: =+IF(INDEX($C131:$G131,1,aux!$AL$1)>0,(G131/INDEX($C131:$G131,1,aux!$AL$1))^(1/($G$3-INDEX($C$3:$G$3,1,aux!$AL$1)))-1,"n.d.") -> n.d. | Y131: =IF(INDEX($C131:$G131,1,aux!$AL$1)>0,(G131-INDEX($C131:$G131,1,aux!$AL$1))/INDEX($C131:$G131,1,aux!$AL$1),"n.d.") -> n.d. | AA131: =O131-INDEX($K131:$O131,1,aux!$AL$1) -> 0 | AB131: n.d. | AC131: 0 | AD131: =+IF(INDEX($K131:$O131,1,aux!$AL$1)>0,(O131/INDEX($K131:$O131,1,aux!$AL$1))^(1/($O$3-INDEX($K$3:$O$3,1,aux!$AL$1)))-1,"n.d.") -> n.d. | AE131: =IF(INDEX($K131:$O131,1,aux!$AL$1)>0,(O131-INDEX($K131:$O131,1,aux!$AL$1))/INDEX($K131:$O131,1,aux!$AL$1),"n.d.") -> n.d. | AF131: 0 | AX131: 15 | BS131: 0
A132: 1506 | B132: Outras gorduras e óleos animais e suas frações | C132: 0 | D132: 0 | E132: 0 | F132: 0 | G132: 0 | H132: 0 | J132: 0 | K132: 0 | L132: 0 | M132: 0 | N132: 0 | O132: 0 | P132: 0 | R132: 0 | S132: 0 | U132: =G132-INDEX($C132:$G132,1,aux!$AL$1) -> 0 | V132: =IF($U$236<>0,U132/$U$236, "n.d.") -> n.d. | W132: =IF($U$320<>0,U132/$U$320, "n.d.") -> 0 | X132: =+IF(INDEX($C132:$G132,1,aux!$AL$1)>0,(G132/INDEX($C132:$G132,1,aux!$AL$1))^(1/($G$3-INDEX($C$3:$G$3,1,aux!$AL$1)))-1,"n.d.") -> n.d. | Y132: =IF(INDEX($C132:$G132,1,aux!$AL$1)>0,(G132-INDEX($C132:$G132,1,aux!$AL$1))/INDEX($C132:$G132,1,aux!$AL$1),"n.d.") -> n.d. | AA132: =O132-INDEX($K132:$O132,1,aux!$AL$1) -> 0 | AB132: =IF($AA$236<>0,AA132/$AA$236, "n.d.") -> n.d. | AC132: =IF($AA$320<>0,AA132/$AA$320, "n.d.") -> 0 | AD132: =+IF(INDEX($K132:$O132,1,aux!$AL$1)>0,(O132/INDEX($K132:$O132,1,aux!$AL$1))^(1/($O$3-INDEX($K$3:$O$3,1,aux!$AL$1)))-1,"n.d.") -> n.d. | AE132: =IF(INDEX($K132:$O132,1,aux!$AL$1)>0,(O132-INDEX($K132:$O132,1,aux!$AL$1))/INDEX($K132:$O132,1,aux!$AL$1),"n.d.") -> n.d. | AF132: =SUM(C132:S132) -> 0 | AX132: 15 | BS132: 0
A133: 1507 | B133: Óleo de soja e suas frações | C133: 0 | D133: 0 | E133: 0 | F133: 0 | G133: 0 | H133: 0 | J133: 0 | K133: 0 | L133: 0 | M133: 0 | N133: 0 | O133: 0 | P133: 0 | R133: 0 | S133: 0 | U133: =G133-INDEX($C133:$G133,1,aux!$AL$1) -> 0 | V133: n.d. | W133: 0 | X133: =+IF(INDEX($C133:$G133,1,aux!$AL$1)>0,(G133/INDEX($C133:$G133,1,aux!$AL$1))^(1/($G$3-INDEX($C$3:$G$3,1,aux!$AL$1)))-1,"n.d.") -> n.d. | Y133: =IF(INDEX($C133:$G133,1,aux!$AL$1)>0,(G133-INDEX($C133:$G133,1,aux!$AL$1))/INDEX($C133:$G133,1,aux!$AL$1),"n.d.") -> n.d. | AA133: =O133-INDEX($K133:$O133,1,aux!$AL$1) -> 0 | AB133: n.d. | AC133: 0 | AD133: =+IF(INDEX($K133:$O133,1,aux!$AL$1)>0,(O133/INDEX($K133:$O133,1,aux!$AL$1))^(1/($O$3-INDEX($K$3:$O$3,1,aux!$AL$1)))-1,"n.d.") -> n.d. | AE133: =IF(INDEX($K133:$O133,1,aux!$AL$1)>0,(O133-INDEX($K133:$O133,1,aux!$AL$1))/INDEX($K133:$O133,1,aux!$AL$1),"n.d.") -> n.d. | AF133: 0 | AX133: 15 | BS133: =SUM(C133:G133,K133:O133) -> 0
A134: 1508 | B134: Óleo de amendoim e suas frações | C134: 0 | D134: 0 | E134: 0 | F134: 0 | G134: 0 | H134: 0 | J134: 0 | K134: 0 | L134: 0 | M134: 0 | N134: 0 | O134: 0 | P134: 0 | R134: 0 | S134: 0 | U134: =G134-INDEX($C134:$G134,1,aux!$AL$1) -> 0 | V134: n.d. | W134: 0 | X134: =+IF(INDEX($C134:$G134,1,aux!$AL$1)>0,(G134/INDEX($C134:$G134,1,aux!$AL$1))^(1/($G$3-INDEX($C$3:$G$3,1,aux!$AL$1)))-1,"n.d.") -> n.d. | Y134: =IF(INDEX($C134:$G134,1,aux!$AL$1)>0,(G134-INDEX($C134:$G134,1,aux!$AL$1))/INDEX($C134:$G134,1,aux!$AL$1),"n.d.") -> n.d. | AA134: =O134-INDEX($K134:$O134,1,aux!$AL$1) -> 0 | AB134: n.d. | AC134: 0 | AD134: =+IF(INDEX($K134:$O134,1,aux!$AL$1)>0,(O134/INDEX($K134:$O134,1,aux!$AL$1))^(1/($O$3-INDEX($K$3:$O$3,1,aux!$AL$1)))-1,"n.d.") -> n.d. | AE134: =IF(INDEX($K134:$O134,1,aux!$AL$1)>0,(O134-INDEX($K134:$O134,1,aux!$AL$1))/INDEX($K134:$O134,1,aux!$AL$1),"n.d.") -> n.d. | AF134: 0 | AX134: 15 | BS134: 0
A135: 1509 | B135: Azeite (processos mecânicos ou físicos) | C135: 0 | D135: 0 | E135: 0 | F135: 0 | G135: 0 | H135: 0 | J135: 0 | K135: 0 | L135: 0 | M135: 0 | N135: 0 | O135: 0 | P135: 0 | R135: 0 | S135: 0 | U135: =G135-INDEX($C135:$G135,1,aux!$AL$1) -> 0 | V135: n.d. | W135: 0 | X135: =+IF(INDEX($C135:$G135,1,aux!$AL$1)>0,(G135/INDEX($C135:$G135,1,aux!$AL$1))^(1/($G$3-INDEX($C$3:$G$3,1,aux!$AL$1)))-1,"n.d.") -> n.d. | Y135: =IF(INDEX($C135:$G135,1,aux!$AL$1)>0,(G135-INDEX($C135:$G135,1,aux!$AL$1))/INDEX($C135:$G135,1,aux!$AL$1),"n.d.") -> n.d. | AA135: =O135-INDEX($K135:$O135,1,aux!$AL$1) -> 0 | AB135: n.d. | AC135: 0 | AD135: =+IF(INDEX($K135:$O135,1,aux!$AL$1)>0,(O135/INDEX($K135:$O135,1,aux!$AL$1))^(1/($O$3-INDEX($K$3:$O$3,1,aux!$AL$1)))-1,"n.d.") -> n.d. | AE135: =IF(INDEX($K135:$O135,1,aux!$AL$1)>0,(O135-INDEX($K135:$O135,1,aux!$AL$1))/INDEX($K135:$O135,1,aux!$AL$1),"n.d.") -> n.d. | AF135: 0 | AX135: 15 | BS135: 0
A136: 1510 | B136: Óleos de azeitonas obtidos por outros processos | C136: 0 | D136: 0 | E136: 0 | F136: 0 | G136: 0 | H136: 0 | J136: 0 | K136: 0 | L136: 0 | M136: 0 | N136: 0 | O136: 0 | P136: 0 | R136: 0 | S136: 0 | U136: =G136-INDEX($C136:$G136,1,aux!$AL$1) -> 0 | V136: n.d. | W136: 0 | X136: =+IF(INDEX($C136:$G136,1,aux!$AL$1)>0,(G136/INDEX($C136:$G136,1,aux!$AL$1))^(1/($G$3-INDEX($C$3:$G$3,1,aux!$AL$1)))-1,"n.d.") -> n.d. | Y136: =IF(INDEX($C136:$G136,1,aux!$AL$1)>0,(G136-INDEX($C136:$G136,1,aux!$AL$1))/INDEX($C136:$G136,1,aux!$AL$1),"n.d.") -> n.d. | AA136: =O136-INDEX($K136:$O136,1,aux!$AL$1) -> 0 | AB136: n.d. | AC136: 0 | AD136: =+IF(INDEX($K136:$O136,1,aux!$AL$1)>0,(O136/INDEX($K136:$O136,1,aux!$AL$1))^(1/($O$3-INDEX($K$3:$O$3,1,aux!$AL$1)))-1,"n.d.") -> n.d. | AE136: =IF(INDEX($K136:$O136,1,aux!$AL$1)>0,(O136-INDEX($K136:$O136,1,aux!$AL$1))/INDEX($K136:$O136,1,aux!$AL$1),"n.d.") -> n.d. | AF136: 0 | AX136: 15 | BS136: 0
A137: 1511 | B137: Óleo de palma e suas frações | C137: 0 | D137: 0 | E137: 0 | F137: 0 | G137: 0 | H137: 0 | J137: 0 | K137: 0 | L137: 0 | M137: 0 | N137: 0 | O137: 0 | P137: 0 | R137: 0 | S137: 0 | U137: =G137-INDEX($C137:$G137,1,aux!$AL$1) -> 0 | V137: n.d. | W137: 0 | X137: =+IF(INDEX($C137:$G137,1,aux!$AL$1)>0,(G137/INDEX($C137:$G137,1,aux!$AL$1))^(1/($G$3-INDEX($C$3:$G$3,1,aux!$AL$1)))-1,"n.d.") -> n.d. | Y137: =IF(INDEX($C137:$G137,1,aux!$AL$1)>0,(G137-INDEX($C137:$G137,1,aux!$AL$1))/INDEX($C137:$G137,1,aux!$AL$1),"n.d.") -> n.d. | AA137: =O137-INDEX($K137:$O137,1,aux!$AL$1) -> 0 | AB137: n.d. | AC137: 0 | AD137: =+IF(INDEX($K137:$O137,1,aux!$AL$1)>0,(O137/INDEX($K137:$O137,1,aux!$AL$1))^(1/($O$3-INDEX($K$3:$O$3,1,aux!$AL$1)))-1,"n.d.") -> n.d. | AE137: =IF(INDEX($K137:$O137,1,aux!$AL$1)>0,(O137-INDEX($K137:$O137,1,aux!$AL$1))/INDEX($K137:$O137,1,aux!$AL$1),"n.d.") -> n.d. | AF137: 0 | AX137: 15 | BS137: 0
A138: 1512 | B138: Óleos de girassol, cártamo ou algodão | C138: 0 | D138: 0 | E138: 0 | F138: 0 | G138: 0 | H138: 0 | J138: 0 | K138: 0 | L138: 0 | M138: 0 | N138: 0 | O138: 0 | P138: 0 | R138: 0 | S138: 0 | U138: =G138-INDEX($C138:$G138,1,aux!$AL$1) -> 0 | V138: n.d. | W138: 0 | X138: =+IF(INDEX($C138:$G138,1,aux!$AL$1)>0,(G138/INDEX($C138:$G138,1,aux!$AL$1))^(1/($G$3-INDEX($C$3:$G$3,1,aux!$AL$1)))-1,"n.d.") -> n.d. | Y138: =IF(INDEX($C138:$G138,1,aux!$AL$1)>0,(G138-INDEX($C138:$G138,1,aux!$AL$1))/INDEX($C138:$G138,1,aux!$AL$1),"n.d.") -> n.d. | AA138: =O138-INDEX($K138:$O138,1,aux!$AL$1) -> 0 | AB138: n.d. | AC138: 0 | AD138: =+IF(INDEX($K138:$O138,1,aux!$AL$1)>0,(O138/INDEX($K138:$O138,1,aux!$AL$1))^(1/($O$3-INDEX($K$3:$O$3,1,aux!$AL$1)))-1,"n.d.") -> n.d. | AE138: =IF(INDEX($K138:$O138,1,aux!$AL$1)>0,(O138-INDEX($K138:$O138,1,aux!$AL$1))/INDEX($K138:$O138,1,aux!$AL$1),"n.d.") -> n.d. | AF138: 0 | AX138: 15 | BS138: 0
A139: 1513 | B139: Óleos de coco, amêndoa de palmiste, etc. | C139: 0 | D139: 0 | E139: 0 | F139: 0 | G139: 0 | H139: 0 | J139: 0 | K139: 0 | L139: 0 | M139: 0 | N139: 0 | O139: 0 | P139: 0 | R139: 0 | S139: 0 | U139: =G139-INDEX($C139:$G139,1,aux!$AL$1) -> 0 | V139: n.d. | W139: 0 | X139: =+IF(INDEX($C139:$G139,1,aux!$AL$1)>0,(G139/INDEX($C139:$G139,1,aux!$AL$1))^(1/($G$3-INDEX($C$3:$G$3,1,aux!$AL$1)))-1,"n.d.") -> n.d. | Y139: =IF(INDEX($C139:$G139,1,aux!$AL$1)>0,(G139-INDEX($C139:$G139,1,aux!$AL$1))/INDEX($C139:$G139,1,aux!$AL$1),"n.d.") -> n.d. | AA139: =O139-INDEX($K139:$O139,1,aux!$AL$1) -> 0 | AB139: n.d. | AC139: 0 | AD139: =+IF(INDEX($K139:$O139,1,aux!$AL$1)>0,(O139/INDEX($K139:$O139,1,aux!$AL$1))^(1/($O$3-INDEX($K$3:$O$3,1,aux!$AL$1)))-1,"n.d.") -> n.d. | AE139: =IF(INDEX($K139:$O139,1,aux!$AL$1)>0,(O139-INDEX($K139:$O139,1,aux!$AL$1))/INDEX($K139:$O139,1,aux!$AL$1),"n.d.") -> n.d. | AF139: 0 | AX139: 15 | BS139: 0
A140: 1514 | B140: Óleos de nabo silvestre, colza ou mostarda | C140: 0 | D140: 0 | E140: 0 | F140: 0 | G140: 0 | H140: 0 | J140: 0 | K140: 0 | L140: 0 | M140: 0 | N140: 0 | O140: 0 | P140: 0 | R140: 0 | S140: 0 | U140: =G140-INDEX($C140:$G140,1,aux!$AL$1) -> 0 | V140: n.d. | W140: 0 | X140: =+IF(INDEX($C140:$G140,1,aux!$AL$1)>0,(G140/INDEX($C140:$G140,1,aux!$AL$1))^(1/($G$3-INDEX($C$3:$G$3,1,aux!$AL$1)))-1,"n.d.") -> n.d. | Y140: =IF(INDEX($C140:$G140,1,aux!$AL$1)>0,(G140-INDEX($C140:$G140,1,aux!$AL$1))/INDEX($C140:$G140,1,aux!$AL$1),"n.d.") -> n.d. | AA140: =O140-INDEX($K140:$O140,1,aux!$AL$1) -> 0 | AB140: n.d. | AC140: 0 | AD140: =+IF(INDEX($K140:$O140,1,aux!$AL$1)>0,(O140/INDEX($K140:$O140,1,aux!$AL$1))^(1/($O$3-INDEX($K$3:$O$3,1,aux!$AL$1)))-1,"n.d.") -> n.d. | AE140: =IF(INDEX($K140:$O140,1,aux!$AL$1)>0,(O140-INDEX($K140:$O140,1,aux!$AL$1))/INDEX($K140:$O140,1,aux!$AL$1),"n.d.") -> n.d. | AF140: 0 | AX140: 15 | BS140: 0
A141: 1515 | B141: Outras gorduras e óleos vegetais | C141: 0 | D141: 0 | E141: 0 | F141: 0 | G141: 0 | H141: 0 | J141: 0 | K141: 0 | L141: 0 | M141: 0 | N141: 0 | O141: 0 | P141: 0 | R141: 0 | S141: 0 | U141: =G141-INDEX($C141:$G141,1,aux!$AL$1) -> 0 | V141: n.d. | W141: 0 | X141: =+IF(INDEX($C141:$G141,1,aux!$AL$1)>0,(G141/INDEX($C141:$G141,1,aux!$AL$1))^(1/($G$3-INDEX($C$3:$G$3,1,aux!$AL$1)))-1,"n.d.") -> n.d. | Y141: =IF(INDEX($C141:$G141,1,aux!$AL$1)>0,(G141-INDEX($C141:$G141,1,aux!$AL$1))/INDEX($C141:$G141,1,aux!$AL$1),"n.d.") -> n.d. | AA141: =O141-INDEX($K141:$O141,1,aux!$AL$1) -> 0 | AB141: n.d. | AC141: 0 | AD141: =+IF(INDEX($K141:$O141,1,aux!$AL$1)>0,(O141/INDEX($K141:$O141,1,aux!$AL$1))^(1/($O$3-INDEX($K$3:$O$3,1,aux!$AL$1)))-1,"n.d.") -> n.d. | AE141: =IF(INDEX($K141:$O141,1,aux!$AL$1)>0,(O141-INDEX($K141:$O141,1,aux!$AL$1))/INDEX($K141:$O141,1,aux!$AL$1),"n.d.") -> n.d. | AF141: 0 | AX141: 15 | BS141: 0
A142: 1516 | B142: Gorduras e óleos animais ou vegetais hidrogenados, etc. | C142: 0 | D142: 0 | E142: 0 | F142: 0 | G142: 0 | H142: 0 | J142: 0 | K142: 0 | L142: 0 | M142: 0 | N142: 0 | O142: 0 | P142: 0 | R142: 0 | S142: 0 | U142: =G142-INDEX($C142:$G142,1,aux!$AL$1) -> 0 | V142: n.d. | W142: 0 | X142: =+IF(INDEX($C142:$G142,1,aux!$AL$1)>0,(G142/INDEX($C142:$G142,1,aux!$AL$1))^(1/($G$3-INDEX($C$3:$G$3,1,aux!$AL$1)))-1,"n.d.") -> n.d. | Y142: =IF(INDEX($C142:$G142,1,aux!$AL$1)>0,(G142-INDEX($C142:$G142,1,aux!$AL$1))/INDEX($C142:$G142,1,aux!$AL$1),"n.d.") -> n.d. | AA142: =O142-INDEX($K142:$O142,1,aux!$AL$1) -> 0 | AB142: n.d. | AC142: 0 | AD142: =+IF(INDEX($K142:$O142,1,aux!$AL$1)>0,(O142/INDEX($K142:$O142,1,aux!$AL$1))^(1/($O$3-INDEX($K$3:$O$3,1,aux!$AL$1)))-1,"n.d.") -> n.d. | AE142: =IF(INDEX($K142:$O142,1,aux!$AL$1)>0,(O142-INDEX($K142:$O142,1,aux!$AL$1))/INDEX($K142:$O142,1,aux!$AL$1),"n.d.") -> n.d. | AF142: 0 | AX142: 15 | BS142: 0
A143: 1517 | B143: Margarina e preparações de gorduras animais ou vegetais | C143: 0 | D143: 0 | E143: 0 | F143: 0 | G143: 0 | H143: 0 | J143: 0 | K143: 0 | L143: 0 | M143: 0 | N143: 0 | O143: 0 | P143: 0 | R143: 0 | S143: 0 | U143: =G143-INDEX($C143:$G143,1,aux!$AL$1) -> 0 | V143: n.d. | W143: 0 | X143: =+IF(INDEX($C143:$G143,1,aux!$AL$1)>0,(G143/INDEX($C143:$G143,1,aux!$AL$1))^(1/($G$3-INDEX($C$3:$G$3,1,aux!$AL$1)))-1,"n.d.") -> n.d. | Y143: =IF(INDEX($C143:$G143,1,aux!$AL$1)>0,(G143-INDEX($C143:$G143,1,aux!$AL$1))/INDEX($C143:$G143,1,aux!$AL$1),"n.d.") -> n.d. | AA143: =O143-INDEX($K143:$O143,1,aux!$AL$1) -> 0 | AB143: n.d. | AC143: 0 | AD143: =+IF(INDEX($K143:$O143,1,aux!$AL$1)>0,(O143/INDEX($K143:$O143,1,aux!$AL$1))^(1/($O$3-INDEX($K$3:$O$3,1,aux!$AL$1)))-1,"n.d.") -> n.d. | AE143: =IF(INDEX($K143:$O143,1,aux!$AL$1)>0,(O143-INDEX($K143:$O143,1,aux!$AL$1))/INDEX($K143:$O143,1,aux!$AL$1),"n.d.") -> n.d. | AF143: 0 | AX143: 15 | BS143: 0
A144: 1518 | B144: Gorduras e óleos, animais ou vegetais, processados de outras formas | C144: 0 | D144: 0 | E144: 0 | F144: 0 | G144: 0 | H144: 0 | J144: 0 | K144: 0 | L144: 0 | M144: 0 | N144: 0 | O144: 0 | P144: 0 | R144: 0 | S144: 0 | U144: =G144-INDEX($C144:$G144,1,aux!$AL$1) -> 0 | V144: n.d. | W144: 0 | X144: =+IF(INDEX($C144:$G144,1,aux!$AL$1)>0,(G144/INDEX($C144:$G144,1,aux!$AL$1))^(1/($G$3-INDEX($C$3:$G$3,1,aux!$AL$1)))-1,"n.d.") -> n.d. | Y144: =IF(INDEX($C144:$G144,1,aux!$AL$1)>0,(G144-INDEX($C144:$G144,1,aux!$AL$1))/INDEX($C144:$G144,1,aux!$AL$1),"n.d.") -> n.d. | AA144: =O144-INDEX($K144:$O144,1,aux!$AL$1) -> 0 | AB144: n.d. | AC144: 0 | AD144: =+IF(INDEX($K144:$O144,1,aux!$AL$1)>0,(O144/INDEX($K144:$O144,1,aux!$AL$1))^(1/($O$3-INDEX($K$3:$O$3,1,aux!$AL$1)))-1,"n.d.") -> n.d. | AE144: =IF(INDEX($K144:$O144,1,aux!$AL$1)>0,(O144-INDEX($K144:$O144,1,aux!$AL$1))/INDEX($K144:$O144,1,aux!$AL$1),"n.d.") -> n.d. | AF144: 0 | AX144: 15 | BS144: 0
A145: 1520 | B145: Glicerol em bruto; águas e lixívias | C145: 0 | D145: 0 | E145: 0 | F145: 0 | G145: 0 | H145: 0 | J145: 0 | K145: 0 | L145: 0 | M145: 0 | N145: 0 | O145: 0 | P145: 0 | R145: 0 | S145: 0 | U145: =G145-INDEX($C145:$G145,1,aux!$AL$1) -> 0 | V145: n.d. | W145: 0 | X145: =+IF(INDEX($C145:$G145,1,aux!$AL$1)>0,(G145/INDEX($C145:$G145,1,aux!$AL$1))^(1/($G$3-INDEX($C$3:$G$3,1,aux!$AL$1)))-1,"n.d.") -> n.d. | Y145: =IF(INDEX($C145:$G145,1,aux!$AL$1)>0,(G145-INDEX($C145:$G145,1,aux!$AL$1))/INDEX($C145:$G145,1,aux!$AL$1),"n.d.") -> n.d. | AA145: =O145-INDEX($K145:$O145,1,aux!$AL$1) -> 0 | AB145: n.d. | AC145: 0 | AD145: =+IF(INDEX($K145:$O145,1,aux!$AL$1)>0,(O145/INDEX($K145:$O145,1,aux!$AL$1))^(1/($O$3-INDEX($K$3:$O$3,1,aux!$AL$1)))-1,"n.d.") -> n.d. | AE145: =IF(INDEX($K145:$O145,1,aux!$AL$1)>0,(O145-INDEX($K145:$O145,1,aux!$AL$1))/INDEX($K145:$O145,1,aux!$AL$1),"n.d.") -> n.d. | AF145: 0 | AX145: 15 | BS145: 0
A146: 1521 | B146: Ceras vegetais, ceras de abelha, etc. | C146: 0 | D146: 0 | E146: 0 | F146: 0 | G146: 0 | H146: 0 | J146: 0 | K146: 0 | L146: 0 | M146: 0 | N146: 0 | O146: 0 | P146: 0 | R146: 0 | S146: 0 | U146: =G146-INDEX($C146:$G146,1,aux!$AL$1) -> 0 | V146: n.d. | W146: 0 | X146: =+IF(INDEX($C146:$G146,1,aux!$AL$1)>0,(G146/INDEX($C146:$G146,1,aux!$AL$1))^(1/($G$3-INDEX($C$3:$G$3,1,aux!$AL$1)))-1,"n.d.") -> n.d. | Y146: =IF(INDEX($C146:$G146,1,aux!$AL$1)>0,(G146-INDEX($C146:$G146,1,aux!$AL$1))/INDEX($C146:$G146,1,aux!$AL$1),"n.d.") -> n.d. | AA146: =O146-INDEX($K146:$O146,1,aux!$AL$1) -> 0 | AB146: n.d. | AC146: 0 | AD146: =+IF(INDEX($K146:$O146,1,aux!$AL$1)>0,(O146/INDEX($K146:$O146,1,aux!$AL$1))^(1/($O$3-INDEX($K$3:$O$3,1,aux!$AL$1)))-1,"n.d.") -> n.d. | AE146: =IF(INDEX($K146:$O146,1,aux!$AL$1)>0,(O146-INDEX($K146:$O146,1,aux!$AL$1))/INDEX($K146:$O146,1,aux!$AL$1),"n.d.") -> n.d. | AF146: 0 | AX146: =+LEFT(A146,2) -> 15 | BS146: 0
A147: 1522 | B147: Dégras, resíduos do tratamento de gorduras animais ou vegetais | C147: 0 | D147: 0 | E147: 0 | F147: 0 | G147: 0 | H147: 0 | J147: 0 | K147: 0 | L147: 0 | M147: 0 | N147: 0 | O147: 0 | P147: 0 | R147: 0 | S147: 0 | U147: =G147-INDEX($C147:$G147,1,aux!$AL$1) -> 0 | V147: n.d. | W147: 0 | X147: =+IF(INDEX($C147:$G147,1,aux!$AL$1)>0,(G147/INDEX($C147:$G147,1,aux!$AL$1))^(1/($G$3-INDEX($C$3:$G$3,1,aux!$AL$1)))-1,"n.d.") -> n.d. | Y147: =IF(INDEX($C147:$G147,1,aux!$AL$1)>0,(G147-INDEX($C147:$G147,1,aux!$AL$1))/INDEX($C147:$G147,1,aux!$AL$1),"n.d.") -> n.d. | AA147: =O147-INDEX($K147:$O147,1,aux!$AL$1) -> 0 | AB147: n.d. | AC147: 0 | AD147: =+IF(INDEX($K147:$O147,1,aux!$AL$1)>0,(O147/INDEX($K147:$O147,1,aux!$AL$1))^(1/($O$3-INDEX($K$3:$O$3,1,aux!$AL$1)))-1,"n.d.") -> n.d. | AE147: =IF(INDEX($K147:$O147,1,aux!$AL$1)>0,(O147-INDEX($K147:$O147,1,aux!$AL$1))/INDEX($K147:$O147,1,aux!$AL$1),"n.d.") -> n.d. | AF147: 0 | AX147: 15 | BS147: 0
A148: 15SS | B148: Gorduras e óleos animais ou vegetais; etc. | C148: 0 | D148: 0 | E148: 0 | F148: 0 | G148: 0 | H148: 0 | J148: 0 | K148: 0 | L148: 0 | M148: 0 | N148: 0 | O148: 0 | P148: 0 | R148: 0 | S148: 0 | U148: =G148-INDEX($C148:$G148,1,aux!$AL$1) -> 0 | V148: n.d. | W148: 0 | X148: =+IF(INDEX($C148:$G148,1,aux!$AL$1)>0,(G148/INDEX($C148:$G148,1,aux!$AL$1))^(1/($G$3-INDEX($C$3:$G$3,1,aux!$AL$1)))-1,"n.d.") -> n.d. | Y148: =IF(INDEX($C148:$G148,1,aux!$AL$1)>0,(G148-INDEX($C148:$G148,1,aux!$AL$1))/INDEX($C148:$G148,1,aux!$AL$1),"n.d.") -> n.d. | AA148: =O148-INDEX($K148:$O148,1,aux!$AL$1) -> 0 | AB148: n.d. | AC148: 0 | AD148: =+IF(INDEX($K148:$O148,1,aux!$AL$1)>0,(O148/INDEX($K148:$O148,1,aux!$AL$1))^(1/($O$3-INDEX($K$3:$O$3,1,aux!$AL$1)))-1,"n.d.") -> n.d. | AE148: =IF(INDEX($K148:$O148,1,aux!$AL$1)>0,(O148-INDEX($K148:$O148,1,aux!$AL$1))/INDEX($K148:$O148,1,aux!$AL$1),"n.d.") -> n.d. | AF148: 0 | AX148: 15 | BS148: 0
A149: 1601 | B149: Enchidos e etc., de carne, miudezas ou sangue | C149: 0 | D149: 0 | E149: 0 | F149: 0 | G149: 0 | H149: 0 | J149: 0 | K149: 0 | L149: 0 | M149: 0 | N149: 0 | O149: 0 | P149: 0 | R149: 0 | S149: 0 | U149: =G149-INDEX($C149:$G149,1,aux!$AL$1) -> 0 | V149: n.d. | W149: 0 | X149: =+IF(INDEX($C149:$G149,1,aux!$AL$1)>0,(G149/INDEX($C149:$G149,1,aux!$AL$1))^(1/($G$3-INDEX($C$3:$G$3,1,aux!$AL$1)))-1,"n.d.") -> n.d. | Y149: =IF(INDEX($C149:$G149,1,aux!$AL$1)>0,(G149-INDEX($C149:$G149,1,aux!$AL$1))/INDEX($C149:$G149,1,aux!$AL$1),"n.d.") -> n.d. | AA149: =O149-INDEX($K149:$O149,1,aux!$AL$1) -> 0 | AB149: n.d. | AC149: 0 | AD149: =+IF(INDEX($K149:$O149,1,aux!$AL$1)>0,(O149/INDEX($K149:$O149,1,aux!$AL$1))^(1/($O$3-INDEX($K$3:$O$3,1,aux!$AL$1)))-1,"n.d.") -> n.d. | AE149: =IF(INDEX($K149:$O149,1,aux!$AL$1)>0,(O149-INDEX($K149:$O149,1,aux!$AL$1))/INDEX($K149:$O149,1,aux!$AL$1),"n.d.") -> n.d. | AF149: 0 | BS149: 0
A150: 1602 | B150: Outras preparações e conservas de carnes, miudezas ou sangue | C150: 0 | D150: 0 | E150: 0 | F150: 0 | G150: 0 | H150: 0 | J150: 0 | K150: 0 | L150: 0 | M150: 0 | N150: 0 | O150: 0 | P150: 0 | R150: 0 | S150: 0 | U150: =G150-INDEX($C150:$G150,1,aux!$AL$1) -> 0 | V150: n.d. | W150: 0 | X150: =+IF(INDEX($C150:$G150,1,aux!$AL$1)>0,(G150/INDEX($C150:$G150,1,aux!$AL$1))^(1/($G$3-INDEX($C$3:$G$3,1,aux!$AL$1)))-1,"n.d.") -> n.d. | Y150: =IF(INDEX($C150:$G150,1,aux!$AL$1)>0,(G150-INDEX($C150:$G150,1,aux!$AL$1))/INDEX($C150:$G150,1,aux!$AL$1),"n.d.") -> n.d. | AA150: =O150-INDEX($K150:$O150,1,aux!$AL$1) -> 0 | AB150: n.d. | AC150: 0 | AD150: =+IF(INDEX($K150:$O150,1,aux!$AL$1)>0,(O150/INDEX($K150:$O150,1,aux!$AL$1))^(1/($O$3-INDEX($K$3:$O$3,1,aux!$AL$1)))-1,"n.d.") -> n.d. | AE150: =IF(INDEX($K150:$O150,1,aux!$AL$1)>0,(O150-INDEX($K150:$O150,1,aux!$AL$1))/INDEX($K150:$O150,1,aux!$AL$1),"n.d.") -> n.d. | AF150: 0 | AX150: 16 | BS150: 0
A151: 1603 | B151: Extratos e sucos de carnes, etc. (a) | C151: 0 | D151: 0 | E151: 0 | F151: 0 | G151: 0 | H151: 0 | J151: 0 | K151: 0 | L151: 0 | M151: 0 | N151: 0 | O151: 0 | P151: 0 | R151: 0 | S151: 0 | U151: =G151-INDEX($C151:$G151,1,aux!$AL$1) -> 0 | V151: n.d. | W151: 0 | X151: =+IF(INDEX($C151:$G151,1,aux!$AL$1)>0,(G151/INDEX($C151:$G151,1,aux!$AL$1))^(1/($G$3-INDEX($C$3:$G$3,1,aux!$AL$1)))-1,"n.d.") -> n.d. | Y151: =IF(INDEX($C151:$G151,1,aux!$AL$1)>0,(G151-INDEX($C151:$G151,1,aux!$AL$1))/INDEX($C151:$G151,1,aux!$AL$1),"n.d.") -> n.d. | AA151: =O151-INDEX($K151:$O151,1,aux!$AL$1) -> 0 | AB151: n.d. | AC151: 0 | AD151: =+IF(INDEX($K151:$O151,1,aux!$AL$1)>0,(O151/INDEX($K151:$O151,1,aux!$AL$1))^(1/($O$3-INDEX($K$3:$O$3,1,aux!$AL$1)))-1,"n.d.") -> n.d. | AE151: =IF(INDEX($K151:$O151,1,aux!$AL$1)>0,(O151-INDEX($K151:$O151,1,aux!$AL$1))/INDEX($K151:$O151,1,aux!$AL$1),"n.d.") -> n.d. | AF151: 0 | AX151: 16 | BS151: 0
A152: 1701 | B152: Açúcares (cana/beterraba); sacarose pura | C152: 0 | D152: 0 | E152: 0 | F152: 0 | G152: 0 | H152: 0 | J152: 0 | K152: 0 | L152: 0 | M152: 0 | N152: 0 | O152: 0 | P152: 0 | R152: 0 | S152: 0 | U152: =G152-INDEX($C152:$G152,1,aux!$AL$1) -> 0 | V152: n.d. | W152: 0 | X152: =+IF(INDEX($C152:$G152,1,aux!$AL$1)>0,(G152/INDEX($C152:$G152,1,aux!$AL$1))^(1/($G$3-INDEX($C$3:$G$3,1,aux!$AL$1)))-1,"n.d.") -> n.d. | Y152: =IF(INDEX($C152:$G152,1,aux!$AL$1)>0,(G152-INDEX($C152:$G152,1,aux!$AL$1))/INDEX($C152:$G152,1,aux!$AL$1),"n.d.") -> n.d. | AA152: =O152-INDEX($K152:$O152,1,aux!$AL$1) -> 0 | AB152: n.d. | AC152: 0 | AD152: =+IF(INDEX($K152:$O152,1,aux!$AL$1)>0,(O152/INDEX($K152:$O152,1,aux!$AL$1))^(1/($O$3-INDEX($K$3:$O$3,1,aux!$AL$1)))-1,"n.d.") -> n.d. | AE152: =IF(INDEX($K152:$O152,1,aux!$AL$1)>0,(O152-INDEX($K152:$O152,1,aux!$AL$1))/INDEX($K152:$O152,1,aux!$AL$1),"n.d.") -> n.d. | AF152: 0 | AX152: 17 | BS152: 0
A153: 1702 | B153: Açúcares, incluindo lactose, maltose, glicose e frutose, etc. | C153: 0 | D153: 0 | E153: 0 | F153: 0 | G153: 0 | H153: 0 | J153: 0 | K153: 0 | L153: 0 | M153: 0 | N153: 0 | O153: 0 | P153: 0 | R153: 0 | S153: 0 | U153: =G153-INDEX($C153:$G153,1,aux!$AL$1) -> 0 | V153: n.d. | W153: 0 | X153: =+IF(INDEX($C153:$G153,1,aux!$AL$1)>0,(G153/INDEX($C153:$G153,1,aux!$AL$1))^(1/($G$3-INDEX($C$3:$G$3,1,aux!$AL$1)))-1,"n.d.") -> n.d. | Y153: =IF(INDEX($C153:$G153,1,aux!$AL$1)>0,(G153-INDEX($C153:$G153,1,aux!$AL$1))/INDEX($C153:$G153,1,aux!$AL$1),"n.d.") -> n.d. | AA153: =O153-INDEX($K153:$O153,1,aux!$AL$1) -> 0 | AB153: n.d. | AC153: 0 | AD153: =+IF(INDEX($K153:$O153,1,aux!$AL$1)>0,(O153/INDEX($K153:$O153,1,aux!$AL$1))^(1/($O$3-INDEX($K$3:$O$3,1,aux!$AL$1)))-1,"n.d.") -> n.d. | AE153: =IF(INDEX($K153:$O153,1,aux!$AL$1)>0,(O153-INDEX($K153:$O153,1,aux!$AL$1))/INDEX($K153:$O153,1,aux!$AL$1),"n.d.") -> n.d. | AF153: 0 | AX153: 17 | BS153: 0
A154: 1703 | B154: Melaços resultantes da extração ou refinação do açúcar | C154: 0 | D154: 0 | E154: 0 | F154: 0 | G154: 0 | H154: 0 | J154: 0 | K154: 0 | L154: 0 | M154: 0 | N154: 0 | O154: 0 | P154: 0 | R154: 0 | S154: 0 | U154: =G154-INDEX($C154:$G154,1,aux!$AL$1) -> 0 | V154: n.d. | W154: 0 | X154: =+IF(INDEX($C154:$G154,1,aux!$AL$1)>0,(G154/INDEX($C154:$G154,1,aux!$AL$1))^(1/($G$3-INDEX($C$3:$G$3,1,aux!$AL$1)))-1,"n.d.") -> n.d. | Y154: =IF(INDEX($C154:$G154,1,aux!$AL$1)>0,(G154-INDEX($C154:$G154,1,aux!$AL$1))/INDEX($C154:$G154,1,aux!$AL$1),"n.d.") -> n.d. | AA154: =O154-INDEX($K154:$O154,1,aux!$AL$1) -> 0 | AB154: n.d. | AC154: 0 | AD154: =+IF(INDEX($K154:$O154,1,aux!$AL$1)>0,(O154/INDEX($K154:$O154,1,aux!$AL$1))^(1/($O$3-INDEX($K$3:$O$3,1,aux!$AL$1)))-1,"n.d.") -> n.d. | AE154: =IF(INDEX($K154:$O154,1,aux!$AL$1)>0,(O154-INDEX($K154:$O154,1,aux!$AL$1))/INDEX($K154:$O154,1,aux!$AL$1),"n.d.") -> n.d. | AF154: 0 | AX154: 17 | BS154: 0
A155: 1704 | B155: Produtos de confeitaria sem cacau, incluindo chocolate branco | C155: 0 | D155: 0 | E155: 0 | F155: 0 | G155: 0 | H155: 0 | J155: 0 | K155: 0 | L155: 0 | M155: 0 | N155: 0 | O155: 0 | P155: 0 | R155: 0 | S155: 0 | U155: =G155-INDEX($C155:$G155,1,aux!$AL$1) -> 0 | V155: n.d. | W155: 0 | X155: =+IF(INDEX($C155:$G155,1,aux!$AL$1)>0,(G155/INDEX($C155:$G155,1,aux!$AL$1))^(1/($G$3-INDEX($C$3:$G$3,1,aux!$AL$1)))-1,"n.d.") -> n.d. | Y155: =IF(INDEX($C155:$G155,1,aux!$AL$1)>0,(G155-INDEX($C155:$G155,1,aux!$AL$1))/INDEX($C155:$G155,1,aux!$AL$1),"n.d.") -> n.d. | AA155: =O155-INDEX($K155:$O155,1,aux!$AL$1) -> 0 | AB155: n.d. | AC155: 0 | AD155: =+IF(INDEX($K155:$O155,1,aux!$AL$1)>0,(O155/INDEX($K155:$O155,1,aux!$AL$1))^(1/($O$3-INDEX($K$3:$O$3,1,aux!$AL$1)))-1,"n.d.") -> n.d. | AE155: =IF(INDEX($K155:$O155,1,aux!$AL$1)>0,(O155-INDEX($K155:$O155,1,aux!$AL$1))/INDEX($K155:$O155,1,aux!$AL$1),"n.d.") -> n.d. | AF155: 0 | AX155: 17 | BS155: 0
A156: 17SS | B156: Açúcares e produtos de confeitaria | C156: 0 | D156: 0 | E156: 0 | F156: 0 | G156: 0 | H156: 0 | J156: 0 | K156: 0 | L156: 0 | M156: 0 | N156: 0 | O156: 0 | P156: 0 | R156: 0 | S156: 0 | U156: =G156-INDEX($C156:$G156,1,aux!$AL$1) -> 0 | V156: n.d. | W156: 0 | X156: =+IF(INDEX($C156:$G156,1,aux!$AL$1)>0,(G156/INDEX($C156:$G156,1,aux!$AL$1))^(1/($G$3-INDEX($C$3:$G$3,1,aux!$AL$1)))-1,"n.d.") -> n.d. | Y156: =IF(INDEX($C156:$G156,1,aux!$AL$1)>0,(G156-INDEX($C156:$G156,1,aux!$AL$1))/INDEX($C156:$G156,1,aux!$AL$1),"n.d.") -> n.d. | AA156: =O156-INDEX($K156:$O156,1,aux!$AL$1) -> 0 | AB156: n.d. | AC156: 0 | AD156: =+IF(INDEX($K156:$O156,1,aux!$AL$1)>0,(O156/INDEX($K156:$O156,1,aux!$AL$1))^(1/($O$3-INDEX($K$3:$O$3,1,aux!$AL$1)))-1,"n.d.") -> n.d. | AE156: =IF(INDEX($K156:$O156,1,aux!$AL$1)>0,(O156-INDEX($K156:$O156,1,aux!$AL$1))/INDEX($K156:$O156,1,aux!$AL$1),"n.d.") -> n.d. | AF156: 0 | AX156: 17 | BS156: 0
A157: 1801 | B157: Cacau inteiro ou partido, em bruto ou torrado | C157: 0 | D157: 0 | E157: 0 | F157: 0 | G157: 0 | H157: 0 | J157: 0 | K157: 0 | L157: 0 | M157: 0 | N157: 0 | O157: 0 | P157: 0 | R157: 0 | S157: 0 | U157: =G157-INDEX($C157:$G157,1,aux!$AL$1) -> 0 | V157: n.d. | W157: 0 | X157: =+IF(INDEX($C157:$G157,1,aux!$AL$1)>0,(G157/INDEX($C157:$G157,1,aux!$AL$1))^(1/($G$3-INDEX($C$3:$G$3,1,aux!$AL$1)))-1,"n.d.") -> n.d. | Y157: =IF(INDEX($C157:$G157,1,aux!$AL$1)>0,(G157-INDEX($C157:$G157,1,aux!$AL$1))/INDEX($C157:$G157,1,aux!$AL$1),"n.d.") -> n.d. | AA157: =O157-INDEX($K157:$O157,1,aux!$AL$1) -> 0 | AB157: n.d. | AC157: 0 | AD157: =+IF(INDEX($K157:$O157,1,aux!$AL$1)>0,(O157/INDEX($K157:$O157,1,aux!$AL$1))^(1/($O$3-INDEX($K$3:$O$3,1,aux!$AL$1)))-1,"n.d.") -> n.d. | AE157: =IF(INDEX($K157:$O157,1,aux!$AL$1)>0,(O157-INDEX($K157:$O157,1,aux!$AL$1))/INDEX($K157:$O157,1,aux!$AL$1),"n.d.") -> n.d. | AF157: 0 | BS157: 0
A158: 1802 | B158: Cascas e outros desperdícios de cacau | C158: 0 | D158: 0 | E158: 0 | F158: 0 | G158: 0 | H158: 0 | J158: 0 | K158: 0 | L158: 0 | M158: 0 | N158: 0 | O158: 0 | P158: 0 | R158: 0 | S158: 0 | U158: =G158-INDEX($C158:$G158,1,aux!$AL$1) -> 0 | V158: n.d. | W158: 0 | X158: =+IF(INDEX($C158:$G158,1,aux!$AL$1)>0,(G158/INDEX($C158:$G158,1,aux!$AL$1))^(1/($G$3-INDEX($C$3:$G$3,1,aux!$AL$1)))-1,"n.d.") -> n.d. | Y158: =IF(INDEX($C158:$G158,1,aux!$AL$1)>0,(G158-INDEX($C158:$G158,1,aux!$AL$1))/INDEX($C158:$G158,1,aux!$AL$1),"n.d.") -> n.d. | AA158: =O158-INDEX($K158:$O158,1,aux!$AL$1) -> 0 | AB158: n.d. | AC158: 0 | AD158: =+IF(INDEX($K158:$O158,1,aux!$AL$1)>0,(O158/INDEX($K158:$O158,1,aux!$AL$1))^(1/($O$3-INDEX($K$3:$O$3,1,aux!$AL$1)))-1,"n.d.") -> n.d. | AE158: =IF(INDEX($K158:$O158,1,aux!$AL$1)>0,(O158-INDEX($K158:$O158,1,aux!$AL$1))/INDEX($K158:$O158,1,aux!$AL$1),"n.d.") -> n.d. | AF158: 0 | AX158: 18 | BS158: 0
A159: 1803 | B159: Pastas de cacau | C159: 0 | D159: 0 | E159: 0 | F159: 0 | G159: 0 | H159: 0 | J159: 0 | K159: 0 | L159: 0 | M159: 0 | N159: 0 | O159: 0 | P159: 0 | R159: 0 | S159: 0 | U159: =G159-INDEX($C159:$G159,1,aux!$AL$1) -> 0 | V159: n.d. | W159: 0 | X159: =+IF(INDEX($C159:$G159,1,aux!$AL$1)>0,(G159/INDEX($C159:$G159,1,aux!$AL$1))^(1/($G$3-INDEX($C$3:$G$3,1,aux!$AL$1)))-1,"n.d.") -> n.d. | Y159: =IF(INDEX($C159:$G159,1,aux!$AL$1)>0,(G159-INDEX($C159:$G159,1,aux!$AL$1))/INDEX($C159:$G159,1,aux!$AL$1),"n.d.") -> n.d. | AA159: =O159-INDEX($K159:$O159,1,aux!$AL$1) -> 0 | AB159: n.d. | AC159: 0 | AD159: =+IF(INDEX($K159:$O159,1,aux!$AL$1)>0,(O159/INDEX($K159:$O159,1,aux!$AL$1))^(1/($O$3-INDEX($K$3:$O$3,1,aux!$AL$1)))-1,"n.d.") -> n.d. | AE159: =IF(INDEX($K159:$O159,1,aux!$AL$1)>0,(O159-INDEX($K159:$O159,1,aux!$AL$1))/INDEX($K159:$O159,1,aux!$AL$1),"n.d.") -> n.d. | AF159: 0 | AX159: 18 | BS159: 0
A160: 1804 | B160: Manteiga, gordura e óleo de cacau | C160: 0 | D160: 0 | E160: 0 | F160: 0 | G160: 0 | H160: 0 | J160: 0 | K160: 0 | L160: 0 | M160: 0 | N160: 0 | O160: 0 | P160: 0 | R160: 0 | S160: 0 | U160: =G160-INDEX($C160:$G160,1,aux!$AL$1) -> 0 | V160: n.d. | W160: 0 | X160: =+IF(INDEX($C160:$G160,1,aux!$AL$1)>0,(G160/INDEX($C160:$G160,1,aux!$AL$1))^(1/($G$3-INDEX($C$3:$G$3,1,aux!$AL$1)))-1,"n.d.") -> n.d. | Y160: =IF(INDEX($C160:$G160,1,aux!$AL$1)>0,(G160-INDEX($C160:$G160,1,aux!$AL$1))/INDEX($C160:$G160,1,aux!$AL$1),"n.d.") -> n.d. | AA160: =O160-INDEX($K160:$O160,1,aux!$AL$1) -> 0 | AB160: n.d. | AC160: 0 | AD160: =+IF(INDEX($K160:$O160,1,aux!$AL$1)>0,(O160/INDEX($K160:$O160,1,aux!$AL$1))^(1/($O$3-INDEX($K$3:$O$3,1,aux!$AL$1)))-1,"n.d.") -> n.d. | AE160: =IF(INDEX($K160:$O160,1,aux!$AL$1)>0,(O160-INDEX($K160:$O160,1,aux!$AL$1))/INDEX($K160:$O160,1,aux!$AL$1),"n.d.") -> n.d. | AF160: 0 | AX160: 18 | BS160: 0
A161: 1805 | B161: Cacau em pó, sem adição de açúcar | C161: 0 | D161: 0 | E161: 0 | F161: 0 | G161: 0 | H161: 0 | J161: 0 | K161: 0 | L161: 0 | M161: 0 | N161: 0 | O161: 0 | P161: 0 | R161: 0 | S161: 0 | U161: =G161-INDEX($C161:$G161,1,aux!$AL$1) -> 0 | V161: n.d. | W161: 0 | X161: =+IF(INDEX($C161:$G161,1,aux!$AL$1)>0,(G161/INDEX($C161:$G161,1,aux!$AL$1))^(1/($G$3-INDEX($C$3:$G$3,1,aux!$AL$1)))-1,"n.d.") -> n.d. | Y161: =IF(INDEX($C161:$G161,1,aux!$AL$1)>0,(G161-INDEX($C161:$G161,1,aux!$AL$1))/INDEX($C161:$G161,1,aux!$AL$1),"n.d.") -> n.d. | AA161: =O161-INDEX($K161:$O161,1,aux!$AL$1) -> 0 | AB161: n.d. | AC161: 0 | AD161: =+IF(INDEX($K161:$O161,1,aux!$AL$1)>0,(O161/INDEX($K161:$O161,1,aux!$AL$1))^(1/($O$3-INDEX($K$3:$O$3,1,aux!$AL$1)))-1,"n.d.") -> n.d. | AE161: =IF(INDEX($K161:$O161,1,aux!$AL$1)>0,(O161-INDEX($K161:$O161,1,aux!$AL$1))/INDEX($K161:$O161,1,aux!$AL$1),"n.d.") -> n.d. | AF161: 0 | AX161: 18 | BS161: 0
A162: 1806 | B162: Chocolate e outras preparações com cacau | C162: 0 | D162: 0 | E162: 0 | F162: 0 | G162: 0 | H162: 0 | J162: 0 | K162: 0 | L162: 0 | M162: 0 | N162: 0 | O162: 0 | P162: 0 | R162: 0 | S162: 0 | U162: =G162-INDEX($C162:$G162,1,aux!$AL$1) -> 0 | V162: n.d. | W162: 0 | X162: =+IF(INDEX($C162:$G162,1,aux!$AL$1)>0,(G162/INDEX($C162:$G162,1,aux!$AL$1))^(1/($G$3-INDEX($C$3:$G$3,1,aux!$AL$1)))-1,"n.d.") -> n.d. | Y162: =IF(INDEX($C162:$G162,1,aux!$AL$1)>0,(G162-INDEX($C162:$G162,1,aux!$AL$1))/INDEX($C162:$G162,1,aux!$AL$1),"n.d.") -> n.d. | AA162: =O162-INDEX($K162:$O162,1,aux!$AL$1) -> 0 | AB162: n.d. | AC162: 0 | AD162: =+IF(INDEX($K162:$O162,1,aux!$AL$1)>0,(O162/INDEX($K162:$O162,1,aux!$AL$1))^(1/($O$3-INDEX($K$3:$O$3,1,aux!$AL$1)))-1,"n.d.") -> n.d. | AE162: =IF(INDEX($K162:$O162,1,aux!$AL$1)>0,(O162-INDEX($K162:$O162,1,aux!$AL$1))/INDEX($K162:$O162,1,aux!$AL$1),"n.d.") -> n.d. | AF162: 0 | AX162: 18 | BS162: 0
A163: 18SS | B163: Cacau e suas preparações | C163: 0 | D163: 0 | E163: 0 | F163: 0 | G163: 0 | H163: 0 | J163: 0 | K163: 0 | L163: 0 | M163: 0 | N163: 0 | O163: 0 | P163: 0 | R163: 0 | S163: 0 | U163: =G163-INDEX($C163:$G163,1,aux!$AL$1) -> 0 | V163: n.d. | W163: 0 | X163: =+IF(INDEX($C163:$G163,1,aux!$AL$1)>0,(G163/INDEX($C163:$G163,1,aux!$AL$1))^(1/($G$3-INDEX($C$3:$G$3,1,aux!$AL$1)))-1,"n.d.") -> n.d. | Y163: =IF(INDEX($C163:$G163,1,aux!$AL$1)>0,(G163-INDEX($C163:$G163,1,aux!$AL$1))/INDEX($C163:$G163,1,aux!$AL$1),"n.d.") -> n.d. | AA163: =O163-INDEX($K163:$O163,1,aux!$AL$1) -> 0 | AB163: n.d. | AC163: 0 | AD163: =+IF(INDEX($K163:$O163,1,aux!$AL$1)>0,(O163/INDEX($K163:$O163,1,aux!$AL$1))^(1/($O$3-INDEX($K$3:$O$3,1,aux!$AL$1)))-1,"n.d.") -> n.d. | AE163: =IF(INDEX($K163:$O163,1,aux!$AL$1)>0,(O163-INDEX($K163:$O163,1,aux!$AL$1))/INDEX($K163:$O163,1,aux!$AL$1),"n.d.") -> n.d. | AF163: 0 | AX163: 18 | BS163: 0
A164: 1901 | B164: Extratos de malte; preparações de farinhas, etc., sem cacau | C164: 0 | D164: 0 | E164: 0 | F164: 0 | G164: 0 | H164: 0 | J164: 0 | K164: 0 | L164: 0 | M164: 0 | N164: 0 | O164: 0 | P164: 0 | R164: 0 | S164: 0 | U164: =G164-INDEX($C164:$G164,1,aux!$AL$1) -> 0 | V164: n.d. | W164: 0 | X164: =+IF(INDEX($C164:$G164,1,aux!$AL$1)>0,(G164/INDEX($C164:$G164,1,aux!$AL$1))^(1/($G$3-INDEX($C$3:$G$3,1,aux!$AL$1)))-1,"n.d.") -> n.d. | Y164: =IF(INDEX($C164:$G164,1,aux!$AL$1)>0,(G164-INDEX($C164:$G164,1,aux!$AL$1))/INDEX($C164:$G164,1,aux!$AL$1),"n.d.") -> n.d. | AA164: =O164-INDEX($K164:$O164,1,aux!$AL$1) -> 0 | AB164: n.d. | AC164: 0 | AD164: =+IF(INDEX($K164:$O164,1,aux!$AL$1)>0,(O164/INDEX($K164:$O164,1,aux!$AL$1))^(1/($O$3-INDEX($K$3:$O$3,1,aux!$AL$1)))-1,"n.d.") -> n.d. | AE164: =IF(INDEX($K164:$O164,1,aux!$AL$1)>0,(O164-INDEX($K164:$O164,1,aux!$AL$1))/INDEX($K164:$O164,1,aux!$AL$1),"n.d.") -> n.d. | AF164: 0 | BS164: 0
A165: 1902 | B165: Massas alimentícias (exc. NC 1902 20 10) (a) | C165: 0 | D165: 0 | E165: 0 | F165: 0 | G165: 0 | H165: 0 | J165: 0 | K165: 0 | L165: 0 | M165: 0 | N165: 0 | O165: 0 | P165: 0 | R165: 0 | S165: 0 | U165: =G165-INDEX($C165:$G165,1,aux!$AL$1) -> 0 | V165: n.d. | W165: 0 | X165: =+IF(INDEX($C165:$G165,1,aux!$AL$1)>0,(G165/INDEX($C165:$G165,1,aux!$AL$1))^(1/($G$3-INDEX($C$3:$G$3,1,aux!$AL$1)))-1,"n.d.") -> n.d. | Y165: =IF(INDEX($C165:$G165,1,aux!$AL$1)>0,(G165-INDEX($C165:$G165,1,aux!$AL$1))/INDEX($C165:$G165,1,aux!$AL$1),"n.d.") -> n.d. | AA165: =O165-INDEX($K165:$O165,1,aux!$AL$1) -> 0 | AB165: n.d. | AC165: 0 | AD165: =+IF(INDEX($K165:$O165,1,aux!$AL$1)>0,(O165/INDEX($K165:$O165,1,aux!$AL$1))^(1/($O$3-INDEX($K$3:$O$3,1,aux!$AL$1)))-1,"n.d.") -> n.d. | AE165: =IF(INDEX($K165:$O165,1,aux!$AL$1)>0,(O165-INDEX($K165:$O165,1,aux!$AL$1))/INDEX($K165:$O165,1,aux!$AL$1),"n.d.") -> n.d. | AF165: 0 | AX165: 19 | BS165: 0
A166: 1903 | B166: Tapioca e seus sucedâneos | C166: 0 | D166: 0 | E166: 0 | F166: 0 | G166: 0 | H166: 0 | J166: 0 | K166: 0 | L166: 0 | M166: 0 | N166: 0 | O166: 0 | P166: 0 | R166: 0 | S166: 0 | U166: =G166-INDEX($C166:$G166,1,aux!$AL$1) -> 0 | V166: n.d. | W166: 0 | X166: =+IF(INDEX($C166:$G166,1,aux!$AL$1)>0,(G166/INDEX($C166:$G166,1,aux!$AL$1))^(1/($G$3-INDEX($C$3:$G$3,1,aux!$AL$1)))-1,"n.d.") -> n.d. | Y166: =IF(INDEX($C166:$G166,1,aux!$AL$1)>0,(G166-INDEX($C166:$G166,1,aux!$AL$1))/INDEX($C166:$G166,1,aux!$AL$1),"n.d.") -> n.d. | AA166: =O166-INDEX($K166:$O166,1,aux!$AL$1) -> 0 | AB166: n.d. | AC166: 0 | AD166: =+IF(INDEX($K166:$O166,1,aux!$AL$1)>0,(O166/INDEX($K166:$O166,1,aux!$AL$1))^(1/($O$3-INDEX($K$3:$O$3,1,aux!$AL$1)))-1,"n.d.") -> n.d. | AE166: =IF(INDEX($K166:$O166,1,aux!$AL$1)>0,(O166-INDEX($K166:$O166,1,aux!$AL$1))/INDEX($K166:$O166,1,aux!$AL$1),"n.d.") -> n.d. | AF166: 0 | AX166: 19 | BS166: 0
A167: 1904 | B167: Produtos à base de cereais | C167: 0 | D167: 0 | E167: 0 | F167: 0 | G167: 0 | H167: 0 | J167: 0 | K167: 0 | L167: 0 | M167: 0 | N167: 0 | O167: 0 | P167: 0 | R167: 0 | S167: 0 | U167: =G167-INDEX($C167:$G167,1,aux!$AL$1) -> 0 | V167: n.d. | W167: 0 | X167: =+IF(INDEX($C167:$G167,1,aux!$AL$1)>0,(G167/INDEX($C167:$G167,1,aux!$AL$1))^(1/($G$3-INDEX($C$3:$G$3,1,aux!$AL$1)))-1,"n.d.") -> n.d. | Y167: =IF(INDEX($C167:$G167,1,aux!$AL$1)>0,(G167-INDEX($C167:$G167,1,aux!$AL$1))/INDEX($C167:$G167,1,aux!$AL$1),"n.d.") -> n.d. | AA167: =O167-INDEX($K167:$O167,1,aux!$AL$1) -> 0 | AB167: n.d. | AC167: 0 | AD167: =+IF(INDEX($K167:$O167,1,aux!$AL$1)>0,(O167/INDEX($K167:$O167,1,aux!$AL$1))^(1/($O$3-INDEX($K$3:$O$3,1,aux!$AL$1)))-1,"n.d.") -> n.d. | AE167: =IF(INDEX($K167:$O167,1,aux!$AL$1)>0,(O167-INDEX($K167:$O167,1,aux!$AL$1))/INDEX($K167:$O167,1,aux!$AL$1),"n.d.") -> n.d. | AF167: 0 | AX167: 19 | BS167: 0
A168: 1905 | B168: Produtos de padaria, pastelaria, etc. | C168: 0 | D168: 0 | E168: 0 | F168: 0 | G168: 0 | H168: 0 | J168: 0 | K168: 0 | L168: 0 | M168: 0 | N168: 0 | O168: 0 | P168: 0 | R168: 0 | S168: 0 | U168: =G168-INDEX($C168:$G168,1,aux!$AL$1) -> 0 | V168: n.d. | W168: 0 | X168: =+IF(INDEX($C168:$G168,1,aux!$AL$1)>0,(G168/INDEX($C168:$G168,1,aux!$AL$1))^(1/($G$3-INDEX($C$3:$G$3,1,aux!$AL$1)))-1,"n.d.") -> n.d. | Y168: =IF(INDEX($C168:$G168,1,aux!$AL$1)>0,(G168-INDEX($C168:$G168,1,aux!$AL$1))/INDEX($C168:$G168,1,aux!$AL$1),"n.d.") -> n.d. | AA168: =O168-INDEX($K168:$O168,1,aux!$AL$1) -> 0 | AB168: n.d. | AC168: 0 | AD168: =+IF(INDEX($K168:$O168,1,aux!$AL$1)>0,(O168/INDEX($K168:$O168,1,aux!$AL$1))^(1/($O$3-INDEX($K$3:$O$3,1,aux!$AL$1)))-1,"n.d.") -> n.d. | AE168: =IF(INDEX($K168:$O168,1,aux!$AL$1)>0,(O168-INDEX($K168:$O168,1,aux!$AL$1))/INDEX($K168:$O168,1,aux!$AL$1),"n.d.") -> n.d. | AF168: 0 | AX168: 19 | BS168: 0
A169: 19SS | B169: Preparações à base de cereais | C169: 0 | D169: 0 | E169: 0 | F169: 0 | G169: 0 | H169: 0 | J169: 0 | K169: 0 | L169: 0 | M169: 0 | N169: 0 | O169: 0 | P169: 0 | R169: 0 | S169: 0 | U169: =G169-INDEX($C169:$G169,1,aux!$AL$1) -> 0 | V169: n.d. | W169: 0 | X169: =+IF(INDEX($C169:$G169,1,aux!$AL$1)>0,(G169/INDEX($C169:$G169,1,aux!$AL$1))^(1/($G$3-INDEX($C$3:$G$3,1,aux!$AL$1)))-1,"n.d.") -> n.d. | Y169: =IF(INDEX($C169:$G169,1,aux!$AL$1)>0,(G169-INDEX($C169:$G169,1,aux!$AL$1))/INDEX($C169:$G169,1,aux!$AL$1),"n.d.") -> n.d. | AA169: =O169-INDEX($K169:$O169,1,aux!$AL$1) -> 0 | AB169: n.d. | AC169: 0 | AD169: =+IF(INDEX($K169:$O169,1,aux!$AL$1)>0,(O169/INDEX($K169:$O169,1,aux!$AL$1))^(1/($O$3-INDEX($K$3:$O$3,1,aux!$AL$1)))-1,"n.d.") -> n.d. | AE169: =IF(INDEX($K169:$O169,1,aux!$AL$1)>0,(O169-INDEX($K169:$O169,1,aux!$AL$1))/INDEX($K169:$O169,1,aux!$AL$1),"n.d.") -> n.d. | AF169: 0 | AX169: 19 | BS169: 0
A170: 2001 | B170: Produtos hortofrutícolas preparados | C170: 0 | D170: 0 | E170: 0 | F170: 0 | G170: 0 | H170: 0 | J170: 0 | K170: 0 | L170: 0 | M170: 0 | N170: 0 | O170: 0 | P170: 0 | R170: 0 | S170: 0 | U170: =G170-INDEX($C170:$G170,1,aux!$AL$1) -> 0 | V170: n.d. | W170: 0 | X170: =+IF(INDEX($C170:$G170,1,aux!$AL$1)>0,(G170/INDEX($C170:$G170,1,aux!$AL$1))^(1/($G$3-INDEX($C$3:$G$3,1,aux!$AL$1)))-1,"n.d.") -> n.d. | Y170: =IF(INDEX($C170:$G170,1,aux!$AL$1)>0,(G170-INDEX($C170:$G170,1,aux!$AL$1))/INDEX($C170:$G170,1,aux!$AL$1),"n.d.") -> n.d. | AA170: =O170-INDEX($K170:$O170,1,aux!$AL$1) -> 0 | AB170: n.d. | AC170: 0 | AD170: =+IF(INDEX($K170:$O170,1,aux!$AL$1)>0,(O170/INDEX($K170:$O170,1,aux!$AL$1))^(1/($O$3-INDEX($K$3:$O$3,1,aux!$AL$1)))-1,"n.d.") -> n.d. | AE170: =IF(INDEX($K170:$O170,1,aux!$AL$1)>0,(O170-INDEX($K170:$O170,1,aux!$AL$1))/INDEX($K170:$O170,1,aux!$AL$1),"n.d.") -> n.d. | AF170: 0 | BS170: 0
A171: 2002 | B171: Tomates preparados | C171: 0 | D171: 0 | E171: 0 | F171: 0 | G171: 0 | H171: 0 | J171: 0 | K171: 0 | L171: 0 | M171: 0 | N171: 0 | O171: 0 | P171: 0 | R171: 0 | S171: 0 | U171: =G171-INDEX($C171:$G171,1,aux!$AL$1) -> 0 | V171: n.d. | W171: 0 | X171: =+IF(INDEX($C171:$G171,1,aux!$AL$1)>0,(G171/INDEX($C171:$G171,1,aux!$AL$1))^(1/($G$3-INDEX($C$3:$G$3,1,aux!$AL$1)))-1,"n.d.") -> n.d. | Y171: =IF(INDEX($C171:$G171,1,aux!$AL$1)>0,(G171-INDEX($C171:$G171,1,aux!$AL$1))/INDEX($C171:$G171,1,aux!$AL$1),"n.d.") -> n.d. | AA171: =O171-INDEX($K171:$O171,1,aux!$AL$1) -> 0 | AB171: n.d. | AC171: 0 | AD171: =+IF(INDEX($K171:$O171,1,aux!$AL$1)>0,(O171/INDEX($K171:$O171,1,aux!$AL$1))^(1/($O$3-INDEX($K$3:$O$3,1,aux!$AL$1)))-1,"n.d.") -> n.d. | AE171: =IF(INDEX($K171:$O171,1,aux!$AL$1)>0,(O171-INDEX($K171:$O171,1,aux!$AL$1))/INDEX($K171:$O171,1,aux!$AL$1),"n.d.") -> n.d. | AF171: 0 | AX171: 20 | BS171: 0
A172: 2003 | B172: Cogumelos e trufas preparados | C172: 0 | D172: 0 | E172: 0 | F172: 0 | G172: 0 | H172: 0 | J172: 0 | K172: 0 | L172: 0 | M172: 0 | N172: 0 | O172: 0 | P172: 0 | R172: 0 | S172: 0 | U172: =G172-INDEX($C172:$G172,1,aux!$AL$1) -> 0 | V172: n.d. | W172: 0 | X172: =+IF(INDEX($C172:$G172,1,aux!$AL$1)>0,(G172/INDEX($C172:$G172,1,aux!$AL$1))^(1/($G$3-INDEX($C$3:$G$3,1,aux!$AL$1)))-1,"n.d.") -> n.d. | Y172: =IF(INDEX($C172:$G172,1,aux!$AL$1)>0,(G172-INDEX($C172:$G172,1,aux!$AL$1))/INDEX($C172:$G172,1,aux!$AL$1),"n.d.") -> n.d. | AA172: =O172-INDEX($K172:$O172,1,aux!$AL$1) -> 0 | AB172: n.d. | AC172: 0 | AD172: =+IF(INDEX($K172:$O172,1,aux!$AL$1)>0,(O172/INDEX($K172:$O172,1,aux!$AL$1))^(1/($O$3-INDEX($K$3:$O$3,1,aux!$AL$1)))-1,"n.d.") -> n.d. | AE172: =IF(INDEX($K172:$O172,1,aux!$AL$1)>0,(O172-INDEX($K172:$O172,1,aux!$AL$1))/INDEX($K172:$O172,1,aux!$AL$1),"n.d.") -> n.d. | AF172: 0 | AX172: 20 | BS172: 0
A173: 2004 | B173: Produtos hortícolas preparados, congelados | C173: 0 | D173: 0 | E173: 0 | F173: 0 | G173: 0 | H173: 0 | J173: 0 | K173: 0 | L173: 0 | M173: 0 | N173: 0 | O173: 0 | P173: 0 | R173: 0 | S173: 0 | U173: =G173-INDEX($C173:$G173,1,aux!$AL$1) -> 0 | V173: n.d. | W173: 0 | X173: =+IF(INDEX($C173:$G173,1,aux!$AL$1)>0,(G173/INDEX($C173:$G173,1,aux!$AL$1))^(1/($G$3-INDEX($C$3:$G$3,1,aux!$AL$1)))-1,"n.d.") -> n.d. | Y173: =IF(INDEX($C173:$G173,1,aux!$AL$1)>0,(G173-INDEX($C173:$G173,1,aux!$AL$1))/INDEX($C173:$G173,1,aux!$AL$1),"n.d.") -> n.d. | AA173: =O173-INDEX($K173:$O173,1,aux!$AL$1) -> 0 | AB173: n.d. | AC173: 0 | AD173: =+IF(INDEX($K173:$O173,1,aux!$AL$1)>0,(O173/INDEX($K173:$O173,1,aux!$AL$1))^(1/($O$3-INDEX($K$3:$O$3,1,aux!$AL$1)))-1,"n.d.") -> n.d. | AE173: =IF(INDEX($K173:$O173,1,aux!$AL$1)>0,(O173-INDEX($K173:$O173,1,aux!$AL$1))/INDEX($K173:$O173,1,aux!$AL$1),"n.d.") -> n.d. | AF173: 0 | AX173: 20 | BS173: 0
A174: 2005 | B174: Produtos hortícolas preparados, não congelados | C174: 0 | D174: 0 | E174: 0 | F174: 0 | G174: 0 | H174: 0 | J174: 0 | K174: 0 | L174: 0 | M174: 0 | N174: 0 | O174: 0 | P174: 0 | R174: 0 | S174: 0 | U174: =G174-INDEX($C174:$G174,1,aux!$AL$1) -> 0 | V174: n.d. | W174: 0 | X174: =+IF(INDEX($C174:$G174,1,aux!$AL$1)>0,(G174/INDEX($C174:$G174,1,aux!$AL$1))^(1/($G$3-INDEX($C$3:$G$3,1,aux!$AL$1)))-1,"n.d.") -> n.d. | Y174: =IF(INDEX($C174:$G174,1,aux!$AL$1)>0,(G174-INDEX($C174:$G174,1,aux!$AL$1))/INDEX($C174:$G174,1,aux!$AL$1),"n.d.") -> n.d. | AA174: =O174-INDEX($K174:$O174,1,aux!$AL$1) -> 0 | AB174: n.d. | AC174: 0 | AD174: =+IF(INDEX($K174:$O174,1,aux!$AL$1)>0,(O174/INDEX($K174:$O174,1,aux!$AL$1))^(1/($O$3-INDEX($K$3:$O$3,1,aux!$AL$1)))-1,"n.d.") -> n.d. | AE174: =IF(INDEX($K174:$O174,1,aux!$AL$1)>0,(O174-INDEX($K174:$O174,1,aux!$AL$1))/INDEX($K174:$O174,1,aux!$AL$1),"n.d.") -> n.d. | AF174: 0 | AX174: 20 | BS174: 0
A175: 2006 | B175: Produtos hortofrutícolas conservados em açúcar | C175: 0 | D175: 0 | E175: 0 | F175: 0 | G175: 0 | H175: 0 | J175: 0 | K175: 0 | L175: 0 | M175: 0 | N175: 0 | O175: 0 | P175: 0 | R175: 0 | S175: 0 | U175: =G175-INDEX($C175:$G175,1,aux!$AL$1) -> 0 | V175: n.d. | W175: 0 | X175: =+IF(INDEX($C175:$G175,1,aux!$AL$1)>0,(G175/INDEX($C175:$G175,1,aux!$AL$1))^(1/($G$3-INDEX($C$3:$G$3,1,aux!$AL$1)))-1,"n.d.") -> n.d. | Y175: =IF(INDEX($C175:$G175,1,aux!$AL$1)>0,(G175-INDEX($C175:$G175,1,aux!$AL$1))/INDEX($C175:$G175,1,aux!$AL$1),"n.d.") -> n.d. | AA175: =O175-INDEX($K175:$O175,1,aux!$AL$1) -> 0 | AB175: n.d. | AC175: 0 | AD175: =+IF(INDEX($K175:$O175,1,aux!$AL$1)>0,(O175/INDEX($K175:$O175,1,aux!$AL$1))^(1/($O$3-INDEX($K$3:$O$3,1,aux!$AL$1)))-1,"n.d.") -> n.d. | AE175: =IF(INDEX($K175:$O175,1,aux!$AL$1)>0,(O175-INDEX($K175:$O175,1,aux!$AL$1))/INDEX($K175:$O175,1,aux!$AL$1),"n.d.") -> n.d. | AF175: 0 | AX175: 20 | BS175: 0
A176: 2007 | B176: Doces, geleias, purés e pastas de frutas | C176: 0 | D176: 0 | E176: 0 | F176: 0 | G176: 0 | H176: 0 | J176: 0 | K176: 0 | L176: 0 | M176: 0 | N176: 0 | O176: 0 | P176: 0 | R176: 0 | S176: 0 | U176: =G176-INDEX($C176:$G176,1,aux!$AL$1) -> 0 | V176: n.d. | W176: 0 | X176: =+IF(INDEX($C176:$G176,1,aux!$AL$1)>0,(G176/INDEX($C176:$G176,1,aux!$AL$1))^(1/($G$3-INDEX($C$3:$G$3,1,aux!$AL$1)))-1,"n.d.") -> n.d. | Y176: =IF(INDEX($C176:$G176,1,aux!$AL$1)>0,(G176-INDEX($C176:$G176,1,aux!$AL$1))/INDEX($C176:$G176,1,aux!$AL$1),"n.d.") -> n.d. | AA176: =O176-INDEX($K176:$O176,1,aux!$AL$1) -> 0 | AB176: n.d. | AC176: 0 | AD176: =+IF(INDEX($K176:$O176,1,aux!$AL$1)>0,(O176/INDEX($K176:$O176,1,aux!$AL$1))^(1/($O$3-INDEX($K$3:$O$3,1,aux!$AL$1)))-1,"n.d.") -> n.d. | AE176: =IF(INDEX($K176:$O176,1,aux!$AL$1)>0,(O176-INDEX($K176:$O176,1,aux!$AL$1))/INDEX($K176:$O176,1,aux!$AL$1),"n.d.") -> n.d. | AF176: 0 | AX176: 20 | BS176: 0
A177: 2008 | B177: Frutas preparadas | C177: 0 | D177: 0 | E177: 0 | F177: 0 | G177: 0 | H177: 0 | J177: 0 | K177: 0 | L177: 0 | M177: 0 | N177: 0 | O177: 0 | P177: 0 | R177: 0 | S177: 0 | U177: =G177-INDEX($C177:$G177,1,aux!$AL$1) -> 0 | V177: n.d. | W177: 0 | X177: =+IF(INDEX($C177:$G177,1,aux!$AL$1)>0,(G177/INDEX($C177:$G177,1,aux!$AL$1))^(1/($G$3-INDEX($C$3:$G$3,1,aux!$AL$1)))-1,"n.d.") -> n.d. | Y177: =IF(INDEX($C177:$G177,1,aux!$AL$1)>0,(G177-INDEX($C177:$G177,1,aux!$AL$1))/INDEX($C177:$G177,1,aux!$AL$1),"n.d.") -> n.d. | AA177: =O177-INDEX($K177:$O177,1,aux!$AL$1) -> 0 | AB177: n.d. | AC177: 0 | AD177: =+IF(INDEX($K177:$O177,1,aux!$AL$1)>0,(O177/INDEX($K177:$O177,1,aux!$AL$1))^(1/($O$3-INDEX($K$3:$O$3,1,aux!$AL$1)))-1,"n.d.") -> n.d. | AE177: =IF(INDEX($K177:$O177,1,aux!$AL$1)>0,(O177-INDEX($K177:$O177,1,aux!$AL$1))/INDEX($K177:$O177,1,aux!$AL$1),"n.d.") -> n.d. | AF177: 0 | AX177: 20 | BS177: 0
A178: 2009 | B178: Sumos de frutas | C178: 0 | D178: 0 | E178: 0 | F178: 0 | G178: 0 | H178: 0 | J178: 0 | K178: 0 | L178: 0 | M178: 0 | N178: 0 | O178: 0 | P178: 0 | R178: 0 | S178: 0 | U178: =G178-INDEX($C178:$G178,1,aux!$AL$1) -> 0 | V178: n.d. | W178: 0 | X178: =+IF(INDEX($C178:$G178,1,aux!$AL$1)>0,(G178/INDEX($C178:$G178,1,aux!$AL$1))^(1/($G$3-INDEX($C$3:$G$3,1,aux!$AL$1)))-1,"n.d.") -> n.d. | Y178: =IF(INDEX($C178:$G178,1,aux!$AL$1)>0,(G178-INDEX($C178:$G178,1,aux!$AL$1))/INDEX($C178:$G178,1,aux!$AL$1),"n.d.") -> n.d. | AA178: =O178-INDEX($K178:$O178,1,aux!$AL$1) -> 0 | AB178: n.d. | AC178: 0 | AD178: =+IF(INDEX($K178:$O178,1,aux!$AL$1)>0,(O178/INDEX($K178:$O178,1,aux!$AL$1))^(1/($O$3-INDEX($K$3:$O$3,1,aux!$AL$1)))-1,"n.d.") -> n.d. | AE178: =IF(INDEX($K178:$O178,1,aux!$AL$1)>0,(O178-INDEX($K178:$O178,1,aux!$AL$1))/INDEX($K178:$O178,1,aux!$AL$1),"n.d.") -> n.d. | AF178: 0 | AX178: 20 | BS178: 0
A179: 20SS | B179: Preparações de produtos vegetais | C179: 0 | D179: 0 | E179: 0 | F179: 0 | G179: 0 | H179: 0 | J179: 0 | K179: 0 | L179: 0 | M179: 0 | N179: 0 | O179: 0 | P179: 0 | R179: 0 | S179: 0 | U179: =G179-INDEX($C179:$G179,1,aux!$AL$1) -> 0 | V179: n.d. | W179: 0 | X179: =+IF(INDEX($C179:$G179,1,aux!$AL$1)>0,(G179/INDEX($C179:$G179,1,aux!$AL$1))^(1/($G$3-INDEX($C$3:$G$3,1,aux!$AL$1)))-1,"n.d.") -> n.d. | Y179: =IF(INDEX($C179:$G179,1,aux!$AL$1)>0,(G179-INDEX($C179:$G179,1,aux!$AL$1))/INDEX($C179:$G179,1,aux!$AL$1),"n.d.") -> n.d. | AA179: =O179-INDEX($K179:$O179,1,aux!$AL$1) -> 0 | AB179: n.d. | AC179: 0 | AD179: =+IF(INDEX($K179:$O179,1,aux!$AL$1)>0,(O179/INDEX($K179:$O179,1,aux!$AL$1))^(1/($O$3-INDEX($K$3:$O$3,1,aux!$AL$1)))-1,"n.d.") -> n.d. | AE179: =IF(INDEX($K179:$O179,1,aux!$AL$1)>0,(O179-INDEX($K179:$O179,1,aux!$AL$1))/INDEX($K179:$O179,1,aux!$AL$1),"n.d.") -> n.d. | AF179: 0 | AX179: 20 | BS179: 0
A180: 2101 | B180: Extratos e preparados de café, chá ou mate | C180: 0 | D180: 0 | E180: 0 | F180: 0 | G180: 0 | H180: 0 | J180: 0 | K180: 0 | L180: 0 | M180: 0 | N180: 0 | O180: 0 | P180: 0 | R180: 0 | S180: 0 | U180: =G180-INDEX($C180:$G180,1,aux!$AL$1) -> 0 | V180: n.d. | W180: 0 | X180: =+IF(INDEX($C180:$G180,1,aux!$AL$1)>0,(G180/INDEX($C180:$G180,1,aux!$AL$1))^(1/($G$3-INDEX($C$3:$G$3,1,aux!$AL$1)))-1,"n.d.") -> n.d. | Y180: =IF(INDEX($C180:$G180,1,aux!$AL$1)>0,(G180-INDEX($C180:$G180,1,aux!$AL$1))/INDEX($C180:$G180,1,aux!$AL$1),"n.d.") -> n.d. | AA180: =O180-INDEX($K180:$O180,1,aux!$AL$1) -> 0 | AB180: n.d. | AC180: 0 | AD180: =+IF(INDEX($K180:$O180,1,aux!$AL$1)>0,(O180/INDEX($K180:$O180,1,aux!$AL$1))^(1/($O$3-INDEX($K$3:$O$3,1,aux!$AL$1)))-1,"n.d.") -> n.d. | AE180: =IF(INDEX($K180:$O180,1,aux!$AL$1)>0,(O180-INDEX($K180:$O180,1,aux!$AL$1))/INDEX($K180:$O180,1,aux!$AL$1),"n.d.") -> n.d. | AF180: 0 | BS180: 0
A181: 2102 | B181: Leveduras, vivas ou mortas, etc. | C181: 0 | D181: 0 | E181: 0 | F181: 0 | G181: 0 | H181: 0 | J181: 0 | K181: 0 | L181: 0 | M181: 0 | N181: 0 | O181: 0 | P181: 0 | R181: 0 | S181: 0 | U181: =G181-INDEX($C181:$G181,1,aux!$AL$1) -> 0 | V181: n.d. | W181: 0 | X181: =+IF(INDEX($C181:$G181,1,aux!$AL$1)>0,(G181/INDEX($C181:$G181,1,aux!$AL$1))^(1/($G$3-INDEX($C$3:$G$3,1,aux!$AL$1)))-1,"n.d.") -> n.d. | Y181: =IF(INDEX($C181:$G181,1,aux!$AL$1)>0,(G181-INDEX($C181:$G181,1,aux!$AL$1))/INDEX($C181:$G181,1,aux!$AL$1),"n.d.") -> n.d. | AA181: =O181-INDEX($K181:$O181,1,aux!$AL$1) -> 0 | AB181: n.d. | AC181: 0 | AD181: =+IF(INDEX($K181:$O181,1,aux!$AL$1)>0,(O181/INDEX($K181:$O181,1,aux!$AL$1))^(1/($O$3-INDEX($K$3:$O$3,1,aux!$AL$1)))-1,"n.d.") -> n.d. | AE181: =IF(INDEX($K181:$O181,1,aux!$AL$1)>0,(O181-INDEX($K181:$O181,1,aux!$AL$1))/INDEX($K181:$O181,1,aux!$AL$1),"n.d.") -> n.d. | AF181: 0 | AX181: 21 | BS181: 0
A182: 2103 | B182: Preparações para molhos e molhos preparados | C182: 0 | D182: 0 | E182: 0 | F182: 0 | G182: 0 | H182: 0 | J182: 0 | K182: 0 | L182: 0 | M182: 0 | N182: 0 | O182: 0 | P182: 0 | R182: 0 | S182: 0 | U182: =G182-INDEX($C182:$G182,1,aux!$AL$1) -> 0 | V182: n.d. | W182: 0 | X182: =+IF(INDEX($C182:$G182,1,aux!$AL$1)>0,(G182/INDEX($C182:$G182,1,aux!$AL$1))^(1/($G$3-INDEX($C$3:$G$3,1,aux!$AL$1)))-1,"n.d.") -> n.d. | Y182: =IF(INDEX($C182:$G182,1,aux!$AL$1)>0,(G182-INDEX($C182:$G182,1,aux!$AL$1))/INDEX($C182:$G182,1,aux!$AL$1),"n.d.") -> n.d. | AA182: =O182-INDEX($K182:$O182,1,aux!$AL$1) -> 0 | AB182: n.d. | AC182: 0 | AD182: =+IF(INDEX($K182:$O182,1,aux!$AL$1)>0,(O182/INDEX($K182:$O182,1,aux!$AL$1))^(1/($O$3-INDEX($K$3:$O$3,1,aux!$AL$1)))-1,"n.d.") -> n.d. | AE182: =IF(INDEX($K182:$O182,1,aux!$AL$1)>0,(O182-INDEX($K182:$O182,1,aux!$AL$1))/INDEX($K182:$O182,1,aux!$AL$1),"n.d.") -> n.d. | AF182: 0 | AX182: 21 | BS182: 0
A183: 2104 | B183: Preparações para caldos e sopas | C183: 0 | D183: 0 | E183: 0 | F183: 0 | G183: 0 | H183: 0 | J183: 0 | K183: 0 | L183: 0 | M183: 0 | N183: 0 | O183: 0 | P183: 0 | R183: 0 | S183: 0 | U183: =G183-INDEX($C183:$G183,1,aux!$AL$1) -> 0 | V183: n.d. | W183: 0 | X183: =+IF(INDEX($C183:$G183,1,aux!$AL$1)>0,(G183/INDEX($C183:$G183,1,aux!$AL$1))^(1/($G$3-INDEX($C$3:$G$3,1,aux!$AL$1)))-1,"n.d.") -> n.d. | Y183: =IF(INDEX($C183:$G183,1,aux!$AL$1)>0,(G183-INDEX($C183:$G183,1,aux!$AL$1))/INDEX($C183:$G183,1,aux!$AL$1),"n.d.") -> n.d. | AA183: =O183-INDEX($K183:$O183,1,aux!$AL$1) -> 0 | AB183: n.d. | AC183: 0 | AD183: =+IF(INDEX($K183:$O183,1,aux!$AL$1)>0,(O183/INDEX($K183:$O183,1,aux!$AL$1))^(1/($O$3-INDEX($K$3:$O$3,1,aux!$AL$1)))-1,"n.d.") -> n.d. | AE183: =IF(INDEX($K183:$O183,1,aux!$AL$1)>0,(O183-INDEX($K183:$O183,1,aux!$AL$1))/INDEX($K183:$O183,1,aux!$AL$1),"n.d.") -> n.d. | AF183: 0 | AX183: 21 | BS183: 0
A184: 2105 | B184: Sorvetes, mesmo contendo cacau | C184: 0 | D184: 0 | E184: 0 | F184: 0 | G184: 0 | H184: 0 | J184: 0 | K184: 0 | L184: 0 | M184: 0 | N184: 0 | O184: 0 | P184: 0 | R184: 0 | S184: 0 | U184: =G184-INDEX($C184:$G184,1,aux!$AL$1) -> 0 | V184: n.d. | W184: 0 | X184: =+IF(INDEX($C184:$G184,1,aux!$AL$1)>0,(G184/INDEX($C184:$G184,1,aux!$AL$1))^(1/($G$3-INDEX($C$3:$G$3,1,aux!$AL$1)))-1,"n.d.") -> n.d. | Y184: =IF(INDEX($C184:$G184,1,aux!$AL$1)>0,(G184-INDEX($C184:$G184,1,aux!$AL$1))/INDEX($C184:$G184,1,aux!$AL$1),"n.d.") -> n.d. | AA184: =O184-INDEX($K184:$O184,1,aux!$AL$1) -> 0 | AB184: n.d. | AC184: 0 | AD184: =+IF(INDEX($K184:$O184,1,aux!$AL$1)>0,(O184/INDEX($K184:$O184,1,aux!$AL$1))^(1/($O$3-INDEX($K$3:$O$3,1,aux!$AL$1)))-1,"n.d.") -> n.d. | AE184: =IF(INDEX($K184:$O184,1,aux!$AL$1)>0,(O184-INDEX($K184:$O184,1,aux!$AL$1))/INDEX($K184:$O184,1,aux!$AL$1),"n.d.") -> n.d. | AF184: 0 | AX184: 21 | BS184: 0
A185: 2106 | B185: Outras preparações alimentícias | C185: 0 | D185: 0 | E185: 0 | F185: 0 | G185: 0 | H185: 0 | J185: 0 | K185: 0 | L185: 0 | M185: 0 | N185: 0 | O185: 0 | P185: 0 | R185: 0 | S185: 0 | U185: =G185-INDEX($C185:$G185,1,aux!$AL$1) -> 0 | V185: n.d. | W185: 0 | X185: =+IF(INDEX($C185:$G185,1,aux!$AL$1)>0,(G185/INDEX($C185:$G185,1,aux!$AL$1))^(1/($G$3-INDEX($C$3:$G$3,1,aux!$AL$1)))-1,"n.d.") -> n.d. | Y185: =IF(INDEX($C185:$G185,1,aux!$AL$1)>0,(G185-INDEX($C185:$G185,1,aux!$AL$1))/INDEX($C185:$G185,1,aux!$AL$1),"n.d.") -> n.d. | AA185: =O185-INDEX($K185:$O185,1,aux!$AL$1) -> 0 | AB185: n.d. | AC185: 0 | AD185: =+IF(INDEX($K185:$O185,1,aux!$AL$1)>0,(O185/INDEX($K185:$O185,1,aux!$AL$1))^(1/($O$3-INDEX($K$3:$O$3,1,aux!$AL$1)))-1,"n.d.") -> n.d. | AE185: =IF(INDEX($K185:$O185,1,aux!$AL$1)>0,(O185-INDEX($K185:$O185,1,aux!$AL$1))/INDEX($K185:$O185,1,aux!$AL$1),"n.d.") -> n.d. | AF185: 0 | AX185: 21 | BS185: 0
A186: 21SS | B186: Preparações alimentícias diversas | C186: 0 | D186: 0 | E186: 0 | F186: 0 | G186: 0 | H186: 0 | J186: 0 | K186: 0 | L186: 0 | M186: 0 | N186: 0 | O186: 0 | P186: 0 | R186: 0 | S186: 0 | U186: =G186-INDEX($C186:$G186,1,aux!$AL$1) -> 0 | V186: n.d. | W186: 0 | X186: =+IF(INDEX($C186:$G186,1,aux!$AL$1)>0,(G186/INDEX($C186:$G186,1,aux!$AL$1))^(1/($G$3-INDEX($C$3:$G$3,1,aux!$AL$1)))-1,"n.d.") -> n.d. | Y186: =IF(INDEX($C186:$G186,1,aux!$AL$1)>0,(G186-INDEX($C186:$G186,1,aux!$AL$1))/INDEX($C186:$G186,1,aux!$AL$1),"n.d.") -> n.d. | AA186: =O186-INDEX($K186:$O186,1,aux!$AL$1) -> 0 | AB186: n.d. | AC186: 0 | AD186: =+IF(INDEX($K186:$O186,1,aux!$AL$1)>0,(O186/INDEX($K186:$O186,1,aux!$AL$1))^(1/($O$3-INDEX($K$3:$O$3,1,aux!$AL$1)))-1,"n.d.") -> n.d. | AE186: =IF(INDEX($K186:$O186,1,aux!$AL$1)>0,(O186-INDEX($K186:$O186,1,aux!$AL$1))/INDEX($K186:$O186,1,aux!$AL$1),"n.d.") -> n.d. | AF186: 0 | AX186: 21 | BS186: 0
A187: 2201 | B187: Águas sem açúcar ou outros produtos | C187: 0 | D187: 0 | E187: 0 | F187: 0 | G187: 0 | H187: 0 | J187: 0 | K187: 0 | L187: 0 | M187: 0 | N187: 0 | O187: 0 | P187: 0 | R187: 0 | S187: 0 | U187: =G187-INDEX($C187:$G187,1,aux!$AL$1) -> 0 | V187: n.d. | W187: 0 | X187: =+IF(INDEX($C187:$G187,1,aux!$AL$1)>0,(G187/INDEX($C187:$G187,1,aux!$AL$1))^(1/($G$3-INDEX($C$3:$G$3,1,aux!$AL$1)))-1,"n.d.") -> n.d. | Y187: =IF(INDEX($C187:$G187,1,aux!$AL$1)>0,(G187-INDEX($C187:$G187,1,aux!$AL$1))/INDEX($C187:$G187,1,aux!$AL$1),"n.d.") -> n.d. | AA187: =O187-INDEX($K187:$O187,1,aux!$AL$1) -> 0 | AB187: n.d. | AC187: 0 | AD187: =+IF(INDEX($K187:$O187,1,aux!$AL$1)>0,(O187/INDEX($K187:$O187,1,aux!$AL$1))^(1/($O$3-INDEX($K$3:$O$3,1,aux!$AL$1)))-1,"n.d.") -> n.d. | AE187: =IF(INDEX($K187:$O187,1,aux!$AL$1)>0,(O187-INDEX($K187:$O187,1,aux!$AL$1))/INDEX($K187:$O187,1,aux!$AL$1),"n.d.") -> n.d. | AF187: 0 | BS187: 0
A188: 2202 | B188: Águas com açúcar ou outros produtos; outras bebidas | C188: 0 | D188: 0 | E188: 0 | F188: 0 | G188: 0 | H188: 0 | J188: 0 | K188: 0 | L188: 0 | M188: 0 | N188: 0 | O188: 0 | P188: 0 | R188: 0 | S188: 0 | U188: =G188-INDEX($C188:$G188,1,aux!$AL$1) -> 0 | V188: n.d. | W188: 0 | X188: =+IF(INDEX($C188:$G188,1,aux!$AL$1)>0,(G188/INDEX($C188:$G188,1,aux!$AL$1))^(1/($G$3-INDEX($C$3:$G$3,1,aux!$AL$1)))-1,"n.d.") -> n.d. | Y188: =IF(INDEX($C188:$G188,1,aux!$AL$1)>0,(G188-INDEX($C188:$G188,1,aux!$AL$1))/INDEX($C188:$G188,1,aux!$AL$1),"n.d.") -> n.d. | AA188: =O188-INDEX($K188:$O188,1,aux!$AL$1) -> 0 | AB188: n.d. | AC188: 0 | AD188: =+IF(INDEX($K188:$O188,1,aux!$AL$1)>0,(O188/INDEX($K188:$O188,1,aux!$AL$1))^(1/($O$3-INDEX($K$3:$O$3,1,aux!$AL$1)))-1,"n.d.") -> n.d. | AE188: =IF(INDEX($K188:$O188,1,aux!$AL$1)>0,(O188-INDEX($K188:$O188,1,aux!$AL$1))/INDEX($K188:$O188,1,aux!$AL$1),"n.d.") -> n.d. | AF188: 0 | AX188: 22 | BS188: 0
A189: 2203 | B189: Cervejas de malte | C189: 0 | D189: 0 | E189: 0 | F189: 0 | G189: 0 | H189: 0 | J189: 0 | K189: 0 | L189: 0 | M189: 0 | N189: 0 | O189: 0 | P189: 0 | R189: 0 | S189: 0 | U189: =G189-INDEX($C189:$G189,1,aux!$AL$1) -> 0 | V189: n.d. | W189: 0 | X189: =+IF(INDEX($C189:$G189,1,aux!$AL$1)>0,(G189/INDEX($C189:$G189,1,aux!$AL$1))^(1/($G$3-INDEX($C$3:$G$3,1,aux!$AL$1)))-1,"n.d.") -> n.d. | Y189: =IF(INDEX($C189:$G189,1,aux!$AL$1)>0,(G189-INDEX($C189:$G189,1,aux!$AL$1))/INDEX($C189:$G189,1,aux!$AL$1),"n.d.") -> n.d. | AA189: =O189-INDEX($K189:$O189,1,aux!$AL$1) -> 0 | AB189: n.d. | AC189: 0 | AD189: =+IF(INDEX($K189:$O189,1,aux!$AL$1)>0,(O189/INDEX($K189:$O189,1,aux!$AL$1))^(1/($O$3-INDEX($K$3:$O$3,1,aux!$AL$1)))-1,"n.d.") -> n.d. | AE189: =IF(INDEX($K189:$O189,1,aux!$AL$1)>0,(O189-INDEX($K189:$O189,1,aux!$AL$1))/INDEX($K189:$O189,1,aux!$AL$1),"n.d.") -> n.d. | AF189: 0 | AX189: 22 | BS189: 0
A190: 2204 | B190: Vinhos de uvas frescas | C190: 0 | D190: 0 | E190: 0 | F190: 0 | G190: 0 | H190: 0 | J190: 0 | K190: 0 | L190: 0 | M190: 0 | N190: 0 | O190: 0 | P190: 0 | R190: 0 | S190: 0 | U190: =G190-INDEX($C190:$G190,1,aux!$AL$1) -> 0 | V190: n.d. | W190: 0 | X190: =+IF(INDEX($C190:$G190,1,aux!$AL$1)>0,(G190/INDEX($C190:$G190,1,aux!$AL$1))^(1/($G$3-INDEX($C$3:$G$3,1,aux!$AL$1)))-1,"n.d.") -> n.d. | Y190: =IF(INDEX($C190:$G190,1,aux!$AL$1)>0,(G190-INDEX($C190:$G190,1,aux!$AL$1))/INDEX($C190:$G190,1,aux!$AL$1),"n.d.") -> n.d. | AA190: =O190-INDEX($K190:$O190,1,aux!$AL$1) -> 0 | AB190: n.d. | AC190: 0 | AD190: =+IF(INDEX($K190:$O190,1,aux!$AL$1)>0,(O190/INDEX($K190:$O190,1,aux!$AL$1))^(1/($O$3-INDEX($K$3:$O$3,1,aux!$AL$1)))-1,"n.d.") -> n.d. | AE190: =IF(INDEX($K190:$O190,1,aux!$AL$1)>0,(O190-INDEX($K190:$O190,1,aux!$AL$1))/INDEX($K190:$O190,1,aux!$AL$1),"n.d.") -> n.d. | AF190: 0 | AX190: 22 | BS190: 0
A191: 2205 | B191: Vermutes, etc. | C191: 0 | D191: 0 | E191: 0 | F191: 0 | G191: 0 | H191: 0 | J191: 0 | K191: 0 | L191: 0 | M191: 0 | N191: 0 | O191: 0 | P191: 0 | R191: 0 | S191: 0 | U191: =G191-INDEX($C191:$G191,1,aux!$AL$1) -> 0 | V191: n.d. | W191: 0 | X191: =+IF(INDEX($C191:$G191,1,aux!$AL$1)>0,(G191/INDEX($C191:$G191,1,aux!$AL$1))^(1/($G$3-INDEX($C$3:$G$3,1,aux!$AL$1)))-1,"n.d.") -> n.d. | Y191: =IF(INDEX($C191:$G191,1,aux!$AL$1)>0,(G191-INDEX($C191:$G191,1,aux!$AL$1))/INDEX($C191:$G191,1,aux!$AL$1),"n.d.") -> n.d. | AA191: =O191-INDEX($K191:$O191,1,aux!$AL$1) -> 0 | AB191: n.d. | AC191: 0 | AD191: =+IF(INDEX($K191:$O191,1,aux!$AL$1)>0,(O191/INDEX($K191:$O191,1,aux!$AL$1))^(1/($O$3-INDEX($K$3:$O$3,1,aux!$AL$1)))-1,"n.d.") -> n.d. | AE191: =IF(INDEX($K191:$O191,1,aux!$AL$1)>0,(O191-INDEX($K191:$O191,1,aux!$AL$1))/INDEX($K191:$O191,1,aux!$AL$1),"n.d.") -> n.d. | AF191: 0 | AX191: 22 | BS191: 0
A192: 2206 | B192: Sidra, perada e outras bebidas fermentadas | C192: 0 | D192: 0 | E192: 0 | F192: 0 | G192: 0 | H192: 0 | J192: 0 | K192: 0 | L192: 0 | M192: 0 | N192: 0 | O192: 0 | P192: 0 | R192: 0 | S192: 0 | U192: =G192-INDEX($C192:$G192,1,aux!$AL$1) -> 0 | V192: n.d. | W192: 0 | X192: =+IF(INDEX($C192:$G192,1,aux!$AL$1)>0,(G192/INDEX($C192:$G192,1,aux!$AL$1))^(1/($G$3-INDEX($C$3:$G$3,1,aux!$AL$1)))-1,"n.d.") -> n.d. | Y192: =IF(INDEX($C192:$G192,1,aux!$AL$1)>0,(G192-INDEX($C192:$G192,1,aux!$AL$1))/INDEX($C192:$G192,1,aux!$AL$1),"n.d.") -> n.d. | AA192: =O192-INDEX($K192:$O192,1,aux!$AL$1) -> 0 | AB192: n.d. | AC192: 0 | AD192: =+IF(INDEX($K192:$O192,1,aux!$AL$1)>0,(O192/INDEX($K192:$O192,1,aux!$AL$1))^(1/($O$3-INDEX($K$3:$O$3,1,aux!$AL$1)))-1,"n.d.") -> n.d. | AE192: =IF(INDEX($K192:$O192,1,aux!$AL$1)>0,(O192-INDEX($K192:$O192,1,aux!$AL$1))/INDEX($K192:$O192,1,aux!$AL$1),"n.d.") -> n.d. | AF192: 0 | AX192: 22 | BS192: 0
A193: 2207 | B193: Álcool etílico teor alcoólico =>80%; aguardentes desnaturadas | C193: 0 | D193: 0 | E193: 0 | F193: 0 | G193: 0 | H193: 0 | J193: 0 | K193: 0 | L193: 0 | M193: 0 | N193: 0 | O193: 0 | P193: 0 | R193: 0 | S193: 0 | U193: =G193-INDEX($C193:$G193,1,aux!$AL$1) -> 0 | V193: n.d. | W193: 0 | X193: =+IF(INDEX($C193:$G193,1,aux!$AL$1)>0,(G193/INDEX($C193:$G193,1,aux!$AL$1))^(1/($G$3-INDEX($C$3:$G$3,1,aux!$AL$1)))-1,"n.d.") -> n.d. | Y193: =IF(INDEX($C193:$G193,1,aux!$AL$1)>0,(G193-INDEX($C193:$G193,1,aux!$AL$1))/INDEX($C193:$G193,1,aux!$AL$1),"n.d.") -> n.d. | AA193: =O193-INDEX($K193:$O193,1,aux!$AL$1) -> 0 | AB193: n.d. | AC193: 0 | AD193: =+IF(INDEX($K193:$O193,1,aux!$AL$1)>0,(O193/INDEX($K193:$O193,1,aux!$AL$1))^(1/($O$3-INDEX($K$3:$O$3,1,aux!$AL$1)))-1,"n.d.") -> n.d. | AE193: =IF(INDEX($K193:$O193,1,aux!$AL$1)>0,(O193-INDEX($K193:$O193,1,aux!$AL$1))/INDEX($K193:$O193,1,aux!$AL$1),"n.d.") -> n.d. | AF193: 0 | AX193: 22 | BS193: 0
A194: 2208 | B194: Álcool etílico <80%; aguardentes, etc. | C194: 0 | D194: 0 | E194: 0 | F194: 0 | G194: 0 | H194: 0 | J194: 0 | K194: 0 | L194: 0 | M194: 0 | N194: 0 | O194: 0 | P194: 0 | R194: 0 | S194: 0 | U194: =G194-INDEX($C194:$G194,1,aux!$AL$1) -> 0 | V194: n.d. | W194: 0 | X194: =+IF(INDEX($C194:$G194,1,aux!$AL$1)>0,(G194/INDEX($C194:$G194,1,aux!$AL$1))^(1/($G$3-INDEX($C$3:$G$3,1,aux!$AL$1)))-1,"n.d.") -> n.d. | Y194: =IF(INDEX($C194:$G194,1,aux!$AL$1)>0,(G194-INDEX($C194:$G194,1,aux!$AL$1))/INDEX($C194:$G194,1,aux!$AL$1),"n.d.") -> n.d. | AA194: =O194-INDEX($K194:$O194,1,aux!$AL$1) -> 0 | AB194: n.d. | AC194: 0 | AD194: =+IF(INDEX($K194:$O194,1,aux!$AL$1)>0,(O194/INDEX($K194:$O194,1,aux!$AL$1))^(1/($O$3-INDEX($K$3:$O$3,1,aux!$AL$1)))-1,"n.d.") -> n.d. | AE194: =IF(INDEX($K194:$O194,1,aux!$AL$1)>0,(O194-INDEX($K194:$O194,1,aux!$AL$1))/INDEX($K194:$O194,1,aux!$AL$1),"n.d.") -> n.d. | AF194: 0 | AX194: 22 | BS194: 0
A195: 2209 | B195: Vinagres para usos alimentares | C195: 0 | D195: 0 | E195: 0 | F195: 0 | G195: 0 | H195: 0 | J195: 0 | K195: 0 | L195: 0 | M195: 0 | N195: 0 | O195: 0 | P195: 0 | R195: 0 | S195: 0 | U195: =G195-INDEX($C195:$G195,1,aux!$AL$1) -> 0 | V195: n.d. | W195: 0 | X195: =+IF(INDEX($C195:$G195,1,aux!$AL$1)>0,(G195/INDEX($C195:$G195,1,aux!$AL$1))^(1/($G$3-INDEX($C$3:$G$3,1,aux!$AL$1)))-1,"n.d.") -> n.d. | Y195: =IF(INDEX($C195:$G195,1,aux!$AL$1)>0,(G195-INDEX($C195:$G195,1,aux!$AL$1))/INDEX($C195:$G195,1,aux!$AL$1),"n.d.") -> n.d. | AA195: =O195-INDEX($K195:$O195,1,aux!$AL$1) -> 0 | AB195: n.d. | AC195: 0 | AD195: =+IF(INDEX($K195:$O195,1,aux!$AL$1)>0,(O195/INDEX($K195:$O195,1,aux!$AL$1))^(1/($O$3-INDEX($K$3:$O$3,1,aux!$AL$1)))-1,"n.d.") -> n.d. | AE195: =IF(INDEX($K195:$O195,1,aux!$AL$1)>0,(O195-INDEX($K195:$O195,1,aux!$AL$1))/INDEX($K195:$O195,1,aux!$AL$1),"n.d.") -> n.d. | AF195: 0 | AX195: 22 | BS195: 0
A196: 22SS | B196: Bebidas, líquidos alcoólicos e vinagres | C196: 0 | D196: 0 | E196: 0 | F196: 0 | G196: 0 | H196: 0 | J196: 0 | K196: 0 | L196: 0 | M196: 0 | N196: 0 | O196: 0 | P196: 0 | R196: 0 | S196: 0 | U196: =G196-INDEX($C196:$G196,1,aux!$AL$1) -> 0 | V196: =IF($U$236<>0,U196/$U$236, "n.d.") -> n.d. | W196: =IF($U$320<>0,U196/$U$320, "n.d.") -> 0 | X196: =+IF(INDEX($C196:$G196,1,aux!$AL$1)>0,(G196/INDEX($C196:$G196,1,aux!$AL$1))^(1/($G$3-INDEX($C$3:$G$3,1,aux!$AL$1)))-1,"n.d.") -> n.d. | Y196: =IF(INDEX($C196:$G196,1,aux!$AL$1)>0,(G196-INDEX($C196:$G196,1,aux!$AL$1))/INDEX($C196:$G196,1,aux!$AL$1),"n.d.") -> n.d. | AA196: =O196-INDEX($K196:$O196,1,aux!$AL$1) -> 0 | AB196: =IF($AA$236<>0,AA196/$AA$236, "n.d.") -> n.d. | AC196: =IF($AA$320<>0,AA196/$AA$320, "n.d.") -> 0 | AD196: =+IF(INDEX($K196:$O196,1,aux!$AL$1)>0,(O196/INDEX($K196:$O196,1,aux!$AL$1))^(1/($O$3-INDEX($K$3:$O$3,1,aux!$AL$1)))-1,"n.d.") -> n.d. | AE196: =IF(INDEX($K196:$O196,1,aux!$AL$1)>0,(O196-INDEX($K196:$O196,1,aux!$AL$1))/INDEX($K196:$O196,1,aux!$AL$1),"n.d.") -> n.d. | AF196: =SUM(C196:S196) -> 0 | AX196: 22 | BS196: 0
A197: 2301 | B197: Farinhas de carnes, etc. (exc. NC 2301 20) (a) | C197: 0 | D197: 0 | E197: 0 | F197: 0 | G197: 0 | H197: 0 | J197: 0 | K197: 0 | L197: 0 | M197: 0 | N197: 0 | O197: 0 | P197: 0 | R197: 0 | S197: 0 | U197: =G197-INDEX($C197:$G197,1,aux!$AL$1) -> 0 | V197: n.d. | W197: 0 | X197: =+IF(INDEX($C197:$G197,1,aux!$AL$1)>0,(G197/INDEX($C197:$G197,1,aux!$AL$1))^(1/($G$3-INDEX($C$3:$G$3,1,aux!$AL$1)))-1,"n.d.") -> n.d. | Y197: =IF(INDEX($C197:$G197,1,aux!$AL$1)>0,(G197-INDEX($C197:$G197,1,aux!$AL$1))/INDEX($C197:$G197,1,aux!$AL$1),"n.d.") -> n.d. | AA197: =O197-INDEX($K197:$O197,1,aux!$AL$1) -> 0 | AB197: n.d. | AC197: 0 | AD197: =+IF(INDEX($K197:$O197,1,aux!$AL$1)>0,(O197/INDEX($K197:$O197,1,aux!$AL$1))^(1/($O$3-INDEX($K$3:$O$3,1,aux!$AL$1)))-1,"n.d.") -> n.d. | AE197: =IF(INDEX($K197:$O197,1,aux!$AL$1)>0,(O197-INDEX($K197:$O197,1,aux!$AL$1))/INDEX($K197:$O197,1,aux!$AL$1),"n.d.") -> n.d. | AF197: 0 | BS197: =SUM(C197:G197,K197:O197) -> 0
A198: 2302 | B198: Resíduos de tratamentos de cereais ou leguminosas | C198: 0 | D198: 0 | E198: 0 | F198: 0 | G198: 0 | H198: 0 | J198: 0 | K198: 0 | L198: 0 | M198: 0 | N198: 0 | O198: 0 | P198: 0 | R198: 0 | S198: 0 | U198: =G198-INDEX($C198:$G198,1,aux!$AL$1) -> 0 | V198: n.d. | W198: 0 | X198: =+IF(INDEX($C198:$G198,1,aux!$AL$1)>0,(G198/INDEX($C198:$G198,1,aux!$AL$1))^(1/($G$3-INDEX($C$3:$G$3,1,aux!$AL$1)))-1,"n.d.") -> n.d. | Y198: =IF(INDEX($C198:$G198,1,aux!$AL$1)>0,(G198-INDEX($C198:$G198,1,aux!$AL$1))/INDEX($C198:$G198,1,aux!$AL$1),"n.d.") -> n.d. | AA198: =O198-INDEX($K198:$O198,1,aux!$AL$1) -> 0 | AB198: n.d. | AC198: 0 | AD198: =+IF(INDEX($K198:$O198,1,aux!$AL$1)>0,(O198/INDEX($K198:$O198,1,aux!$AL$1))^(1/($O$3-INDEX($K$3:$O$3,1,aux!$AL$1)))-1,"n.d.") -> n.d. | AE198: =IF(INDEX($K198:$O198,1,aux!$AL$1)>0,(O198-INDEX($K198:$O198,1,aux!$AL$1))/INDEX($K198:$O198,1,aux!$AL$1),"n.d.") -> n.d. | AF198: 0 | AX198: 23 | BS198: 0
A199: 2303 | B199: Resíduos da fabricação de amido, etc. | C199: 0 | D199: 0 | E199: 0 | F199: 0 | G199: 0 | H199: 0 | J199: 0 | K199: 0 | L199: 0 | M199: 0 | N199: 0 | O199: 0 | P199: 0 | R199: 0 | S199: 0 | U199: =G199-INDEX($C199:$G199,1,aux!$AL$1) -> 0 | V199: n.d. | W199: 0 | X199: =+IF(INDEX($C199:$G199,1,aux!$AL$1)>0,(G199/INDEX($C199:$G199,1,aux!$AL$1))^(1/($G$3-INDEX($C$3:$G$3,1,aux!$AL$1)))-1,"n.d.") -> n.d. | Y199: =IF(INDEX($C199:$G199,1,aux!$AL$1)>0,(G199-INDEX($C199:$G199,1,aux!$AL$1))/INDEX($C199:$G199,1,aux!$AL$1),"n.d.") -> n.d. | AA199: =O199-INDEX($K199:$O199,1,aux!$AL$1) -> 0 | AB199: n.d. | AC199: 0 | AD199: =+IF(INDEX($K199:$O199,1,aux!$AL$1)>0,(O199/INDEX($K199:$O199,1,aux!$AL$1))^(1/($O$3-INDEX($K$3:$O$3,1,aux!$AL$1)))-1,"n.d.") -> n.d. | AE199: =IF(INDEX($K199:$O199,1,aux!$AL$1)>0,(O199-INDEX($K199:$O199,1,aux!$AL$1))/INDEX($K199:$O199,1,aux!$AL$1),"n.d.") -> n.d. | AF199: 0 | AX199: 23 | BS199: 0
A200: 2304 | B200: Bagaços e outros resíduos sólidos de soja | C200: 0 | D200: 0 | E200: 0 | F200: 0 | G200: 0 | H200: 0 | J200: 0 | K200: 0 | L200: 0 | M200: 0 | N200: 0 | O200: 0 | P200: 0 | R200: 0 | S200: 0 | U200: =G200-INDEX($C200:$G200,1,aux!$AL$1) -> 0 | V200: n.d. | W200: 0 | X200: =+IF(INDEX($C200:$G200,1,aux!$AL$1)>0,(G200/INDEX($C200:$G200,1,aux!$AL$1))^(1/($G$3-INDEX($C$3:$G$3,1,aux!$AL$1)))-1,"n.d.") -> n.d. | Y200: =IF(INDEX($C200:$G200,1,aux!$AL$1)>0,(G200-INDEX($C200:$G200,1,aux!$AL$1))/INDEX($C200:$G200,1,aux!$AL$1),"n.d.") -> n.d. | AA200: =O200-INDEX($K200:$O200,1,aux!$AL$1) -> 0 | AB200: n.d. | AC200: 0 | AD200: =+IF(INDEX($K200:$O200,1,aux!$AL$1)>0,(O200/INDEX($K200:$O200,1,aux!$AL$1))^(1/($O$3-INDEX($K$3:$O$3,1,aux!$AL$1)))-1,"n.d.") -> n.d. | AE200: =IF(INDEX($K200:$O200,1,aux!$AL$1)>0,(O200-INDEX($K200:$O200,1,aux!$AL$1))/INDEX($K200:$O200,1,aux!$AL$1),"n.d.") -> n.d. | AF200: 0 | AX200: 23 | BS200: 0
... 122 more rows

Sheet 5.2A_var
A1: ="Principais contributos por produto para a variação das trocas comerciais PT-"& aux!B54 &" no período " & INDEX('5.2'!K3:N3,1,aux!AL1) & "-"& '5.2'!O3 &" (NC 4 dígitos - milhares de euros) "& aux!B52 &"" -> Principais contributos por produto para a variação das trocas comerciais PT-Espanha no período 2017-2021 (NC 4 dígitos - milhares de euros) Produtos do Mar
E5: aumento das importações | J5: aumento das exportações
E17: redução das importações | J17: redução das exportações
A28: Fonte: GPP a partir de dados INE/Comércio Internacional (2020 provisórios; 2021 preliminares) | F28: a - agrícola e agroalimentar; p - mar; f - florestas | H28: ='3'!Y116 -> 2022-04-20T10:48:19.630
A29: Cód. NC | B29: Descritivo | C29: ="Variação das Importações " & INDEX('5.2'!K3:N3,1,aux!AL1) & "-"& '5.2'!O3 &"" -> Variação das Importações 2017-2021 | F29: Cód. NC | G29: Descritivo | H29: ="Variação das Exportações " & INDEX('5.2'!K3:N3,1,aux!AL1) & "-"& '5.2'!O3 &"" -> Variação das Exportações 2017-2021
C30: variação total em valor | D30: % do aumento/ redução total | H30: variação total em valor | I30: % do aumento/ redução total
A31: =IF(C31>0,aux!BE6,"") -> 0306 | B31: =IF(C31>0,aux!BF6,"") -> Crustáceos | C31: =IF(aux!BG6>0,aux!BG6,0) -> 22255.279 | D31: =IF(SUM($C$31:$C$41)<>0,C31/SUM($C$31:$C$41),0) -> 0.2678614014 | F31: =IF(H31>0,aux!BJ6,"") -> 0302 | G31: =IF(H31>0,aux!BK6,"") -> Peixes frescos ou refrigerados | H31: =IF(aux!BL6>0,aux!BL6,0) -> 16406.089 | I31: =IF(SUM($H$31:$H$41)<>0,H31/SUM($H$31:$H$41),0) -> 0.3668305053
A32: =IF(C32>0,aux!BE7,"") -> 0302 | B32: =IF(C32>0,aux!BF7,"") -> Peixes frescos ou refrigerados | C32: =IF(aux!BG7>0,aux!BG7,0) -> 15638.085 | D32: =IF(SUM($C$31:$C$41)<>0,C32/SUM($C$31:$C$41),0) -> 0.188217787 | F32: =IF(H32>0,aux!BJ7,"") -> 0303 | G32: =IF(H32>0,aux!BK7,"") -> Peixes congelados | H32: =IF(aux!BL7>0,aux!BL7,0) -> 14911.675 | I32: =IF(SUM($H$31:$H$41)<>0,H32/SUM($H$31:$H$41),0) -> 0.3334162868
A33: =IF(C33>0,aux!BE8,"") -> 0305 | B33: =IF(C33>0,aux!BF8,"") -> Peixes secos, salgados ou fumados | C33: =IF(aux!BG8>0,aux!BG8,0) -> 13670.154 | D33: 0.1645320469 | F33: =IF(H33>0,aux!BJ8,"") -> 0306 | G33: =IF(H33>0,aux!BK8,"") -> Crustáceos | H33: =IF(aux!BL8>0,aux!BL8,0) -> 7956.072 | I33: 0.1778930927
A34: =IF(C34>0,aux!BE9,"") -> 0307 | B34: =IF(C34>0,aux!BF9,"") -> Moluscos | C34: =IF(aux!BG9>0,aux!BG9,0) -> 11784.156 | D34: 0.1418324408 | F34: =IF(H34>0,aux!BJ9,"") -> 0511 | G34: =IF(H34>0,aux!BK9,"") -> Produtos de peixes, crustáceos, etc. (NC 0511 91) (p) | H34: =IF(aux!BL9>0,aux!BL9,0) -> 1898.938 | I34: 0.04245913734
A35: =IF(C35>0,aux!BE10,"") -> 1902 | B35: =IF(C35>0,aux!BF10,"") -> Massas alimentícias com >20% de peixes, crustáceos, etc. (NC 1902 20 10) (p) | C35: =IF(aux!BG10>0,aux!BG10,0) -> 4841.757 | D35: 0.05827470486 | F35: =IF(H35>0,aux!BJ10,"") -> 0304 | G35: =IF(H35>0,aux!BK10,"") -> Filetes de peixes | H35: =IF(aux!BL10>0,aux!BL10,0) -> 1508.978 | I35: 0.03373986098
A36: =IF(C36>0,aux!BE11,"") -> 1604 | B36: =IF(C36>0,aux!BF11,"") -> Preparações e conservas de peixes, etc. | C36: =IF(aux!BG11>0,aux!BG11,0) -> 4741.912 | D36: 0.05707298451 | F36: =IF(H36>0,aux!BJ11,"") -> 2301 | G36: =IF(H36>0,aux!BK11,"") -> Farinhas de peixes, crustáceos, etc. (NC 2301 20) (p) | H36: =IF(aux!BL11>0,aux!BL11,0) -> 1092.096 | I36: 0.02441862454
A37: =IF(C37>0,aux!BE12,"") -> 1605 | B37: =IF(C37>0,aux!BF12,"") -> Crustáceos, moluscos, etc., preparados ou em conservas | C37: =IF(aux!BG12>0,aux!BG12,0) -> 4016.728 | D37: 0.04834477209 | F37: =IF(H37>0,aux!BJ12,"") -> 2501 | G37: =IF(H37>0,aux!BK12,"") -> Sal e cloreto de sódio puro; água do mar | H37: =IF(aux!BL12>0,aux!BL12,0) -> 635.391 | I37: 0.01420696923
A38: =IF(C38>0,aux!BE13,"") -> 0301 | B38: =IF(C38>0,aux!BF13,"") -> Peixes vivos | C38: =IF(aux!BG13>0,aux!BG13,0) -> 2023.791 | D38: 0.02435806324 | F38: =IF(H38>0,aux!BJ13,"") -> 1902 | G38: =IF(H38>0,aux!BK13,"") -> Massas alimentícias com >20% de peixes, crustáceos, etc. (NC 1902 20 10) (p) | H38: =IF(aux!BL13>0,aux!BL13,0) -> 313.134 | I38: 0.007001492155
A39: =IF(C39>0,aux!BE14,"") -> 0304 | B39: =IF(C39>0,aux!BF14,"") -> Filetes de peixes | C39: =IF(aux!BG14>0,aux!BG14,0) -> 1599.948 | D39: 0.01925674863 | F39: =IF(H39>0,aux!BJ14,"") -> 0308 | G39: =IF(H39>0,aux!BK14,"") -> Invertebrados aquáticos, exceto crustáceos e moluscos, etc. | H39: =IF(aux!BL14>0,aux!BL14,0) -> 1.522 | I39: 3.403102525e-05
A40: =IF(C40>0,aux!BE15,"") -> 2501 | B40: =IF(C40>0,aux!BF15,"") -> Sal e cloreto de sódio puro; água do mar | C40: =IF(aux!BG15>0,aux!BG15,0) -> 1327.469 | D40: 0.01597722979 | F40: =IF(H40>0,aux!BJ15,"") ->  | G40: =IF(H40>0,aux!BK15,"") ->  | H40: =IF(aux!BL15>0,aux!BL15,0) -> 0 | I40: 0
B41: Outros contributos para o aumento das importações | C41: =SUMIF(aux!BG16:BG318,">0") -> 1185.775 | D41: 0.01427182078 | G41: Outros contributos para o aumento das exportações | H41: =SUMIF(aux!BL16:BL308,">0") -> 0 | I41: 0
B42: Outros contributos para a redução das importações | C42: =SUMIF(aux!BG6:BG308,"<0") -> 0 | D42: =IF(SUM($C$42:$C$52)<>0,C42/SUM($C$42:$C$52),0) -> 0 | G42: Outros contributos para a redução das exportações | H42: =SUMIF(aux!BL16:BL308,"<0") -> 0 | I42: =IF(SUM($H$42:$H$52)<>0,H42/SUM($H$42:$H$52),0) -> 0
A43: =IF(C43<>0,aux!BE309,"") ->  | B43: =IF(C43<0,aux!BF309,"") ->  | C43: =IF(aux!BG309<0,aux!BG309,0) -> 0 | D43: =IF(SUM($C$42:$C$52)<>0,C43/SUM($C$42:$C$52),0) -> 0 | F43: =IF(H43<>0,aux!BJ309,"") ->  | G43: =IF(H43<>0,aux!BK309,"") ->  | H43: =IF(aux!BL309<0,aux!BL309,0) -> 0 | I43: =IF(SUM($H$42:$H$52)<>0,H43/SUM($H$42:$H$52),0) -> 0
A44: =IF(C44<>0,aux!BE310,"") ->  | B44: =IF(C44<0,aux!BF310,"") ->  | C44: =IF(aux!BG310<0,aux!BG310,0) -> 0 | D44: 0 | F44: =IF(H44<>0,aux!BJ310,"") ->  | G44: =IF(H44<>0,aux!BK310,"") ->  | H44: =IF(aux!BL310<0,aux!BL310,0) -> 0 | I44: 0
A45: =IF(C45<>0,aux!BE311,"") ->  | B45: =IF(C45<0,aux!BF311,"") ->  | C45: =IF(aux!BG311<0,aux!BG311,0) -> 0 | D45: 0 | F45: =IF(H45<>0,aux!BJ311,"") ->  | G45: =IF(H45<>0,aux!BK311,"") ->  | H45: =IF(aux!BL311<0,aux!BL311,0) -> 0 | I45: 0
A46: =IF(C46<>0,aux!BE312,"") ->  | B46: =IF(C46<0,aux!BF312,"") ->  | C46: =IF(aux!BG312<0,aux!BG312,0) -> 0 | D46: 0 | F46: =IF(H46<>0,aux!BJ312,"") ->  | G46: =IF(H46<>0,aux!BK312,"") ->  | H46: =IF(aux!BL312<0,aux!BL312,0) -> 0 | I46: 0
A47: =IF(C47<>0,aux!BE313,"") ->  | B47: =IF(C47<0,aux!BF313,"") ->  | C47: =IF(aux!BG313<0,aux!BG313,0) -> 0 | D47: 0 | F47: =IF(H47<>0,aux!BJ313,"") -> 0508 | G47: =IF(H47<>0,aux!BK313,"") -> Coral e matérias semelhantes | H47: =IF(aux!BL313<0,aux!BL313,0) -> -14.895 | I47: 0.000402653877
A48: =IF(C48<>0,aux!BE314,"") ->  | B48: =IF(C48<0,aux!BF314,"") ->  | C48: =IF(aux!BG314<0,aux!BG314,0) -> 0 | D48: 0 | F48: =IF(H48<>0,aux!BJ314,"") -> 1605 | G48: =IF(H48<>0,aux!BK314,"") -> Crustáceos, moluscos, etc., preparados ou em conservas | H48: =IF(aux!BL314<0,aux!BL314,0) -> -368.509 | I48: 0.009961838036
A49: =IF(C49<>0,aux!BE315,"") -> 2301 | B49: =IF(C49<0,aux!BF315,"") -> Farinhas de peixes, crustáceos, etc. (NC 2301 20) (p) | C49: =IF(aux!BG315<0,aux!BG315,0) -> -46.853 | D49: 0.001171311647 | F49: =IF(H49<>0,aux!BJ315,"") -> 0301 | G49: =IF(H49<>0,aux!BK315,"") -> Peixes vivos | H49: =IF(aux!BL315<0,aux!BL315,0) -> -1217.576 | I49: 0.03291451473
A50: =IF(C50<>0,aux!BE316,"") -> 0508 | B50: =IF(C50<0,aux!BF316,"") -> Coral e matérias semelhantes | C50: =IF(aux!BG316<0,aux!BG316,0) -> -78.467 | D50: 0.001961652637 | F50: =IF(H50<>0,aux!BJ316,"") -> 0305 | G50: =IF(H50<>0,aux!BK316,"") -> Peixes secos, salgados ou fumados | H50: =IF(aux!BL316<0,aux!BL316,0) -> -1988.676 | I50: 0.05375952343
A51: =IF(C51<>0,aux!BE317,"") -> 0308 | B51: =IF(C51<0,aux!BF317,"") -> Invertebrados aquáticos, exceto crustáceos e moluscos, etc. | C51: =IF(aux!BG317<0,aux!BG317,0) -> -306.495 | D51: 0.00766228765 | F51: =IF(H51<>0,aux!BJ317,"") -> 1604 | G51: =IF(H51<>0,aux!BK317,"") -> Preparações e conservas de peixes, etc. | H51: =IF(aux!BL317<0,aux!BL317,0) -> -3082.35 | I51: 0.0833246175
A52: =IF(C52<>0,aux!BE318,"") -> 0303 | B52: =IF(C52<0,aux!BF318,"") -> Peixes congelados | C52: =IF(aux!BG318<0,aux!BG318,0) -> -39568.641 | D52: 0.9892047481 | F52: =IF(H52<>0,aux!BJ318,"") -> 0307 | G52: =IF(H52<>0,aux!BK318,"") -> Moluscos | H52: =IF(aux!BL318<0,aux!BL318,0) -> -30320.063 | I52: 0.8196368524
A53: TOTAL | C53: =SUM(C31:C52) -> 43084.598 | F53: TOTAL | H53: =SUM(H31:H52) -> 7731.826

Sheet 5.2B
A1: Trocas comerciais Portugal-Espanha 2017-2021 em milhares de euros (NC 6 dígitos) | G1: Produtos do Mar
A2: Cód. NC | B2: Descritivo | C2: Importações | K2: Exportações | S2: Saldo quinquénio (exp-imp) | T2: Evolução das importações | U2: =+"Variação das Importações " & INDEX(K3:N3,1,aux!AL1) & "-"& '5.2'!O3 &"" -> Variação das Importações 2017-2021 | Z2: Evolução das exportações | AA2: ="Variação das Exportações " & INDEX(K3:N3,1,aux!AL1) & "-"& '5.2'!O3 &"" -> Variação das Exportações 2017-2021
C3: 2017 | D3: 2018 | E3: 2019 | F3: 2020 | G3: 2021 | H3: média quinquénio | I3: % Subtot | J3: % Total | K3: 2017 | L3: 2018 | M3: 2019 | N3: 2020 | O3: 2021 | P3: média quinquénio | Q3: % Subtot | R3: % Total | U3: variação total em valor | V3: % no subtotal de variação | W3: % no total de variação | X3: taxa de variação média anual | Y3: taxa de variação total | AA3: variação total em valor | AB3: % no subtotal de variação | AC3: % no total de variação | AD3: taxa de variação média anual | AE3: taxa de variação total | AX3: Teste | BS3: filtro
A4: 010110 | B4: Cavalos e asininos, reprodutores de raça pura | C4: 0 | D4: 0 | E4: 0 | F4: 0 | G4: 0 | H4: 0 | J4: 0 | K4: 0 | L4: 0 | M4: 0 | N4: 0 | O4: 0 | P4: 0 | R4: 0 | S4: 0 | U4: =G4-INDEX($C4:$G4,1,aux!$AL$1) -> 0 | V4: =IF($U$857<>0,U4/$U$857, "n.d.") -> n.d. | W4: =IF($U$1464<>0,U4/$U$1464, "n.d.") -> 0 | X4: =+IF(INDEX($C4:$G4,1,aux!$AL$1)>0,(G4/INDEX($C4:$G4,1,aux!$AL$1))^(1/($G$3-INDEX($C$3:$G$3,1,aux!$AL$1)))-1,"n.d.") -> n.d. | Y4: =IF(INDEX($C4:$G4,1,aux!$AL$1)>0,(G4-INDEX($C4:$G4,1,aux!$AL$1))/INDEX($C4:$G4,1,aux!$AL$1),"n.d.") -> n.d. | AA4: =O4-INDEX($K4:$O4,1,aux!$AL$1) -> 0 | AB4: =IF($AA$857<>0,AA4/$AA$857, "n.d.") -> n.d. | AC4: =IF($AA$1464<>0,AA4/$AA$1464, "n.d.") -> 0 | AD4: =+IF(INDEX($K4:$O4,1,aux!$AL$1)>0,(O4/INDEX($K4:$O4,1,aux!$AL$1))^(1/($O$3-INDEX($K$3:$O$3,1,aux!$AL$1)))-1,"n.d.") -> n.d. | AE4: =IF(INDEX($K4:$O4,1,aux!$AL$1)>0,(O4-INDEX($K4:$O4,1,aux!$AL$1))/INDEX($K4:$O4,1,aux!$AL$1),"n.d.") -> n.d. | AF4: =SUM(C4:S4) -> 0 | AX4: =+LEFT(A4,2) -> 01 | BS4: =SUM(C4:G4,K4:O4) -> 0
A5: 010121 | B5: Cavalos reprodutores de raça pura | C5: 0 | D5: 0 | E5: 0 | F5: 0 | G5: 0 | H5: 0 | J5: 0 | K5: 0 | L5: 0 | M5: 0 | N5: 0 | O5: 0 | P5: 0 | R5: 0 | S5: 0 | U5: =G5-INDEX($C5:$G5,1,aux!$AL$1) -> 0 | V5: n.d. | W5: 0 | X5: =+IF(INDEX($C5:$G5,1,aux!$AL$1)>0,(G5/INDEX($C5:$G5,1,aux!$AL$1))^(1/($G$3-INDEX($C$3:$G$3,1,aux!$AL$1)))-1,"n.d.") -> n.d. | Y5: =IF(INDEX($C5:$G5,1,aux!$AL$1)>0,(G5-INDEX($C5:$G5,1,aux!$AL$1))/INDEX($C5:$G5,1,aux!$AL$1),"n.d.") -> n.d. | AA5: =O5-INDEX($K5:$O5,1,aux!$AL$1) -> 0 | AB5: n.d. | AC5: 0 | AD5: =+IF(INDEX($K5:$O5,1,aux!$AL$1)>0,(O5/INDEX($K5:$O5,1,aux!$AL$1))^(1/($O$3-INDEX($K$3:$O$3,1,aux!$AL$1)))-1,"n.d.") -> n.d. | AE5: =IF(INDEX($K5:$O5,1,aux!$AL$1)>0,(O5-INDEX($K5:$O5,1,aux!$AL$1))/INDEX($K5:$O5,1,aux!$AL$1),"n.d.") -> n.d. | AF5: =SUM(C5:S5) -> 0 | AX5: =+LEFT(A5,2) -> 01 | BS5: =SUM(C5:G5,K5:O5) -> 0
A6: 010129 | B6: Cavalos, vivos, não reprodutores de raça pura | C6: 0 | D6: 0 | E6: 0 | F6: 0 | G6: 0 | H6: 0 | J6: 0 | K6: 0 | L6: 0 | M6: 0 | N6: 0 | O6: 0 | P6: 0 | R6: 0 | S6: 0 | U6: =G6-INDEX($C6:$G6,1,aux!$AL$1) -> 0 | V6: n.d. | W6: 0 | X6: =+IF(INDEX($C6:$G6,1,aux!$AL$1)>0,(G6/INDEX($C6:$G6,1,aux!$AL$1))^(1/($G$3-INDEX($C$3:$G$3,1,aux!$AL$1)))-1,"n.d.") -> n.d. | Y6: =IF(INDEX($C6:$G6,1,aux!$AL$1)>0,(G6-INDEX($C6:$G6,1,aux!$AL$1))/INDEX($C6:$G6,1,aux!$AL$1),"n.d.") -> n.d. | AA6: =O6-INDEX($K6:$O6,1,aux!$AL$1) -> 0 | AB6: n.d. | AC6: 0 | AD6: =+IF(INDEX($K6:$O6,1,aux!$AL$1)>0,(O6/INDEX($K6:$O6,1,aux!$AL$1))^(1/($O$3-INDEX($K$3:$O$3,1,aux!$AL$1)))-1,"n.d.") -> n.d. | AE6: =IF(INDEX($K6:$O6,1,aux!$AL$1)>0,(O6-INDEX($K6:$O6,1,aux!$AL$1))/INDEX($K6:$O6,1,aux!$AL$1),"n.d.") -> n.d. | AF6: 0 | AX6: 01 | BS6: 0
A7: 010130 | B7: Asininos vivos não reprodutores de raça pura | C7: 0 | D7: 0 | E7: 0 | F7: 0 | G7: 0 | H7: 0 | J7: 0 | K7: 0 | L7: 0 | M7: 0 | N7: 0 | O7: 0 | P7: 0 | R7: 0 | S7: 0 | U7: =G7-INDEX($C7:$G7,1,aux!$AL$1) -> 0 | V7: n.d. | W7: 0 | X7: =+IF(INDEX($C7:$G7,1,aux!$AL$1)>0,(G7/INDEX($C7:$G7,1,aux!$AL$1))^(1/($G$3-INDEX($C$3:$G$3,1,aux!$AL$1)))-1,"n.d.") -> n.d. | Y7: =IF(INDEX($C7:$G7,1,aux!$AL$1)>0,(G7-INDEX($C7:$G7,1,aux!$AL$1))/INDEX($C7:$G7,1,aux!$AL$1),"n.d.") -> n.d. | AA7: =O7-INDEX($K7:$O7,1,aux!$AL$1) -> 0 | AB7: n.d. | AC7: 0 | AD7: =+IF(INDEX($K7:$O7,1,aux!$AL$1)>0,(O7/INDEX($K7:$O7,1,aux!$AL$1))^(1/($O$3-INDEX($K$3:$O$3,1,aux!$AL$1)))-1,"n.d.") -> n.d. | AE7: =IF(INDEX($K7:$O7,1,aux!$AL$1)>0,(O7-INDEX($K7:$O7,1,aux!$AL$1))/INDEX($K7:$O7,1,aux!$AL$1),"n.d.") -> n.d. | AF7: 0 | AX7: 01 | BS7: 0
A8: 010190 | B8: Muares vivos não reprodutores de raça pura | C8: 0 | D8: 0 | E8: 0 | F8: 0 | G8: 0 | H8: 0 | J8: 0 | K8: 0 | L8: 0 | M8: 0 | N8: 0 | O8: 0 | P8: 0 | R8: 0 | S8: 0 | U8: =G8-INDEX($C8:$G8,1,aux!$AL$1) -> 0 | V8: n.d. | W8: 0 | X8: =+IF(INDEX($C8:$G8,1,aux!$AL$1)>0,(G8/INDEX($C8:$G8,1,aux!$AL$1))^(1/($G$3-INDEX($C$3:$G$3,1,aux!$AL$1)))-1,"n.d.") -> n.d. | Y8: =IF(INDEX($C8:$G8,1,aux!$AL$1)>0,(G8-INDEX($C8:$G8,1,aux!$AL$1))/INDEX($C8:$G8,1,aux!$AL$1),"n.d.") -> n.d. | AA8: =O8-INDEX($K8:$O8,1,aux!$AL$1) -> 0 | AB8: n.d. | AC8: 0 | AD8: =+IF(INDEX($K8:$O8,1,aux!$AL$1)>0,(O8/INDEX($K8:$O8,1,aux!$AL$1))^(1/($O$3-INDEX($K$3:$O$3,1,aux!$AL$1)))-1,"n.d.") -> n.d. | AE8: =IF(INDEX($K8:$O8,1,aux!$AL$1)>0,(O8-INDEX($K8:$O8,1,aux!$AL$1))/INDEX($K8:$O8,1,aux!$AL$1),"n.d.") -> n.d. | AF8: 0 | AX8: 01 | BS8: 0
A9: 010210 | B9: Bovinos, reprodutores de raça pura | C9: 0 | D9: 0 | E9: 0 | F9: 0 | G9: 0 | H9: 0 | J9: 0 | K9: 0 | L9: 0 | M9: 0 | N9: 0 | O9: 0 | P9: 0 | R9: 0 | S9: 0 | U9: =G9-INDEX($C9:$G9,1,aux!$AL$1) -> 0 | V9: n.d. | W9: 0 | X9: =+IF(INDEX($C9:$G9,1,aux!$AL$1)>0,(G9/INDEX($C9:$G9,1,aux!$AL$1))^(1/($G$3-INDEX($C$3:$G$3,1,aux!$AL$1)))-1,"n.d.") -> n.d. | Y9: =IF(INDEX($C9:$G9,1,aux!$AL$1)>0,(G9-INDEX($C9:$G9,1,aux!$AL$1))/INDEX($C9:$G9,1,aux!$AL$1),"n.d.") -> n.d. | AA9: =O9-INDEX($K9:$O9,1,aux!$AL$1) -> 0 | AB9: n.d. | AC9: 0 | AD9: =+IF(INDEX($K9:$O9,1,aux!$AL$1)>0,(O9/INDEX($K9:$O9,1,aux!$AL$1))^(1/($O$3-INDEX($K$3:$O$3,1,aux!$AL$1)))-1,"n.d.") -> n.d. | AE9: =IF(INDEX($K9:$O9,1,aux!$AL$1)>0,(O9-INDEX($K9:$O9,1,aux!$AL$1))/INDEX($K9:$O9,1,aux!$AL$1),"n.d.") -> n.d. | AF9: 0 | AX9: 01 | BS9: =SUM(C9:G9,K9:O9) -> 0
A10: 010221 | B10: Bovinos das espécies domésticas, reprodutores de raça pura | C10: 0 | D10: 0 | E10: 0 | F10: 0 | G10: 0 | H10: 0 | J10: 0 | K10: 0 | L10: 0 | M10: 0 | N10: 0 | O10: 0 | P10: 0 | R10: 0 | S10: 0 | U10: =G10-INDEX($C10:$G10,1,aux!$AL$1) -> 0 | V10: n.d. | W10: 0 | X10: =+IF(INDEX($C10:$G10,1,aux!$AL$1)>0,(G10/INDEX($C10:$G10,1,aux!$AL$1))^(1/($G$3-INDEX($C$3:$G$3,1,aux!$AL$1)))-1,"n.d.") -> n.d. | Y10: =IF(INDEX($C10:$G10,1,aux!$AL$1)>0,(G10-INDEX($C10:$G10,1,aux!$AL$1))/INDEX($C10:$G10,1,aux!$AL$1),"n.d.") -> n.d. | AA10: =O10-INDEX($K10:$O10,1,aux!$AL$1) -> 0 | AB10: n.d. | AC10: 0 | AD10: =+IF(INDEX($K10:$O10,1,aux!$AL$1)>0,(O10/INDEX($K10:$O10,1,aux!$AL$1))^(1/($O$3-INDEX($K$3:$O$3,1,aux!$AL$1)))-1,"n.d.") -> n.d. | AE10: =IF(INDEX($K10:$O10,1,aux!$AL$1)>0,(O10-INDEX($K10:$O10,1,aux!$AL$1))/INDEX($K10:$O10,1,aux!$AL$1),"n.d.") -> n.d. | AF10: =SUM(C10:S10) -> 0 | AX10: 01 | BS10: 0
A11: 010229 | B11: Bovinos das espécies domésticas, vivos, não reprodutores de raça pura | C11: 0 | D11: 0 | E11: 0 | F11: 0 | G11: 0 | H11: 0 | J11: 0 | K11: 0 | L11: 0 | M11: 0 | N11: 0 | O11: 0 | P11: 0 | R11: 0 | S11: 0 | U11: =G11-INDEX($C11:$G11,1,aux!$AL$1) -> 0 | V11: n.d. | W11: 0 | X11: =+IF(INDEX($C11:$G11,1,aux!$AL$1)>0,(G11/INDEX($C11:$G11,1,aux!$AL$1))^(1/($G$3-INDEX($C$3:$G$3,1,aux!$AL$1)))-1,"n.d.") -> n.d. | Y11: =IF(INDEX($C11:$G11,1,aux!$AL$1)>0,(G11-INDEX($C11:$G11,1,aux!$AL$1))/INDEX($C11:$G11,1,aux!$AL$1),"n.d.") -> n.d. | AA11: =O11-INDEX($K11:$O11,1,aux!$AL$1) -> 0 | AB11: n.d. | AC11: 0 | AD11: =+IF(INDEX($K11:$O11,1,aux!$AL$1)>0,(O11/INDEX($K11:$O11,1,aux!$AL$1))^(1/($O$3-INDEX($K$3:$O$3,1,aux!$AL$1)))-1,"n.d.") -> n.d. | AE11: =IF(INDEX($K11:$O11,1,aux!$AL$1)>0,(O11-INDEX($K11:$O11,1,aux!$AL$1))/INDEX($K11:$O11,1,aux!$AL$1),"n.d.") -> n.d. | AF11: 0 | AX11: 01 | BS11: 0
A12: 010231 | B12: Búfalos reprodutores de raça pura | C12: 0 | D12: 0 | E12: 0 | F12: 0 | G12: 0 | H12: 0 | J12: 0 | K12: 0 | L12: 0 | M12: 0 | N12: 0 | O12: 0 | P12: 0 | R12: 0 | S12: 0 | U12: =G12-INDEX($C12:$G12,1,aux!$AL$1) -> 0 | V12: n.d. | W12: 0 | X12: =+IF(INDEX($C12:$G12,1,aux!$AL$1)>0,(G12/INDEX($C12:$G12,1,aux!$AL$1))^(1/($G$3-INDEX($C$3:$G$3,1,aux!$AL$1)))-1,"n.d.") -> n.d. | Y12: =IF(INDEX($C12:$G12,1,aux!$AL$1)>0,(G12-INDEX($C12:$G12,1,aux!$AL$1))/INDEX($C12:$G12,1,aux!$AL$1),"n.d.") -> n.d. | AA12: =O12-INDEX($K12:$O12,1,aux!$AL$1) -> 0 | AB12: n.d. | AC12: 0 | AD12: =+IF(INDEX($K12:$O12,1,aux!$AL$1)>0,(O12/INDEX($K12:$O12,1,aux!$AL$1))^(1/($O$3-INDEX($K$3:$O$3,1,aux!$AL$1)))-1,"n.d.") -> n.d. | AE12: =IF(INDEX($K12:$O12,1,aux!$AL$1)>0,(O12-INDEX($K12:$O12,1,aux!$AL$1))/INDEX($K12:$O12,1,aux!$AL$1),"n.d.") -> n.d. | AF12: 0 | AX12: 01 | BS12: 0
A13: 010239 | B13: Búfalos, vivos, não reprodutores de raça pura | C13: 0 | D13: 0 | E13: 0 | F13: 0 | G13: 0 | H13: 0 | J13: 0 | K13: 0 | L13: 0 | M13: 0 | N13: 0 | O13: 0 | P13: 0 | R13: 0 | S13: 0 | U13: =G13-INDEX($C13:$G13,1,aux!$AL$1) -> 0 | V13: n.d. | W13: 0 | X13: =+IF(INDEX($C13:$G13,1,aux!$AL$1)>0,(G13/INDEX($C13:$G13,1,aux!$AL$1))^(1/($G$3-INDEX($C$3:$G$3,1,aux!$AL$1)))-1,"n.d.") -> n.d. | Y13: =IF(INDEX($C13:$G13,1,aux!$AL$1)>0,(G13-INDEX($C13:$G13,1,aux!$AL$1))/INDEX($C13:$G13,1,aux!$AL$1),"n.d.") -> n.d. | AA13: =O13-INDEX($K13:$O13,1,aux!$AL$1) -> 0 | AB13: n.d. | AC13: 0 | AD13: =+IF(INDEX($K13:$O13,1,aux!$AL$1)>0,(O13/INDEX($K13:$O13,1,aux!$AL$1))^(1/($O$3-INDEX($K$3:$O$3,1,aux!$AL$1)))-1,"n.d.") -> n.d. | AE13: =IF(INDEX($K13:$O13,1,aux!$AL$1)>0,(O13-INDEX($K13:$O13,1,aux!$AL$1))/INDEX($K13:$O13,1,aux!$AL$1),"n.d.") -> n.d. | AF13: 0 | AX13: 01 | BS13: 0
A14: 010290 | B14: Animais vivos da espécie bovina (exceto das espécies domésticas e búfalos) | C14: 0 | D14: 0 | E14: 0 | F14: 0 | G14: 0 | H14: 0 | J14: 0 | K14: 0 | L14: 0 | M14: 0 | N14: 0 | O14: 0 | P14: 0 | R14: 0 | S14: 0 | U14: =G14-INDEX($C14:$G14,1,aux!$AL$1) -> 0 | V14: n.d. | W14: 0 | X14: =+IF(INDEX($C14:$G14,1,aux!$AL$1)>0,(G14/INDEX($C14:$G14,1,aux!$AL$1))^(1/($G$3-INDEX($C$3:$G$3,1,aux!$AL$1)))-1,"n.d.") -> n.d. | Y14: =IF(INDEX($C14:$G14,1,aux!$AL$1)>0,(G14-INDEX($C14:$G14,1,aux!$AL$1))/INDEX($C14:$G14,1,aux!$AL$1),"n.d.") -> n.d. | AA14: =O14-INDEX($K14:$O14,1,aux!$AL$1) -> 0 | AB14: n.d. | AC14: 0 | AD14: =+IF(INDEX($K14:$O14,1,aux!$AL$1)>0,(O14/INDEX($K14:$O14,1,aux!$AL$1))^(1/($O$3-INDEX($K$3:$O$3,1,aux!$AL$1)))-1,"n.d.") -> n.d. | AE14: =IF(INDEX($K14:$O14,1,aux!$AL$1)>0,(O14-INDEX($K14:$O14,1,aux!$AL$1))/INDEX($K14:$O14,1,aux!$AL$1),"n.d.") -> n.d. | AF14: =SUM(C14:S14) -> 0 | AX14: 01 | BS14: 0
A15: 010310 | B15: Suínos reprodutores de raça pura | C15: 0 | D15: 0 | E15: 0 | F15: 0 | G15: 0 | H15: 0 | J15: 0 | K15: 0 | L15: 0 | M15: 0 | N15: 0 | O15: 0 | P15: 0 | R15: 0 | S15: 0 | U15: =G15-INDEX($C15:$G15,1,aux!$AL$1) -> 0 | V15: n.d. | W15: 0 | X15: =+IF(INDEX($C15:$G15,1,aux!$AL$1)>0,(G15/INDEX($C15:$G15,1,aux!$AL$1))^(1/($G$3-INDEX($C$3:$G$3,1,aux!$AL$1)))-1,"n.d.") -> n.d. | Y15: =IF(INDEX($C15:$G15,1,aux!$AL$1)>0,(G15-INDEX($C15:$G15,1,aux!$AL$1))/INDEX($C15:$G15,1,aux!$AL$1),"n.d.") -> n.d. | AA15: =O15-INDEX($K15:$O15,1,aux!$AL$1) -> 0 | AB15: n.d. | AC15: 0 | AD15: =+IF(INDEX($K15:$O15,1,aux!$AL$1)>0,(O15/INDEX($K15:$O15,1,aux!$AL$1))^(1/($O$3-INDEX($K$3:$O$3,1,aux!$AL$1)))-1,"n.d.") -> n.d. | AE15: =IF(INDEX($K15:$O15,1,aux!$AL$1)>0,(O15-INDEX($K15:$O15,1,aux!$AL$1))/INDEX($K15:$O15,1,aux!$AL$1),"n.d.") -> n.d. | AF15: 0 | AX15: 01 | BS15: 0
A16: 010391 | B16: Suínos vivos, de peso < 50 kg, não reprodutores de raça pura | C16: 0 | D16: 0 | E16: 0 | F16: 0 | G16: 0 | H16: 0 | J16: 0 | K16: 0 | L16: 0 | M16: 0 | N16: 0 | O16: 0 | P16: 0 | R16: 0 | S16: 0 | U16: =G16-INDEX($C16:$G16,1,aux!$AL$1) -> 0 | V16: n.d. | W16: 0 | X16: =+IF(INDEX($C16:$G16,1,aux!$AL$1)>0,(G16/INDEX($C16:$G16,1,aux!$AL$1))^(1/($G$3-INDEX($C$3:$G$3,1,aux!$AL$1)))-1,"n.d.") -> n.d. | Y16: =IF(INDEX($C16:$G16,1,aux!$AL$1)>0,(G16-INDEX($C16:$G16,1,aux!$AL$1))/INDEX($C16:$G16,1,aux!$AL$1),"n.d.") -> n.d. | AA16: =O16-INDEX($K16:$O16,1,aux!$AL$1) -> 0 | AB16: n.d. | AC16: 0 | AD16: =+IF(INDEX($K16:$O16,1,aux!$AL$1)>0,(O16/INDEX($K16:$O16,1,aux!$AL$1))^(1/($O$3-INDEX($K$3:$O$3,1,aux!$AL$1)))-1,"n.d.") -> n.d. | AE16: =IF(INDEX($K16:$O16,1,aux!$AL$1)>0,(O16-INDEX($K16:$O16,1,aux!$AL$1))/INDEX($K16:$O16,1,aux!$AL$1),"n.d.") -> n.d. | AF16: 0 | AX16: 01 | BS16: 0
A17: 010392 | B17: Suínos vivos, de peso = > 50 kg, não reprodutores de raça pura | C17: 0 | D17: 0 | E17: 0 | F17: 0 | G17: 0 | H17: 0 | J17: 0 | K17: 0 | L17: 0 | M17: 0 | N17: 0 | O17: 0 | P17: 0 | R17: 0 | S17: 0 | U17: =G17-INDEX($C17:$G17,1,aux!$AL$1) -> 0 | V17: n.d. | W17: 0 | X17: =+IF(INDEX($C17:$G17,1,aux!$AL$1)>0,(G17/INDEX($C17:$G17,1,aux!$AL$1))^(1/($G$3-INDEX($C$3:$G$3,1,aux!$AL$1)))-1,"n.d.") -> n.d. | Y17: =IF(INDEX($C17:$G17,1,aux!$AL$1)>0,(G17-INDEX($C17:$G17,1,aux!$AL$1))/INDEX($C17:$G17,1,aux!$AL$1),"n.d.") -> n.d. | AA17: =O17-INDEX($K17:$O17,1,aux!$AL$1) -> 0 | AB17: n.d. | AC17: 0 | AD17: =+IF(INDEX($K17:$O17,1,aux!$AL$1)>0,(O17/INDEX($K17:$O17,1,aux!$AL$1))^(1/($O$3-INDEX($K$3:$O$3,1,aux!$AL$1)))-1,"n.d.") -> n.d. | AE17: =IF(INDEX($K17:$O17,1,aux!$AL$1)>0,(O17-INDEX($K17:$O17,1,aux!$AL$1))/INDEX($K17:$O17,1,aux!$AL$1),"n.d.") -> n.d. | AF17: 0 | AX17: 01 | BS17: 0
A18: 010410 | B18: Ovinos vivos | C18: 0 | D18: 0 | E18: 0 | F18: 0 | G18: 0 | H18: 0 | J18: 0 | K18: 0 | L18: 0 | M18: 0 | N18: 0 | O18: 0 | P18: 0 | R18: 0 | S18: 0 | U18: =G18-INDEX($C18:$G18,1,aux!$AL$1) -> 0 | V18: n.d. | W18: 0 | X18: =+IF(INDEX($C18:$G18,1,aux!$AL$1)>0,(G18/INDEX($C18:$G18,1,aux!$AL$1))^(1/($G$3-INDEX($C$3:$G$3,1,aux!$AL$1)))-1,"n.d.") -> n.d. | Y18: =IF(INDEX($C18:$G18,1,aux!$AL$1)>0,(G18-INDEX($C18:$G18,1,aux!$AL$1))/INDEX($C18:$G18,1,aux!$AL$1),"n.d.") -> n.d. | AA18: =O18-INDEX($K18:$O18,1,aux!$AL$1) -> 0 | AB18: n.d. | AC18: 0 | AD18: =+IF(INDEX($K18:$O18,1,aux!$AL$1)>0,(O18/INDEX($K18:$O18,1,aux!$AL$1))^(1/($O$3-INDEX($K$3:$O$3,1,aux!$AL$1)))-1,"n.d.") -> n.d. | AE18: =IF(INDEX($K18:$O18,1,aux!$AL$1)>0,(O18-INDEX($K18:$O18,1,aux!$AL$1))/INDEX($K18:$O18,1,aux!$AL$1),"n.d.") -> n.d. | AF18: 0 | AX18: 01 | BS18: 0
A19: 010420 | B19: Caprinos vivos | C19: 0 | D19: 0 | E19: 0 | F19: 0 | G19: 0 | H19: 0 | J19: 0 | K19: 0 | L19: 0 | M19: 0 | N19: 0 | O19: 0 | P19: 0 | R19: 0 | S19: 0 | U19: =G19-INDEX($C19:$G19,1,aux!$AL$1) -> 0 | V19: n.d. | W19: 0 | X19: =+IF(INDEX($C19:$G19,1,aux!$AL$1)>0,(G19/INDEX($C19:$G19,1,aux!$AL$1))^(1/($G$3-INDEX($C$3:$G$3,1,aux!$AL$1)))-1,"n.d.") -> n.d. | Y19: =IF(INDEX($C19:$G19,1,aux!$AL$1)>0,(G19-INDEX($C19:$G19,1,aux!$AL$1))/INDEX($C19:$G19,1,aux!$AL$1),"n.d.") -> n.d. | AA19: =O19-INDEX($K19:$O19,1,aux!$AL$1) -> 0 | AB19: n.d. | AC19: 0 | AD19: =+IF(INDEX($K19:$O19,1,aux!$AL$1)>0,(O19/INDEX($K19:$O19,1,aux!$AL$1))^(1/($O$3-INDEX($K$3:$O$3,1,aux!$AL$1)))-1,"n.d.") -> n.d. | AE19: =IF(INDEX($K19:$O19,1,aux!$AL$1)>0,(O19-INDEX($K19:$O19,1,aux!$AL$1))/INDEX($K19:$O19,1,aux!$AL$1),"n.d.") -> n.d. | AF19: 0 | AX19: 01 | BS19: 0
A20: 010511 | B20: Galos e galinhas, de peso = < 185 g, das espécies domésticas | C20: 0 | D20: 0 | E20: 0 | F20: 0 | G20: 0 | H20: 0 | J20: 0 | K20: 0 | L20: 0 | M20: 0 | N20: 0 | O20: 0 | P20: 0 | R20: 0 | S20: 0 | U20: =G20-INDEX($C20:$G20,1,aux!$AL$1) -> 0 | V20: n.d. | W20: 0 | X20: =+IF(INDEX($C20:$G20,1,aux!$AL$1)>0,(G20/INDEX($C20:$G20,1,aux!$AL$1))^(1/($G$3-INDEX($C$3:$G$3,1,aux!$AL$1)))-1,"n.d.") -> n.d. | Y20: =IF(INDEX($C20:$G20,1,aux!$AL$1)>0,(G20-INDEX($C20:$G20,1,aux!$AL$1))/INDEX($C20:$G20,1,aux!$AL$1),"n.d.") -> n.d. | AA20: =O20-INDEX($K20:$O20,1,aux!$AL$1) -> 0 | AB20: n.d. | AC20: 0 | AD20: =+IF(INDEX($K20:$O20,1,aux!$AL$1)>0,(O20/INDEX($K20:$O20,1,aux!$AL$1))^(1/($O$3-INDEX($K$3:$O$3,1,aux!$AL$1)))-1,"n.d.") -> n.d. | AE20: =IF(INDEX($K20:$O20,1,aux!$AL$1)>0,(O20-INDEX($K20:$O20,1,aux!$AL$1))/INDEX($K20:$O20,1,aux!$AL$1),"n.d.") -> n.d. | AF20: 0 | AX20: 01 | BS20: 0
A21: 010512 | B21: Perus e peruas, vivos, de peso = < 185 g, das espécies domésticas | C21: 0 | D21: 0 | E21: 0 | F21: 0 | G21: 0 | H21: 0 | J21: 0 | K21: 0 | L21: 0 | M21: 0 | N21: 0 | O21: 0 | P21: 0 | R21: 0 | S21: 0 | U21: =G21-INDEX($C21:$G21,1,aux!$AL$1) -> 0 | V21: n.d. | W21: 0 | X21: =+IF(INDEX($C21:$G21,1,aux!$AL$1)>0,(G21/INDEX($C21:$G21,1,aux!$AL$1))^(1/($G$3-INDEX($C$3:$G$3,1,aux!$AL$1)))-1,"n.d.") -> n.d. | Y21: =IF(INDEX($C21:$G21,1,aux!$AL$1)>0,(G21-INDEX($C21:$G21,1,aux!$AL$1))/INDEX($C21:$G21,1,aux!$AL$1),"n.d.") -> n.d. | AA21: =O21-INDEX($K21:$O21,1,aux!$AL$1) -> 0 | AB21: n.d. | AC21: 0 | AD21: =+IF(INDEX($K21:$O21,1,aux!$AL$1)>0,(O21/INDEX($K21:$O21,1,aux!$AL$1))^(1/($O$3-INDEX($K$3:$O$3,1,aux!$AL$1)))-1,"n.d.") -> n.d. | AE21: =IF(INDEX($K21:$O21,1,aux!$AL$1)>0,(O21-INDEX($K21:$O21,1,aux!$AL$1))/INDEX($K21:$O21,1,aux!$AL$1),"n.d.") -> n.d. | AF21: 0 | AX21: 01 | BS21: 0
A22: 010513 | B22: Patos, vivos, de peso = < 185 g, das espécies domésticas | C22: 0 | D22: 0 | E22: 0 | F22: 0 | G22: 0 | H22: 0 | J22: 0 | K22: 0 | L22: 0 | M22: 0 | N22: 0 | O22: 0 | P22: 0 | R22: 0 | S22: 0 | U22: =G22-INDEX($C22:$G22,1,aux!$AL$1) -> 0 | V22: n.d. | W22: 0 | X22: =+IF(INDEX($C22:$G22,1,aux!$AL$1)>0,(G22/INDEX($C22:$G22,1,aux!$AL$1))^(1/($G$3-INDEX($C$3:$G$3,1,aux!$AL$1)))-1,"n.d.") -> n.d. | Y22: =IF(INDEX($C22:$G22,1,aux!$AL$1)>0,(G22-INDEX($C22:$G22,1,aux!$AL$1))/INDEX($C22:$G22,1,aux!$AL$1),"n.d.") -> n.d. | AA22: =O22-INDEX($K22:$O22,1,aux!$AL$1) -> 0 | AB22: n.d. | AC22: 0 | AD22: =+IF(INDEX($K22:$O22,1,aux!$AL$1)>0,(O22/INDEX($K22:$O22,1,aux!$AL$1))^(1/($O$3-INDEX($K$3:$O$3,1,aux!$AL$1)))-1,"n.d.") -> n.d. | AE22: =IF(INDEX($K22:$O22,1,aux!$AL$1)>0,(O22-INDEX($K22:$O22,1,aux!$AL$1))/INDEX($K22:$O22,1,aux!$AL$1),"n.d.") -> n.d. | AF22: 0 | AX22: 01 | BS22: 0
A23: 010514 | B23: Gansos vivos, de peso = < 185 g, da espécie doméstica | C23: 0 | D23: 0 | E23: 0 | F23: 0 | G23: 0 | H23: 0 | J23: 0 | K23: 0 | L23: 0 | M23: 0 | N23: 0 | O23: 0 | P23: 0 | R23: 0 | S23: 0 | U23: =G23-INDEX($C23:$G23,1,aux!$AL$1) -> 0 | V23: n.d. | W23: 0 | X23: =+IF(INDEX($C23:$G23,1,aux!$AL$1)>0,(G23/INDEX($C23:$G23,1,aux!$AL$1))^(1/($G$3-INDEX($C$3:$G$3,1,aux!$AL$1)))-1,"n.d.") -> n.d. | Y23: =IF(INDEX($C23:$G23,1,aux!$AL$1)>0,(G23-INDEX($C23:$G23,1,aux!$AL$1))/INDEX($C23:$G23,1,aux!$AL$1),"n.d.") -> n.d. | AA23: =O23-INDEX($K23:$O23,1,aux!$AL$1) -> 0 | AB23: n.d. | AC23: 0 | AD23: =+IF(INDEX($K23:$O23,1,aux!$AL$1)>0,(O23/INDEX($K23:$O23,1,aux!$AL$1))^(1/($O$3-INDEX($K$3:$O$3,1,aux!$AL$1)))-1,"n.d.") -> n.d. | AE23: =IF(INDEX($K23:$O23,1,aux!$AL$1)>0,(O23-INDEX($K23:$O23,1,aux!$AL$1))/INDEX($K23:$O23,1,aux!$AL$1),"n.d.") -> n.d. | AF23: 0 | AX23: 01 | BS23: 0
A24: 010515 | B24: Pintadas (galinhas d'angola), vivas, de peso = < 185 g, da espécie doméstica | C24: 0 | D24: 0 | E24: 0 | F24: 0 | G24: 0 | H24: 0 | J24: 0 | K24: 0 | L24: 0 | M24: 0 | N24: 0 | O24: 0 | P24: 0 | R24: 0 | S24: 0 | U24: =G24-INDEX($C24:$G24,1,aux!$AL$1) -> 0 | V24: n.d. | W24: 0 | X24: =+IF(INDEX($C24:$G24,1,aux!$AL$1)>0,(G24/INDEX($C24:$G24,1,aux!$AL$1))^(1/($G$3-INDEX($C$3:$G$3,1,aux!$AL$1)))-1,"n.d.") -> n.d. | Y24: =IF(INDEX($C24:$G24,1,aux!$AL$1)>0,(G24-INDEX($C24:$G24,1,aux!$AL$1))/INDEX($C24:$G24,1,aux!$AL$1),"n.d.") -> n.d. | AA24: =O24-INDEX($K24:$O24,1,aux!$AL$1) -> 0 | AB24: n.d. | AC24: 0 | AD24: =+IF(INDEX($K24:$O24,1,aux!$AL$1)>0,(O24/INDEX($K24:$O24,1,aux!$AL$1))^(1/($O$3-INDEX($K$3:$O$3,1,aux!$AL$1)))-1,"n.d.") -> n.d. | AE24: =IF(INDEX($K24:$O24,1,aux!$AL$1)>0,(O24-INDEX($K24:$O24,1,aux!$AL$1))/INDEX($K24:$O24,1,aux!$AL$1),"n.d.") -> n.d. | AF24: 0 | AX24: 01 | BS24: 0
A25: 010519 | B25: Patos, gansos e pintadas, vivos, de peso = < 185 g, das espécies domésticas | C25: 0 | D25: 0 | E25: 0 | F25: 0 | G25: 0 | H25: 0 | J25: 0 | K25: 0 | L25: 0 | M25: 0 | N25: 0 | O25: 0 | P25: 0 | R25: 0 | S25: 0 | U25: =G25-INDEX($C25:$G25,1,aux!$AL$1) -> 0 | V25: n.d. | W25: 0 | X25: =+IF(INDEX($C25:$G25,1,aux!$AL$1)>0,(G25/INDEX($C25:$G25,1,aux!$AL$1))^(1/($G$3-INDEX($C$3:$G$3,1,aux!$AL$1)))-1,"n.d.") -> n.d. | Y25: =IF(INDEX($C25:$G25,1,aux!$AL$1)>0,(G25-INDEX($C25:$G25,1,aux!$AL$1))/INDEX($C25:$G25,1,aux!$AL$1),"n.d.") -> n.d. | AA25: =O25-INDEX($K25:$O25,1,aux!$AL$1) -> 0 | AB25: n.d. | AC25: 0 | AD25: =+IF(INDEX($K25:$O25,1,aux!$AL$1)>0,(O25/INDEX($K25:$O25,1,aux!$AL$1))^(1/($O$3-INDEX($K$3:$O$3,1,aux!$AL$1)))-1,"n.d.") -> n.d. | AE25: =IF(INDEX($K25:$O25,1,aux!$AL$1)>0,(O25-INDEX($K25:$O25,1,aux!$AL$1))/INDEX($K25:$O25,1,aux!$AL$1),"n.d.") -> n.d. | AF25: 0 | AX25: 01 | BS25: 0
A26: 010594 | B26: Galos e galinhas, vivos, de peso > 185 g, das espécies domésticas | C26: 0 | D26: 0 | E26: 0 | F26: 0 | G26: 0 | H26: 0 | J26: 0 | K26: 0 | L26: 0 | M26: 0 | N26: 0 | O26: 0 | P26: 0 | R26: 0 | S26: 0 | U26: =G26-INDEX($C26:$G26,1,aux!$AL$1) -> 0 | V26: n.d. | W26: 0 | X26: =+IF(INDEX($C26:$G26,1,aux!$AL$1)>0,(G26/INDEX($C26:$G26,1,aux!$AL$1))^(1/($G$3-INDEX($C$3:$G$3,1,aux!$AL$1)))-1,"n.d.") -> n.d. | Y26: =IF(INDEX($C26:$G26,1,aux!$AL$1)>0,(G26-INDEX($C26:$G26,1,aux!$AL$1))/INDEX($C26:$G26,1,aux!$AL$1),"n.d.") -> n.d. | AA26: =O26-INDEX($K26:$O26,1,aux!$AL$1) -> 0 | AB26: n.d. | AC26: 0 | AD26: =+IF(INDEX($K26:$O26,1,aux!$AL$1)>0,(O26/INDEX($K26:$O26,1,aux!$AL$1))^(1/($O$3-INDEX($K$3:$O$3,1,aux!$AL$1)))-1,"n.d.") -> n.d. | AE26: =IF(INDEX($K26:$O26,1,aux!$AL$1)>0,(O26-INDEX($K26:$O26,1,aux!$AL$1))/INDEX($K26:$O26,1,aux!$AL$1),"n.d.") -> n.d. | AF26: =SUM(C26:S26) -> 0 | AX26: 01 | BS26: 0
A27: 010599 | B27: Patos, gansos, perus, peruas e pintadas, vivos, de peso > 185 g, das espécies domésticas | C27: 0 | D27: 0 | E27: 0 | F27: 0 | G27: 0 | H27: 0 | J27: 0 | K27: 0 | L27: 0 | M27: 0 | N27: 0 | O27: 0 | P27: 0 | R27: 0 | S27: 0 | U27: =G27-INDEX($C27:$G27,1,aux!$AL$1) -> 0 | V27: n.d. | W27: 0 | X27: =+IF(INDEX($C27:$G27,1,aux!$AL$1)>0,(G27/INDEX($C27:$G27,1,aux!$AL$1))^(1/($G$3-INDEX($C$3:$G$3,1,aux!$AL$1)))-1,"n.d.") -> n.d. | Y27: =IF(INDEX($C27:$G27,1,aux!$AL$1)>0,(G27-INDEX($C27:$G27,1,aux!$AL$1))/INDEX($C27:$G27,1,aux!$AL$1),"n.d.") -> n.d. | AA27: =O27-INDEX($K27:$O27,1,aux!$AL$1) -> 0 | AB27: n.d. | AC27: 0 | AD27: =+IF(INDEX($K27:$O27,1,aux!$AL$1)>0,(O27/INDEX($K27:$O27,1,aux!$AL$1))^(1/($O$3-INDEX($K$3:$O$3,1,aux!$AL$1)))-1,"n.d.") -> n.d. | AE27: =IF(INDEX($K27:$O27,1,aux!$AL$1)>0,(O27-INDEX($K27:$O27,1,aux!$AL$1))/INDEX($K27:$O27,1,aux!$AL$1),"n.d.") -> n.d. | AF27: 0 | AX27: 01 | BS27: 0
A28: 010611 | B28: Primatas vivos | C28: 0 | D28: 0 | E28: 0 | F28: 0 | G28: 0 | H28: 0 | J28: 0 | K28: 0 | L28: 0 | M28: 0 | N28: 0 | O28: 0 | P28: 0 | R28: 0 | S28: 0 | U28: =G28-INDEX($C28:$G28,1,aux!$AL$1) -> 0 | V28: n.d. | W28: 0 | X28: =+IF(INDEX($C28:$G28,1,aux!$AL$1)>0,(G28/INDEX($C28:$G28,1,aux!$AL$1))^(1/($G$3-INDEX($C$3:$G$3,1,aux!$AL$1)))-1,"n.d.") -> n.d. | Y28: =IF(INDEX($C28:$G28,1,aux!$AL$1)>0,(G28-INDEX($C28:$G28,1,aux!$AL$1))/INDEX($C28:$G28,1,aux!$AL$1),"n.d.") -> n.d. | AA28: =O28-INDEX($K28:$O28,1,aux!$AL$1) -> 0 | AB28: n.d. | AC28: 0 | AD28: =+IF(INDEX($K28:$O28,1,aux!$AL$1)>0,(O28/INDEX($K28:$O28,1,aux!$AL$1))^(1/($O$3-INDEX($K$3:$O$3,1,aux!$AL$1)))-1,"n.d.") -> n.d. | AE28: =IF(INDEX($K28:$O28,1,aux!$AL$1)>0,(O28-INDEX($K28:$O28,1,aux!$AL$1))/INDEX($K28:$O28,1,aux!$AL$1),"n.d.") -> n.d. | AF28: 0 | AX28: 01 | BS28: 0
A29: 010612 | B29: Baleias, golfinhos e botos (mamíferos da ordem dos cetáceos), manatins (peixes-boi) e dugongues (mamíferos da ordem dos sirénios), otárias e focas, leões marinhos e morsas (mamíferos da subordem dos pinnípedes), vivos | C29: 0 | D29: 0 | E29: 0 | F29: 0 | G29: 0 | H29: 0 | J29: 0 | K29: 0 | L29: 0 | M29: 0 | N29: 0 | O29: 0 | P29: 0 | R29: 0 | S29: 0 | U29: =G29-INDEX($C29:$G29,1,aux!$AL$1) -> 0 | V29: n.d. | W29: 0 | X29: =+IF(INDEX($C29:$G29,1,aux!$AL$1)>0,(G29/INDEX($C29:$G29,1,aux!$AL$1))^(1/($G$3-INDEX($C$3:$G$3,1,aux!$AL$1)))-1,"n.d.") -> n.d. | Y29: =IF(INDEX($C29:$G29,1,aux!$AL$1)>0,(G29-INDEX($C29:$G29,1,aux!$AL$1))/INDEX($C29:$G29,1,aux!$AL$1),"n.d.") -> n.d. | AA29: =O29-INDEX($K29:$O29,1,aux!$AL$1) -> 0 | AB29: n.d. | AC29: 0 | AD29: =+IF(INDEX($K29:$O29,1,aux!$AL$1)>0,(O29/INDEX($K29:$O29,1,aux!$AL$1))^(1/($O$3-INDEX($K$3:$O$3,1,aux!$AL$1)))-1,"n.d.") -> n.d. | AE29: =IF(INDEX($K29:$O29,1,aux!$AL$1)>0,(O29-INDEX($K29:$O29,1,aux!$AL$1))/INDEX($K29:$O29,1,aux!$AL$1),"n.d.") -> n.d. | AF29: 0 | AX29: 01 | BS29: 0
A30: 010613 | B30: Camelos e outros camelídeos (Camelidae), vivos | C30: 0 | D30: 0 | E30: 0 | F30: 0 | G30: 0 | H30: 0 | J30: 0 | K30: 0 | L30: 0 | M30: 0 | N30: 0 | O30: 0 | P30: 0 | R30: 0 | S30: 0 | U30: =G30-INDEX($C30:$G30,1,aux!$AL$1) -> 0 | V30: n.d. | W30: 0 | X30: =+IF(INDEX($C30:$G30,1,aux!$AL$1)>0,(G30/INDEX($C30:$G30,1,aux!$AL$1))^(1/($G$3-INDEX($C$3:$G$3,1,aux!$AL$1)))-1,"n.d.") -> n.d. | Y30: =IF(INDEX($C30:$G30,1,aux!$AL$1)>0,(G30-INDEX($C30:$G30,1,aux!$AL$1))/INDEX($C30:$G30,1,aux!$AL$1),"n.d.") -> n.d. | AA30: =O30-INDEX($K30:$O30,1,aux!$AL$1) -> 0 | AB30: n.d. | AC30: 0 | AD30: =+IF(INDEX($K30:$O30,1,aux!$AL$1)>0,(O30/INDEX($K30:$O30,1,aux!$AL$1))^(1/($O$3-INDEX($K$3:$O$3,1,aux!$AL$1)))-1,"n.d.") -> n.d. | AE30: =IF(INDEX($K30:$O30,1,aux!$AL$1)>0,(O30-INDEX($K30:$O30,1,aux!$AL$1))/INDEX($K30:$O30,1,aux!$AL$1),"n.d.") -> n.d. | AF30: 0 | AX30: 01 | BS30: 0
A31: 010614 | B31: Coelhos e lebres, vivos | C31: 0 | D31: 0 | E31: 0 | F31: 0 | G31: 0 | H31: 0 | J31: 0 | K31: 0 | L31: 0 | M31: 0 | N31: 0 | O31: 0 | P31: 0 | R31: 0 | S31: 0 | U31: =G31-INDEX($C31:$G31,1,aux!$AL$1) -> 0 | V31: n.d. | W31: 0 | X31: =+IF(INDEX($C31:$G31,1,aux!$AL$1)>0,(G31/INDEX($C31:$G31,1,aux!$AL$1))^(1/($G$3-INDEX($C$3:$G$3,1,aux!$AL$1)))-1,"n.d.") -> n.d. | Y31: =IF(INDEX($C31:$G31,1,aux!$AL$1)>0,(G31-INDEX($C31:$G31,1,aux!$AL$1))/INDEX($C31:$G31,1,aux!$AL$1),"n.d.") -> n.d. | AA31: =O31-INDEX($K31:$O31,1,aux!$AL$1) -> 0 | AB31: n.d. | AC31: 0 | AD31: =+IF(INDEX($K31:$O31,1,aux!$AL$1)>0,(O31/INDEX($K31:$O31,1,aux!$AL$1))^(1/($O$3-INDEX($K$3:$O$3,1,aux!$AL$1)))-1,"n.d.") -> n.d. | AE31: =IF(INDEX($K31:$O31,1,aux!$AL$1)>0,(O31-INDEX($K31:$O31,1,aux!$AL$1))/INDEX($K31:$O31,1,aux!$AL$1),"n.d.") -> n.d. | AF31: =SUM(C31:S31) -> 0 | AX31: 01 | BS31: 0
A32: 010619 | B32: Mamíferos vivos, (exceto primatas, baleias, golfinhos, botos, manatins, dugongues, otária e focas, leões marinhos, morsas, camelos e outros camelídeos, coelhos e lebres, animais das espécies cavalar, asinina, muar, bovina, suína, ovina e caprina) | C32: 0 | D32: 0 | E32: 0 | F32: 0 | G32: 0 | H32: 0 | J32: 0 | K32: 0 | L32: 0 | M32: 0 | N32: 0 | O32: 0 | P32: 0 | R32: 0 | S32: 0 | U32: =G32-INDEX($C32:$G32,1,aux!$AL$1) -> 0 | V32: n.d. | W32: 0 | X32: =+IF(INDEX($C32:$G32,1,aux!$AL$1)>0,(G32/INDEX($C32:$G32,1,aux!$AL$1))^(1/($G$3-INDEX($C$3:$G$3,1,aux!$AL$1)))-1,"n.d.") -> n.d. | Y32: =IF(INDEX($C32:$G32,1,aux!$AL$1)>0,(G32-INDEX($C32:$G32,1,aux!$AL$1))/INDEX($C32:$G32,1,aux!$AL$1),"n.d.") -> n.d. | AA32: =O32-INDEX($K32:$O32,1,aux!$AL$1) -> 0 | AB32: n.d. | AC32: 0 | AD32: =+IF(INDEX($K32:$O32,1,aux!$AL$1)>0,(O32/INDEX($K32:$O32,1,aux!$AL$1))^(1/($O$3-INDEX($K$3:$O$3,1,aux!$AL$1)))-1,"n.d.") -> n.d. | AE32: =IF(INDEX($K32:$O32,1,aux!$AL$1)>0,(O32-INDEX($K32:$O32,1,aux!$AL$1))/INDEX($K32:$O32,1,aux!$AL$1),"n.d.") -> n.d. | AF32: 0 | AX32: 01 | BS32: 0
